{"text_format":"1","workbook":"xlsx","n_sheets":2,"sheets":["Service Line Inventory","Service Line Inventory Table"],"not_rendered":{"charts":0,"images":1,"macros":1,"external_links":0,"defined_names":1,"comments":0,"pivot_tables":0},"unopened":[],"bounds":{"document_bytes":16777216,"sheet_cells":100000,"rows_first":2000,"rows_last":500,"rows_between":2000,"halvings":0,"cell_chars":16384,"cell_head_chars":4096},"cells_cut":0,"cells_raw":0,"read":"whole","date_system":"1900"}

{"sheet":"Service Line Inventory","index":0,"n_rows":46,"n_cols":13,"rows_kept":46,"cut":false,"hidden":false,"merged":[[35,7,35,8],[35,10,35,12],[35,2,35,5],[34,2,34,8],[2,5,2,12],[33,2,33,8],[33,10,33,12],[34,9,34,11],[6,8,6,12],[7,8,7,12],[8,8,8,12],[9,8,9,12],[1,5,1,12],[0,5,0,12],[19,1,19,10],[32,10,32,12],[32,7,32,8],[32,2,32,5],[6,2,6,4],[7,2,7,4],[27,6,27,7],[25,6,25,7],[38,2,38,5],[38,7,38,8],[38,10,38,12],[39,2,39,5],[39,7,39,8],[39,10,39,12],[40,2,40,5],[40,7,40,8],[40,10,40,12],[41,2,41,5],[41,7,41,8],[41,10,41,12]]}
[null,"DEP_10-S_00014 12/2021",null,null,null,"Service Line Inventory Report"]
[null,null,null,null,null,"New Jersey Department of Environmental Protection"]
[null,null,null,null,null,"Division of Water Supply and Geoscience - Water System Operations Element"]
[]
[]
[null,"I. System Information",null,null,null,null,"II. Contact Information for Owner/ Licensed Operator of Record Completing the Form"]
[null,"Water System Name:","Mantua MUA",null,null,null,"Contact Name:",null,"Duane Paul  Pheasant"]
[null,"PWSID Number:",810004,null,null,null,"Contact Title: ",null,"Superintendent"]
[null,null,null,null,null,null,"Contact Phone: ",null,"(856) 468-1111 "]
[null,null,null,null,null,null,"Contact Email: ",null,"ppheasant@mantuamua.com"]
[]
[null,"III. Inventory Information "]
[null,"Owner of Service Lines: "]
[null,null,null,null,null,null,null,null,null,null,null,"Selection","Number of sites"]
[]
[null,"I. Lead"]
[]
[null,"II. Galvanized",null,null,null,null,null,null,null,null,null,null,57]
[]
[null,"III. Lead gooseneck, pigtail, or connector"]
[]
[null,"IV. Lead Status Unknown",null,null,null,null,null,null,null,null,null,null,121]
[]
[null,"V. Non-lead",null,null,null,null,null,null,null,null,null,null,5466]
[]
[null,null,null,"# of LSLs to be replaced/identified:",null,null,{"$f":"M16+M18+M20+M22","v":178},null,null,"# of LSLs to be replaced annually:",null,null,{"$f":"M28*0.1","v":5.7}]
[]
[null,null,null,"Total # of service lines in PWS: ",null,null,{"$f":"SUM(M16+M18+M20+M22+M24)","v":5644},null,null,"# of known LSLs ",null,null,{"$f":"M16+M18+M20","v":57}]
[]
[]
[null,"IV. Inventory Availability "]
[null,"This inventory has been made publicly accessible by:"]
[]
[null,null,"If 3,300 customers or greater: Posting the inventory on my water system's website",null,null,null,null,null,null,"Website:"," Mantuamua.com"]
[null,null,"If under 3,300 customers: Posting the inventory in a publicly accessible place, if a website is not available",null,null,null,null,null,null,"Inventory is available via: "]
[null,"V. Certifications"]
[]
[null,"By submitting this form, I have verified and certify the information listed in this form is true and accurate to the best of my knowledge and belief."]
[null,null,"Duane Paul Pheasant",null,null,null,null,"2022-01-20"]
[null,null,"Water System Owner or Licensed Operator Name",null,null,null,null,"Date",null,null,"Title (if WS Owner)"]
[null,null,"ppheasant@mantuamua.com",null,null,null,null,"(856) 468-1111",null,null,600399]
[null,null,"Email",null,null,null,null,"Phone Number",null,null,"License Number (if LO)"]
[]
[]
[]
[null,"*This form must be submitted by the Water System Owner or its Licensed Operator of Record.*"]

{"sheet":"Service Line Inventory Table","index":1,"n_rows":10629,"n_cols":33,"rows_kept":4500,"cut":true,"hidden":false,"merged":[],"bounds":{"rows_first":2000,"rows_last":500,"rows_between":2000,"halvings":0}}
["PBCU Sample Site ID (e.g. PBCU01) (Optional)",null,null,null,"Street Address","ZIp Code","Town","Lot          (Optional)","Block (Optional)","Easting (X) (Optional)","Northing (Y) (Optional)","Latitude (Optional)","Longitude (Optional)","Locational Identifier (Optional)","Service Line Category","Suspected to be lead? (Y/N)               (Complete if answered UL for column L)","Public Service Line Materials","Public Service Line - Other Materials (Provide only if Column N is indicated as O)","Customer Service Line Materials","Customer Service Line - Other Materials (Only provide if Column P is indicated as O)","PWS Service Line Install Date (Optional)","Customer Service Line Install Date (optional)","Service Line Length (ft.) (Optional)","Verification Source (Optional)","Other Source                                      (Provide only if Column U is indicated to be O)","Reasoning                                                              (Optional)","Steps to be Taken to ID (Optional)","Attachments? (Y/N) (Optional)","PWS Service Line Diameter (Optional)","Customer Service Line Diameter (optional)","Building Type (Optional)","PWS Comments (Optional)","DEP Comments"]
[null,"BATHROOMS/GARAGE"," LITTLE"," LEAGUE",{"$f":"_xlfn.CONCAT(B2, C2, D2)","v":"BATHROOMS/GARAGE LITTLE LEAGUE"},"08051","Mantua ",null,null,null,null,null,null,null,"NL",null,"C",null,"C"]
[null,96," COTTAGE"," GATE","96 COTTAGE GATE","08080","Sewell",null,null,null,null,null,null,null,"NL",null,"C",null,"C"]
[null,26," TIMBERLINE"," PLAZA","26 TIMBERLINE PLAZA","08080","Sewell",null,null,null,null,null,null,null,"NL",null,"C",null,"C"]
[null,17,"  MARTEL"," ST","17  MARTEL ST","08051","Mantua",null,null,null,null,null,null,null,"NL",null,"C",null,"C"]
[null,420,"  ACCOLON"," CT","420  ACCOLON CT","08051","Mantua",null,null,null,null,null,null,null,"NL",null,"C",null,"P"]
[null,400,"  ACCOLON"," CT","400  ACCOLON CT","08051","Mantua",null,null,null,null,null,null,null,"NL",null,"C",null,"P"]
[null,402,"  ACCOLON"," CT","402  ACCOLON CT","08051","Mantua",null,null,null,null,null,null,null,"NL",null,"C",null,"P"]
[null,404,"  ACCOLON"," CT","404  ACCOLON CT","08051","Mantua",null,null,null,null,null,null,null,"NL",null,"C",null,"P"]
[null,406,"  ACCOLON"," CT","406  ACCOLON CT","08051","Mantua",null,null,null,null,null,null,null,"NL",null,"C",null,"P"]
[null,408,"  ACCOLON"," CT","408  ACCOLON CT","08051","Mantua",null,null,null,null,null,null,null,"NL",null,"C",null,"P"]
[null,410,"  ACCOLON"," CT","410  ACCOLON CT","08051","Mantua",null,null,null,null,null,null,null,"NL",null,"C",null,"P"]
[null,412,"  ACCOLON"," CT","412  ACCOLON CT","08051","Mantua",null,null,null,null,null,null,null,"NL",null,"C",null,"P"]
[null,414,"  ACCOLON"," CT","414  ACCOLON CT","08051","Mantua",null,null,null,null,null,null,null,"NL",null,"C",null,"P"]
[null,416,"  ACCOLON"," CT","416  ACCOLON CT","08051","Mantua",null,null,null,null,null,null,null,"NL",null,"C",null,"P"]
[null,418,"  ACCOLON"," CT","418  ACCOLON CT","08051","Mantua",null,null,null,null,null,null,null,"NL",null,"C",null,"P"]
[null,422,"  ACCOLON"," CT","422  ACCOLON CT","08051","Mantua",null,null,null,null,null,null,null,"NL",null,"C",null,"P"]
[null,424,"  ACCOLON"," CT","424  ACCOLON CT","08051","Mantua",null,null,null,null,null,null,null,"NL",null,"C",null,"P"]
[null,426,"  ACCOLON"," CT","426  ACCOLON CT","08051","Mantua",null,null,null,null,null,null,null,"NL",null,"C",null,"P"]
[null,428,"  ACCOLON"," CT","428  ACCOLON CT","08051","Mantua",null,null,null,null,null,null,null,"NL",null,"C",null,"P"]
[null,430,"  ACCOLON"," CT","430  ACCOLON CT","08051","Mantua",null,null,null,null,null,null,null,"NL",null,"C",null,"P"]
[null,432,"  ACCOLON"," CT","432  ACCOLON CT","08051","Mantua",null,null,null,null,null,null,null,"NL",null,"C",null,"P"]
[null,434,"  ACCOLON"," CT","434  ACCOLON CT","08051","Mantua",null,null,null,null,null,null,null,"NL",null,"C",null,"P"]
[null,436,"  ACCOLON"," CT","436  ACCOLON CT","08051","Mantua",null,null,null,null,null,null,null,"NL",null,"C",null,"P"]
[null,103," ADAMS"," AVE","103 ADAMS AVE","08051","Mantua",null,null,null,null,null,null,null,"NL",null,"C",null,"C"]
[null,105," ADAMS"," AVE","105 ADAMS AVE","08051","Mantua",null,null,null,null,null,null,null,"NL",null,"C",null,"C"]
[null,107," ADAMS"," AVE","107 ADAMS AVE","08051","Mantua",null,null,null,null,null,null,null,"NL",null,"C",null,"C"]
[null,109," ADAMS"," AVE","109 ADAMS AVE","08051","Mantua",null,null,null,null,null,null,null,"NL",null,"C",null,"C"]
[null,110," ADAMS"," AVE","110 ADAMS AVE","08051","Mantua",null,null,null,null,null,null,null,"NL",null,"C",null,"C"]
[null,112," ADAMS"," AVE","112 ADAMS AVE","08051","Mantua",null,null,null,null,null,null,null,"NL",null,"C",null,"C"]
[null,125," ADAMS"," AVE","125 ADAMS AVE","08051","Mantua",null,null,null,null,null,null,null,"NL",null,"C",null,"C"]
[null,126," ADAMS"," AVE","126 ADAMS AVE","08051","Mantua",null,null,null,null,null,null,null,"NL",null,"C",null,"C"]
[null,142," ADAMS"," AVE","142 ADAMS AVE","08051","Mantua",null,null,null,null,null,null,null,"NL",null,"C",null,"C"]
[null,111," ADAMS"," AVE","111 ADAMS AVE","08051","Mantua",null,null,null,null,null,null,null,"NL",null,"C",null,"C"]
[null,106," ADAMS"," AVE","106 ADAMS AVE","08051","Mantua",null,null,null,null,null,null,null,"NL",null,"C",null,"C"]
[null,108," ADAMS"," AVE","108 ADAMS AVE","08051","Mantua",null,null,null,null,null,null,null,"NL",null,"C",null,"C"]
[null,131," ADAMS"," AVE","131 ADAMS AVE","08051","Mantua",null,null,null,null,null,null,null,"NL",null,"C",null,"C"]
[null,135," ADAMS"," AVE","135 ADAMS AVE","08051","Mantua",null,null,null,null,null,null,null,"NL",null,"C",null,"C"]
[null,139," ADAMS"," AVE","139 ADAMS AVE","08051","Mantua",null,null,null,null,null,null,null,"NL",null,"C",null,"C"]
[null,132," ADAMS"," AVE","132 ADAMS AVE","08051","Mantua",null,null,null,null,null,null,null,"NL",null,"C",null,"C"]
[null,136," ADAMS"," AVE","136 ADAMS AVE","08051","Mantua",null,null,null,null,null,null,null,"NL",null,"C",null,"C"]
[null,140," ADAMS"," AVE","140 ADAMS AVE","08051","Mantua",null,null,null,null,null,null,null,"NL",null,"C",null,"C"]
[null,144," ADAMS"," AVE","144 ADAMS AVE","08051","Mantua",null,null,null,null,null,null,null,"NL",null,"C",null,"C"]
[null,245," ANDREW"," AVE","245 ANDREW AVE","08051","Mantua",null,null,null,null,null,null,null,"NL",null,"C",null,"P"]
[null,246," ANDREW"," AVE","246 ANDREW AVE","08051","Mantua",null,null,null,null,null,null,null,"NL",null,"C",null,"P"]
[null,247," ANDREW"," AVE","247 ANDREW AVE","08051","Mantua",null,null,null,null,null,null,null,"NL",null,"C",null,"P"]
[null,249," ANDREW"," AVE","249 ANDREW AVE","08051","Mantua",null,null,null,null,null,null,null,"NL",null,"C",null,"P"]
[null,250," ANDREW"," AVE","250 ANDREW AVE","08051","Mantua",null,null,null,null,null,null,null,"NL",null,"C",null,"P"]
[null,251," ANDREW"," AVE","251 ANDREW AVE","08051","Mantua",null,null,null,null,null,null,null,"NL",null,"C",null,"P"]
[null,252," ANDREW"," AVE","252 ANDREW AVE","08051","Mantua",null,null,null,null,null,null,null,"NL",null,"C",null,"P"]
[null,253," ANDREW"," AVE","253 ANDREW AVE","08051","Mantua",null,null,null,null,null,null,null,"NL",null,"C",null,"P"]
[null,274," ANDREW"," AVE","274 ANDREW AVE","08051","Mantua",null,null,null,null,null,null,null,"NL",null,"C",null,"P"]
[null,278," ANDREW"," AVE","278 ANDREW AVE","08051","Mantua",null,null,null,null,null,null,null,"NL",null,"C",null,"P"]
[null,279," ANDREW"," AVE","279 ANDREW AVE","08051","Mantua",null,null,null,null,null,null,null,"NL",null,"C",null,"P"]
[null,280," ANDREW"," AVE","280 ANDREW AVE","08051","Mantua",null,null,null,null,null,null,null,"NL",null,"C",null,"P"]
[null,254," ANDREW"," AVE","254 ANDREW AVE","08051","Mantua",null,null,null,null,null,null,null,"NL",null,"C",null,"P"]
[null,244," ANDREW"," AVE","244 ANDREW AVE","08051","Mantua",null,null,null,null,null,null,null,"NL",null,"C",null,"P"]
[null,248," ANDREW"," AVE","248 ANDREW AVE","08051","Mantua",null,null,null,null,null,null,null,"NL",null,"C",null,"P"]
[null,273," ANDREW"," AVE","273 ANDREW AVE","08051","Mantua",null,null,null,null,null,null,null,"NL",null,"C",null,"P"]
[null,275," ANDREW"," AVE","275 ANDREW AVE","08051","Mantua",null,null,null,null,null,null,null,"NL",null,"C",null,"P"]
[null,276," ANDREW"," AVE","276 ANDREW AVE","08051","Mantua",null,null,null,null,null,null,null,"NL",null,"C",null,"P"]
[null,277," ANDREW"," AVE","277 ANDREW AVE","08051","Mantua",null,null,null,null,null,null,null,"NL",null,"C",null,"P"]
[null,"KOHL'S"," ANNUAL"," FIRE","KOHL'S ANNUAL FIRE","08051","Mantua",null,null,null,null,null,null,null,"NL",null,"C",null,"NA"]
[null,"KOHL'S"," ANNUAL"," HYDRANTS","KOHL'S ANNUAL HYDRANTS","08051","Mantua",null,null,null,null,null,null,null,"NL",null,"C",null,"NA"]
[null,201," APPLE BLOSSOM"," LN","201 APPLE BLOSSOM LN","08051","Mantua",null,null,null,null,null,null,null,"NL",null,"C",null,"C"]
[null,208," APPLE BLOSSOM"," LN",{"$f":"_xlfn.CONCAT(B66, C66, D66)","v":"208 APPLE BLOSSOM LN"},"08051","Mantua",null,null,null,null,null,null,null,"NL",null,"C",null,"C"]
[null,205," APPLE BLOSSOM"," LN","205 APPLE BLOSSOM LN","08051","Mantua",null,null,null,null,null,null,null,"NL",null,"C",null,"C"]
[null,5," APPLEWOOD"," CT","5 APPLEWOOD CT","08051","Mantua",null,null,null,null,null,null,null,"NL",null,"C",null,"C"]
[null,7," APPLEWOOD"," CT","7 APPLEWOOD CT","08051","Mantua",null,null,null,null,null,null,null,"NL",null,"C",null,"C"]
[null,3," APPLEWOOD"," CT","3 APPLEWOOD CT","08051","Mantua",null,null,null,null,null,null,null,"NL",null,"C",null,"C"]
[null,35," ARBOUR"," LN","35 ARBOUR LN","08080","Sewell",null,null,null,null,null,null,null,"NL",null,"C",null,"C"]
[null,10," ARBOUR"," LN","10 ARBOUR LN","08080","Sewell",null,null,null,null,null,null,null,"NL",null,"C",null,"C"]
[null,12," ARBOUR"," LN","12 ARBOUR LN","08080","Sewell",null,null,null,null,null,null,null,"NL",null,"C",null,"C"]
[null,14," ARBOUR"," LN","14 ARBOUR LN","08080","Sewell",null,null,null,null,null,null,null,"NL",null,"C",null,"C"]
[null,16," ARBOUR"," LN","16 ARBOUR LN","08080","Sewell",null,null,null,null,null,null,null,"NL",null,"C",null,"C"]
[null,2," ARBOUR"," LN","2 ARBOUR LN","08080","Sewell",null,null,null,null,null,null,null,"NL",null,"C",null,"C"]
[null,4," ARBOUR"," LN","4 ARBOUR LN","08080","Sewell",null,null,null,null,null,null,null,"NL",null,"C",null,"C"]
[null,6," ARBOUR"," LN","6 ARBOUR LN","08080","Sewell",null,null,null,null,null,null,null,"NL",null,"C",null,"C"]
[null,8," ARBOUR"," LN","8 ARBOUR LN","08080","Sewell",null,null,null,null,null,null,null,"NL",null,"C",null,"C"]
[null,20," ARBOUR"," LN","20 ARBOUR LN","08080","Sewell",null,null,null,null,null,null,null,"NL",null,"C",null,"C"]
[null,22," ARBOUR"," LN","22 ARBOUR LN","08080","Sewell",null,null,null,null,null,null,null,"NL",null,"C",null,"C"]
[null,24," ARBOUR"," LN","24 ARBOUR LN","08080","Sewell",null,null,null,null,null,null,null,"NL",null,"C",null,"C"]
[null,26," ARBOUR"," LN","26 ARBOUR LN","08080","Sewell",null,null,null,null,null,null,null,"NL",null,"C",null,"C"]
[null,28," ARBOUR"," LN","28 ARBOUR LN","08080","Sewell",null,null,null,null,null,null,null,"NL",null,"C",null,"C"]
[null,30," ARBOUR"," LN","30 ARBOUR LN","08080","Sewell",null,null,null,null,null,null,null,"NL",null,"C",null,"C"]
[null,44," ARBOUR"," LN","44 ARBOUR LN","08080","Sewell",null,null,null,null,null,null,null,"NL",null,"C",null,"C"]
[null,46," ARBOUR"," LN","46 ARBOUR LN","08080","Sewell",null,null,null,null,null,null,null,"NL",null,"C",null,"C"]
[null,48," ARBOUR"," LN","48 ARBOUR LN","08080","Sewell",null,null,null,null,null,null,null,"NL",null,"C",null,"C"]
[null,50," ARBOUR"," LN","50 ARBOUR LN","08080","Sewell",null,null,null,null,null,null,null,"NL",null,"C",null,"C"]
[null,52," ARBOUR"," LN","52 ARBOUR LN","08080","Sewell",null,null,null,null,null,null,null,"NL",null,"C",null,"C"]
[null,54," ARBOUR"," LN","54 ARBOUR LN","08080","Sewell",null,null,null,null,null,null,null,"NL",null,"C",null,"C"]
[null,56," ARBOUR"," LN","56 ARBOUR LN","08080","Sewell",null,null,null,null,null,null,null,"NL",null,"C",null,"C"]
[null,58," ARBOUR"," LN","58 ARBOUR LN","08080","Sewell",null,null,null,null,null,null,null,"NL",null,"C",null,"C"]
[null,23," ARBOUR"," LN","23 ARBOUR LN","08080","Sewell",null,null,null,null,null,null,null,"NL",null,"C",null,"C"]
[null,25," ARBOUR"," LN","25 ARBOUR LN","08080","Sewell",null,null,null,null,null,null,null,"NL",null,"C",null,"C"]
[null,27," ARBOUR"," LN","27 ARBOUR LN","08080","Sewell",null,null,null,null,null,null,null,"NL",null,"C",null,"C"]
[null,29," ARBOUR"," LN","29 ARBOUR LN","08080","Sewell",null,null,null,null,null,null,null,"NL",null,"C",null,"C"]
[null,45," ARBOUR"," LN","45 ARBOUR LN","08080","Sewell",null,null,null,null,null,null,null,"NL",null,"C",null,"C"]
[null,47," ARBOUR"," LN","47 ARBOUR LN","08080","Sewell",null,null,null,null,null,null,null,"NL",null,"C",null,"C"]
[null,49," ARBOUR"," LN","49 ARBOUR LN","08080","Sewell",null,null,null,null,null,null,null,"NL",null,"C",null,"C"]
[null,51," ARBOUR"," LN","51 ARBOUR LN","08080","Sewell",null,null,null,null,null,null,null,"NL",null,"C",null,"C"]
[null,53," ARBOUR"," LN","53 ARBOUR LN","08080","Sewell",null,null,null,null,null,null,null,"NL",null,"C",null,"C"]
[null,55," ARBOUR"," LN","55 ARBOUR LN","08080","Sewell",null,null,null,null,null,null,null,"NL",null,"C",null,"C"]
[null,57," ARBOUR"," LN","57 ARBOUR LN","08080","Sewell",null,null,null,null,null,null,null,"NL",null,"C",null,"C"]
[null,59," ARBOUR"," LN","59 ARBOUR LN","08080","Sewell",null,null,null,null,null,null,null,"NL",null,"C",null,"C"]
[null,92," ARBOUR"," CT","92 ARBOUR CT","08080","Sewell",null,null,null,null,null,null,null,"NL",null,"C",null,"C"]
[null,94," ARBOUR"," CT","94 ARBOUR CT","08080","Sewell",null,null,null,null,null,null,null,"NL",null,"C",null,"C"]
[null,96," ARBOUR"," CT","96 ARBOUR CT","08080","Sewell",null,null,null,null,null,null,null,"NL",null,"C",null,"C"]
[null,98," ARBOUR"," CT","98 ARBOUR CT","08080","Sewell",null,null,null,null,null,null,null,"NL",null,"C",null,"C"]
[null,85," ARBOUR"," CT","85 ARBOUR CT","08080","Sewell",null,null,null,null,null,null,null,"NL",null,"C",null,"C"]
[null,87," ARBOUR"," CT","87 ARBOUR CT","08080","Sewell",null,null,null,null,null,null,null,"NL",null,"C",null,"C"]
[null,89," ARBOUR"," CT","89 ARBOUR CT","08080","Sewell",null,null,null,null,null,null,null,"NL",null,"C",null,"C"]
[null,91," ARBOUR"," CT","91 ARBOUR CT","08080","Sewell",null,null,null,null,null,null,null,"NL",null,"C",null,"C"]
[null,93," ARBOUR"," CT","93 ARBOUR CT","08080","Sewell",null,null,null,null,null,null,null,"NL",null,"C",null,"C"]
[null,95," ARBOUR"," CT","95 ARBOUR CT","08080","Sewell",null,null,null,null,null,null,null,"NL",null,"C",null,"C"]
[null,97," ARBOUR"," CT","97 ARBOUR CT","08080","Sewell",null,null,null,null,null,null,null,"NL",null,"C",null,"C"]
[null,99," ARBOUR"," CT","99 ARBOUR CT","08080","Sewell",null,null,null,null,null,null,null,"NL",null,"C",null,"C"]
[null,3," ARBOUR"," LN","3 ARBOUR LN","08080","Sewell",null,null,null,null,null,null,null,"NL",null,"C",null,"C"]
[null,5," ARBOUR"," LN","5 ARBOUR LN","08080","Sewell",null,null,null,null,null,null,null,"NL",null,"C",null,"C"]
[null,7," ARBOUR"," LN","7 ARBOUR LN","08080","Sewell",null,null,null,null,null,null,null,"NL",null,"C",null,"C"]
[null,9," ARBOUR"," LN","9 ARBOUR LN","08080","Sewell",null,null,null,null,null,null,null,"NL",null,"C",null,"C"]
[null,13," ARBOUR"," LN","13 ARBOUR LN","08080","Sewell",null,null,null,null,null,null,null,"NL",null,"C",null,"C"]
[null,15," ARBOUR"," LN","15 ARBOUR LN","08080","Sewell",null,null,null,null,null,null,null,"NL",null,"C",null,"C"]
[null,17," ARBOUR"," LN","17 ARBOUR LN","08080","Sewell",null,null,null,null,null,null,null,"NL",null,"C",null,"C"]
[null,19," ARBOUR"," LN","19 ARBOUR LN","08080","Sewell",null,null,null,null,null,null,null,"NL",null,"C",null,"C"]
[null,33," ARBOUR"," LN","33 ARBOUR LN","08080","Sewell",null,null,null,null,null,null,null,"NL",null,"C",null,"C"]
[null,37," ARBOUR"," LN","37 ARBOUR LN","08080","Sewell",null,null,null,null,null,null,null,"NL",null,"C",null,"C"]
[null,39," ARBOUR"," LN","39 ARBOUR LN","08080","Sewell",null,null,null,null,null,null,null,"NL",null,"C",null,"C"]
[null,41," ARBOUR"," LN","41 ARBOUR LN","08080","Sewell",null,null,null,null,null,null,null,"NL",null,"C",null,"C"]
[null,43," ARBOUR"," LN",{"$f":"_xlfn.CONCAT(B130, C130, D130)","v":"43 ARBOUR LN"},"08080","Sewell",null,null,null,null,null,null,null,"NL",null,"C",null,"C"]
[null,61," ARBOUR"," LN","61 ARBOUR LN","08080","Sewell",null,null,null,null,null,null,null,"NL",null,"C",null,"C"]
[null,63," ARBOUR"," LN","63 ARBOUR LN","08080","Sewell",null,null,null,null,null,null,null,"NL",null,"C",null,"C"]
[null,65," ARBOUR"," LN","65 ARBOUR LN","08080","Sewell",null,null,null,null,null,null,null,"NL",null,"C",null,"C"]
[null,67," ARBOUR"," LN","67 ARBOUR LN","08080","Sewell",null,null,null,null,null,null,null,"NL",null,"C",null,"C"]
[null,69," ARBOUR"," LN","69 ARBOUR LN","08080","Sewell",null,null,null,null,null,null,null,"NL",null,"C",null,"C"]
[null,71," ARBOUR"," LN","71 ARBOUR LN","08080","Sewell",null,null,null,null,null,null,null,"NL",null,"C",null,"C"]
[null,73," ARBOUR"," LN","73 ARBOUR LN","08080","Sewell",null,null,null,null,null,null,null,"NL",null,"C",null,"C"]
[null,75," ARBOUR"," LN","75 ARBOUR LN","08080","Sewell",null,null,null,null,null,null,null,"NL",null,"C",null,"C"]
[null,77," ARBOUR"," LN","77 ARBOUR LN","08080","Sewell",null,null,null,null,null,null,null,"NL",null,"C",null,"C"]
[null,79," ARBOUR"," LN","79 ARBOUR LN","08080","Sewell",null,null,null,null,null,null,null,"NL",null,"C",null,"C"]
[null,81," ARBOUR"," CT","81 ARBOUR CT","08080","Sewell",null,null,null,null,null,null,null,"NL",null,"C",null,"C"]
[null,83," ARBOUR"," LN","83 ARBOUR LN","08080","Sewell",null,null,null,null,null,null,null,"NL",null,"C",null,"C"]
[null,11," ARENA"," ST","11 ARENA ST","08051","Mantua",null,null,null,null,null,null,null,"NL",null,"C",null,"C"]
[null,13," ARENA"," ST","13 ARENA ST","08051","Mantua",null,null,null,null,null,null,null,"NL",null,"C",null,"C"]
[null,14," ARENA"," ST","14 ARENA ST","08051","Mantua",null,null,null,null,null,null,null,"NL",null,"C",null,"C"]
[null,15," ARENA"," ST","15 ARENA ST","08051","Mantua",null,null,null,null,null,null,null,"NL",null,"C",null,"C"]
[null,16," ARENA"," ST","16 ARENA ST","08051","Mantua",null,null,null,null,null,null,null,"NL",null,"C",null,"C"]
[null,17," ARENA"," ST","17 ARENA ST","08051","Mantua",null,null,null,null,null,null,null,"NL",null,"C",null,"C"]
[null,19," ARENA"," ST","19 ARENA ST","08051","Mantua",null,null,null,null,null,null,null,"NL",null,"C",null,"C"]
[null,21," ARENA"," ST","21 ARENA ST","08051","Mantua",null,null,null,null,null,null,null,"NL",null,"C",null,"C"]
[null,9," ARENA"," ST","9 ARENA ST","08051","Mantua",null,null,null,null,null,null,null,"NL",null,"C",null,"C"]
[null,10," ARENA"," ST","10 ARENA ST","08051","Mantua",null,null,null,null,null,null,null,"NL",null,"C",null,"C"]
[null,12," ARENA"," ST","12 ARENA ST","08051","Mantua",null,null,null,null,null,null,null,"NL",null,"C",null,"C"]
[null,18," ARENA"," ST","18 ARENA ST","08051","Mantua",null,null,null,null,null,null,null,"NL",null,"C",null,"C"]
[null,20," ARENA"," ST","20 ARENA ST","08051","Mantua",null,null,null,null,null,null,null,"NL",null,"C",null,"C"]
[null,3," ARSEN"," DR","3 ARSEN DR","08051","Mantua",null,null,null,null,null,null,null,"NL",null,"C",null,"C"]
[null,1," ARSEN"," DR","1 ARSEN DR","08051","Mantua",null,null,null,null,null,null,null,"NL",null,"C",null,"C"]
[null,2," ARSEN"," CT","2 ARSEN CT","08051","Mantua",null,null,null,null,null,null,null,"NL",null,"C",null,"C"]
[null,4," ARSEN"," CT","4 ARSEN CT","08051","Mantua",null,null,null,null,null,null,null,"NL",null,"C",null,"C"]
[null,6," ARSEN"," CT","6 ARSEN CT","08051","Mantua",null,null,null,null,null,null,null,"NL",null,"C",null,"C"]
[null,8," ARSEN"," CT","8 ARSEN CT","08051","Mantua",null,null,null,null,null,null,null,"NL",null,"C",null,"C"]
[null,5," ARSEN"," DR","5 ARSEN DR","08051","Mantua",null,null,null,null,null,null,null,"NL",null,"C",null,"C"]
[null,7," ARSEN"," DR","7 ARSEN DR","08051","Mantua",null,null,null,null,null,null,null,"NL",null,"C",null,"C"]
[null,174," ASH"," AVE","174 ASH AVE","08051","Mantua",null,null,null,null,null,null,null,"NL",null,"C",null,"C"]
[null,116," ASH"," AVE","116 ASH AVE","08051","Mantua",null,null,null,null,null,null,null,"NL",null,"C",null,"C"]
[null,132," ASH"," AVE","132 ASH AVE","08051","Mantua",null,null,null,null,null,null,null,"NL",null,"C",null,"C"]
[null,167," ASH"," AVE","167 ASH AVE","08051","Mantua",null,null,null,null,null,null,null,"NL",null,"C",null,"C"]
[null,177," ASH"," AVE","177 ASH AVE","08051","Mantua",null,null,null,null,null,null,null,"NL",null,"C",null,"C"]
[null,181," ASH"," AVE","181 ASH AVE","08051","Mantua",null,null,null,null,null,null,null,"NL",null,"C",null,"C"]
[null,197," ASH"," AVE","197 ASH AVE","08051","Mantua",null,null,null,null,null,null,null,"NL",null,"C",null,"C"]
[null,166," ASH"," AVE","166 ASH AVE","08051","Mantua",null,null,null,null,null,null,null,"NL",null,"C",null,"C"]
[null,182," ASH"," AVE","182 ASH AVE","08051","Mantua",null,null,null,null,null,null,null,"NL",null,"C",null,"C"]
[null,190," ASH"," AVE","190 ASH AVE","08051","Mantua",null,null,null,null,null,null,null,"NL",null,"C",null,"C"]
[null,198," ASH"," AVE","198 ASH AVE","08051","Mantua",null,null,null,null,null,null,null,"NL",null,"C",null,"C"]
[null,123," ASH"," AVE","123 ASH AVE","08051","Mantua",null,null,null,null,null,null,null,"NL",null,"C",null,"C"]
[null,131," ASH"," AVE","131 ASH AVE","08051","Mantua",null,null,null,null,null,null,null,"NL",null,"C",null,"C"]
[null,139," ASH"," AVE","139 ASH AVE","08051","Mantua",null,null,null,null,null,null,null,"NL",null,"C",null,"C"]
[null,11," ASPENWOOD"," CT","11 ASPENWOOD CT","08051","Mantua",null,null,null,null,null,null,null,"NL",null,"C",null,"C"]
[null,13," ASPENWOOD"," CT","13 ASPENWOOD CT","08051","Mantua",null,null,null,null,null,null,null,"NL",null,"C",null,"C"]
[null,5," ASPENWOOD"," CT","5 ASPENWOOD CT","08051","Mantua",null,null,null,null,null,null,null,"NL",null,"C",null,"C"]
[null,9," ASPENWOOD"," CT","9 ASPENWOOD CT","08051","Mantua",null,null,null,null,null,null,null,"NL",null,"C",null,"C"]
[null,600," ATLANTIC"," AVE","600 ATLANTIC AVE","08080","Sewell",null,null,null,null,null,null,null,"NL",null,"C",null,"C"]
[null,610," ATLANTIC"," AVE","610 ATLANTIC AVE","08080","Sewell",null,null,null,null,null,null,null,"NL",null,"C",null,"C"]
[null,710," ATLANTIC"," AVE","710 ATLANTIC AVE","08080","Sewell",null,null,null,null,null,null,null,"NL",null,"C",null,"C"]
[null,721," ATLANTIC"," AVE","721 ATLANTIC AVE","08080","Sewell",null,null,null,null,null,null,null,"NL",null,"C",null,"C"]
[null,731," ATLANTIC"," AVE","731 ATLANTIC AVE","08080","Sewell",null,null,null,null,null,null,null,"NL",null,"C",null,"C"]
[null,740," ATLANTIC"," AVE","740 ATLANTIC AVE","08080","Sewell",null,null,null,null,null,null,null,"NL",null,"C",null,"C"]
[null,750," ATLANTIC"," AVE","750 ATLANTIC AVE","08080","Sewell",null,null,null,null,null,null,null,"NL",null,"C",null,"C"]
[null,751," ATLANTIC"," AVE","751 ATLANTIC AVE","08080","Sewell",null,null,null,null,null,null,null,"NL",null,"C",null,"C"]
[null,848," ATLANTIC"," AVE","848 ATLANTIC AVE","08080","Sewell",null,null,null,null,null,null,null,"NL",null,"C",null,"C"]
[null,720," ATLANTIC"," AVE","720 ATLANTIC AVE","08080","Sewell",null,null,null,null,null,null,null,"NL",null,"C",null,"C"]
[null,857," ATLANTIC"," AVE","857 ATLANTIC AVE","08080","Sewell",null,null,null,null,null,null,null,"NL",null,"C",null,"C"]
[null,865," ATLANTIC"," AVE","865 ATLANTIC AVE","08080","Sewell",null,null,null,null,null,null,null,"NL",null,"C",null,"C"]
[null,875," ATLANTIC"," AVE",{"$f":"_xlfn.CONCAT(B194, C194, D194)","v":"875 ATLANTIC AVE"},"08080","Sewell",null,null,null,null,null,null,null,"NL",null,"C",null,"C"]
[null,870," ATLANTIC"," AVE","870 ATLANTIC AVE","08080","Sewell",null,null,null,null,null,null,null,"NL",null,"C",null,"C"]
[null,880," ATLANTIC"," AVE","880 ATLANTIC AVE","08080","Sewell",null,null,null,null,null,null,null,"NL",null,"C",null,"C"]
[null,896," ATLANTIC"," AVE","896 ATLANTIC AVE","08080","Sewell",null,null,null,null,null,null,null,"NL",null,"C",null,"C"]
[null,898," ATLANTIC"," AVE","898 ATLANTIC AVE","08080","Sewell",null,null,null,null,null,null,null,"NL",null,"C",null,"C"]
[null,849," ATLANTIC"," AVE","849 ATLANTIC AVE","08080","Sewell",null,null,null,null,null,null,null,"NL",null,"C",null,"C"]
[null,851," ATLANTIC"," AVE","851 ATLANTIC AVE","08080","Sewell",null,null,null,null,null,null,null,"NL",null,"C",null,"C"]
[null,741," ATLANTIC"," AVE","741 ATLANTIC AVE","08080","Sewell",null,null,null,null,null,null,null,"NL",null,"C",null,"C"]
[null,761," ATLANTIC"," AVE","761 ATLANTIC AVE","08080","Sewell",null,null,null,null,null,null,null,"NL",null,"C",null,"C"]
[null,763," ATLANTIC"," AVE","763 ATLANTIC AVE","08080","Sewell",null,null,null,null,null,null,null,"NL",null,"C",null,"C"]
[null,765," ATLANTIC"," AVE","765 ATLANTIC AVE","08080","Sewell",null,null,null,null,null,null,null,"NL",null,"C",null,"C"]
[null,771," ATLANTIC"," AVE","771 ATLANTIC AVE","08080","Sewell",null,null,null,null,null,null,null,"NL",null,"C",null,"C"]
[null,773," ATLANTIC"," AVE","773 ATLANTIC AVE","08080","Sewell",null,null,null,null,null,null,null,"NL",null,"C",null,"C"]
[null,903," ATLANTIC"," AVE","903 ATLANTIC AVE","08080","Sewell",null,null,null,null,null,null,null,"NL",null,"C",null,"C"]
[null,669," AUSTIN"," ST","669 AUSTIN ST","08051","Mantua",null,null,null,null,null,null,null,"NL",null,"C",null,"C"]
[null,672," AUSTIN"," ST","672 AUSTIN ST","08051","Mantua",null,null,null,null,null,null,null,"NL",null,"C",null,"C"]
[null,26," TIMBERLINE"," PLAZA","26 TIMBERLINE PLAZA","08080","Sewell",null,null,null,null,null,null,null,"NL",null,"C",null,"C"]
[null,201," BALIN"," CT","201 BALIN CT","08051","Mantua",null,null,null,null,null,null,null,"NL",null,"C",null,"P"]
[null,203," BALIN"," CT","203 BALIN CT","08051","Mantua",null,null,null,null,null,null,null,"NL",null,"C",null,"P"]
[null,205," BALIN"," CT","205 BALIN CT","08051","Mantua",null,null,null,null,null,null,null,"NL",null,"C",null,"P"]
[null,207," BALIN"," CT","207 BALIN CT","08051","Mantua",null,null,null,null,null,null,null,"NL",null,"C",null,"P"]
[null,209," BALIN"," CT","209 BALIN CT","08051","Mantua",null,null,null,null,null,null,null,"NL",null,"C",null,"P"]
[null,211," BALIN"," CT","211 BALIN CT","08051","Mantua",null,null,null,null,null,null,null,"NL",null,"C",null,"P"]
[null,213," BALIN"," CT","213 BALIN CT","08051","Mantua",null,null,null,null,null,null,null,"NL",null,"C",null,"P"]
[null,215," BALIN"," CT","215 BALIN CT","08051","Mantua",null,null,null,null,null,null,null,"NL",null,"C",null,"P"]
[null,217," BALIN"," CT","217 BALIN CT","08051","Mantua",null,null,null,null,null,null,null,"NL",null,"C",null,"P"]
[null,219," BALIN"," CT","219 BALIN CT","08051","Mantua",null,null,null,null,null,null,null,"NL",null,"C",null,"P"]
[null,221," BALIN"," CT","221 BALIN CT","08051","Mantua",null,null,null,null,null,null,null,"NL",null,"C",null,"P"]
[null,223," BALIN"," CT","223 BALIN CT","08051","Mantua",null,null,null,null,null,null,null,"NL",null,"C",null,"P"]
[null,225," BALIN"," CT","225 BALIN CT","08051","Mantua",null,null,null,null,null,null,null,"NL",null,"C",null,"P"]
[null,227," BALIN"," CT","227 BALIN CT","08051","Mantua",null,null,null,null,null,null,null,"NL",null,"C",null,"P"]
[null,229," BALIN"," CT","229 BALIN CT","08051","Mantua",null,null,null,null,null,null,null,"NL",null,"C",null,"P"]
[null,231," BALIN"," CT","231 BALIN CT","08051","Mantua",null,null,null,null,null,null,null,"NL",null,"C",null,"P"]
[null,233," BALIN"," CT","233 BALIN CT","08051","Mantua",null,null,null,null,null,null,null,"NL",null,"C",null,"P"]
[null,235," BALIN"," CT","235 BALIN CT","08051","Mantua",null,null,null,null,null,null,null,"NL",null,"C",null,"P"]
[null,"FRONT"," BALL"," FIELDS","FRONT BALL FIELDS","08051","Mantua",null,null,null,null,null,null,null,"NL",null,"C",null,"C"]
[null,21," BARLOW"," AVE","21 BARLOW AVE","08080","Sewell",null,null,null,null,null,null,null,"NL",null,"C",null,"C"]
[null,26," BARLOW"," AVE","26 BARLOW AVE","08080","Sewell",null,null,null,null,null,null,null,"NL",null,"C",null,"C"]
[null,38," BARLOW"," AVE","38 BARLOW AVE","08080","Sewell",null,null,null,null,null,null,null,"NL",null,"C",null,"C"]
[null,56," BARLOW"," AVE","56 BARLOW AVE","08080","Sewell",null,null,null,null,null,null,null,"NL",null,"C",null,"C"]
[null,62," BARLOW"," AVE","62 BARLOW AVE","08080","Sewell",null,null,null,null,null,null,null,"NL",null,"C",null,"C"]
[null,68," BARLOW"," AVE","68 BARLOW AVE","08080","Sewell",null,null,null,null,null,null,null,"NL",null,"C",null,"C"]
[null,74," BARLOW"," AVE","74 BARLOW AVE","08080","Sewell",null,null,null,null,null,null,null,"NL",null,"C",null,"C"]
[null,78," BARLOW"," AVE","78 BARLOW AVE","08080","Sewell",null,null,null,null,null,null,null,"NL",null,"C",null,"C"]
[null,90," BARLOW"," AVE","90 BARLOW AVE","08080","Sewell",null,null,null,null,null,null,null,"NL",null,"C",null,"C"]
[null,18," BARLOW"," AVE","18 BARLOW AVE","08080","Sewell",null,null,null,null,null,null,null,"NL",null,"C",null,"C"]
[null,8," BARLOW"," AVE","8 BARLOW AVE","08080","Sewell",null,null,null,null,null,null,null,"NL",null,"C",null,"C"]
[null,25," BARLOW"," AVE","25 BARLOW AVE","08080","Sewell",null,null,null,null,null,null,null,"NL",null,"C",null,"C"]
[null,59," BARLOW"," AVE","59 BARLOW AVE","08080","Sewell",null,null,null,null,null,null,null,"NL",null,"C",null,"C"]
[null,61," BARLOW"," AVE","61 BARLOW AVE","08080","Sewell",null,null,null,null,null,null,null,"NL",null,"C",null,"C"]
[null,67," BARLOW"," AVE","67 BARLOW AVE","08080","Sewell",null,null,null,null,null,null,null,"NL",null,"C",null,"C"]
[null,75," BARLOW"," AVE","75 BARLOW AVE","08080","Sewell",null,null,null,null,null,null,null,"NL",null,"C",null,"C"]
[null,97," BARLOW"," AVE","97 BARLOW AVE","08080","Sewell",null,null,null,null,null,null,null,"NL",null,"C",null,"C"]
[null,107," BARNSBORO"," RD","107 BARNSBORO RD","08080","Sewell",null,null,null,null,null,null,null,"NL",null,"C",null,"C"]
[null,111," BARNSBORO"," RD","111 BARNSBORO RD","08080","Sewell",null,null,null,null,null,null,null,"NL",null,"C",null,"C"]
[null,115," BARNSBORO"," RD","115 BARNSBORO RD","08080","Sewell",null,null,null,null,null,null,null,"NL",null,"C",null,"C"]
[null,119," BARNSBORO"," RD","119 BARNSBORO RD","08080","Sewell",null,null,null,null,null,null,null,"NL",null,"C",null,"C"]
[null,123," BARNSBORO"," RD","123 BARNSBORO RD","08080","Sewell",null,null,null,null,null,null,null,"NL",null,"C",null,"C"]
[null,127," BARNSBORO"," RD","127 BARNSBORO RD","08080","Sewell",null,null,null,null,null,null,null,"NL",null,"C",null,"C"]
[null,134," BARNSBORO"," RD","134 BARNSBORO RD","08080","Sewell",null,null,null,null,null,null,null,"NL",null,"C",null,"C"]
[null,137," BARNSBORO"," RD","137 BARNSBORO RD","08080","Sewell",null,null,null,null,null,null,null,"NL",null,"C",null,"C"]
[null,154," BARNSBORO"," RD","154 BARNSBORO RD","08080","Sewell",null,null,null,null,null,null,null,"NL",null,"C",null,"C"]
[null,164," BARNSBORO"," RD","164 BARNSBORO RD","08080","Sewell",null,null,null,null,null,null,null,"NL",null,"C",null,"C"]
[null,174," BARNSBORO"," RD","174 BARNSBORO RD","08080","Sewell",null,null,null,null,null,null,null,"NL",null,"C",null,"C"]
[null,184," BARNSBORO"," RD",{"$f":"_xlfn.CONCAT(B258, C258, D258)","v":"184 BARNSBORO RD"},"08080","Sewell",null,null,null,null,null,null,null,"NL",null,"C",null,"C"]
[null,214," BARNSBORO"," RD","214 BARNSBORO RD","08080","Sewell",null,null,null,null,null,null,null,"NL",null,"C",null,"C"]
[null,246," BARNSBORO"," RD","246 BARNSBORO RD","08080","Sewell",null,null,null,null,null,null,null,"NL",null,"C",null,"C"]
[null,260," BARNSBORO"," RD","260 BARNSBORO RD","08080","Sewell",null,null,null,null,null,null,null,"NL",null,"C",null,"C"]
[null,308," BARNSBORO"," RD","308 BARNSBORO RD","08080","Sewell",null,null,null,null,null,null,null,"NL",null,"C",null,"C"]
[null,312," BARNSBORO"," RD","312 BARNSBORO RD","08080","Sewell",null,null,null,null,null,null,null,"NL",null,"C",null,"C"]
[null,403," BARNSBORO"," RD","403 BARNSBORO RD","08080","Sewell",null,null,null,null,null,null,null,"NL",null,"C",null,"C"]
[null,408," BARNSBORO"," RD","408 BARNSBORO RD","08080","Sewell",null,null,null,null,null,null,null,"NL",null,"C",null,"C"]
[null,417," BARNSBORO"," RD","417 BARNSBORO RD","08080","Sewell",null,null,null,null,null,null,null,"NL",null,"C",null,"C"]
[null,423," BARNSBORO"," RD","423 BARNSBORO RD","08080","Sewell",null,null,null,null,null,null,null,"NL",null,"C",null,"C"]
[null,428," BARNSBORO"," RD","428 BARNSBORO RD","08080","Sewell",null,null,null,null,null,null,null,"NL",null,"C",null,"C"]
[null,429," BARNSBORO"," RD","429 BARNSBORO RD","08080","Sewell",null,null,null,null,null,null,null,"NL",null,"C",null,"C"]
[null,439," BARNSBORO"," RD","439 BARNSBORO RD","08080","Sewell",null,null,null,null,null,null,null,"NL",null,"C",null,"C"]
[null,440," BARNSBORO"," RD","440 BARNSBORO RD","08080","Sewell",null,null,null,null,null,null,null,"NL",null,"C",null,"C"]
[null,469," BARNSBORO"," RD","469 BARNSBORO RD","08080","Sewell",null,null,null,null,null,null,null,"NL",null,"C",null,"C"]
[null,489," BARNSBORO"," RD","489 BARNSBORO RD","08080","Sewell",null,null,null,null,null,null,null,"NL",null,"C",null,"C"]
[null,509," BARNSBORO"," RD","509 BARNSBORO RD","08080","Sewell",null,null,null,null,null,null,null,"NL",null,"C",null,"C"]
[null,510," BARNSBORO"," RD","510 BARNSBORO RD","08080","Sewell",null,null,null,null,null,null,null,"NL",null,"C",null,"C"]
[null,110," BARNSBORO"," RD","110 BARNSBORO RD","08080","Sewell",null,null,null,null,null,null,null,"NL",null,"C",null,"C"]
[null,124," BARNSBORO"," RD","124 BARNSBORO RD","08080","Sewell",null,null,null,null,null,null,null,"NL",null,"C",null,"C"]
[null,144," BARNSBORO"," RD","144 BARNSBORO RD","08080","Sewell",null,null,null,null,null,null,null,"NL",null,"C",null,"C"]
[null,129," BARNSBORO"," RD","129 BARNSBORO RD","08080","Sewell",null,null,null,null,null,null,null,"NL",null,"C",null,"C"]
[null,133," BARNSBORO"," RD","133 BARNSBORO RD","08080","Sewell",null,null,null,null,null,null,null,"NL",null,"C",null,"C"]
[null,143," BARNSBORO"," RD","143 BARNSBORO RD","08080","Sewell",null,null,null,null,null,null,null,"NL",null,"C",null,"C"]
[null,240," BARNSBORO"," RD","240 BARNSBORO RD","08080","Sewell",null,null,null,null,null,null,null,"NL",null,"C",null,"C"]
[null,237," BARNSBORO"," RD","237 BARNSBORO RD","08080","Sewell",null,null,null,null,null,null,null,"NL",null,"C",null,"C"]
[null,309," BARNSBORO"," RD","309 BARNSBORO RD","08080","Sewell",null,null,null,null,null,null,null,"NL",null,"C",null,"C"]
[null,313," BARNSBORO"," RD","313 BARNSBORO RD","08080","Sewell",null,null,null,null,null,null,null,"NL",null,"C",null,"C"]
[null,319," BARNSBORO"," RD","319 BARNSBORO RD","08080","Sewell",null,null,null,null,null,null,null,"NL",null,"C",null,"C"]
[null,325," BARNSBORO"," RD","325 BARNSBORO RD","08080","Sewell",null,null,null,null,null,null,null,"NL",null,"C",null,"C"]
[null,402," BARNSBORO"," RD","402 BARNSBORO RD","08080","Sewell",null,null,null,null,null,null,null,"NL",null,"C",null,"C"]
[null,411," BARNSBORO"," RD","411 BARNSBORO RD","08080","Sewell",null,null,null,null,null,null,null,"NL",null,"C",null,"C"]
[null,546," BARNSBORO"," RD","546 BARNSBORO RD","08080","Sewell",null,null,null,null,null,null,null,"NL",null,"C",null,"C"]
[null,565," BARNSBORO"," RD","565 BARNSBORO RD","08080","Sewell",null,null,null,null,null,null,null,"NL",null,"C",null,"C"]
[null,580," BARNSBORO"," RD","580 BARNSBORO RD","08080","Sewell",null,null,null,null,null,null,null,"NL",null,"C",null,"C"]
[null,125," BARNSBORO"," RD","125 BARNSBORO RD","08080","Sewell",null,null,null,null,null,null,null,"NL",null,"C",null,"C"]
[null,20," BARRY"," DR","20 BARRY DR","08051","Mantua",null,null,null,null,null,null,null,"NL",null,"C",null,"C"]
[null,35," BARRY"," DR","35 BARRY DR","08051","Mantua",null,null,null,null,null,null,null,"NL",null,"C",null,"C"]
[null,41," BARRY"," DR","41 BARRY DR","08051","Mantua",null,null,null,null,null,null,null,"NL",null,"C",null,"C"]
[null,49," BARRY"," DR","49 BARRY DR","08051","Mantua",null,null,null,null,null,null,null,"NL",null,"C",null,"C"]
[null,67," BARRY"," DR","67 BARRY DR","08051","Mantua",null,null,null,null,null,null,null,"NL",null,"C",null,"C"]
[null,10," BARRY"," DR","10 BARRY DR","08051","Mantua",null,null,null,null,null,null,null,"NL",null,"C",null,"C"]
[null,12," BARRY"," DR","12 BARRY DR","08051","Mantua",null,null,null,null,null,null,null,"NL",null,"C",null,"C"]
[null,2," BARRY"," DR","2 BARRY DR","08051","Mantua",null,null,null,null,null,null,null,"NL",null,"C",null,"C"]
[null,4," BARRY"," DR","4 BARRY DR","08051","Mantua",null,null,null,null,null,null,null,"NL",null,"C",null,"C"]
[null,6," BARRY"," DR","6 BARRY DR","08051","Mantua",null,null,null,null,null,null,null,"NL",null,"C",null,"C"]
[null,8," BARRY"," DR","8 BARRY DR","08051","Mantua",null,null,null,null,null,null,null,"NL",null,"C",null,"C"]
[null,15," BARRY"," DR","15 BARRY DR","08051","Mantua",null,null,null,null,null,null,null,"NL",null,"C",null,"C"]
[null,17," BARRY"," DR","17 BARRY DR","08051","Mantua",null,null,null,null,null,null,null,"NL",null,"C",null,"C"]
[null,19," BARRY"," DR","19 BARRY DR","08051","Mantua",null,null,null,null,null,null,null,"NL",null,"C",null,"C"]
[null,21," BARRY"," DR","21 BARRY DR","08051","Mantua",null,null,null,null,null,null,null,"NL",null,"C",null,"C"]
[null,16," BARRY"," DR","16 BARRY DR","08051","Mantua",null,null,null,null,null,null,null,"NL",null,"C",null,"C"]
[null,18," BARRY"," DR","18 BARRY DR","08051","Mantua",null,null,null,null,null,null,null,"NL",null,"C",null,"C"]
[null,22," BARRY"," DR","22 BARRY DR","08051","Mantua",null,null,null,null,null,null,null,"NL",null,"C",null,"C"]
[null,25," BARRY"," DR","25 BARRY DR","08051","Mantua",null,null,null,null,null,null,null,"NL",null,"C",null,"C"]
[null,27," BARRY"," DR","27 BARRY DR","08051","Mantua",null,null,null,null,null,null,null,"NL",null,"C",null,"C"]
[null,29," BARRY"," DR","29 BARRY DR","08051","Mantua",null,null,null,null,null,null,null,"NL",null,"C",null,"C"]
[null,31," BARRY"," DR","31 BARRY DR","08051","Mantua",null,null,null,null,null,null,null,"NL",null,"C",null,"C"]
[null,33," BARRY"," DR","33 BARRY DR","08051","Mantua",null,null,null,null,null,null,null,"NL",null,"C",null,"C"]
[null,37," BARRY"," DR","37 BARRY DR","08051","Mantua",null,null,null,null,null,null,null,"NL",null,"C",null,"C"]
[null,39," BARRY"," DR","39 BARRY DR","08051","Mantua",null,null,null,null,null,null,null,"NL",null,"C",null,"C"]
[null,43," BARRY"," DR","43 BARRY DR","08051","Mantua",null,null,null,null,null,null,null,"NL",null,"C",null,"C"]
[null,45," BARRY"," DR","45 BARRY DR","08051","Mantua",null,null,null,null,null,null,null,"NL",null,"C",null,"C"]
[null,47," BARRY"," DR","47 BARRY DR","08051","Mantua",null,null,null,null,null,null,null,"NL",null,"C",null,"C"]
[null,51," BARRY"," DR",{"$f":"_xlfn.CONCAT(B322, C322, D322)","v":"51 BARRY DR"},"08051","Mantua",null,null,null,null,null,null,null,"NL",null,"C",null,"C"]
[null,53," BARRY"," DR","53 BARRY DR","08051","Mantua",null,null,null,null,null,null,null,"NL",null,"C",null,"C"]
[null,55," BARRY"," DR","55 BARRY DR","08051","Mantua",null,null,null,null,null,null,null,"NL",null,"C",null,"C"]
[null,57," BARRY"," DR","57 BARRY DR","08051","Mantua",null,null,null,null,null,null,null,"NL",null,"C",null,"C"]
[null,59," BARRY"," DR","59 BARRY DR","08051","Mantua",null,null,null,null,null,null,null,"NL",null,"C",null,"C"]
[null,63," BARRY"," DR","63 BARRY DR","08051","Mantua",null,null,null,null,null,null,null,"NL",null,"C",null,"C"]
[null,65," BARRY"," DR","65 BARRY DR","08051","Mantua",null,null,null,null,null,null,null,"NL",null,"C",null,"C"]
[null,69," BARRY"," DR","69 BARRY DR","08051","Mantua",null,null,null,null,null,null,null,"NL",null,"C",null,"C"]
[null,1," BARRY"," CT","1 BARRY CT","08051","Mantua",null,null,null,null,null,null,null,"NL",null,"C",null,"C"]
[null,11," BARRY"," CT","11 BARRY CT","08051","Mantua",null,null,null,null,null,null,null,"NL",null,"C",null,"C"]
[null,3," BARRY"," CT","3 BARRY CT","08051","Mantua",null,null,null,null,null,null,null,"NL",null,"C",null,"C"]
[null,5," BARRY"," CT","5 BARRY CT","08051","Mantua",null,null,null,null,null,null,null,"NL",null,"C",null,"C"]
[null,7," BARRY"," CT","7 BARRY CT","08051","Mantua",null,null,null,null,null,null,null,"NL",null,"C",null,"C"]
[null,9," BARRY"," CT","9 BARRY CT","08051","Mantua",null,null,null,null,null,null,null,"NL",null,"C",null,"C"]
[null,11," BEAR CREEK"," DR","11 BEAR CREEK DR","08051","Mantua",null,null,null,null,null,null,null,"NL",null,"C",null,"C"]
[null,13," BEAR CREEK"," DR","13 BEAR CREEK DR","08051","Mantua",null,null,null,null,null,null,null,"NL",null,"C",null,"C"]
[null,15," BEAR CREEK"," DR","15 BEAR CREEK DR","08051","Mantua",null,null,null,null,null,null,null,"NL",null,"C",null,"C"]
[null,17," BEAR CREEK"," DR","17 BEAR CREEK DR","08051","Mantua",null,null,null,null,null,null,null,"NL",null,"C",null,"C"]
[null,19," BEAR CREEK"," DR","19 BEAR CREEK DR","08051","Mantua",null,null,null,null,null,null,null,"NL",null,"C",null,"C"]
[null,21," BEAR CREEK"," DR","21 BEAR CREEK DR","08051","Mantua",null,null,null,null,null,null,null,"NL",null,"C",null,"C"]
[null,23," BEAR CREEK"," DR","23 BEAR CREEK DR","08051","Mantua",null,null,null,null,null,null,null,"NL",null,"C",null,"C"]
[null,27," BEAR CREEK"," DR","27 BEAR CREEK DR","08051","Mantua",null,null,null,null,null,null,null,"NL",null,"C",null,"C"]
[null,29," BEAR CREEK"," DR","29 BEAR CREEK DR","08051","Mantua",null,null,null,null,null,null,null,"NL",null,"C",null,"C"]
[null,31," BEAR CREEK"," DR","31 BEAR CREEK DR","08051","Mantua",null,null,null,null,null,null,null,"NL",null,"C",null,"C"]
[null,33," BEAR CREEK"," DR","33 BEAR CREEK DR","08051","Mantua",null,null,null,null,null,null,null,"NL",null,"C",null,"C"]
[null,35," BEAR CREEK"," DR","35 BEAR CREEK DR","08051","Mantua",null,null,null,null,null,null,null,"NL",null,"C",null,"C"]
[null,37," BEAR CREEK"," DR","37 BEAR CREEK DR","08051","Mantua",null,null,null,null,null,null,null,"NL",null,"C",null,"C"]
[null,10," BEAR CREEK"," DR","10 BEAR CREEK DR","08051","Mantua",null,null,null,null,null,null,null,"NL",null,"C",null,"C"]
[null,12," BEAR CREEK"," DR","12 BEAR CREEK DR","08051","Mantua",null,null,null,null,null,null,null,"NL",null,"C",null,"C"]
[null,14," BEAR CREEK"," DR","14 BEAR CREEK DR","08051","Mantua",null,null,null,null,null,null,null,"NL",null,"C",null,"C"]
[null,16," BEAR CREEK"," DR","16 BEAR CREEK DR","08051","Mantua",null,null,null,null,null,null,null,"NL",null,"C",null,"C"]
[null,18," BEAR CREEK"," DR","18 BEAR CREEK DR","08051","Mantua",null,null,null,null,null,null,null,"NL",null,"C",null,"C"]
[null,2," BEAR CREEK"," DR","2 BEAR CREEK DR","08051","Mantua",null,null,null,null,null,null,null,"NL",null,"C",null,"C"]
[null,20," BEAR CREEK"," DR","20 BEAR CREEK DR","08051","Mantua",null,null,null,null,null,null,null,"NL",null,"C",null,"C"]
[null,22," BEAR CREEK"," DR","22 BEAR CREEK DR","08051","Mantua",null,null,null,null,null,null,null,"NL",null,"C",null,"C"]
[null,24," BEAR CREEK"," DR","24 BEAR CREEK DR","08051","Mantua",null,null,null,null,null,null,null,"NL",null,"C",null,"C"]
[null,26," BEAR CREEK"," DR","26 BEAR CREEK DR","08051","Mantua",null,null,null,null,null,null,null,"NL",null,"C",null,"C"]
[null,28," BEAR CREEK"," DR","28 BEAR CREEK DR","08051","Mantua",null,null,null,null,null,null,null,"NL",null,"C",null,"C"]
[null,30," BEAR CREEK"," DR","30 BEAR CREEK DR","08051","Mantua",null,null,null,null,null,null,null,"NL",null,"C",null,"C"]
[null,32," BEAR CREEK"," DR","32 BEAR CREEK DR","08051","Mantua",null,null,null,null,null,null,null,"NL",null,"C",null,"C"]
[null,34," BEAR CREEK"," DR","34 BEAR CREEK DR","08051","Mantua",null,null,null,null,null,null,null,"NL",null,"C",null,"C"]
[null,36," BEAR CREEK"," DR","36 BEAR CREEK DR","08051","Mantua",null,null,null,null,null,null,null,"NL",null,"C",null,"C"]
[null,4," BEAR CREEK"," DR","4 BEAR CREEK DR","08051","Mantua",null,null,null,null,null,null,null,"NL",null,"C",null,"C"]
[null,6," BEAR CREEK"," DR","6 BEAR CREEK DR","08051","Mantua",null,null,null,null,null,null,null,"NL",null,"C",null,"C"]
[null,8," BEAR CREEK"," DR","8 BEAR CREEK DR","08051","Mantua",null,null,null,null,null,null,null,"NL",null,"C",null,"C"]
[null,20," BERGEN"," AVE","20 BERGEN AVE","08080","Sewell",null,null,null,null,null,null,null,"NL",null,"C",null,"C"]
[null,30," BERGEN"," AVE","30 BERGEN AVE","08080","Sewell",null,null,null,null,null,null,null,"NL",null,"C",null,"C"]
[null,50," BERGEN"," AVE","50 BERGEN AVE","08080","Sewell",null,null,null,null,null,null,null,"NL",null,"C",null,"C"]
[null,60," BERGEN"," AVE","60 BERGEN AVE","08080","Sewell",null,null,null,null,null,null,null,"NL",null,"C",null,"C"]
[null,70," BERGEN"," AVE","70 BERGEN AVE","08080","Sewell",null,null,null,null,null,null,null,"NL",null,"C",null,"C"]
[null,80," BERGEN"," AVE","80 BERGEN AVE","08080","Sewell",null,null,null,null,null,null,null,"NL",null,"C",null,"C"]
[null,90," BERGEN"," AVE","90 BERGEN AVE","08080","Sewell",null,null,null,null,null,null,null,"NL",null,"C",null,"C"]
[null,25," BERGEN"," AVE","25 BERGEN AVE","08080","Sewell",null,null,null,null,null,null,null,"NL",null,"C",null,"C"]
[null,35," BERGEN"," AVE","35 BERGEN AVE","08080","Sewell",null,null,null,null,null,null,null,"NL",null,"C",null,"C"]
[null,41," BERGEN"," AVE","41 BERGEN AVE","08080","Sewell",null,null,null,null,null,null,null,"NL",null,"C",null,"C"]
[null,45," BERGEN"," AVE","45 BERGEN AVE","08080","Sewell",null,null,null,null,null,null,null,"NL",null,"C",null,"C"]
[null,55," BERGEN"," AVE","55 BERGEN AVE","08080","Sewell",null,null,null,null,null,null,null,"NL",null,"C",null,"C"]
[null,59," BERGEN"," AVE","59 BERGEN AVE","08080","Sewell",null,null,null,null,null,null,null,"NL",null,"C",null,"C"]
[null,69," BERGEN"," AVE","69 BERGEN AVE","08080","Sewell",null,null,null,null,null,null,null,"NL",null,"C",null,"C"]
[null,200," BERKLEY"," RD","200 BERKLEY RD","08051","Mantua",null,null,null,null,null,null,null,"NL",null,"C",null,"C"]
[null,210," BERKLEY"," RD","210 BERKLEY RD","08051","Mantua",null,null,null,null,null,null,null,"NL",null,"C",null,"C"]
[null,358," BERKLEY"," RD","358 BERKLEY RD","08051","Mantua",null,null,null,null,null,null,null,"NL",null,"C",null,"C"]
[null,370," BERKLEY"," RD","370 BERKLEY RD","08051","Mantua",null,null,null,null,null,null,null,"NL",null,"C",null,"C"]
[null,380," BERKLEY"," RD","380 BERKLEY RD","08051","Mantua",null,null,null,null,null,null,null,"NL",null,"C",null,"C"]
[null,406," BERKLEY"," RD",{"$f":"_xlfn.CONCAT(B386, C386, D386)","v":"406 BERKLEY RD"},"08051","Mantua",null,null,null,null,null,null,null,"NL",null,"C",null,"C"]
[null,431," BERKLEY"," RD","431 BERKLEY RD","08051","Mantua",null,null,null,null,null,null,null,"NL",null,"C",null,"C"]
[null,437," BERKLEY"," RD","437 BERKLEY RD","08051","Mantua",null,null,null,null,null,null,null,"NL",null,"C",null,"C"]
[null,439," BERKLEY"," RD","439 BERKLEY RD","08051","Mantua",null,null,null,null,null,null,null,"NL",null,"C",null,"C"]
[null,445," BERKLEY"," RD","445 BERKLEY RD","08051","Mantua",null,null,null,null,null,null,null,"NL",null,"C",null,"C"]
[null,449," BERKLEY"," RD","449 BERKLEY RD","08051","Mantua",null,null,null,null,null,null,null,"NL",null,"C",null,"C"]
[null,451," BERKLEY"," RD","451 BERKLEY RD","08051","Mantua",null,null,null,null,null,null,null,"NL",null,"C",null,"C"]
[null,453," BERKLEY"," RD","453 BERKLEY RD","08051","Mantua",null,null,null,null,null,null,null,"NL",null,"C",null,"C"]
[null,460," BERKLEY"," RD","460 BERKLEY RD","08051","Mantua",null,null,null,null,null,null,null,"NL",null,"C",null,"C"]
[null,463," BERKLEY"," RD","463 BERKLEY RD","08051","Mantua",null,null,null,null,null,null,null,"NL",null,"C",null,"C"]
[null,465," BERKLEY"," RD","465 BERKLEY RD","08051","Mantua",null,null,null,null,null,null,null,"NL",null,"C",null,"C"]
[null,"IRRIGATION"," BERKLEY"," CROSSING","IRRIGATION BERKLEY CROSSING","08051","Mantua",null,null,null,null,null,null,null,"NL",null,"C",null,"C"]
[null,290," BERKLEY"," RD","290 BERKLEY RD","08051","Mantua",null,null,null,null,null,null,null,"NL",null,"C",null,"C"]
[null,260," BERKLEY"," RD","260 BERKLEY RD","08051","Mantua",null,null,null,null,null,null,null,"NL",null,"C",null,"C"]
[null,320," BERKLEY"," RD","320 BERKLEY RD","08051","Mantua",null,null,null,null,null,null,null,"NL",null,"C",null,"C"]
[null,360," BERKLEY"," RD","360 BERKLEY RD","08051","Mantua",null,null,null,null,null,null,null,"NL",null,"C",null,"C"]
[null,354," BERKLEY"," RD","354 BERKLEY RD","08051","Mantua",null,null,null,null,null,null,null,"NL",null,"C",null,"C"]
[null,340," BERKLEY"," RD","340 BERKLEY RD","08051","Mantua",null,null,null,null,null,null,null,"NL",null,"C",null,"C"]
[null,255," BERKLEY"," RD","255 BERKLEY RD","08051","Mantua",null,null,null,null,null,null,null,"NL",null,"C",null,"C"]
[null,230," BERKLEY"," RD","230 BERKLEY RD","08051","Mantua",null,null,null,null,null,null,null,"NL",null,"C",null,"C"]
[null,280," BERKLEY"," RD","280 BERKLEY RD","08051","Mantua",null,null,null,null,null,null,null,"NL",null,"C",null,"C"]
[null,433," BERKLEY"," RD","433 BERKLEY RD","08051","Mantua",null,null,null,null,null,null,null,"NL",null,"C",null,"C"]
[null,412," BERKLEY"," RD","412 BERKLEY RD","08051","Mantua",null,null,null,null,null,null,null,"NL",null,"C",null,"C"]
[null,446," BERKLEY"," RD","446 BERKLEY RD","08051","Mantua",null,null,null,null,null,null,null,"NL",null,"C",null,"C"]
[null,469," BERKLEY"," RD","469 BERKLEY RD","08051","Mantua",null,null,null,null,null,null,null,"NL",null,"C",null,"C"]
[null,100," BERRY"," LN","100 BERRY LN","08080","Sewell",null,null,null,null,null,null,null,"NL",null,"C",null,"C"]
[null,115," BERRY"," LN","115 BERRY LN","08080","Sewell",null,null,null,null,null,null,null,"NL",null,"C",null,"C"]
[null,125," BERRY"," LN","125 BERRY LN","08080","Sewell",null,null,null,null,null,null,null,"NL",null,"C",null,"C"]
[null,135," BERRY"," LN","135 BERRY LN","08080","Sewell",null,null,null,null,null,null,null,"NL",null,"C",null,"C"]
[null,12," BIRCHWOOD"," LN","12 BIRCHWOOD LN","08051","Mantua",null,null,null,null,null,null,null,"NL",null,"C",null,"C"]
[null,13," BIRCHWOOD"," LN","13 BIRCHWOOD LN","08051","Mantua",null,null,null,null,null,null,null,"NL",null,"C",null,"C"]
[null,16," BIRCHWOOD"," LN","16 BIRCHWOOD LN","08051","Mantua",null,null,null,null,null,null,null,"NL",null,"C",null,"C"]
[null,17," BIRCHWOOD"," LN","17 BIRCHWOOD LN","08051","Mantua",null,null,null,null,null,null,null,"NL",null,"C",null,"C"]
[null,19," BIRCHWOOD"," LN","19 BIRCHWOOD LN","08051","Mantua",null,null,null,null,null,null,null,"NL",null,"C",null,"C"]
[null,22," BIRCHWOOD"," LN","22 BIRCHWOOD LN","08051","Mantua",null,null,null,null,null,null,null,"NL",null,"C",null,"C"]
[null,24," BIRCHWOOD"," LN","24 BIRCHWOOD LN","08051","Mantua",null,null,null,null,null,null,null,"NL",null,"C",null,"C"]
[null,3," BIRCHWOOD"," LN","3 BIRCHWOOD LN","08051","Mantua",null,null,null,null,null,null,null,"NL",null,"C",null,"C"]
[null,4," BIRCHWOOD"," LN","4 BIRCHWOOD LN","08051","Mantua",null,null,null,null,null,null,null,"NL",null,"C",null,"C"]
[null,5," BIRCHWOOD"," LN","5 BIRCHWOOD LN","08051","Mantua",null,null,null,null,null,null,null,"NL",null,"C",null,"C"]
[null,9," BIRCHWOOD"," LN","9 BIRCHWOOD LN","08051","Mantua",null,null,null,null,null,null,null,"NL",null,"C",null,"C"]
[null,10," BIRCHWOOD"," LN","10 BIRCHWOOD LN","08051","Mantua",null,null,null,null,null,null,null,"NL",null,"C",null,"C"]
[null,14," BIRCHWOOD"," LN","14 BIRCHWOOD LN","08051","Mantua",null,null,null,null,null,null,null,"NL",null,"C",null,"C"]
[null,18," BIRCHWOOD"," LN","18 BIRCHWOOD LN","08051","Mantua",null,null,null,null,null,null,null,"NL",null,"C",null,"C"]
[null,2," BIRCHWOOD"," LN","2 BIRCHWOOD LN","08051","Mantua",null,null,null,null,null,null,null,"NL",null,"C",null,"C"]
[null,20," BIRCHWOOD"," LN","20 BIRCHWOOD LN","08051","Mantua",null,null,null,null,null,null,null,"NL",null,"C",null,"C"]
[null,6," BIRCHWOOD"," LN","6 BIRCHWOOD LN","08051","Mantua",null,null,null,null,null,null,null,"NL",null,"C",null,"C"]
[null,8," BIRCHWOOD"," LN","8 BIRCHWOOD LN","08051","Mantua",null,null,null,null,null,null,null,"NL",null,"C",null,"C"]
[null,11," BIRCHWOOD"," LN","11 BIRCHWOOD LN","08051","Mantua",null,null,null,null,null,null,null,"NL",null,"C",null,"C"]
[null,15," BIRCHWOOD"," LN","15 BIRCHWOOD LN","08051","Mantua",null,null,null,null,null,null,null,"NL",null,"C",null,"C"]
[null,7," BIRCHWOOD"," LN","7 BIRCHWOOD LN","08051","Mantua",null,null,null,null,null,null,null,"NL",null,"C",null,"C"]
[null,650," BISMARCK"," AVE","650 BISMARCK AVE","08051","Mantua",null,null,null,null,null,null,null,"NL",null,"C",null,"C"]
[null,633," BISMARCK"," AVE","633 BISMARCK AVE","08051","Mantua",null,null,null,null,null,null,null,"NL",null,"C",null,"C"]
[null,635," BISMARCK"," AVE","635 BISMARCK AVE","08051","Mantua",null,null,null,null,null,null,null,"NL",null,"C",null,"C"]
[null,637," BISMARCK"," AVE","637 BISMARCK AVE","08051","Mantua",null,null,null,null,null,null,null,"NL",null,"C",null,"C"]
[null,639," BISMARCK"," AVE","639 BISMARCK AVE","08051","Mantua",null,null,null,null,null,null,null,"NL",null,"C",null,"C"]
[null,641," BISMARCK"," AVE","641 BISMARCK AVE","08051","Mantua",null,null,null,null,null,null,null,"NL",null,"C",null,"C"]
[null,643," BISMARCK"," AVE","643 BISMARCK AVE","08051","Mantua",null,null,null,null,null,null,null,"NL",null,"C",null,"C"]
[null,645," BISMARCK"," AVE","645 BISMARCK AVE","08051","Mantua",null,null,null,null,null,null,null,"NL",null,"C",null,"C"]
[null,647," BISMARCK"," AVE","647 BISMARCK AVE","08051","Mantua",null,null,null,null,null,null,null,"NL",null,"C",null,"C"]
[null,649," BISMARCK"," AVE","649 BISMARCK AVE","08051","Mantua",null,null,null,null,null,null,null,"NL",null,"C",null,"C"]
[null,651," BISMARCK"," AVE","651 BISMARCK AVE","08051","Mantua",null,null,null,null,null,null,null,"NL",null,"C",null,"C"]
[null,653," BISMARCK"," AVE","653 BISMARCK AVE","08051","Mantua",null,null,null,null,null,null,null,"NL",null,"C",null,"C"]
[null,655," BISMARCK"," AVE","655 BISMARCK AVE","08051","Mantua",null,null,null,null,null,null,null,"NL",null,"C",null,"C"]
[null,657," BISMARCK"," AVE","657 BISMARCK AVE","08051","Mantua",null,null,null,null,null,null,null,"NL",null,"C",null,"C"]
[null,659," BISMARCK"," AVE",{"$f":"_xlfn.CONCAT(B450, C450, D450)","v":"659 BISMARCK AVE"},"08051","Mantua",null,null,null,null,null,null,null,"NL",null,"C",null,"C"]
[null,661," BISMARCK"," AVE","661 BISMARCK AVE","08051","Mantua",null,null,null,null,null,null,null,"NL",null,"C",null,"C"]
[null,663," BISMARCK"," AVE","663 BISMARCK AVE","08051","Mantua",null,null,null,null,null,null,null,"NL",null,"C",null,"C"]
[null,632," BISMARCK"," AVE","632 BISMARCK AVE","08051","Mantua",null,null,null,null,null,null,null,"NL",null,"C",null,"C"]
[null,634," BISMARCK"," AVE","634 BISMARCK AVE","08051","Mantua",null,null,null,null,null,null,null,"NL",null,"C",null,"C"]
[null,636," BISMARCK"," AVE","636 BISMARCK AVE","08051","Mantua",null,null,null,null,null,null,null,"NL",null,"C",null,"C"]
[null,638," BISMARCK"," AVE","638 BISMARCK AVE","08051","Mantua",null,null,null,null,null,null,null,"NL",null,"C",null,"C"]
[null,640," BISMARCK"," AVE","640 BISMARCK AVE","08051","Mantua",null,null,null,null,null,null,null,"NL",null,"C",null,"C"]
[null,642," BISMARCK"," AVE","642 BISMARCK AVE","08051","Mantua",null,null,null,null,null,null,null,"NL",null,"C",null,"C"]
[null,644," BISMARCK"," AVE","644 BISMARCK AVE","08051","Mantua",null,null,null,null,null,null,null,"NL",null,"C",null,"C"]
[null,646," BISMARCK"," AVE","646 BISMARCK AVE","08051","Mantua",null,null,null,null,null,null,null,"NL",null,"C",null,"C"]
[null,648," BISMARCK"," AVE","648 BISMARCK AVE","08051","Mantua",null,null,null,null,null,null,null,"NL",null,"C",null,"C"]
[null,652," BISMARCK"," AVE","652 BISMARCK AVE","08051","Mantua",null,null,null,null,null,null,null,"NL",null,"C",null,"C"]
[null,654," BISMARCK"," AVE","654 BISMARCK AVE","08051","Mantua",null,null,null,null,null,null,null,"NL",null,"C",null,"C"]
[null,656," BISMARCK"," AVE","656 BISMARCK AVE","08051","Mantua",null,null,null,null,null,null,null,"NL",null,"C",null,"C"]
[null,658," BISMARCK"," AVE","658 BISMARCK AVE","08051","Mantua",null,null,null,null,null,null,null,"NL",null,"C",null,"C"]
[null,660," BISMARCK"," AVE","660 BISMARCK AVE","08051","Mantua",null,null,null,null,null,null,null,"NL",null,"C",null,"C"]
[null,662," BISMARCK"," AVE","662 BISMARCK AVE","08051","Mantua",null,null,null,null,null,null,null,"NL",null,"C",null,"C"]
[null,664," BISMARCK"," AVE","664 BISMARCK AVE","08051","Mantua",null,null,null,null,null,null,null,"NL",null,"C",null,"C"]
[null,666," BISMARCK"," AVE","666 BISMARCK AVE","08051","Mantua",null,null,null,null,null,null,null,"NL",null,"C",null,"C"]
[null,668," BISMARCK"," AVE","668 BISMARCK AVE","08051","Mantua",null,null,null,null,null,null,null,"NL",null,"C",null,"C"]
[null,665," BISMARCK"," AVE","665 BISMARCK AVE","08051","Mantua",null,null,null,null,null,null,null,"NL",null,"C",null,"C"]
[null,667," BISMARCK"," AVE","667 BISMARCK AVE","08051","Mantua",null,null,null,null,null,null,null,"NL",null,"C",null,"C"]
[null,669," BISMARCK"," AVE","669 BISMARCK AVE","08051","Mantua",null,null,null,null,null,null,null,"NL",null,"C",null,"C"]
[null,671," BISMARCK"," AVE","671 BISMARCK AVE","08051","Mantua",null,null,null,null,null,null,null,"NL",null,"C",null,"C"]
[null,618," BISMARCK"," CT","618 BISMARCK CT","08051","Mantua",null,null,null,null,null,null,null,"NL",null,"C",null,"C"]
[null,620," BISMARCK"," CT","620 BISMARCK CT","08051","Mantua",null,null,null,null,null,null,null,"NL",null,"C",null,"C"]
[null,621," BISMARCK"," CT","621 BISMARCK CT","08051","Mantua",null,null,null,null,null,null,null,"NL",null,"C",null,"C"]
[null,622," BISMARCK"," CT","622 BISMARCK CT","08051","Mantua",null,null,null,null,null,null,null,"NL",null,"C",null,"C"]
[null,623," BISMARCK"," CT","623 BISMARCK CT","08051","Mantua",null,null,null,null,null,null,null,"NL",null,"C",null,"C"]
[null,624," BISMARCK"," CT","624 BISMARCK CT","08051","Mantua",null,null,null,null,null,null,null,"NL",null,"C",null,"C"]
[null,625," BISMARCK"," CT","625 BISMARCK CT","08051","Mantua",null,null,null,null,null,null,null,"NL",null,"C",null,"C"]
[null,626," BISMARCK"," CT","626 BISMARCK CT","08051","Mantua",null,null,null,null,null,null,null,"NL",null,"C",null,"C"]
[null,627," BISMARCK"," CT","627 BISMARCK CT","08051","Mantua",null,null,null,null,null,null,null,"NL",null,"C",null,"C"]
[null,4," BLACKWOOD-BARNSBORO"," RD","4 BLACKWOOD-BARNSBORO RD","08080","Sewell",null,null,null,null,null,null,null,"G",null,"C",null,"G"]
[null,6," BLACKWOOD-BARNSBORO"," RD","6 BLACKWOOD-BARNSBORO RD","08080","Sewell",null,null,null,null,null,null,null,"G",null,"C",null,"G"]
[null,1," BLUE JAY"," DR","1 BLUE JAY DR","08051","Mantua",null,null,null,null,null,null,null,"NL",null,"C",null,"P"]
[null,10," BLUE JAY"," DR","10 BLUE JAY DR","08051","Mantua",null,null,null,null,null,null,null,"NL",null,"C",null,"P"]
[null,11," BLUE JAY"," DR","11 BLUE JAY DR","08051","Mantua",null,null,null,null,null,null,null,"NL",null,"C",null,"P"]
[null,12," BLUE JAY"," DR","12 BLUE JAY DR","08051","Mantua",null,null,null,null,null,null,null,"NL",null,"C",null,"P"]
[null,14," BLUE JAY"," DR","14 BLUE JAY DR","08051","Mantua",null,null,null,null,null,null,null,"NL",null,"C",null,"P"]
[null,25," BLUE BIRD"," RD","25 BLUE BIRD RD","08051","Mantua",null,null,null,null,null,null,null,"NL",null,"C",null,"P"]
[null,28," BLUE BIRD"," RD","28 BLUE BIRD RD","08051","Mantua",null,null,null,null,null,null,null,"NL",null,"C",null,"P"]
[null,29," BLUE BIRD"," RD","29 BLUE BIRD RD","08051","Mantua",null,null,null,null,null,null,null,"NL",null,"C",null,"P"]
[null,33," BLUE BIRD"," RD","33 BLUE BIRD RD","08051","Mantua",null,null,null,null,null,null,null,"NL",null,"C",null,"P"]
[null,34," BLUE BIRD"," RD","34 BLUE BIRD RD","08051","Mantua",null,null,null,null,null,null,null,"NL",null,"C",null,"P"]
[null,36," BLUE BIRD"," RD","36 BLUE BIRD RD","08051","Mantua",null,null,null,null,null,null,null,"NL",null,"C",null,"P"]
[null,37," BLUE BIRD"," RD","37 BLUE BIRD RD","08051","Mantua",null,null,null,null,null,null,null,"NL",null,"C",null,"P"]
[null,7," BLUE JAY"," DR","7 BLUE JAY DR","08051","Mantua",null,null,null,null,null,null,null,"NL",null,"C",null,"P"]
[null,8," BLUE JAY"," DR","8 BLUE JAY DR","08051","Mantua",null,null,null,null,null,null,null,"NL",null,"C",null,"P"]
[null,9," BLUE BIRD"," DR","9 BLUE BIRD DR","08051","Mantua",null,null,null,null,null,null,null,"NL",null,"C",null,"P"]
[null,26," BLUE BIRD"," RD","26 BLUE BIRD RD","08051","Mantua",null,null,null,null,null,null,null,"NL",null,"C",null,"P"]
[null,27," BLUE BIRD"," RD","27 BLUE BIRD RD","08051","Mantua",null,null,null,null,null,null,null,"NL",null,"C",null,"P"]
[null,30," BLUE BIRD"," RD","30 BLUE BIRD RD","08051","Mantua",null,null,null,null,null,null,null,"NL",null,"C",null,"P"]
[null,31," BLUE BIRD"," RD","31 BLUE BIRD RD","08051","Mantua",null,null,null,null,null,null,null,"NL",null,"C",null,"P"]
[null,32," BLUE BIRD"," RD","32 BLUE BIRD RD","08051","Mantua",null,null,null,null,null,null,null,"NL",null,"C",null,"P"]
[null,35," BLUE BIRD"," RD","35 BLUE BIRD RD","08051","Mantua",null,null,null,null,null,null,null,"NL",null,"C",null,"P"]
[null,13," BLUE JAY"," DR","13 BLUE JAY DR","08051","Mantua",null,null,null,null,null,null,null,"NL",null,"C",null,"P"]
[null,2," BLUE JAY"," DR","2 BLUE JAY DR","08051","Mantua",null,null,null,null,null,null,null,"NL",null,"C",null,"P"]
[null,3," BLUE JAY"," DR","3 BLUE JAY DR","08051","Mantua",null,null,null,null,null,null,null,"NL",null,"C",null,"P"]
[null,4," BLUE JAY"," DR","4 BLUE JAY DR","08051","Mantua",null,null,null,null,null,null,null,"NL",null,"C",null,"P"]
[null,5," BLUE JAY"," DR","5 BLUE JAY DR","08051","Mantua",null,null,null,null,null,null,null,"NL",null,"C",null,"P"]
[null,6," BLUE JAY"," DR","6 BLUE JAY DR","08051","Mantua",null,null,null,null,null,null,null,"NL",null,"C",null,"P"]
[null,66," BOBOLINK"," AVE","66 BOBOLINK AVE","08051","Mantua",null,null,null,null,null,null,null,"NL",null,"C",null,"P"]
[null,69," BOBOLINK"," AVE",{"$f":"_xlfn.CONCAT(B514, C514, D514)","v":"69 BOBOLINK AVE"},"08051","Mantua",null,null,null,null,null,null,null,"NL",null,"C",null,"P"]
[null,71," BOBOLINK"," AVE","71 BOBOLINK AVE","08051","Mantua",null,null,null,null,null,null,null,"NL",null,"C",null,"P"]
[null,72," BOBOLINK"," AVE","72 BOBOLINK AVE","08051","Mantua",null,null,null,null,null,null,null,"NL",null,"C",null,"P"]
[null,75," BOBOLINK"," AVE","75 BOBOLINK AVE","08051","Mantua",null,null,null,null,null,null,null,"NL",null,"C",null,"P"]
[null,76," BOBOLINK"," AVE","76 BOBOLINK AVE","08051","Mantua",null,null,null,null,null,null,null,"NL",null,"C",null,"P"]
[null,77," BOBOLINK"," AVE","77 BOBOLINK AVE","08051","Mantua",null,null,null,null,null,null,null,"NL",null,"C",null,"P"]
[null,79," BOBOLINK"," AVE","79 BOBOLINK AVE","08051","Mantua",null,null,null,null,null,null,null,"NL",null,"C",null,"P"]
[null,80," BOBOLINK"," AVE","80 BOBOLINK AVE","08051","Mantua",null,null,null,null,null,null,null,"NL",null,"C",null,"P"]
[null,67," BOBOLINK"," AVE","67 BOBOLINK AVE","08051","Mantua",null,null,null,null,null,null,null,"NL",null,"C",null,"P"]
[null,68," BOBOLINK"," AVE","68 BOBOLINK AVE","08051","Mantua",null,null,null,null,null,null,null,"NL",null,"C",null,"P"]
[null,70," BOBOLINK"," AVE","70 BOBOLINK AVE","08051","Mantua",null,null,null,null,null,null,null,"NL",null,"C",null,"P"]
[null,73," BOBOLINK"," AVE","73 BOBOLINK AVE","08051","Mantua",null,null,null,null,null,null,null,"NL",null,"C",null,"P"]
[null,81," BOBOLINK"," AVE","81 BOBOLINK AVE","08051","Mantua",null,null,null,null,null,null,null,"NL",null,"C",null,"P"]
[null,82," BOBOLINK"," AVE","82 BOBOLINK AVE","08051","Mantua",null,null,null,null,null,null,null,"NL",null,"C",null,"P"]
[null,639," BOISE"," ST","639 BOISE ST","08051","Mantua",null,null,null,null,null,null,null,"NL",null,"C",null,"C"]
[null,637," BOISE"," ST","637 BOISE ST","08051","Mantua",null,null,null,null,null,null,null,"NL",null,"C",null,"C"]
[null,638," BOISE"," ST","638 BOISE ST","08051","Mantua",null,null,null,null,null,null,null,"NL",null,"C",null,"C"]
[null,640," BOISE"," ST","640 BOISE ST","08051","Mantua",null,null,null,null,null,null,null,"NL",null,"C",null,"C"]
[null,642," BOISE"," ST","642 BOISE ST","08051","Mantua",null,null,null,null,null,null,null,"NL",null,"C",null,"C"]
[null,10," BOXWOOD"," CT","10 BOXWOOD CT","08051","Mantua",null,null,null,null,null,null,null,"NL",null,"C",null,"P"]
[null,18," BOXWOOD"," CT","18 BOXWOOD CT","08051","Mantua",null,null,null,null,null,null,null,"NL",null,"C",null,"P"]
[null,21," BOXWOOD"," CT","21 BOXWOOD CT","08051","Mantua",null,null,null,null,null,null,null,"NL",null,"C",null,"P"]
[null,23," BOXWOOD"," CT","23 BOXWOOD CT","08051","Mantua",null,null,null,null,null,null,null,"NL",null,"C",null,"P"]
[null,3," BOXWOOD"," CT","3 BOXWOOD CT","08051","Mantua",null,null,null,null,null,null,null,"NL",null,"C",null,"P"]
[null,5," BOXWOOD"," CT","5 BOXWOOD CT","08051","Mantua",null,null,null,null,null,null,null,"NL",null,"C",null,"P"]
[null,8," BOXWOOD"," CT","8 BOXWOOD CT","08051","Mantua",null,null,null,null,null,null,null,"NL",null,"C",null,"P"]
[null,9," BOXWOOD"," CT","9 BOXWOOD CT","08051","Mantua",null,null,null,null,null,null,null,"NL",null,"C",null,"P"]
[null,11," BOXWOOD"," CT","11 BOXWOOD CT","08051","Mantua",null,null,null,null,null,null,null,"NL",null,"C",null,"P"]
[null,12," BOXWOOD"," CT","12 BOXWOOD CT","08051","Mantua",null,null,null,null,null,null,null,"NL",null,"C",null,"P"]
[null,13," BOXWOOD"," CT","13 BOXWOOD CT","08051","Mantua",null,null,null,null,null,null,null,"NL",null,"C",null,"P"]
[null,14," BOXWOOD"," CT","14 BOXWOOD CT","08051","Mantua",null,null,null,null,null,null,null,"NL",null,"C",null,"P"]
[null,15," BOXWOOD"," CT","15 BOXWOOD CT","08051","Mantua",null,null,null,null,null,null,null,"NL",null,"C",null,"P"]
[null,16," BOXWOOD"," CT","16 BOXWOOD CT","08051","Mantua",null,null,null,null,null,null,null,"NL",null,"C",null,"P"]
[null,17," BOXWOOD"," CT","17 BOXWOOD CT","08051","Mantua",null,null,null,null,null,null,null,"NL",null,"C",null,"P"]
[null,19," BOXWOOD"," CT","19 BOXWOOD CT","08051","Mantua",null,null,null,null,null,null,null,"NL",null,"C",null,"P"]
[null,20," BOXWOOD"," CT","20 BOXWOOD CT","08051","Mantua",null,null,null,null,null,null,null,"NL",null,"C",null,"P"]
[null,25," BOXWOOD"," CT","25 BOXWOOD CT","08051","Mantua",null,null,null,null,null,null,null,"NL",null,"C",null,"P"]
[null,6," BOXWOOD"," CT","6 BOXWOOD CT","08051","Mantua",null,null,null,null,null,null,null,"NL",null,"C",null,"P"]
[null,7," BOXWOOD"," CT","7 BOXWOOD CT","08051","Mantua",null,null,null,null,null,null,null,"NL",null,"C",null,"P"]
[null,101," BRIAR PATCH"," LN","101 BRIAR PATCH LN","08080","Sewell",null,null,null,null,null,null,null,"NL",null,"C",null,"C"]
[null,100," BRIAR PATCH"," LN","100 BRIAR PATCH LN","08080","Sewell",null,null,null,null,null,null,null,"NL",null,"C",null,"C"]
[null,80," BRIAR PATCH"," LN","80 BRIAR PATCH LN","08080","Sewell",null,null,null,null,null,null,null,"NL",null,"C",null,"C"]
[null,82," BRIAR PATCH"," LN","82 BRIAR PATCH LN","08080","Sewell",null,null,null,null,null,null,null,"NL",null,"C",null,"C"]
[null,84," BRIAR PATCH"," LN","84 BRIAR PATCH LN","08080","Sewell",null,null,null,null,null,null,null,"NL",null,"C",null,"C"]
[null,88," BRIAR PATCH"," LN","88 BRIAR PATCH LN","08080","Sewell",null,null,null,null,null,null,null,"NL",null,"C",null,"C"]
[null,90," BRIAR PATCH"," LN","90 BRIAR PATCH LN","08080","Sewell",null,null,null,null,null,null,null,"NL",null,"C",null,"C"]
[null,94," BRIAR PATCH"," LN","94 BRIAR PATCH LN","08080","Sewell",null,null,null,null,null,null,null,"NL",null,"C",null,"C"]
[null,96," BRIAR PATCH"," LN","96 BRIAR PATCH LN","08080","Sewell",null,null,null,null,null,null,null,"NL",null,"C",null,"C"]
[null,98," BRIAR PATCH"," LN","98 BRIAR PATCH LN","08080","Sewell",null,null,null,null,null,null,null,"NL",null,"C",null,"C"]
[null,79," BRIAR PATCH"," LN","79 BRIAR PATCH LN","08080","Sewell",null,null,null,null,null,null,null,"NL",null,"C",null,"C"]
[null,81," BRIAR PATCH"," LN","81 BRIAR PATCH LN","08080","Sewell",null,null,null,null,null,null,null,"NL",null,"C",null,"C"]
[null,83," BRIAR PATCH"," LN","83 BRIAR PATCH LN","08080","Sewell",null,null,null,null,null,null,null,"NL",null,"C",null,"C"]
[null,87," BRIAR PATCH"," LN","87 BRIAR PATCH LN","08080","Sewell",null,null,null,null,null,null,null,"NL",null,"C",null,"C"]
[null,89," BRIAR PATCH"," LN","89 BRIAR PATCH LN","08080","Sewell",null,null,null,null,null,null,null,"NL",null,"C",null,"C"]
[null,91," BRIAR PATCH"," LN","91 BRIAR PATCH LN","08080","Sewell",null,null,null,null,null,null,null,"NL",null,"C",null,"C"]
[null,93," BRIAR PATCH"," LN","93 BRIAR PATCH LN","08080","Sewell",null,null,null,null,null,null,null,"NL",null,"C",null,"C"]
[null,95," BRIAR PATCH"," LN","95 BRIAR PATCH LN","08080","Sewell",null,null,null,null,null,null,null,"NL",null,"C",null,"C"]
[null,97," BRIAR PATCH"," LN","97 BRIAR PATCH LN","08080","Sewell",null,null,null,null,null,null,null,"NL",null,"C",null,"C"]
[null,99," BRIAR PATCH"," LN","99 BRIAR PATCH LN","08080","Sewell",null,null,null,null,null,null,null,"NL",null,"C",null,"C"]
[null,73," BRIAR PATCH"," CT","73 BRIAR PATCH CT","08080","Sewell",null,null,null,null,null,null,null,"NL",null,"C",null,"C"]
[null,75," BRIAR PATCH"," CT","75 BRIAR PATCH CT","08080","Sewell",null,null,null,null,null,null,null,"NL",null,"C",null,"C"]
[null,77," BRIAR PATCH"," CT","77 BRIAR PATCH CT","08080","Sewell",null,null,null,null,null,null,null,"NL",null,"C",null,"C"]
[null,11," BRIARWOOD"," LN","11 BRIARWOOD LN","08080","Sewell",null,null,null,null,null,null,null,"NL",null,"C",null,"C"]
[null,19," BRIARWOOD"," LN","19 BRIARWOOD LN","08080","Sewell",null,null,null,null,null,null,null,"NL",null,"C",null,"C"]
[null,15," BRIARWOOD"," LN",{"$f":"_xlfn.CONCAT(B578, C578, D578)","v":"15 BRIARWOOD LN"},"08080","Sewell",null,null,null,null,null,null,null,"NL",null,"C",null,"C"]
[null,17," BRIARWOOD"," LN","17 BRIARWOOD LN","08080","Sewell",null,null,null,null,null,null,null,"NL",null,"C",null,"C"]
[null,3," BRIARWOOD"," LN","3 BRIARWOOD LN","08080","Sewell",null,null,null,null,null,null,null,"NL",null,"C",null,"C"]
[null,5," BRIARWOOD"," LN","5 BRIARWOOD LN","08080","Sewell",null,null,null,null,null,null,null,"NL",null,"C",null,"C"]
[null,9," BRIARWOOD"," LN","9 BRIARWOOD LN","08080","Sewell",null,null,null,null,null,null,null,"NL",null,"C",null,"C"]
[null,10," BRIARWOOD"," LN","10 BRIARWOOD LN","08080","Sewell",null,null,null,null,null,null,null,"NL",null,"C",null,"C"]
[null,14," BRIARWOOD"," LN","14 BRIARWOOD LN","08080","Sewell",null,null,null,null,null,null,null,"NL",null,"C",null,"C"]
[null,16," BRIARWOOD"," LN","16 BRIARWOOD LN","08080","Sewell",null,null,null,null,null,null,null,"NL",null,"C",null,"C"]
[null,6," BRIARWOOD"," LN","6 BRIARWOOD LN","08080","Sewell",null,null,null,null,null,null,null,"NL",null,"C",null,"C"]
[null,120," BRIDGETON"," PIKE","120 BRIDGETON PIKE","08051","Mantua",null,null,null,null,null,null,null,"NL",null,"C",null,"C"]
[null,130," BRIDGETON"," PIKE","130 BRIDGETON PIKE","08051","Mantua",null,null,null,null,null,null,null,"NL",null,"C",null,"C"]
[null,145," BRIDGETON"," PIKE","145 BRIDGETON PIKE","08051","Mantua",null,null,null,null,null,null,null,"NL",null,"C",null,"C"]
[null,150," BRIDGETON"," PIKE","150 BRIDGETON PIKE","08051","Mantua",null,null,null,null,null,null,null,"NL",null,"C",null,"C"]
[null,180," BRIDGETON"," PIKE","180 BRIDGETON PIKE","08051","Mantua",null,null,null,null,null,null,null,"NL",null,"C",null,"C"]
[null,210," BRIDGETON"," PIKE","210 BRIDGETON PIKE","08051","Mantua",null,null,null,null,null,null,null,"NL",null,"C",null,"C"]
[null,215," BRIDGETON"," PIKE","215 BRIDGETON PIKE","08051","Mantua",null,null,null,null,null,null,null,"NL",null,"C",null,"C"]
[null,219," BRIDGETON"," PIKE","219 BRIDGETON PIKE","08051","Mantua",null,null,null,null,null,null,null,"NL",null,"C",null,"C"]
[null,222," BRIDGETON"," PIKE","222 BRIDGETON PIKE","08051","Mantua",null,null,null,null,null,null,null,"NL",null,"C",null,"C"]
[null,227," BRIDGETON"," PIKE","227 BRIDGETON PIKE","08051","Mantua",null,null,null,null,null,null,null,"NL",null,"C",null,"C"]
[null,235," BRIDGETON"," PIKE","235 BRIDGETON PIKE","08051","Mantua",null,null,null,null,null,null,null,"NL",null,"C",null,"C"]
[null,245," BRIDGETON"," PIKE","245 BRIDGETON PIKE","08051","Mantua",null,null,null,null,null,null,null,"NL",null,"C",null,"C"]
[null,295," BRIDGETON"," PIKE","295 BRIDGETON PIKE","08051","Mantua",null,null,null,null,null,null,null,"NL",null,"C",null,"C"]
[null,301," BRIDGETON"," PIKE","301 BRIDGETON PIKE","08051","Mantua",null,null,null,null,null,null,null,"NL",null,"C",null,"C"]
[null,320," BRIDGETON"," PIKE","320 BRIDGETON PIKE","08051","Mantua",null,null,null,null,null,null,null,"NL",null,"C",null,"C"]
[null,360," BRIDGETON"," PIKE","360 BRIDGETON PIKE","08051","Mantua",null,null,null,null,null,null,null,"NL",null,"C",null,"C"]
[null,368," BRIDGETON"," PIKE","368 BRIDGETON PIKE","08051","Mantua",null,null,null,null,null,null,null,"NL",null,"C",null,"C"]
[null,375," BRIDGETON"," PIKE","375 BRIDGETON PIKE","08051","Mantua",null,null,null,null,null,null,null,"NL",null,"C",null,"C"]
[null,393," BRIDGETON"," PIKE","393 BRIDGETON PIKE","08051","Mantua",null,null,null,null,null,null,null,"NL",null,"C",null,"C"]
[null,394," BRIDGETON"," PIKE","394 BRIDGETON PIKE","08051","Mantua",null,null,null,null,null,null,null,"NL",null,"C",null,"C"]
[null,396," BRIDGETON"," PIKE","396 BRIDGETON PIKE","08051","Mantua",null,null,null,null,null,null,null,"NL",null,"C",null,"C"]
[null,398," BRIDGETON"," PIKE","398 BRIDGETON PIKE","08051","Mantua",null,null,null,null,null,null,null,"NL",null,"C",null,"C"]
[null,450," BRIDGETON"," PIKE","450 BRIDGETON PIKE","08051","Mantua",null,null,null,null,null,null,null,"NL",null,"C",null,"C"]
[null,495," BRIDGETON"," PIKE","495 BRIDGETON PIKE","08051","Mantua",null,null,null,null,null,null,null,"NL",null,"C",null,"C"]
[null,498," BRIDGETON"," PIKE","498 BRIDGETON PIKE","08051","Mantua",null,null,null,null,null,null,null,"NL",null,"C",null,"C"]
[null,500," BRIDGETON"," PIKE","500 BRIDGETON PIKE","08051","Mantua",null,null,null,null,null,null,null,"NL",null,"C",null,"C"]
[null,508," BRIDGETON"," PIKE","508 BRIDGETON PIKE","08051","Mantua",null,null,null,null,null,null,null,"NL",null,"C",null,"C"]
[null,526," BRIDGETON"," PIKE","526 BRIDGETON PIKE","08051","Mantua",null,null,null,null,null,null,null,"NL",null,"C",null,"C"]
[null,532," BRIDGETON"," PIKE","532 BRIDGETON PIKE","08051","Mantua",null,null,null,null,null,null,null,"NL",null,"C",null,"C"]
[null,570," BRIDGETON"," PIKE","570 BRIDGETON PIKE","08051","Mantua",null,null,null,null,null,null,null,"NL",null,"C",null,"C"]
[null,655," BRIDGETON"," PIKE","655 BRIDGETON PIKE","08051","Mantua",null,null,null,null,null,null,null,"NL",null,"C",null,"C"]
[null,657," BRIDGETON"," PIKE","657 BRIDGETON PIKE","08051","Mantua",null,null,null,null,null,null,null,"NL",null,"C",null,"C"]
[null,570," BRIDGETON"," PIKE","570 BRIDGETON PIKE","08051","Mantua",null,null,null,null,null,null,null,"NL",null,"C",null,"C"]
[null,550," BRIDGETON"," PIKE","550 BRIDGETON PIKE","08051","Mantua",null,null,null,null,null,null,null,"NL",null,"C",null,"C"]
[null,580," BRIDGETON"," PIKE","580 BRIDGETON PIKE","08051","Mantua",null,null,null,null,null,null,null,"NL",null,"C",null,"C"]
[null,590," BRIDGETON"," PIKE","590 BRIDGETON PIKE","08051","Mantua",null,null,null,null,null,null,null,"NL",null,"C",null,"C"]
[null,640," BRIDGETON"," PIKE","640 BRIDGETON PIKE","08051","Mantua",null,null,null,null,null,null,null,"NL",null,"C",null,"C"]
[null,642," BRIDGETON"," PIKE","642 BRIDGETON PIKE","08051","Mantua",null,null,null,null,null,null,null,"NL",null,"C",null,"C"]
[null,644," BRIDGETON"," PIKE","644 BRIDGETON PIKE","08051","Mantua",null,null,null,null,null,null,null,"NL",null,"C",null,"C"]
[null,646," BRIDGETON"," PIKE","646 BRIDGETON PIKE","08051","Mantua",null,null,null,null,null,null,null,"NL",null,"C",null,"C"]
[null,648," BRIDGETON"," PIKE","648 BRIDGETON PIKE","08051","Mantua",null,null,null,null,null,null,null,"NL",null,"C",null,"C"]
[null,650," BRIDGETON"," PIKE","650 BRIDGETON PIKE","08051","Mantua",null,null,null,null,null,null,null,"NL",null,"C",null,"C"]
[null,652," BRIDGETON"," PIKE","652 BRIDGETON PIKE","08051","Mantua",null,null,null,null,null,null,null,"NL",null,"C",null,"C"]
[null,654," BRIDGETON"," PIKE","654 BRIDGETON PIKE","08051","Mantua",null,null,null,null,null,null,null,"NL",null,"C",null,"C"]
[null,658," BRIDGETON"," PIKE","658 BRIDGETON PIKE","08051","Mantua",null,null,null,null,null,null,null,"NL",null,"C",null,"C"]
[null,660," BRIDGETON"," PIKE","660 BRIDGETON PIKE","08051","Mantua",null,null,null,null,null,null,null,"NL",null,"C",null,"C"]
[null,662," BRIDGETON"," PIKE","662 BRIDGETON PIKE","08051","Mantua",null,null,null,null,null,null,null,"NL",null,"C",null,"C"]
[null,664," BRIDGETON"," PIKE","664 BRIDGETON PIKE","08051","Mantua",null,null,null,null,null,null,null,"NL",null,"C",null,"C"]
[null,666," BRIDGETON"," PIKE","666 BRIDGETON PIKE","08051","Mantua",null,null,null,null,null,null,null,"NL",null,"C",null,"C"]
[null,672," BRIDGETON"," PIKE","672 BRIDGETON PIKE","08051","Mantua",null,null,null,null,null,null,null,"NL",null,"C",null,"C"]
[null,550," BRIDGETON"," PIKE","550 BRIDGETON PIKE","08051","Mantua",null,null,null,null,null,null,null,"NL",null,"C",null,"C"]
[null,550," BRIDGETON"," PIKE","550 BRIDGETON PIKE","08051","Mantua",null,null,null,null,null,null,null,"NL",null,"C",null,"C"]
[null,570," BRIDGETON"," PIKE","570 BRIDGETON PIKE","08051","Mantua",null,null,null,null,null,null,null,"NL",null,"C",null,"C"]
[null,521," BRIDGETON"," PIKE","521 BRIDGETON PIKE","08051","Mantua",null,null,null,null,null,null,null,"NL",null,"C",null,"C"]
[null,525," BRIDGETON"," PIKE","525 BRIDGETON PIKE","08051","Mantua",null,null,null,null,null,null,null,"NL",null,"C",null,"C"]
[null,661," BRIDGETON"," PIKE",{"$f":"_xlfn.CONCAT(B642, C642, D642)","v":"661 BRIDGETON PIKE"},"08051","Mantua",null,null,null,null,null,null,null,"NL",null,"C",null,"C"]
[null,"661A"," BRIDGETON"," PIKE","661A BRIDGETON PIKE","08051","Mantua",null,null,null,null,null,null,null,"NL",null,"C",null,"C"]
[null,675," BRIDGETON"," PIKE","675 BRIDGETON PIKE","08051","Mantua",null,null,null,null,null,null,null,"NL",null,"C",null,"C"]
[null,679," BRIDGETON"," PIKE","679 BRIDGETON PIKE","08051","Mantua",null,null,null,null,null,null,null,"NL",null,"C",null,"C"]
[null,657," BRIDGETON"," PIKE","657 BRIDGETON PIKE","08051","Mantua",null,null,null,null,null,null,null,"NL",null,"C",null,"C"]
[null,674," BRIDGETON"," PIKE","674 BRIDGETON PIKE","08051","Mantua",null,null,null,null,null,null,null,"NL",null,"C",null,"C"]
[null,668," BRIDGETON"," PIKE","668 BRIDGETON PIKE","08051","Mantua",null,null,null,null,null,null,null,"NL",null,"C",null,"C"]
[null,670," BRIDGETON"," PIKE","670 BRIDGETON PIKE","08051","Mantua",null,null,null,null,null,null,null,"NL",null,"C",null,"C"]
[null,671," BRIDGETON"," PIKE","671 BRIDGETON PIKE","08051","Mantua",null,null,null,null,null,null,null,"NL",null,"C",null,"C"]
[null,"671A"," BRIDGETON"," PIKE","671A BRIDGETON PIKE","08051","Mantua",null,null,null,null,null,null,null,"NL",null,"C",null,"C"]
[null,"671B"," BRIDGETON"," PIKE","671B BRIDGETON PIKE","08051","Mantua",null,null,null,null,null,null,null,"NL",null,"C",null,"C"]
[null,"671C"," BRIDGETON"," PIKE","671C BRIDGETON PIKE","08051","Mantua",null,null,null,null,null,null,null,"NL",null,"C",null,"C"]
[null,101," BRIDGETON"," PIKE","101 BRIDGETON PIKE","08051","Mantua",null,null,null,null,null,null,null,"NL",null,"C",null,"C"]
[null,105," BRIDGETON"," PIKE","105 BRIDGETON PIKE","08051","Mantua",null,null,null,null,null,null,null,"NL",null,"C",null,"C"]
[null,140," BRIDGETON"," PIKE","140 BRIDGETON PIKE","08051","Mantua",null,null,null,null,null,null,null,"NL",null,"C",null,"C"]
[null,145," BRIDGETON"," PIKE","145 BRIDGETON PIKE","08051","Mantua",null,null,null,null,null,null,null,"NL",null,"C",null,"C"]
[null,175," BRIDGETON"," PIKE","175 BRIDGETON PIKE","08051","Mantua",null,null,null,null,null,null,null,"NL",null,"C",null,"C"]
[null,223," BRIDGETON"," PIKE","223 BRIDGETON PIKE","08051","Mantua",null,null,null,null,null,null,null,"NL",null,"C",null,"C"]
[null,222," BRIDGETON"," PIKE","222 BRIDGETON PIKE","08051","Mantua",null,null,null,null,null,null,null,"NL",null,"C",null,"C"]
[null,200," BRIDGETON"," PIKE","200 BRIDGETON PIKE","08051","Mantua",null,null,null,null,null,null,null,"NL",null,"C",null,"C"]
[null,231," BRIDGETON"," PIKE","231 BRIDGETON PIKE","08051","Mantua",null,null,null,null,null,null,null,"NL",null,"C",null,"C"]
[null,297," BRIDGETON"," PIKE","297 BRIDGETON PIKE","08051","Mantua",null,null,null,null,null,null,null,"NL",null,"C",null,"C"]
[null,397," BRIDGETON"," PIKE","397 BRIDGETON PIKE","08051","Mantua",null,null,null,null,null,null,null,"NL",null,"C",null,"C"]
[null,222," BRIDGETON"," PIKE","222 BRIDGETON PIKE","08051","Mantua",null,null,null,null,null,null,null,"NL",null,"C",null,"C"]
[null,222," BRIDGETON"," PIKE","222 BRIDGETON PIKE","08051","Mantua",null,null,null,null,null,null,null,"NL",null,"C",null,"C"]
[null,319," BRIDGETON"," PIKE","319 BRIDGETON PIKE","08051","Mantua",null,null,null,null,null,null,null,"NL",null,"C",null,"C"]
[null,222," BRIDGETON"," PIKE","222 BRIDGETON PIKE","08051","Mantua",null,null,null,null,null,null,null,"NL",null,"C",null,"C"]
[null,348," BRIDGETON"," PIKE","348 BRIDGETON PIKE","08051","Mantua",null,null,null,null,null,null,null,"NL",null,"C",null,"C"]
[null,354," BRIDGETON"," PIKE","354 BRIDGETON PIKE","08051","Mantua",null,null,null,null,null,null,null,"NL",null,"C",null,"C"]
[null,376," BRIDGETON"," PIKE","376 BRIDGETON PIKE","08051","Mantua",null,null,null,null,null,null,null,"NL",null,"C",null,"C"]
[null,200," BRIDGETON"," PIKE","200 BRIDGETON PIKE","08051","Mantua",null,null,null,null,null,null,null,"NL",null,"C",null,"C"]
[null,335," BRIDGETON"," PIKE","335 BRIDGETON PIKE","08051","Mantua",null,null,null,null,null,null,null,"NL",null,"C",null,"C"]
[null,345," BRIDGETON"," PIKE","345 BRIDGETON PIKE","08051","Mantua",null,null,null,null,null,null,null,"NL",null,"C",null,"C"]
[null,222," BRIDGETON"," PIKE","222 BRIDGETON PIKE","08051","Mantua",null,null,null,null,null,null,null,"NL",null,"C",null,"C"]
[null,510," BRIDGETON"," PIKE","510 BRIDGETON PIKE","08051","Mantua",null,null,null,null,null,null,null,"NL",null,"C",null,"C"]
[null,550," BRIDGETON"," PIKE","550 BRIDGETON PIKE","08051","Mantua",null,null,null,null,null,null,null,"NL",null,"C",null,"C"]
[null,160," BRIDGETON"," PIKE","160 BRIDGETON PIKE","08051","Mantua",null,null,null,null,null,null,null,"NL",null,"C",null,"C"]
[null,390," BRIDGETON"," PIKE","390 BRIDGETON PIKE","08051","Mantua",null,null,null,null,null,null,null,"NL",null,"C",null,"C"]
[null,455," BRIDGETON"," PIKE","455 BRIDGETON PIKE","08051","Mantua",null,null,null,null,null,null,null,"NL",null,"C",null,"C"]
[null,550," BRIDGETON"," PIKE","550 BRIDGETON PIKE","08051","Mantua",null,null,null,null,null,null,null,"NL",null,"C",null,"C"]
[null,550," BRIDGETON"," PIKE","550 BRIDGETON PIKE","08051","Mantua",null,null,null,null,null,null,null,"NL",null,"C",null,"C"]
[null,12," BRITTANY"," ST","12 BRITTANY ST","08051","Mantua",null,null,null,null,null,null,null,"UL","N","C",null,"UX"]
[null,43," BRITTANY"," ST","43 BRITTANY ST","08051","Mantua",null,null,null,null,null,null,null,"UL","N","C",null,"UX"]
[null,48," BRITTANY"," ST","48 BRITTANY ST","08051","Mantua",null,null,null,null,null,null,null,"UL","N","C",null,"UX"]
[null,6," BRITTANY"," ST","6 BRITTANY ST","08051","Mantua",null,null,null,null,null,null,null,"UL","N","C",null,"UX"]
[null,18," BRITTANY"," ST","18 BRITTANY ST","08051","Mantua",null,null,null,null,null,null,null,"UL","N","C",null,"UX"]
[null,13," BROOKVIEW"," DR","13 BROOKVIEW DR","08051","Mantua",null,null,null,null,null,null,null,"NL",null,"C",null,"P"]
[null,15," BROOKVIEW"," DR","15 BROOKVIEW DR","08051","Mantua",null,null,null,null,null,null,null,"NL",null,"C",null,"P"]
[null,16," BROOKVIEW"," DR","16 BROOKVIEW DR","08051","Mantua",null,null,null,null,null,null,null,"NL",null,"C",null,"P"]
[null,18," BROOKVIEW"," DR","18 BROOKVIEW DR","08051","Mantua",null,null,null,null,null,null,null,"NL",null,"C",null,"P"]
[null,19," BROOKVIEW"," DR","19 BROOKVIEW DR","08051","Mantua",null,null,null,null,null,null,null,"NL",null,"C",null,"P"]
[null,2," BROOKVIEW"," DR","2 BROOKVIEW DR","08051","Mantua",null,null,null,null,null,null,null,"NL",null,"C",null,"P"]
[null,20," BROOKVIEW"," DR","20 BROOKVIEW DR","08051","Mantua",null,null,null,null,null,null,null,"NL",null,"C",null,"P"]
[null,28," BROOKVIEW"," DR","28 BROOKVIEW DR","08051","Mantua",null,null,null,null,null,null,null,"NL",null,"C",null,"P"]
[null,32," BROOKVIEW"," DR","32 BROOKVIEW DR","08051","Mantua",null,null,null,null,null,null,null,"NL",null,"C",null,"P"]
[null,36," BROOKVIEW"," DR","36 BROOKVIEW DR","08051","Mantua",null,null,null,null,null,null,null,"NL",null,"C",null,"P"]
[null,40," BROOKVIEW"," DR","40 BROOKVIEW DR","08051","Mantua",null,null,null,null,null,null,null,"NL",null,"C",null,"P"]
[null,44," BROOKVIEW"," DR","44 BROOKVIEW DR","08051","Mantua",null,null,null,null,null,null,null,"NL",null,"C",null,"P"]
[null,56," BROOKVIEW"," DR","56 BROOKVIEW DR","08051","Mantua",null,null,null,null,null,null,null,"NL",null,"C",null,"P"]
[null,8," BROOKVIEW"," DR","8 BROOKVIEW DR","08051","Mantua",null,null,null,null,null,null,null,"NL",null,"C",null,"P"]
[null,10," BROOKVIEW"," DR","10 BROOKVIEW DR","08051","Mantua",null,null,null,null,null,null,null,"NL",null,"C",null,"P"]
[null,12," BROOKVIEW"," DR","12 BROOKVIEW DR","08051","Mantua",null,null,null,null,null,null,null,"NL",null,"C",null,"P"]
[null,14," BROOKVIEW"," DR","14 BROOKVIEW DR","08051","Mantua",null,null,null,null,null,null,null,"NL",null,"C",null,"P"]
[null,24," BROOKVIEW"," DR","24 BROOKVIEW DR","08051","Mantua",null,null,null,null,null,null,null,"NL",null,"C",null,"P"]
[null,4," BROOKVIEW"," DR",{"$f":"_xlfn.CONCAT(B706, C706, D706)","v":"4 BROOKVIEW DR"},"08051","Mantua",null,null,null,null,null,null,null,"NL",null,"C",null,"P"]
[null,48," BROOKVIEW"," DR","48 BROOKVIEW DR","08051","Mantua",null,null,null,null,null,null,null,"NL",null,"C",null,"P"]
[null,52," BROOKVIEW"," DR","52 BROOKVIEW DR","08051","Mantua",null,null,null,null,null,null,null,"NL",null,"C",null,"P"]
[null,6," BROOKVIEW"," DR","6 BROOKVIEW DR","08051","Mantua",null,null,null,null,null,null,null,"NL",null,"C",null,"P"]
[null,1," BROOKVIEW"," DR","1 BROOKVIEW DR","08051","Mantua",null,null,null,null,null,null,null,"NL",null,"C",null,"P"]
[null,11," BROOKVIEW"," DR","11 BROOKVIEW DR","08051","Mantua",null,null,null,null,null,null,null,"NL",null,"C",null,"P"]
[null,17," BROOKVIEW"," DR","17 BROOKVIEW DR","08051","Mantua",null,null,null,null,null,null,null,"NL",null,"C",null,"P"]
[null,21," BROOKVIEW"," DR","21 BROOKVIEW DR","08051","Mantua",null,null,null,null,null,null,null,"NL",null,"C",null,"P"]
[null,23," BROOKVIEW"," DR","23 BROOKVIEW DR","08051","Mantua",null,null,null,null,null,null,null,"NL",null,"C",null,"P"]
[null,3," BROOKVIEW"," DR","3 BROOKVIEW DR","08051","Mantua",null,null,null,null,null,null,null,"NL",null,"C",null,"P"]
[null,5," BROOKVIEW"," DR","5 BROOKVIEW DR","08051","Mantua",null,null,null,null,null,null,null,"NL",null,"C",null,"P"]
[null,7," BROOKVIEW"," DR","7 BROOKVIEW DR","08051","Mantua",null,null,null,null,null,null,null,"NL",null,"C",null,"P"]
[null,9," BROOKVIEW"," DR","9 BROOKVIEW DR","08051","Mantua",null,null,null,null,null,null,null,"NL",null,"C",null,"P"]
[null,125," BROUGHAM"," AVE","125 BROUGHAM AVE","08051","Mantua",null,null,null,null,null,null,null,"NL",null,"C",null,"C"]
[null,129," BROUGHAM"," AVE","129 BROUGHAM AVE","08051","Mantua",null,null,null,null,null,null,null,"NL",null,"C",null,"C"]
[null,133," BROUGHAM"," AVE","133 BROUGHAM AVE","08051","Mantua",null,null,null,null,null,null,null,"NL",null,"C",null,"C"]
[null,137," BROUGHAM"," AVE","137 BROUGHAM AVE","08051","Mantua",null,null,null,null,null,null,null,"NL",null,"C",null,"C"]
[null,122," BROUGHAM"," AVE","122 BROUGHAM AVE","08051","Mantua",null,null,null,null,null,null,null,"NL",null,"C",null,"C"]
[null,126," BROUGHAM"," AVE","126 BROUGHAM AVE","08051","Mantua",null,null,null,null,null,null,null,"NL",null,"C",null,"C"]
[null,130," BROUGHAM"," AVE","130 BROUGHAM AVE","08051","Mantua",null,null,null,null,null,null,null,"NL",null,"C",null,"C"]
[null,134," BROUGHAM"," AVE","134 BROUGHAM AVE","08051","Mantua",null,null,null,null,null,null,null,"NL",null,"C",null,"C"]
[null,138," BROUGHAM"," AVE","138 BROUGHAM AVE","08051","Mantua",null,null,null,null,null,null,null,"NL",null,"C",null,"C"]
[null,142," BROUGHAM"," AVE","142 BROUGHAM AVE","08051","Mantua",null,null,null,null,null,null,null,"NL",null,"C",null,"C"]
[null,501," BUCKINGHAM"," DR","501 BUCKINGHAM DR","08080","Sewell",null,null,null,null,null,null,null,"NL",null,"C",null,"C"]
[null,503," BUCKINGHAM"," DR","503 BUCKINGHAM DR","08080","Sewell",null,null,null,null,null,null,null,"NL",null,"C",null,"C"]
[null,505," BUCKINGHAM"," DR","505 BUCKINGHAM DR","08080","Sewell",null,null,null,null,null,null,null,"NL",null,"C",null,"C"]
[null,507," BUCKINGHAM"," DR","507 BUCKINGHAM DR","08080","Sewell",null,null,null,null,null,null,null,"NL",null,"C",null,"C"]
[null,509," BUCKINGHAM"," DR","509 BUCKINGHAM DR","08080","Sewell",null,null,null,null,null,null,null,"NL",null,"C",null,"C"]
[null,511," BUCKINGHAM"," DR","511 BUCKINGHAM DR","08080","Sewell",null,null,null,null,null,null,null,"NL",null,"C",null,"C"]
[null,513," BUCKINGHAM"," DR","513 BUCKINGHAM DR","08080","Sewell",null,null,null,null,null,null,null,"NL",null,"C",null,"C"]
[null,515," BUCKINGHAM"," DR","515 BUCKINGHAM DR","08080","Sewell",null,null,null,null,null,null,null,"NL",null,"C",null,"C"]
[null,517," BUCKINGHAM"," DR","517 BUCKINGHAM DR","08080","Sewell",null,null,null,null,null,null,null,"NL",null,"C",null,"C"]
[null,519," BUCKINGHAM"," DR","519 BUCKINGHAM DR","08080","Sewell",null,null,null,null,null,null,null,"NL",null,"C",null,"C"]
[null,521," BUCKINGHAM"," DR","521 BUCKINGHAM DR","08080","Sewell",null,null,null,null,null,null,null,"NL",null,"C",null,"C"]
[null,523," BUCKINGHAM"," DR","523 BUCKINGHAM DR","08080","Sewell",null,null,null,null,null,null,null,"NL",null,"C",null,"C"]
[null,525," BUCKINGHAM"," DR","525 BUCKINGHAM DR","08080","Sewell",null,null,null,null,null,null,null,"NL",null,"C",null,"C"]
[null,527," BUCKINGHAM"," DR","527 BUCKINGHAM DR","08080","Sewell",null,null,null,null,null,null,null,"NL",null,"C",null,"C"]
[null,502," BUCKINGHAM"," DR","502 BUCKINGHAM DR","08080","Sewell",null,null,null,null,null,null,null,"NL",null,"C",null,"C"]
[null,601," BUCKINGHAM"," DR","601 BUCKINGHAM DR","08080","Sewell",null,null,null,null,null,null,null,"NL",null,"C",null,"C"]
[null,603," BUCKINGHAM"," DR","603 BUCKINGHAM DR","08080","Sewell",null,null,null,null,null,null,null,"NL",null,"C",null,"C"]
[null,605," BUCKINGHAM"," DR","605 BUCKINGHAM DR","08080","Sewell",null,null,null,null,null,null,null,"NL",null,"C",null,"C"]
[null,607," BUCKINGHAM"," DR","607 BUCKINGHAM DR","08080","Sewell",null,null,null,null,null,null,null,"NL",null,"C",null,"C"]
[null,609," BUCKINGHAM"," DR","609 BUCKINGHAM DR","08080","Sewell",null,null,null,null,null,null,null,"NL",null,"C",null,"C"]
[null,600," BUCKINGHAM"," DR","600 BUCKINGHAM DR","08080","Sewell",null,null,null,null,null,null,null,"NL",null,"C",null,"C"]
[null,602," BUCKINGHAM"," DR","602 BUCKINGHAM DR","08080","Sewell",null,null,null,null,null,null,null,"NL",null,"C",null,"C"]
[null,604," BUCKINGHAM"," DR","604 BUCKINGHAM DR","08080","Sewell",null,null,null,null,null,null,null,"NL",null,"C",null,"C"]
[null,606," BUCKINGHAM"," DR","606 BUCKINGHAM DR","08080","Sewell",null,null,null,null,null,null,null,"NL",null,"C",null,"C"]
[null,608," BUCKINGHAM"," DR","608 BUCKINGHAM DR","08080","Sewell",null,null,null,null,null,null,null,"NL",null,"C",null,"C"]
[null,610," BUCKINGHAM"," DR","610 BUCKINGHAM DR","08080","Sewell",null,null,null,null,null,null,null,"NL",null,"C",null,"C"]
[null,612," BUCKINGHAM"," DR","612 BUCKINGHAM DR","08080","Sewell",null,null,null,null,null,null,null,"NL",null,"C",null,"C"]
[null,614," BUCKINGHAM"," DR","614 BUCKINGHAM DR","08080","Sewell",null,null,null,null,null,null,null,"NL",null,"C",null,"C"]
[null,504," BUCKINGHAM"," DR","504 BUCKINGHAM DR","08080","Sewell",null,null,null,null,null,null,null,"NL",null,"C",null,"C"]
[null,506," BUCKINGHAM"," DR","506 BUCKINGHAM DR","08080","Sewell",null,null,null,null,null,null,null,"NL",null,"C",null,"C"]
[null,508," BUCKINGHAM"," DR","508 BUCKINGHAM DR","08080","Sewell",null,null,null,null,null,null,null,"NL",null,"C",null,"G"]
[null,510," BUCKINGHAM"," DR","510 BUCKINGHAM DR","08080","Sewell",null,null,null,null,null,null,null,"NL",null,"C",null,"C"]
[null,512," BUCKINGHAM"," DR","512 BUCKINGHAM DR","08080","Sewell",null,null,null,null,null,null,null,"NL",null,"C",null,"C"]
[null,514," BUCKINGHAM"," DR","514 BUCKINGHAM DR","08080","Sewell",null,null,null,null,null,null,null,"NL",null,"C",null,"C"]
[null,516," BUCKINGHAM"," DR","516 BUCKINGHAM DR","08080","Sewell",null,null,null,null,null,null,null,"NL",null,"C",null,"C"]
[null,518," BUCKINGHAM"," DR","518 BUCKINGHAM DR","08080","Sewell",null,null,null,null,null,null,null,"NL",null,"C",null,"C"]
[null,520," BUCKINGHAM"," DR","520 BUCKINGHAM DR","08080","Sewell",null,null,null,null,null,null,null,"NL",null,"C",null,"C"]
[null,611," BUCKINGHAM"," DR","611 BUCKINGHAM DR","08080","Sewell",null,null,null,null,null,null,null,"NL",null,"C",null,"C"]
[null,221," BURLINGTON"," AVE","221 BURLINGTON AVE","08080","Sewell",null,null,null,null,null,null,null,"NL",null,"C",null,"C"]
[null,223," BURLINGTON"," AVE","223 BURLINGTON AVE","08080","Sewell",null,null,null,null,null,null,null,"NL",null,"C",null,"C"]
[null,225," BURLINGTON"," AVE","225 BURLINGTON AVE","08080","Sewell",null,null,null,null,null,null,null,"NL",null,"C",null,"C"]
[null,227," BURLINGTON"," AVE",{"$f":"_xlfn.CONCAT(B770, C770, D770)","v":"227 BURLINGTON AVE"},"08080","Sewell",null,null,null,null,null,null,null,"NL",null,"C",null,"C"]
[null,220," BURLINGTON"," AVE","220 BURLINGTON AVE","08080","Sewell",null,null,null,null,null,null,null,"NL",null,"C",null,"C"]
[null,222," BURLINGTON"," AVE","222 BURLINGTON AVE","08080","Sewell",null,null,null,null,null,null,null,"NL",null,"C",null,"C"]
[null,224," BURLINGTON"," AVE","224 BURLINGTON AVE","08080","Sewell",null,null,null,null,null,null,null,"NL",null,"C",null,"C"]
[null,226," BURLINGTON"," AVE","226 BURLINGTON AVE","08080","Sewell",null,null,null,null,null,null,null,"NL",null,"C",null,"C"]
[null,228," BURLINGTON"," AVE","228 BURLINGTON AVE","08080","Sewell",null,null,null,null,null,null,null,"NL",null,"C",null,"C"]
[null,11," CANDLEWOOD"," DR","11 CANDLEWOOD DR","08051","Mantua",null,null,null,null,null,null,null,"NL",null,"C",null,"P"]
[null,12," CANDLEWOOD"," DR","12 CANDLEWOOD DR","08051","Mantua",null,null,null,null,null,null,null,"NL",null,"C",null,"P"]
[null,13," CANDLEWOOD"," DR","13 CANDLEWOOD DR","08051","Mantua",null,null,null,null,null,null,null,"NL",null,"C",null,"P"]
[null,15," CANDLEWOOD"," DR","15 CANDLEWOOD DR","08051","Mantua",null,null,null,null,null,null,null,"NL",null,"C",null,"P"]
[null,16," CANDLEWOOD"," DR","16 CANDLEWOOD DR","08051","Mantua",null,null,null,null,null,null,null,"NL",null,"C",null,"P"]
[null,18," CANDLEWOOD"," DR","18 CANDLEWOOD DR","08051","Mantua",null,null,null,null,null,null,null,"NL",null,"C",null,"P"]
[null,19," CANDLEWOOD"," DR","19 CANDLEWOOD DR","08051","Mantua",null,null,null,null,null,null,null,"NL",null,"C",null,"P"]
[null,20," CANDLEWOOD"," DR","20 CANDLEWOOD DR","08051","Mantua",null,null,null,null,null,null,null,"NL",null,"C",null,"P"]
[null,23," CANDLEWOOD"," DR","23 CANDLEWOOD DR","08051","Mantua",null,null,null,null,null,null,null,"NL",null,"C",null,"P"]
[null,29," CANDLEWOOD"," DR","29 CANDLEWOOD DR","08051","Mantua",null,null,null,null,null,null,null,"NL",null,"C",null,"P"]
[null,3," CANDLEWOOD"," DR","3 CANDLEWOOD DR","08051","Mantua",null,null,null,null,null,null,null,"NL",null,"C",null,"P"]
[null,31," CANDLEWOOD"," DR","31 CANDLEWOOD DR","08051","Mantua",null,null,null,null,null,null,null,"NL",null,"C",null,"P"]
[null,33," CANDLEWOOD"," DR","33 CANDLEWOOD DR","08051","Mantua",null,null,null,null,null,null,null,"NL",null,"C",null,"P"]
[null,37," CANDLEWOOD"," DR","37 CANDLEWOOD DR","08051","Mantua",null,null,null,null,null,null,null,"NL",null,"C",null,"P"]
[null,39," CANDLEWOOD"," DR","39 CANDLEWOOD DR","08051","Mantua",null,null,null,null,null,null,null,"NL",null,"C",null,"P"]
[null,43," CANDLEWOOD"," DR","43 CANDLEWOOD DR","08051","Mantua",null,null,null,null,null,null,null,"NL",null,"C",null,"P"]
[null,45," CANDLEWOOD"," DR","45 CANDLEWOOD DR","08051","Mantua",null,null,null,null,null,null,null,"NL",null,"C",null,"P"]
[null,47," CANDLEWOOD"," DR","47 CANDLEWOOD DR","08051","Mantua",null,null,null,null,null,null,null,"NL",null,"C",null,"P"]
[null,49," CANDLEWOOD"," DR","49 CANDLEWOOD DR","08051","Mantua",null,null,null,null,null,null,null,"NL",null,"C",null,"P"]
[null,51," CANDLEWOOD"," DR","51 CANDLEWOOD DR","08051","Mantua",null,null,null,null,null,null,null,"NL",null,"C",null,"P"]
[null,59," CANDLEWOOD"," DR","59 CANDLEWOOD DR","08051","Mantua",null,null,null,null,null,null,null,"NL",null,"C",null,"P"]
[null,61," CANDLEWOOD"," DR","61 CANDLEWOOD DR","08051","Mantua",null,null,null,null,null,null,null,"NL",null,"C",null,"P"]
[null,65," CANDLEWOOD"," DR","65 CANDLEWOOD DR","08051","Mantua",null,null,null,null,null,null,null,"NL",null,"C",null,"P"]
[null,67," CANDLEWOOD"," DR","67 CANDLEWOOD DR","08051","Mantua",null,null,null,null,null,null,null,"NL",null,"C",null,"P"]
[null,69," CANDLEWOOD"," DR","69 CANDLEWOOD DR","08051","Mantua",null,null,null,null,null,null,null,"NL",null,"C",null,"P"]
[null,71," CANDLEWOOD"," DR","71 CANDLEWOOD DR","08051","Mantua",null,null,null,null,null,null,null,"NL",null,"C",null,"P"]
[null,73," CANDLEWOOD"," DR","73 CANDLEWOOD DR","08051","Mantua",null,null,null,null,null,null,null,"NL",null,"C",null,"P"]
[null,75," CANDLEWOOD"," DR","75 CANDLEWOOD DR","08051","Mantua",null,null,null,null,null,null,null,"NL",null,"C",null,"P"]
[null,81," CANDLEWOOD"," DR","81 CANDLEWOOD DR","08051","Mantua",null,null,null,null,null,null,null,"NL",null,"C",null,"P"]
[null,83," CANDLEWOOD"," DR","83 CANDLEWOOD DR","08051","Mantua",null,null,null,null,null,null,null,"NL",null,"C",null,"P"]
[null,85," CANDLEWOOD"," DR","85 CANDLEWOOD DR","08051","Mantua",null,null,null,null,null,null,null,"NL",null,"C",null,"P"]
[null,86," CANDLEWOOD"," DR","86 CANDLEWOOD DR","08051","Mantua",null,null,null,null,null,null,null,"NL",null,"C",null,"P"]
[null,87," CANDLEWOOD"," DR","87 CANDLEWOOD DR","08051","Mantua",null,null,null,null,null,null,null,"NL",null,"C",null,"P"]
[null,88," CANDLEWOOD"," DR","88 CANDLEWOOD DR","08051","Mantua",null,null,null,null,null,null,null,"NL",null,"C",null,"P"]
[null,89," CANDLEWOOD"," DR","89 CANDLEWOOD DR","08051","Mantua",null,null,null,null,null,null,null,"NL",null,"C",null,"P"]
[null,9," CANDLEWOOD"," DR","9 CANDLEWOOD DR","08051","Mantua",null,null,null,null,null,null,null,"NL",null,"C",null,"P"]
[null,90," CANDLEWOOD"," DR","90 CANDLEWOOD DR","08051","Mantua",null,null,null,null,null,null,null,"NL",null,"C",null,"P"]
[null,91," CANDLEWOOD"," DR","91 CANDLEWOOD DR","08051","Mantua",null,null,null,null,null,null,null,"NL",null,"C",null,"P"]
[null,92," CANDLEWOOD"," DR","92 CANDLEWOOD DR","08051","Mantua",null,null,null,null,null,null,null,"NL",null,"C",null,"P"]
[null,93," CANDLEWOOD"," DR","93 CANDLEWOOD DR","08051","Mantua",null,null,null,null,null,null,null,"NL",null,"C",null,"P"]
[null,94," CANDLEWOOD"," DR","94 CANDLEWOOD DR","08051","Mantua",null,null,null,null,null,null,null,"NL",null,"C",null,"P"]
[null,95," CANDLEWOOD"," DR","95 CANDLEWOOD DR","08051","Mantua",null,null,null,null,null,null,null,"NL",null,"C",null,"P"]
[null,97," CANDLEWOOD"," DR","97 CANDLEWOOD DR","08051","Mantua",null,null,null,null,null,null,null,"NL",null,"C",null,"P"]
[null,2," CANDLEWOOD"," DR","2 CANDLEWOOD DR","08051","Mantua",null,null,null,null,null,null,null,"NL",null,"C",null,"P"]
[null,4," CANDLEWOOD"," DR","4 CANDLEWOOD DR","08051","Mantua",null,null,null,null,null,null,null,"NL",null,"C",null,"P"]
[null,6," CANDLEWOOD"," DR","6 CANDLEWOOD DR","08051","Mantua",null,null,null,null,null,null,null,"NL",null,"C",null,"P"]
[null,1," CANDLEWOOD"," DR","1 CANDLEWOOD DR","08051","Mantua",null,null,null,null,null,null,null,"NL",null,"C",null,"P"]
[null,5," CANDLEWOOD"," DR","5 CANDLEWOOD DR","08051","Mantua",null,null,null,null,null,null,null,"NL",null,"C",null,"P"]
[null,7," CANDLEWOOD"," DR","7 CANDLEWOOD DR","08051","Mantua",null,null,null,null,null,null,null,"NL",null,"C",null,"P"]
[null,14," CANDLEWOOD"," DR","14 CANDLEWOOD DR","08051","Mantua",null,null,null,null,null,null,null,"NL",null,"C",null,"P"]
[null,17," CANDLEWOOD"," DR","17 CANDLEWOOD DR","08051","Mantua",null,null,null,null,null,null,null,"NL",null,"C",null,"P"]
[null,21," CANDLEWOOD"," DR","21 CANDLEWOOD DR","08051","Mantua",null,null,null,null,null,null,null,"NL",null,"C",null,"P"]
[null,25," CANDLEWOOD"," DR","25 CANDLEWOOD DR","08051","Mantua",null,null,null,null,null,null,null,"NL",null,"C",null,"P"]
[null,27," CANDLEWOOD"," DR","27 CANDLEWOOD DR","08051","Mantua",null,null,null,null,null,null,null,"NL",null,"C",null,"P"]
[null,35," CANDLEWOOD"," DR","35 CANDLEWOOD DR","08051","Mantua",null,null,null,null,null,null,null,"NL",null,"C",null,"P"]
[null,41," CANDLEWOOD"," DR","41 CANDLEWOOD DR","08051","Mantua",null,null,null,null,null,null,null,"NL",null,"C",null,"P"]
[null,53," CANDLEWOOD"," DR","53 CANDLEWOOD DR","08051","Mantua",null,null,null,null,null,null,null,"NL",null,"C",null,"P"]
[null,55," CANDLEWOOD"," DR","55 CANDLEWOOD DR","08051","Mantua",null,null,null,null,null,null,null,"NL",null,"C",null,"P"]
[null,57," CANDLEWOOD"," DR",{"$f":"_xlfn.CONCAT(B834, C834, D834)","v":"57 CANDLEWOOD DR"},"08051","Mantua",null,null,null,null,null,null,null,"NL",null,"C",null,"P"]
[null,63," CANDLEWOOD"," DR","63 CANDLEWOOD DR","08051","Mantua",null,null,null,null,null,null,null,"NL",null,"C",null,"P"]
[null,77," CANDLEWOOD"," DR","77 CANDLEWOOD DR","08051","Mantua",null,null,null,null,null,null,null,"NL",null,"C",null,"P"]
[null,79," CANDLEWOOD"," DR","79 CANDLEWOOD DR","08051","Mantua",null,null,null,null,null,null,null,"NL",null,"C",null,"P"]
[null,99," CANDLEWOOD"," DR","99 CANDLEWOOD DR","08051","Mantua",null,null,null,null,null,null,null,"NL",null,"C",null,"P"]
[null,22," CANDLEWOOD"," DR","22 CANDLEWOOD DR","08051","Mantua",null,null,null,null,null,null,null,"NL",null,"C",null,"P"]
[null,24," CANDLEWOOD"," DR","24 CANDLEWOOD DR","08051","Mantua",null,null,null,null,null,null,null,"NL",null,"C",null,"P"]
[null,32," CANDLEWOOD"," DR","32 CANDLEWOOD DR","08051","Mantua",null,null,null,null,null,null,null,"NL",null,"C",null,"P"]
[null,34," CANDLEWOOD"," DR","34 CANDLEWOOD DR","08051","Mantua",null,null,null,null,null,null,null,"NL",null,"C",null,"P"]
[null,36," CANDLEWOOD"," DR","36 CANDLEWOOD DR","08051","Mantua",null,null,null,null,null,null,null,"NL",null,"C",null,"P"]
[null,38," CANDLEWOOD"," DR","38 CANDLEWOOD DR","08051","Mantua",null,null,null,null,null,null,null,"NL",null,"C",null,"P"]
[null,40," CANDLEWOOD"," DR","40 CANDLEWOOD DR","08051","Mantua",null,null,null,null,null,null,null,"NL",null,"C",null,"P"]
[null,42," CANDLEWOOD"," DR","42 CANDLEWOOD DR","08051","Mantua",null,null,null,null,null,null,null,"NL",null,"C",null,"P"]
[null,44," CANDLEWOOD"," DR","44 CANDLEWOOD DR","08051","Mantua",null,null,null,null,null,null,null,"NL",null,"C",null,"P"]
[null,46," CANDLEWOOD"," DR","46 CANDLEWOOD DR","08051","Mantua",null,null,null,null,null,null,null,"NL",null,"C",null,"P"]
[null,48," CANDLEWOOD"," DR","48 CANDLEWOOD DR","08051","Mantua",null,null,null,null,null,null,null,"NL",null,"C",null,"P"]
[null,50," CANDLEWOOD"," DR","50 CANDLEWOOD DR","08051","Mantua",null,null,null,null,null,null,null,"NL",null,"C",null,"P"]
[null,54," CANDLEWOOD"," DR","54 CANDLEWOOD DR","08051","Mantua",null,null,null,null,null,null,null,"NL",null,"C",null,"P"]
[null,58," CANDLEWOOD"," DR","58 CANDLEWOOD DR","08051","Mantua",null,null,null,null,null,null,null,"NL",null,"C",null,"P"]
[null,62," CANDLEWOOD"," DR","62 CANDLEWOOD DR","08051","Mantua",null,null,null,null,null,null,null,"NL",null,"C",null,"P"]
[null,66," CANDLEWOOD"," DR","66 CANDLEWOOD DR","08051","Mantua",null,null,null,null,null,null,null,"NL",null,"C",null,"P"]
[null,70," CANDLEWOOD"," DR","70 CANDLEWOOD DR","08051","Mantua",null,null,null,null,null,null,null,"NL",null,"C",null,"P"]
[null,74," CANDLEWOOD"," DR","74 CANDLEWOOD DR","08051","Mantua",null,null,null,null,null,null,null,"NL",null,"C",null,"P"]
[null,96," CANDLEWOOD"," DR","96 CANDLEWOOD DR","08051","Mantua",null,null,null,null,null,null,null,"NL",null,"C",null,"P"]
[null,98," CANDLEWOOD"," DR","98 CANDLEWOOD DR","08051","Mantua",null,null,null,null,null,null,null,"NL",null,"C",null,"P"]
[null,10," CAPE MAY"," AVE","10 CAPE MAY AVE","08080","Sewell",null,null,null,null,null,null,null,"G",null,"G",null,"G"]
[null,21," CAPE MAY"," AVE","21 CAPE MAY AVE","08080","Sewell",null,null,null,null,null,null,null,"G",null,"G",null,"G"]
[null,31," CAPE MAY"," AVE","31 CAPE MAY AVE","08080","Sewell",null,null,null,null,null,null,null,"G",null,"G",null,"G"]
[null,41," CAPE MAY"," AVE","41 CAPE MAY AVE","08080","Sewell",null,null,null,null,null,null,null,"G",null,"G",null,"G"]
[null,47," CAPE MAY"," AVE","47 CAPE MAY AVE","08080","Sewell",null,null,null,null,null,null,null,"G",null,"G",null,"G"]
[null,53," CAPE MAY"," AVE","53 CAPE MAY AVE","08080","Sewell",null,null,null,null,null,null,null,"G",null,"G",null,"G"]
[null,61," CAPE MAY"," AVE","61 CAPE MAY AVE","08080","Sewell",null,null,null,null,null,null,null,"G",null,"G",null,"G"]
[null,67," CAPE MAY"," AVE","67 CAPE MAY AVE","08080","Sewell",null,null,null,null,null,null,null,"G",null,"G",null,"G"]
[null,75," CAPE MAY"," AVE","75 CAPE MAY AVE","08080","Sewell",null,null,null,null,null,null,null,"G",null,"G",null,"G"]
[null,40," CAPE MAY"," AVE","40 CAPE MAY AVE","08080","Sewell",null,null,null,null,null,null,null,"G",null,"G",null,"G"]
[null,42," CAPE MAY"," AVE","42 CAPE MAY AVE","08080","Sewell",null,null,null,null,null,null,null,"G",null,"G",null,"G"]
[null,48," CAPE MAY"," AVE","48 CAPE MAY AVE","08080","Sewell",null,null,null,null,null,null,null,"G",null,"G",null,"G"]
[null,91," CAPE MAY"," AVE","91 CAPE MAY AVE","08080","Sewell",null,null,null,null,null,null,null,"G",null,"G",null,"G"]
[null,95," CAPE MAY"," AVE","95 CAPE MAY AVE","08080","Sewell",null,null,null,null,null,null,null,"G",null,"G",null,"G"]
[null,56," CAPE MAY"," AVE","56 CAPE MAY AVE","08080","Sewell",null,null,null,null,null,null,null,"G",null,"G",null,"G"]
[null,205," CAPITAL"," DR","205 CAPITAL DR","08051","Mantua",null,null,null,null,null,null,null,"NL",null,"C",null,"C"]
[null,209," CAPITAL"," DR","209 CAPITAL DR","08051","Mantua",null,null,null,null,null,null,null,"NL",null,"C",null,"C"]
[null,213," CAPITAL"," DR","213 CAPITAL DR","08051","Mantua",null,null,null,null,null,null,null,"NL",null,"C",null,"C"]
[null,217," CAPITAL"," DR","217 CAPITAL DR","08051","Mantua",null,null,null,null,null,null,null,"NL",null,"C",null,"C"]
[null,221," CAPITAL"," DR","221 CAPITAL DR","08051","Mantua",null,null,null,null,null,null,null,"NL",null,"C",null,"C"]
[null,225," CAPITAL"," DR","225 CAPITAL DR","08051","Mantua",null,null,null,null,null,null,null,"NL",null,"C",null,"C"]
[null,212," CAPITAL"," DR","212 CAPITAL DR","08051","Mantua",null,null,null,null,null,null,null,"NL",null,"C",null,"C"]
[null,216," CAPITAL"," DR","216 CAPITAL DR","08051","Mantua",null,null,null,null,null,null,null,"NL",null,"C",null,"C"]
[null,220," CAPITAL"," DR","220 CAPITAL DR","08051","Mantua",null,null,null,null,null,null,null,"NL",null,"C",null,"C"]
[null,237," CAPITAL"," DR","237 CAPITAL DR","08051","Mantua",null,null,null,null,null,null,null,"NL",null,"C",null,"C"]
[null,241," CAPITAL"," DR","241 CAPITAL DR","08051","Mantua",null,null,null,null,null,null,null,"NL",null,"C",null,"C"]
[null,240," CAPITAL"," DR","240 CAPITAL DR","08051","Mantua",null,null,null,null,null,null,null,"NL",null,"C",null,"C"]
[null,105," CARDINAL"," AVE","105 CARDINAL AVE","08051","Mantua",null,null,null,null,null,null,null,"NL",null,"C",null,"P"]
[null,106," CARDINAL"," AVE","106 CARDINAL AVE","08051","Mantua",null,null,null,null,null,null,null,"NL",null,"C",null,"P"]
[null,107," CARDINAL"," AVE","107 CARDINAL AVE","08051","Mantua",null,null,null,null,null,null,null,"NL",null,"C",null,"P"]
[null,108," CARDINAL"," AVE","108 CARDINAL AVE","08051","Mantua",null,null,null,null,null,null,null,"NL",null,"C",null,"P"]
[null,109," CARDINAL"," AVE","109 CARDINAL AVE","08051","Mantua",null,null,null,null,null,null,null,"NL",null,"C",null,"P"]
[null,110," CARDINAL"," AVE","110 CARDINAL AVE","08051","Mantua",null,null,null,null,null,null,null,"NL",null,"C",null,"P"]
[null,112," CARDINAL"," AVE","112 CARDINAL AVE","08051","Mantua",null,null,null,null,null,null,null,"NL",null,"C",null,"P"]
[null,113," CARDINAL"," AVE","113 CARDINAL AVE","08051","Mantua",null,null,null,null,null,null,null,"NL",null,"C",null,"P"]
[null,179," CARDINAL"," AVE","179 CARDINAL AVE","08051","Mantua",null,null,null,null,null,null,null,"NL",null,"C",null,"P"]
[null,180," CARDINAL"," AVE","180 CARDINAL AVE","08051","Mantua",null,null,null,null,null,null,null,"NL",null,"C",null,"P"]
[null,181," CARDINAL"," AVE","181 CARDINAL AVE","08051","Mantua",null,null,null,null,null,null,null,"NL",null,"C",null,"P"]
[null,182," CARDINAL"," AVE","182 CARDINAL AVE","08051","Mantua",null,null,null,null,null,null,null,"NL",null,"C",null,"P"]
[null,183," CARDINAL"," AVE",{"$f":"_xlfn.CONCAT(B898, C898, D898)","v":"183 CARDINAL AVE"},"08051","Mantua",null,null,null,null,null,null,null,"NL",null,"C",null,"P"]
[null,184," CARDINAL"," AVE","184 CARDINAL AVE","08051","Mantua",null,null,null,null,null,null,null,"NL",null,"C",null,"P"]
[null,185," CARDINAL"," AVE","185 CARDINAL AVE","08051","Mantua",null,null,null,null,null,null,null,"NL",null,"C",null,"P"]
[null,186," CARDINAL"," AVE","186 CARDINAL AVE","08051","Mantua",null,null,null,null,null,null,null,"NL",null,"C",null,"P"]
[null,187," CARDINAL"," AVE","187 CARDINAL AVE","08051","Mantua",null,null,null,null,null,null,null,"NL",null,"C",null,"P"]
[null,195," CARDINAL"," AVE","195 CARDINAL AVE","08051","Mantua",null,null,null,null,null,null,null,"NL",null,"C",null,"P"]
[null,196," CARDINAL"," AVE","196 CARDINAL AVE","08051","Mantua",null,null,null,null,null,null,null,"NL",null,"C",null,"P"]
[null,111," CARDINAL"," AVE","111 CARDINAL AVE","08051","Mantua",null,null,null,null,null,null,null,"NL",null,"C",null,"P"]
[null,175," CARDINAL"," AVE","175 CARDINAL AVE","08051","Mantua",null,null,null,null,null,null,null,"NL",null,"C",null,"P"]
[null,176," CARDINAL"," AVE","176 CARDINAL AVE","08051","Mantua",null,null,null,null,null,null,null,"NL",null,"C",null,"P"]
[null,102," CARRIAGE HILL"," CIRCLE","102 CARRIAGE HILL CIRCLE","08051","Mantua",null,null,null,null,null,null,null,"NL",null,"C",null,"C"]
[null,125," CARRIAGE HILL"," CIRCLE","125 CARRIAGE HILL CIRCLE","08051","Mantua",null,null,null,null,null,null,null,"NL",null,"C",null,"C"]
[null,181," CARRIAGE HILL"," CIRCLE","181 CARRIAGE HILL CIRCLE","08051","Mantua",null,null,null,null,null,null,null,"NL",null,"C",null,"C"]
[null,183," CARRIAGE HILL"," CIRCLE","183 CARRIAGE HILL CIRCLE","08051","Mantua",null,null,null,null,null,null,null,"NL",null,"C",null,"C"]
[null,2," CARRIAGE HILL"," DR","2 CARRIAGE HILL DR","08051","Mantua",null,null,null,null,null,null,null,"NL",null,"C",null,"C"]
[null,3," CARRIAGE HILL"," DR","3 CARRIAGE HILL DR","08051","Mantua",null,null,null,null,null,null,null,"NL",null,"C",null,"C"]
[null,5," CARRIAGE HILL"," DR","5 CARRIAGE HILL DR","08051","Mantua",null,null,null,null,null,null,null,"NL",null,"C",null,"C"]
[null,6," CARRIAGE HILL"," DR","6 CARRIAGE HILL DR","08051","Mantua",null,null,null,null,null,null,null,"NL",null,"C",null,"C"]
[null,106," CARRIAGE HILL"," CIRCLE","106 CARRIAGE HILL CIRCLE","08051","Mantua",null,null,null,null,null,null,null,"NL",null,"C",null,"C"]
[null,103," CARRIAGE HILL"," CIRCLE","103 CARRIAGE HILL CIRCLE","08051","Mantua",null,null,null,null,null,null,null,"NL",null,"C",null,"C"]
[null,107," CARRIAGE HILL"," CIRCLE","107 CARRIAGE HILL CIRCLE","08051","Mantua",null,null,null,null,null,null,null,"NL",null,"C",null,"C"]
[null,109," CARRIAGE HILL"," CIRCLE","109 CARRIAGE HILL CIRCLE","08051","Mantua",null,null,null,null,null,null,null,"NL",null,"C",null,"C"]
[null,111," CARRIAGE HILL"," CIRCLE","111 CARRIAGE HILL CIRCLE","08051","Mantua",null,null,null,null,null,null,null,"NL",null,"C",null,"C"]
[null,115," CARRIAGE HILL"," CIRCLE","115 CARRIAGE HILL CIRCLE","08051","Mantua",null,null,null,null,null,null,null,"NL",null,"C",null,"C"]
[null,117," CARRIAGE HILL"," CIRCLE","117 CARRIAGE HILL CIRCLE","08051","Mantua",null,null,null,null,null,null,null,"NL",null,"C",null,"C"]
[null,119," CARRIAGE HILL"," CIRCLE","119 CARRIAGE HILL CIRCLE","08051","Mantua",null,null,null,null,null,null,null,"NL",null,"C",null,"C"]
[null,121," CARRIAGE HILL"," CIRCLE","121 CARRIAGE HILL CIRCLE","08051","Mantua",null,null,null,null,null,null,null,"NL",null,"C",null,"C"]
[null,123," CARRIAGE HILL"," CIRCLE","123 CARRIAGE HILL CIRCLE","08051","Mantua",null,null,null,null,null,null,null,"NL",null,"C",null,"C"]
[null,127," CARRIAGE HILL"," CIRCLE","127 CARRIAGE HILL CIRCLE","08051","Mantua",null,null,null,null,null,null,null,"NL",null,"C",null,"C"]
[null,129," CARRIAGE HILL"," CIRCLE","129 CARRIAGE HILL CIRCLE","08051","Mantua",null,null,null,null,null,null,null,"NL",null,"C",null,"C"]
[null,131," CARRIAGE HILL"," CIRCLE","131 CARRIAGE HILL CIRCLE","08051","Mantua",null,null,null,null,null,null,null,"NL",null,"C",null,"C"]
[null,135," CARRIAGE HILL"," CIRCLE","135 CARRIAGE HILL CIRCLE","08051","Mantua",null,null,null,null,null,null,null,"NL",null,"C",null,"C"]
[null,116," CARRIAGE HILL"," CIRCLE","116 CARRIAGE HILL CIRCLE","08051","Mantua",null,null,null,null,null,null,null,"NL",null,"C",null,"C"]
[null,120," CARRIAGE HILL"," CIRCLE","120 CARRIAGE HILL CIRCLE","08051","Mantua",null,null,null,null,null,null,null,"NL",null,"C",null,"C"]
[null,139," CARRIAGE HILL"," CIRCLE","139 CARRIAGE HILL CIRCLE","08051","Mantua",null,null,null,null,null,null,null,"NL",null,"C",null,"C"]
[null,141," CARRIAGE HILL"," CIRCLE","141 CARRIAGE HILL CIRCLE","08051","Mantua",null,null,null,null,null,null,null,"NL",null,"C",null,"C"]
[null,175," CARRIAGE HILL"," CIRCLE","175 CARRIAGE HILL CIRCLE","08051","Mantua",null,null,null,null,null,null,null,"NL",null,"C",null,"C"]
[null,177," CARRIAGE HILL"," CIRCLE","177 CARRIAGE HILL CIRCLE","08051","Mantua",null,null,null,null,null,null,null,"NL",null,"C",null,"C"]
[null,185," CARRIAGE HILL"," CIRCLE","185 CARRIAGE HILL CIRCLE","08051","Mantua",null,null,null,null,null,null,null,"NL",null,"C",null,"C"]
[null,187," CARRIAGE HILL"," CIRCLE","187 CARRIAGE HILL CIRCLE","08051","Mantua",null,null,null,null,null,null,null,"NL",null,"C",null,"C"]
[null,189," CARRIAGE HILL"," CIRCLE","189 CARRIAGE HILL CIRCLE","08051","Mantua",null,null,null,null,null,null,null,"NL",null,"C",null,"C"]
[null,124," CARRIAGE HILL"," CIRCLE","124 CARRIAGE HILL CIRCLE","08051","Mantua",null,null,null,null,null,null,null,"NL",null,"C",null,"C"]
[null,128," CARRIAGE HILL"," CIRCLE","128 CARRIAGE HILL CIRCLE","08051","Mantua",null,null,null,null,null,null,null,"NL",null,"C",null,"C"]
[null,132," CARRIAGE HILL"," CIRCLE","132 CARRIAGE HILL CIRCLE","08051","Mantua",null,null,null,null,null,null,null,"NL",null,"C",null,"C"]
[null,136," CARRIAGE HILL"," CIRCLE","136 CARRIAGE HILL CIRCLE","08051","Mantua",null,null,null,null,null,null,null,"NL",null,"C",null,"C"]
[null,138," CARRIAGE HILL"," CIRCLE","138 CARRIAGE HILL CIRCLE","08051","Mantua",null,null,null,null,null,null,null,"NL",null,"C",null,"C"]
[null,140," CARRIAGE HILL"," CIRCLE","140 CARRIAGE HILL CIRCLE","08051","Mantua",null,null,null,null,null,null,null,"NL",null,"C",null,"C"]
[null,193," CARRIAGE HILL"," CIRCLE","193 CARRIAGE HILL CIRCLE","08051","Mantua",null,null,null,null,null,null,null,"NL",null,"C",null,"C"]
[null,195," CARRIAGE HILL"," CIRCLE","195 CARRIAGE HILL CIRCLE","08051","Mantua",null,null,null,null,null,null,null,"NL",null,"C",null,"C"]
[null,197," CARRIAGE HILL"," CIRCLE","197 CARRIAGE HILL CIRCLE","08051","Mantua",null,null,null,null,null,null,null,"NL",null,"C",null,"C"]
[null,178," CARRIAGE HILL"," CIRCLE","178 CARRIAGE HILL CIRCLE","08051","Mantua",null,null,null,null,null,null,null,"NL",null,"C",null,"C"]
[null,180," CARRIAGE HILL"," CIRCLE","180 CARRIAGE HILL CIRCLE","08051","Mantua",null,null,null,null,null,null,null,"NL",null,"C",null,"C"]
[null,186," CARRIAGE HILL"," CIRCLE","186 CARRIAGE HILL CIRCLE","08051","Mantua",null,null,null,null,null,null,null,"NL",null,"C",null,"C"]
[null,188," CARRIAGE HILL"," CIRCLE","188 CARRIAGE HILL CIRCLE","08051","Mantua",null,null,null,null,null,null,null,"NL",null,"C",null,"C"]
[null,192," CARRIAGE HILL"," CIRCLE","192 CARRIAGE HILL CIRCLE","08051","Mantua",null,null,null,null,null,null,null,"NL",null,"C",null,"C"]
[null,4," CARRIAGE HILL"," CIRCLE","4 CARRIAGE HILL CIRCLE","08051","Mantua",null,null,null,null,null,null,null,"NL",null,"C",null,"C"]
[null,230," CENTER"," ST","230 CENTER ST","08080","Sewell",null,null,null,null,null,null,null,"NL",null,"C",null,"C"]
[null,415," CENTER"," ST","415 CENTER ST","08080","Sewell",null,null,null,null,null,null,null,"NL",null,"C",null,"C"]
[null,433," CENTER"," ST","433 CENTER ST","08080","Sewell",null,null,null,null,null,null,null,"NL",null,"C",null,"C"]
[null,478," CENTER"," ST","478 CENTER ST","08080","Sewell",null,null,null,null,null,null,null,"NL",null,"C",null,"C"]
[null,48," CENTER"," ST","48 CENTER ST","08080","Sewell",null,null,null,null,null,null,null,"NL",null,"C",null,"C"]
[null,495," CENTER"," ST","495 CENTER ST","08080","Sewell",null,null,null,null,null,null,null,"NL",null,"C",null,"C"]
[null,497," CENTER"," ST","497 CENTER ST","08080","Sewell",null,null,null,null,null,null,null,"NL",null,"C",null,"C"]
[null,190," CENTER"," ST","190 CENTER ST","08080","Sewell",null,null,null,null,null,null,null,"NL",null,"C",null,"C"]
[null,225," CENTER"," ST",{"$f":"_xlfn.CONCAT(B962, C962, D962)","v":"225 CENTER ST"},"08080","Sewell",null,null,null,null,null,null,null,"NL",null,"C",null,"C"]
[null,200," CENTER"," ST","200 CENTER ST","08080","Sewell",null,null,null,null,null,null,null,"NL",null,"C",null,"C"]
[null,202," CENTER"," ST","202 CENTER ST","08080","Sewell",null,null,null,null,null,null,null,"NL",null,"C",null,"C"]
[null,206," CENTER"," ST","206 CENTER ST","08080","Sewell",null,null,null,null,null,null,null,"NL",null,"C",null,"C"]
[null,210," CENTER"," ST","210 CENTER ST","08080","Sewell",null,null,null,null,null,null,null,"NL",null,"C",null,"C"]
[null,214," CENTER"," ST","214 CENTER ST","08080","Sewell",null,null,null,null,null,null,null,"NL",null,"C",null,"C"]
[null,218," CENTER"," ST","218 CENTER ST","08080","Sewell",null,null,null,null,null,null,null,"NL",null,"C",null,"C"]
[null,220," CENTER"," ST","220 CENTER ST","08080","Sewell",null,null,null,null,null,null,null,"NL",null,"C",null,"C"]
[null,224," CENTER"," ST","224 CENTER ST","08080","Sewell",null,null,null,null,null,null,null,"NL",null,"C",null,"C"]
[null,228," CENTER"," ST","228 CENTER ST","08080","Sewell",null,null,null,null,null,null,null,"NL",null,"C",null,"C"]
[null,146," CENTER"," ST","146 CENTER ST","08080","Sewell",null,null,null,null,null,null,null,"NL",null,"C",null,"C"]
[null,148," CENTER"," ST","148 CENTER ST","08080","Sewell",null,null,null,null,null,null,null,"NL",null,"C",null,"C"]
[null,203," CENTER"," ST","203 CENTER ST","08080","Sewell",null,null,null,null,null,null,null,"NL",null,"C",null,"C"]
[null,195," CENTER"," ST","195 CENTER ST","08080","Sewell",null,null,null,null,null,null,null,"NL",null,"C",null,"C"]
[null,209," CENTER"," ST","209 CENTER ST","08080","Sewell",null,null,null,null,null,null,null,"NL",null,"C",null,"C"]
[null,217," CENTER"," ST","217 CENTER ST","08080","Sewell",null,null,null,null,null,null,null,"NL",null,"C",null,"C"]
[null,221," CENTER"," ST","221 CENTER ST","08080","Sewell",null,null,null,null,null,null,null,"NL",null,"C",null,"C"]
[null,150," CENTER"," ST","150 CENTER ST","08080","Sewell",null,null,null,null,null,null,null,"NL",null,"C",null,"C"]
[null,154," CENTER"," ST","154 CENTER ST","08080","Sewell",null,null,null,null,null,null,null,"NL",null,"C",null,"C"]
[null,"160-172"," CENTER"," ST","160-172 CENTER ST","08080","Sewell",null,null,null,null,null,null,null,"NL",null,"C",null,"C"]
[null,180," CENTER"," ST/APT","180 CENTER ST/APT","08080","Sewell",null,null,null,null,null,null,null,"NL",null,"C",null,"C"]
[null,180," CENTER"," ST/APT","180 CENTER ST/APT","08080","Sewell",null,null,null,null,null,null,null,"NL",null,"C",null,"C"]
[null,190," CENTER"," ST","190 CENTER ST","08080","Sewell",null,null,null,null,null,null,null,"NL",null,"C",null,"C"]
[null,190," CENTER"," ST","190 CENTER ST","08080","Sewell",null,null,null,null,null,null,null,"NL",null,"C",null,"C"]
[null,310," CENTER"," ST","310 CENTER ST","08080","Sewell",null,null,null,null,null,null,null,"NL",null,"C",null,"C"]
[null,320," CENTER"," ST","320 CENTER ST","08080","Sewell",null,null,null,null,null,null,null,"NL",null,"C",null,"C"]
[null,340," CENTER"," ST","340 CENTER ST","08080","Sewell",null,null,null,null,null,null,null,"NL",null,"C",null,"C"]
[null,350," CENTER"," ST","350 CENTER ST","08080","Sewell",null,null,null,null,null,null,null,"NL",null,"C",null,"C"]
[null,360," CENTER"," ST","360 CENTER ST","08080","Sewell",null,null,null,null,null,null,null,"NL",null,"C",null,"C"]
[null,380," CENTER"," ST","380 CENTER ST","08080","Sewell",null,null,null,null,null,null,null,"NL",null,"C",null,"C"]
[null,355," CENTER"," ST","355 CENTER ST","08080","Sewell",null,null,null,null,null,null,null,"NL",null,"C",null,"C"]
[null,375," CENTER"," ST","375 CENTER ST","08080","Sewell",null,null,null,null,null,null,null,"NL",null,"C",null,"C"]
[null,404," CENTER"," ST","404 CENTER ST","08080","Sewell",null,null,null,null,null,null,null,"NL",null,"C",null,"C"]
[null,401," CENTER"," ST","401 CENTER ST","08080","Sewell",null,null,null,null,null,null,null,"NL",null,"C",null,"C"]
[null,405," CENTER"," ST","405 CENTER ST","08080","Sewell",null,null,null,null,null,null,null,"NL",null,"C",null,"C"]
[null,409," CENTER"," ST","409 CENTER ST","08080","Sewell",null,null,null,null,null,null,null,"NL",null,"C",null,"C"]
[null,413," CENTER"," ST","413 CENTER ST","08080","Sewell",null,null,null,null,null,null,null,"NL",null,"C",null,"C"]
[null,"419-421"," CENTER"," ST","419-421 CENTER ST","08080","Sewell",null,null,null,null,null,null,null,"NL",null,"C",null,"C"]
[null,425," CENTER"," ST","425 CENTER ST","08080","Sewell",null,null,null,null,null,null,null,"NL",null,"C",null,"C"]
[null,437," CENTER"," ST","437 CENTER ST","08080","Sewell",null,null,null,null,null,null,null,"NL",null,"C",null,"C"]
[null,441," CENTER"," ST","441 CENTER ST","08080","Sewell",null,null,null,null,null,null,null,"NL",null,"C",null,"C"]
[null,445," CENTER"," ST","445 CENTER ST","08080","Sewell",null,null,null,null,null,null,null,"NL",null,"C",null,"C"]
[null,453," CENTER"," ST","453 CENTER ST","08080","Sewell",null,null,null,null,null,null,null,"NL",null,"C",null,"C"]
[null,457," CENTER"," ST","457 CENTER ST","08080","Sewell",null,null,null,null,null,null,null,"NL",null,"C",null,"C"]
[null,461," CENTER"," ST","461 CENTER ST","08080","Sewell",null,null,null,null,null,null,null,"NL",null,"C",null,"C"]
[null,465," CENTER"," ST","465 CENTER ST","08080","Sewell",null,null,null,null,null,null,null,"NL",null,"C",null,"C"]
[null,475," CENTER"," ST","475 CENTER ST","08080","Sewell",null,null,null,null,null,null,null,"NL",null,"C",null,"C"]
[null,436," CENTER"," ST","436 CENTER ST","08080","Sewell",null,null,null,null,null,null,null,"NL",null,"C",null,"C"]
[null,440," CENTER"," ST","440 CENTER ST","08080","Sewell",null,null,null,null,null,null,null,"NL",null,"C",null,"C"]
[null,444," CENTER"," ST","444 CENTER ST","08080","Sewell",null,null,null,null,null,null,null,"NL",null,"C",null,"C"]
[null,448," CENTER"," ST","448 CENTER ST","08080","Sewell",null,null,null,null,null,null,null,"NL",null,"C",null,"C"]
[null,452," CENTER"," ST","452 CENTER ST","08080","Sewell",null,null,null,null,null,null,null,"NL",null,"C",null,"C"]
[null,456," CENTER"," ST","456 CENTER ST","08080","Sewell",null,null,null,null,null,null,null,"NL",null,"C",null,"C"]
[null,468," CENTER"," ST","468 CENTER ST","08080","Sewell",null,null,null,null,null,null,null,"NL",null,"C",null,"C"]
[null,472," CENTER"," ST","472 CENTER ST","08080","Sewell",null,null,null,null,null,null,null,"NL",null,"C",null,"C"]
[null,482," CENTER"," ST","482 CENTER ST","08080","Sewell",null,null,null,null,null,null,null,"NL",null,"C",null,"C"]
[null,486," CENTER"," ST","486 CENTER ST","08080","Sewell",null,null,null,null,null,null,null,"NL",null,"C",null,"C"]
[null,496," CENTER"," ST","496 CENTER ST","08080","Sewell",null,null,null,null,null,null,null,"NL",null,"C",null,"C"]
[null,141," CENTER"," ST","141 CENTER ST","08080","Sewell",null,null,null,null,null,null,null,"NL",null,"C",null,"C"]
[null,90," CENTER"," ST","90 CENTER ST","08080","Sewell",null,null,null,null,null,null,null,"NL",null,"C",null,"C"]
[null,30," CENTER"," ST","30 CENTER ST","08080","Sewell",null,null,null,null,null,null,null,"NL",null,"C",null,"C"]
[null,38," CENTER"," ST","38 CENTER ST","08080","Sewell",null,null,null,null,null,null,null,"NL",null,"C",null,"C"]
[null,56," CENTER"," ST","56 CENTER ST","08080","Sewell",null,null,null,null,null,null,null,"NL",null,"C",null,"C"]
[null,72," CENTER"," ST","72 CENTER ST","08080","Sewell",null,null,null,null,null,null,null,"NL",null,"C",null,"C"]
[null,35," CENTER"," ST",{"$f":"_xlfn.CONCAT(B1026, C1026, D1026)","v":"35 CENTER ST"},"08080","Sewell",null,null,null,null,null,null,null,"NL",null,"C",null,"C"]
[null,37," CENTER"," ST","37 CENTER ST","08080","Sewell",null,null,null,null,null,null,null,"NL",null,"C",null,"C"]
[null,81," CENTER"," ST","81 CENTER ST","08080","Sewell",null,null,null,null,null,null,null,"NL",null,"C",null,"C"]
[null,231," CENTER"," ST","231 CENTER ST","08080","Sewell",null,null,null,null,null,null,null,"NL",null,"C",null,"C"]
[null,363," CENTRAL"," AVE","363 CENTRAL AVE","08080","Sewell",null,null,null,null,null,null,null,"NL",null,"C",null,"C"]
[null,23," CHESTNUT"," ST","23 CHESTNUT ST","08051","Mantua",null,null,null,null,null,null,null,"NL",null,"C",null,"G"]
[null,27," CHESTNUT"," ST","27 CHESTNUT ST","08051","Mantua",null,null,null,null,null,null,null,"NL",null,"C",null,"G"]
[null,33," CHESTNUT"," ST","33 CHESTNUT ST","08051","Mantua",null,null,null,null,null,null,null,"NL",null,"C",null,"G"]
[null,37," CHESTNUT"," ST","37 CHESTNUT ST","08051","Mantua",null,null,null,null,null,null,null,"NL",null,"C",null,"G"]
[null,43," CHESTNUT"," ST","43 CHESTNUT ST","08051","Mantua",null,null,null,null,null,null,null,"NL",null,"C",null,"G"]
[null,49," CHESTNUT"," ST","49 CHESTNUT ST","08051","Mantua",null,null,null,null,null,null,null,"NL",null,"C",null,"G"]
[null,53," CHESTNUT"," ST","53 CHESTNUT ST","08051","Mantua",null,null,null,null,null,null,null,"NL",null,"C",null,"G"]
[null,42," CHESTNUT"," ST","42 CHESTNUT ST","08051","Mantua",null,null,null,null,null,null,null,"NL",null,"C",null,"G"]
[null,48," CHESTNUT"," ST","48 CHESTNUT ST","08051","Mantua",null,null,null,null,null,null,null,"NL",null,"C",null,"G"]
[null,179," CHEYENNE"," AVE","179 CHEYENNE AVE","08051","Mantua",null,null,null,null,null,null,null,"NL",null,"C",null,"C"]
[null,181," CHEYENNE"," AVE","181 CHEYENNE AVE","08051","Mantua",null,null,null,null,null,null,null,"NL",null,"C",null,"C"]
[null,183," CHEYENNE"," AVE","183 CHEYENNE AVE","08051","Mantua",null,null,null,null,null,null,null,"NL",null,"C",null,"C"]
[null,185," CHEYENNE"," AVE","185 CHEYENNE AVE","08051","Mantua",null,null,null,null,null,null,null,"NL",null,"C",null,"C"]
[null,187," CHEYENNE"," AVE","187 CHEYENNE AVE","08051","Mantua",null,null,null,null,null,null,null,"NL",null,"C",null,"C"]
[null,189," CHEYENNE"," AVE","189 CHEYENNE AVE","08051","Mantua",null,null,null,null,null,null,null,"NL",null,"C",null,"C"]
[null,191," CHEYENNE"," AVE","191 CHEYENNE AVE","08051","Mantua",null,null,null,null,null,null,null,"NL",null,"C",null,"C"]
[null,180," CHEYENNE"," AVE","180 CHEYENNE AVE","08051","Mantua",null,null,null,null,null,null,null,"NL",null,"C",null,"C"]
[null,182," CHEYENNE"," AVE","182 CHEYENNE AVE","08051","Mantua",null,null,null,null,null,null,null,"NL",null,"C",null,"C"]
[null,184," CHEYENNE"," AVE","184 CHEYENNE AVE","08051","Mantua",null,null,null,null,null,null,null,"NL",null,"C",null,"C"]
[null,186," CHEYENNE"," AVE","186 CHEYENNE AVE","08051","Mantua",null,null,null,null,null,null,null,"NL",null,"C",null,"C"]
[null,188," CHEYENNE"," AVE","188 CHEYENNE AVE","08051","Mantua",null,null,null,null,null,null,null,"NL",null,"C",null,"C"]
[null,190," CHEYENNE"," AVE","190 CHEYENNE AVE","08051","Mantua",null,null,null,null,null,null,null,"NL",null,"C",null,"C"]
[null,192," CHEYENNE"," AVE","192 CHEYENNE AVE","08051","Mantua",null,null,null,null,null,null,null,"NL",null,"C",null,"C"]
[null,17," CLINTON"," AVE","17 CLINTON AVE","08051","Mantua",null,null,null,null,null,null,null,"NL",null,"C",null,"C"]
[null,37," CLINTON"," AVE","37 CLINTON AVE","08051","Mantua",null,null,null,null,null,null,null,"NL",null,"C",null,"C"]
[null,49," CLINTON"," AVE","49 CLINTON AVE","08051","Mantua",null,null,null,null,null,null,null,"NL",null,"C",null,"C"]
[null,54," CLINTON"," AVE","54 CLINTON AVE","08051","Mantua",null,null,null,null,null,null,null,"NL",null,"C",null,"C"]
[null,55," CLINTON"," AVE","55 CLINTON AVE","08051","Mantua",null,null,null,null,null,null,null,"NL",null,"C",null,"C"]
[null,60," CLINTON"," AVE","60 CLINTON AVE","08051","Mantua",null,null,null,null,null,null,null,"NL",null,"C",null,"C"]
[null,64," CLINTON"," AVE","64 CLINTON AVE","08051","Mantua",null,null,null,null,null,null,null,"NL",null,"C",null,"P"]
[null,43," CLINTON"," AVE","43 CLINTON AVE","08051","Mantua",null,null,null,null,null,null,null,"NL",null,"C",null,"C"]
[null,"61-63"," CLINTON"," AVE","61-63 CLINTON AVE","08051","Mantua",null,null,null,null,null,null,null,"NL",null,"C",null,"C"]
[null,48," CLINTON"," AVE","48 CLINTON AVE","08051","Mantua",null,null,null,null,null,null,null,"NL",null,"C",null,"C"]
[null,10," COLOSSEUM"," DR","10 COLOSSEUM DR","08051","Mantua",null,null,null,null,null,null,null,"NL",null,"C",null,"C"]
[null,12," COLOSSEUM"," DR","12 COLOSSEUM DR","08051","Mantua",null,null,null,null,null,null,null,"NL",null,"C",null,"C"]
[null,14," COLOSSEUM"," DR","14 COLOSSEUM DR","08051","Mantua",null,null,null,null,null,null,null,"NL",null,"C",null,"C"]
[null,18," COLOSSEUM"," DR","18 COLOSSEUM DR","08051","Mantua",null,null,null,null,null,null,null,"NL",null,"C",null,"C"]
[null,19," COLOSSEUM"," DR","19 COLOSSEUM DR","08051","Mantua",null,null,null,null,null,null,null,"NL",null,"C",null,"C"]
[null,22," COLOSSEUM"," DR","22 COLOSSEUM DR","08051","Mantua",null,null,null,null,null,null,null,"NL",null,"C",null,"C"]
[null,23," COLOSSEUM"," DR","23 COLOSSEUM DR","08051","Mantua",null,null,null,null,null,null,null,"NL",null,"C",null,"C"]
[null,24," COLOSSEUM"," DR","24 COLOSSEUM DR","08051","Mantua",null,null,null,null,null,null,null,"NL",null,"C",null,"C"]
[null,16," COLOSSEUM"," DR","16 COLOSSEUM DR","08051","Mantua",null,null,null,null,null,null,null,"NL",null,"C",null,"C"]
[null,20," COLOSSEUM"," DR","20 COLOSSEUM DR","08051","Mantua",null,null,null,null,null,null,null,"NL",null,"C",null,"C"]
[null,8," COLOSSEUM"," DR","8 COLOSSEUM DR","08051","Mantua",null,null,null,null,null,null,null,"NL",null,"C",null,"C"]
[null,13," COLOSSEUM"," DR","13 COLOSSEUM DR","08051","Mantua",null,null,null,null,null,null,null,"NL",null,"C",null,"C"]
[null,15," COLOSSEUM"," DR","15 COLOSSEUM DR","08051","Mantua",null,null,null,null,null,null,null,"NL",null,"C",null,"C"]
[null,17," COLOSSEUM"," DR","17 COLOSSEUM DR","08051","Mantua",null,null,null,null,null,null,null,"NL",null,"C",null,"C"]
[null,21," COLOSSEUM"," DR","21 COLOSSEUM DR","08051","Mantua",null,null,null,null,null,null,null,"NL",null,"C",null,"C"]
[null,291," COLUMBUS"," DR","291 COLUMBUS DR","08051","Mantua",null,null,null,null,null,null,null,"NL",null,"C",null,"C"]
[null,295," COLUMBUS"," DR","295 COLUMBUS DR","08051","Mantua",null,null,null,null,null,null,null,"NL",null,"C",null,"C"]
[null,300," COLUMBUS"," DR","300 COLUMBUS DR","08051","Mantua",null,null,null,null,null,null,null,"NL",null,"C",null,"C"]
[null,301," COLUMBUS"," DR","301 COLUMBUS DR","08051","Mantua",null,null,null,null,null,null,null,"NL",null,"C",null,"C"]
[null,305," COLUMBUS"," DR","305 COLUMBUS DR","08051","Mantua",null,null,null,null,null,null,null,"NL",null,"C",null,"C"]
[null,307," COLUMBUS"," DR","307 COLUMBUS DR","08051","Mantua",null,null,null,null,null,null,null,"NL",null,"C",null,"C"]
[null,245," COLUMBUS"," DR","245 COLUMBUS DR","08051","Mantua",null,null,null,null,null,null,null,"NL",null,"C",null,"C"]
[null,249," COLUMBUS"," DR","249 COLUMBUS DR","08051","Mantua",null,null,null,null,null,null,null,"NL",null,"C",null,"C"]
[null,253," COLUMBUS"," DR","253 COLUMBUS DR","08051","Mantua",null,null,null,null,null,null,null,"NL",null,"C",null,"C"]
[null,257," COLUMBUS"," DR","257 COLUMBUS DR","08051","Mantua",null,null,null,null,null,null,null,"NL",null,"C",null,"C"]
[null,246," COLUMBUS"," DR","246 COLUMBUS DR","08051","Mantua",null,null,null,null,null,null,null,"NL",null,"C",null,"C"]
[null,250," COLUMBUS"," DR",{"$f":"_xlfn.CONCAT(B1090, C1090, D1090)","v":"250 COLUMBUS DR"},"08051","Mantua",null,null,null,null,null,null,null,"NL",null,"C",null,"C"]
[null,254," COLUMBUS"," DR","254 COLUMBUS DR","08051","Mantua",null,null,null,null,null,null,null,"NL",null,"C",null,"C"]
[null,304," COLUMBUS"," DR","304 COLUMBUS DR","08051","Mantua",null,null,null,null,null,null,null,"NL",null,"C",null,"C"]
[null,308," COLUMBUS"," DR","308 COLUMBUS DR","08051","Mantua",null,null,null,null,null,null,null,"NL",null,"C",null,"C"]
[null,269," COLUMBUS"," DR","269 COLUMBUS DR","08051","Mantua",null,null,null,null,null,null,null,"NL",null,"C",null,"C"]
[null,273," COLUMBUS"," DR","273 COLUMBUS DR","08051","Mantua",null,null,null,null,null,null,null,"NL",null,"C",null,"C"]
[null,277," COLUMBUS"," DR","277 COLUMBUS DR","08051","Mantua",null,null,null,null,null,null,null,"NL",null,"C",null,"C"]
[null,260," COLUMBUS"," DR","260 COLUMBUS DR","08051","Mantua",null,null,null,null,null,null,null,"NL",null,"C",null,"C"]
[null,264," COLUMBUS"," DR","264 COLUMBUS DR","08051","Mantua",null,null,null,null,null,null,null,"NL",null,"C",null,"C"]
[null,268," COLUMBUS"," DR","268 COLUMBUS DR","08051","Mantua",null,null,null,null,null,null,null,"NL",null,"C",null,"C"]
[null,272," COLUMBUS"," DR","272 COLUMBUS DR","08051","Mantua",null,null,null,null,null,null,null,"NL",null,"C",null,"C"]
[null,276," COLUMBUS"," DR","276 COLUMBUS DR","08051","Mantua",null,null,null,null,null,null,null,"NL",null,"C",null,"C"]
[null,280," COLUMBUS"," DR","280 COLUMBUS DR","08051","Mantua",null,null,null,null,null,null,null,"NL",null,"C",null,"C"]
[null,284," COLUMBUS"," DR","284 COLUMBUS DR","08051","Mantua",null,null,null,null,null,null,null,"NL",null,"C",null,"C"]
[null,288," COLUMBUS"," DR","288 COLUMBUS DR","08051","Mantua",null,null,null,null,null,null,null,"NL",null,"C",null,"C"]
[null,292," COLUMBUS"," DR","292 COLUMBUS DR","08051","Mantua",null,null,null,null,null,null,null,"NL",null,"C",null,"C"]
[null,296," COLUMBUS"," DR","296 COLUMBUS DR","08051","Mantua",null,null,null,null,null,null,null,"NL",null,"C",null,"C"]
[null,299," COLUMBUS"," DR","299 COLUMBUS DR","08051","Mantua",null,null,null,null,null,null,null,"NL",null,"C",null,"C"]
[null,601," CORNWALL"," RD","601 CORNWALL RD","08080","Sewell",null,null,null,null,null,null,null,"NL",null,"C",null,"C"]
[null,603," CORNWALL"," RD","603 CORNWALL RD","08080","Sewell",null,null,null,null,null,null,null,"NL",null,"C",null,"C"]
[null,605," CORNWALL"," RD","605 CORNWALL RD","08080","Sewell",null,null,null,null,null,null,null,"NL",null,"C",null,"C"]
[null,607," CORNWALL"," RD","607 CORNWALL RD","08080","Sewell",null,null,null,null,null,null,null,"NL",null,"C",null,"C"]
[null,609," CORNWALL"," RD","609 CORNWALL RD","08080","Sewell",null,null,null,null,null,null,null,"NL",null,"C",null,"C"]
[null,611," CORNWALL"," RD","611 CORNWALL RD","08080","Sewell",null,null,null,null,null,null,null,"NL",null,"C",null,"C"]
[null,613," CORNWALL"," RD","613 CORNWALL RD","08080","Sewell",null,null,null,null,null,null,null,"NL",null,"C",null,"C"]
[null,615," CORNWALL"," RD","615 CORNWALL RD","08080","Sewell",null,null,null,null,null,null,null,"NL",null,"C",null,"C"]
[null,600," CORNWALL"," RD","600 CORNWALL RD","08080","Sewell",null,null,null,null,null,null,null,"NL",null,"C",null,"C"]
[null,602," CORNWALL"," RD","602 CORNWALL RD","08080","Sewell",null,null,null,null,null,null,null,"NL",null,"C",null,"C"]
[null,604," CORNWALL"," RD","604 CORNWALL RD","08080","Sewell",null,null,null,null,null,null,null,"NL",null,"C",null,"C"]
[null,606," CORNWALL"," RD","606 CORNWALL RD","08080","Sewell",null,null,null,null,null,null,null,"NL",null,"C",null,"C"]
[null,608," CORNWALL"," RD","608 CORNWALL RD","08080","Sewell",null,null,null,null,null,null,null,"NL",null,"C",null,"C"]
[null,610," CORNWALL"," RD","610 CORNWALL RD","08080","Sewell",null,null,null,null,null,null,null,"NL",null,"C",null,"C"]
[null,612," CORNWALL"," RD","612 CORNWALL RD","08080","Sewell",null,null,null,null,null,null,null,"NL",null,"C",null,"C"]
[null,614," CORNWALL"," RD","614 CORNWALL RD","08080","Sewell",null,null,null,null,null,null,null,"NL",null,"C",null,"C"]
[null,100," COTTAGE GATE"," CIRCLE","100 COTTAGE GATE CIRCLE","08080","Sewell",null,null,null,null,null,null,null,"NL",null,"C",null,"P"]
[null,108," COTTAGE GATE"," CIRCLE","108 COTTAGE GATE CIRCLE","08080","Sewell",null,null,null,null,null,null,null,"NL",null,"C",null,"P"]
[null,112," COTTAGE GATE"," CIRCLE","112 COTTAGE GATE CIRCLE","08080","Sewell",null,null,null,null,null,null,null,"NL",null,"C",null,"P"]
[null,116," COTTAGE GATE"," CIRCLE","116 COTTAGE GATE CIRCLE","08080","Sewell",null,null,null,null,null,null,null,"NL",null,"C",null,"P"]
[null,120," COTTAGE GATE"," CIRCLE","120 COTTAGE GATE CIRCLE","08080","Sewell",null,null,null,null,null,null,null,"NL",null,"C",null,"P"]
[null,124," COTTAGE GATE"," CIRCLE","124 COTTAGE GATE CIRCLE","08080","Sewell",null,null,null,null,null,null,null,"NL",null,"C",null,"P"]
[null,128," COTTAGE GATE"," CIRCLE","128 COTTAGE GATE CIRCLE","08080","Sewell",null,null,null,null,null,null,null,"NL",null,"C",null,"P"]
[null,132," COTTAGE GATE"," CIRCLE","132 COTTAGE GATE CIRCLE","08080","Sewell",null,null,null,null,null,null,null,"NL",null,"C",null,"P"]
[null,133," COTTAGE GATE"," CIRCLE","133 COTTAGE GATE CIRCLE","08080","Sewell",null,null,null,null,null,null,null,"NL",null,"C",null,"P"]
[null,136," COTTAGE GATE"," CIRCLE","136 COTTAGE GATE CIRCLE","08080","Sewell",null,null,null,null,null,null,null,"NL",null,"C",null,"P"]
[null,137," COTTAGE GATE"," CIRCLE","137 COTTAGE GATE CIRCLE","08080","Sewell",null,null,null,null,null,null,null,"NL",null,"C",null,"P"]
[null,140," COTTAGE GATE"," CIRCLE","140 COTTAGE GATE CIRCLE","08080","Sewell",null,null,null,null,null,null,null,"NL",null,"C",null,"P"]
[null,141," COTTAGE GATE"," CIRCLE","141 COTTAGE GATE CIRCLE","08080","Sewell",null,null,null,null,null,null,null,"NL",null,"C",null,"P"]
[null,145," COTTAGE GATE"," CIRCLE","145 COTTAGE GATE CIRCLE","08080","Sewell",null,null,null,null,null,null,null,"NL",null,"C",null,"P"]
[null,149," COTTAGE GATE"," CIRCLE","149 COTTAGE GATE CIRCLE","08080","Sewell",null,null,null,null,null,null,null,"NL",null,"C",null,"P"]
[null,153," COTTAGE GATE"," CIRCLE","153 COTTAGE GATE CIRCLE","08080","Sewell",null,null,null,null,null,null,null,"NL",null,"C",null,"P"]
[null,157," COTTAGE GATE"," CIRCLE","157 COTTAGE GATE CIRCLE","08080","Sewell",null,null,null,null,null,null,null,"NL",null,"C",null,"P"]
[null,170," COTTAGE GATE"," CIRCLE","170 COTTAGE GATE CIRCLE","08080","Sewell",null,null,null,null,null,null,null,"NL",null,"C",null,"P"]
[null,174," COTTAGE GATE"," CIRCLE","174 COTTAGE GATE CIRCLE","08080","Sewell",null,null,null,null,null,null,null,"NL",null,"C",null,"P"]
[null,50," COTTAGE GATE"," CIRCLE","50 COTTAGE GATE CIRCLE","08080","Sewell",null,null,null,null,null,null,null,"NL",null,"C",null,"P"]
[null,56," COTTAGE GATE"," CIRCLE","56 COTTAGE GATE CIRCLE","08080","Sewell",null,null,null,null,null,null,null,"NL",null,"C",null,"P"]
[null,60," COTTAGE GATE"," CIRCLE","60 COTTAGE GATE CIRCLE","08080","Sewell",null,null,null,null,null,null,null,"NL",null,"C",null,"P"]
[null,62," COTTAGE GATE"," CIRCLE","62 COTTAGE GATE CIRCLE","08080","Sewell",null,null,null,null,null,null,null,"NL",null,"C",null,"P"]
[null,66," COTTAGE GATE"," CIRCLE","66 COTTAGE GATE CIRCLE","08080","Sewell",null,null,null,null,null,null,null,"NL",null,"C",null,"P"]
[null,72," COTTAGE GATE"," CIRCLE","72 COTTAGE GATE CIRCLE","08080","Sewell",null,null,null,null,null,null,null,"NL",null,"C",null,"P"]
[null,81," COTTAGE GATE"," CIRCLE","81 COTTAGE GATE CIRCLE","08080","Sewell",null,null,null,null,null,null,null,"NL",null,"C",null,"P"]
[null,83," COTTAGE GATE"," CIRCLE","83 COTTAGE GATE CIRCLE","08080","Sewell",null,null,null,null,null,null,null,"NL",null,"C",null,"P"]
[null,84," COTTAGE GATE"," CIRCLE","84 COTTAGE GATE CIRCLE","08080","Sewell",null,null,null,null,null,null,null,"NL",null,"C",null,"P"]
[null,85," COTTAGE GATE"," CIRCLE","85 COTTAGE GATE CIRCLE","08080","Sewell",null,null,null,null,null,null,null,"NL",null,"C",null,"P"]
[null,86," COTTAGE GATE"," CIRCLE","86 COTTAGE GATE CIRCLE","08080","Sewell",null,null,null,null,null,null,null,"NL",null,"C",null,"P"]
[null,92," COTTAGE GATE"," CIRCLE",{"$f":"_xlfn.CONCAT(B1154, C1154, D1154)","v":"92 COTTAGE GATE CIRCLE"},"08080","Sewell",null,null,null,null,null,null,null,"NL",null,"C",null,"P"]
[null,96," COTTAGE GATE"," CIRCLE","96 COTTAGE GATE CIRCLE","08080","Sewell",null,null,null,null,null,null,null,"NL",null,"C",null,"P"]
[null,31," COTTAGE GATE"," CIRCLE","31 COTTAGE GATE CIRCLE","08080","Sewell",null,null,null,null,null,null,null,"NL",null,"C",null,"P"]
[null,33," COTTAGE GATE"," CIRCLE","33 COTTAGE GATE CIRCLE","08080","Sewell",null,null,null,null,null,null,null,"NL",null,"C",null,"P"]
[null,35," COTTAGE GATE"," CIRCLE","35 COTTAGE GATE CIRCLE","08080","Sewell",null,null,null,null,null,null,null,"NL",null,"C",null,"P"]
[null,37," COTTAGE GATE"," CIRCLE","37 COTTAGE GATE CIRCLE","08080","Sewell",null,null,null,null,null,null,null,"NL",null,"C",null,"P"]
[null,39," COTTAGE GATE"," CIRCLE","39 COTTAGE GATE CIRCLE","08080","Sewell",null,null,null,null,null,null,null,"NL",null,"C",null,"P"]
[null,41," COTTAGE GATE"," CIRCLE","41 COTTAGE GATE CIRCLE","08080","Sewell",null,null,null,null,null,null,null,"NL",null,"C",null,"P"]
[null,43," COTTAGE GATE"," CIRCLE","43 COTTAGE GATE CIRCLE","08080","Sewell",null,null,null,null,null,null,null,"NL",null,"C",null,"P"]
[null,45," COTTAGE GATE"," CIRCLE","45 COTTAGE GATE CIRCLE","08080","Sewell",null,null,null,null,null,null,null,"NL",null,"C",null,"P"]
[null,47," COTTAGE GATE"," CIRCLE","47 COTTAGE GATE CIRCLE","08080","Sewell",null,null,null,null,null,null,null,"NL",null,"C",null,"P"]
[null,49," COTTAGE GATE"," CIRCLE","49 COTTAGE GATE CIRCLE","08080","Sewell",null,null,null,null,null,null,null,"NL",null,"C",null,"P"]
[null,51," COTTAGE GATE"," CIRCLE","51 COTTAGE GATE CIRCLE","08080","Sewell",null,null,null,null,null,null,null,"NL",null,"C",null,"P"]
[null,53," COTTAGE GATE"," CIRCLE","53 COTTAGE GATE CIRCLE","08080","Sewell",null,null,null,null,null,null,null,"NL",null,"C",null,"P"]
[null,55," COTTAGE GATE"," CIRCLE","55 COTTAGE GATE CIRCLE","08080","Sewell",null,null,null,null,null,null,null,"NL",null,"C",null,"P"]
[null,57," COTTAGE GATE"," CIRCLE","57 COTTAGE GATE CIRCLE","08080","Sewell",null,null,null,null,null,null,null,"NL",null,"C",null,"P"]
[null,59," COTTAGE GATE"," CIRCLE","59 COTTAGE GATE CIRCLE","08080","Sewell",null,null,null,null,null,null,null,"NL",null,"C",null,"P"]
[null,61," COTTAGE GATE"," CIRCLE","61 COTTAGE GATE CIRCLE","08080","Sewell",null,null,null,null,null,null,null,"NL",null,"C",null,"P"]
[null,63," COTTAGE GATE"," CIRCLE","63 COTTAGE GATE CIRCLE","08080","Sewell",null,null,null,null,null,null,null,"NL",null,"C",null,"P"]
[null,65," COTTAGE GATE"," CIRCLE","65 COTTAGE GATE CIRCLE","08080","Sewell",null,null,null,null,null,null,null,"NL",null,"C",null,"P"]
[null,67," COTTAGE GATE"," CIRCLE","67 COTTAGE GATE CIRCLE","08080","Sewell",null,null,null,null,null,null,null,"NL",null,"C",null,"P"]
[null,69," COTTAGE GATE"," CIRCLE","69 COTTAGE GATE CIRCLE","08080","Sewell",null,null,null,null,null,null,null,"NL",null,"C",null,"P"]
[null,71," COTTAGE GATE"," CIRCLE","71 COTTAGE GATE CIRCLE","08080","Sewell",null,null,null,null,null,null,null,"NL",null,"C",null,"P"]
[null,54," COTTAGE GATE"," CIRCLE","54 COTTAGE GATE CIRCLE","08080","Sewell",null,null,null,null,null,null,null,"NL",null,"C",null,"P"]
[null,79," COTTAGE GATE"," CIRCLE","79 COTTAGE GATE CIRCLE","08080","Sewell",null,null,null,null,null,null,null,"NL",null,"C",null,"P"]
[null,87," COTTAGE GATE"," CIRCLE","87 COTTAGE GATE CIRCLE","08080","Sewell",null,null,null,null,null,null,null,"NL",null,"C",null,"P"]
[null,89," COTTAGE GATE"," CIRCLE","89 COTTAGE GATE CIRCLE","08080","Sewell",null,null,null,null,null,null,null,"NL",null,"C",null,"P"]
[null,91," COTTAGE GATE"," CIRCLE","91 COTTAGE GATE CIRCLE","08080","Sewell",null,null,null,null,null,null,null,"NL",null,"C",null,"P"]
[null,93," COTTAGE GATE"," CIRCLE","93 COTTAGE GATE CIRCLE","08080","Sewell",null,null,null,null,null,null,null,"NL",null,"C",null,"P"]
[null,95," COTTAGE GATE"," CIRCLE","95 COTTAGE GATE CIRCLE","08080","Sewell",null,null,null,null,null,null,null,"NL",null,"C",null,"P"]
[null,12," COTTAGE GATE"," CIRCLE","12 COTTAGE GATE CIRCLE","08080","Sewell",null,null,null,null,null,null,null,"NL",null,"C",null,"P"]
[null,14," COTTAGE GATE"," CIRCLE","14 COTTAGE GATE CIRCLE","08080","Sewell",null,null,null,null,null,null,null,"NL",null,"C",null,"P"]
[null,16," COTTAGE GATE"," CIRCLE","16 COTTAGE GATE CIRCLE","08080","Sewell",null,null,null,null,null,null,null,"NL",null,"C",null,"P"]
[null,18," COTTAGE GATE"," CIRCLE","18 COTTAGE GATE CIRCLE","08080","Sewell",null,null,null,null,null,null,null,"NL",null,"C",null,"P"]
[null,20," COTTAGE GATE"," CIRCLE","20 COTTAGE GATE CIRCLE","08080","Sewell",null,null,null,null,null,null,null,"NL",null,"C",null,"P"]
[null,42," COTTAGE GATE"," CIRCLE","42 COTTAGE GATE CIRCLE","08080","Sewell",null,null,null,null,null,null,null,"NL",null,"C",null,"P"]
[null,44," COTTAGE GATE"," CIRCLE","44 COTTAGE GATE CIRCLE","08080","Sewell",null,null,null,null,null,null,null,"NL",null,"C",null,"P"]
[null,46," COTTAGE GATE"," CIRCLE","46 COTTAGE GATE CIRCLE","08080","Sewell",null,null,null,null,null,null,null,"NL",null,"C",null,"P"]
[null,48," COTTAGE GATE"," CIRCLE","48 COTTAGE GATE CIRCLE","08080","Sewell",null,null,null,null,null,null,null,"NL",null,"C",null,"P"]
[null,52," COTTAGE GATE"," CIRCLE","52 COTTAGE GATE CIRCLE","08080","Sewell",null,null,null,null,null,null,null,"NL",null,"C",null,"P"]
[null,58," COTTAGE GATE"," CIRCLE","58 COTTAGE GATE CIRCLE","08080","Sewell",null,null,null,null,null,null,null,"NL",null,"C",null,"P"]
[null,64," COTTAGE GATE"," CIRCLE","64 COTTAGE GATE CIRCLE","08080","Sewell",null,null,null,null,null,null,null,"NL",null,"C",null,"P"]
[null,68," COTTAGE GATE"," CIRCLE","68 COTTAGE GATE CIRCLE","08080","Sewell",null,null,null,null,null,null,null,"NL",null,"C",null,"P"]
[null,82," COTTAGE GATE"," CIRCLE","82 COTTAGE GATE CIRCLE","08080","Sewell",null,null,null,null,null,null,null,"NL",null,"C",null,"P"]
[null,94," COTTAGE GATE"," CIRCLE","94 COTTAGE GATE CIRCLE","08080","Sewell",null,null,null,null,null,null,null,"NL",null,"C",null,"P"]
[null,70," COTTAGE GATE"," CIRCLE","70 COTTAGE GATE CIRCLE","08080","Sewell",null,null,null,null,null,null,null,"NL",null,"C",null,"P"]
[null,125," COTTAGE GATE"," CIRCLE","125 COTTAGE GATE CIRCLE","08080","Sewell",null,null,null,null,null,null,null,"NL",null,"C",null,"P"]
[null,1," COTTONWOOD"," CT","1 COTTONWOOD CT","08051","Mantua",null,null,null,null,null,null,null,"NL",null,"C",null,"P"]
[null,11," COTTONWOOD"," CT","11 COTTONWOOD CT","08051","Mantua",null,null,null,null,null,null,null,"NL",null,"C",null,"P"]
[null,13," COTTONWOOD"," CT","13 COTTONWOOD CT","08051","Mantua",null,null,null,null,null,null,null,"NL",null,"C",null,"P"]
[null,15," COTTONWOOD"," CT","15 COTTONWOOD CT","08051","Mantua",null,null,null,null,null,null,null,"NL",null,"C",null,"P"]
[null,3," COTTONWOOD"," CT","3 COTTONWOOD CT","08051","Mantua",null,null,null,null,null,null,null,"NL",null,"C",null,"P"]
[null,5," COTTONWOOD"," CT","5 COTTONWOOD CT","08051","Mantua",null,null,null,null,null,null,null,"NL",null,"C",null,"P"]
[null,7," COTTONWOOD"," CT","7 COTTONWOOD CT","08051","Mantua",null,null,null,null,null,null,null,"NL",null,"C",null,"P"]
[null,9," COTTONWOOD"," CT","9 COTTONWOOD CT","08051","Mantua",null,null,null,null,null,null,null,"NL",null,"C",null,"P"]
[null,"IRR"," COUNTRY"," GARDENS","IRR COUNTRY GARDENS","08080","Sewell",null,null,null,null,null,null,null,"NL",null,"C",null,"NA"]
[null,"IRRIGATION"," COUNTRY"," GARDENS","IRRIGATION COUNTRY GARDENS","08080","Sewell",null,null,null,null,null,null,null,"NL",null,"C",null,"NA"]
[null,"BEAR"," CREEK"," DR","BEAR CREEK DR","08080","Sewell",null,null,null,null,null,null,null,"NL",null,"C",null,"NA"]
[null,1," CRESCENT"," HOLLOW","1 CRESCENT HOLLOW","08080","Sewell",null,null,null,null,null,null,null,"NL",null,"C",null,"C"]
[null,11," CRESCENT"," HOLLOW","11 CRESCENT HOLLOW","08080","Sewell",null,null,null,null,null,null,null,"NL",null,"C",null,"C"]
[null,13," CRESCENT"," HOLLOW","13 CRESCENT HOLLOW","08080","Sewell",null,null,null,null,null,null,null,"NL",null,"C",null,"C"]
[null,15," CRESCENT"," HOLLOW","15 CRESCENT HOLLOW","08080","Sewell",null,null,null,null,null,null,null,"NL",null,"C",null,"C"]
[null,17," CRESCENT"," HOLLOW","17 CRESCENT HOLLOW","08080","Sewell",null,null,null,null,null,null,null,"NL",null,"C",null,"C"]
[null,19," CRESCENT"," HOLLOW","19 CRESCENT HOLLOW","08080","Sewell",null,null,null,null,null,null,null,"NL",null,"C",null,"C"]
[null,21," CRESCENT"," HOLLOW",{"$f":"_xlfn.CONCAT(B1218, C1218, D1218)","v":"21 CRESCENT HOLLOW"},"08080","Sewell",null,null,null,null,null,null,null,"NL",null,"C",null,"C"]
[null,23," CRESCENT"," HOLLOW","23 CRESCENT HOLLOW","08080","Sewell",null,null,null,null,null,null,null,"NL",null,"C",null,"C"]
[null,25," CRESCENT"," HOLLOW","25 CRESCENT HOLLOW","08080","Sewell",null,null,null,null,null,null,null,"NL",null,"C",null,"C"]
[null,27," CRESCENT"," HOLLOW","27 CRESCENT HOLLOW","08080","Sewell",null,null,null,null,null,null,null,"NL",null,"C",null,"C"]
[null,29," CRESCENT"," HOLLOW","29 CRESCENT HOLLOW","08080","Sewell",null,null,null,null,null,null,null,"NL",null,"C",null,"C"]
[null,3," CRESCENT"," HOLLOW","3 CRESCENT HOLLOW","08080","Sewell",null,null,null,null,null,null,null,"NL",null,"C",null,"C"]
[null,31," CRESCENT"," HOLLOW","31 CRESCENT HOLLOW","08080","Sewell",null,null,null,null,null,null,null,"NL",null,"C",null,"C"]
[null,33," CRESCENT"," HOLLOW","33 CRESCENT HOLLOW","08080","Sewell",null,null,null,null,null,null,null,"NL",null,"C",null,"C"]
[null,35," CRESCENT"," HOLLOW","35 CRESCENT HOLLOW","08080","Sewell",null,null,null,null,null,null,null,"NL",null,"C",null,"C"]
[null,37," CRESCENT"," HOLLOW","37 CRESCENT HOLLOW","08080","Sewell",null,null,null,null,null,null,null,"NL",null,"C",null,"C"]
[null,39," CRESCENT"," HOLLOW","39 CRESCENT HOLLOW","08080","Sewell",null,null,null,null,null,null,null,"NL",null,"C",null,"C"]
[null,41," CRESCENT"," HOLLOW","41 CRESCENT HOLLOW","08080","Sewell",null,null,null,null,null,null,null,"NL",null,"C",null,"C"]
[null,43," CRESCENT"," HOLLOW","43 CRESCENT HOLLOW","08080","Sewell",null,null,null,null,null,null,null,"NL",null,"C",null,"C"]
[null,45," CRESCENT"," HOLLOW","45 CRESCENT HOLLOW","08080","Sewell",null,null,null,null,null,null,null,"NL",null,"C",null,"C"]
[null,47," CRESCENT"," HOLLOW","47 CRESCENT HOLLOW","08080","Sewell",null,null,null,null,null,null,null,"NL",null,"C",null,"C"]
[null,49," CRESCENT"," HOLLOW","49 CRESCENT HOLLOW","08080","Sewell",null,null,null,null,null,null,null,"NL",null,"C",null,"C"]
[null,5," CRESCENT"," HOLLOW","5 CRESCENT HOLLOW","08080","Sewell",null,null,null,null,null,null,null,"NL",null,"C",null,"C"]
[null,51," CRESCENT"," HOLLOW","51 CRESCENT HOLLOW","08080","Sewell",null,null,null,null,null,null,null,"NL",null,"C",null,"C"]
[null,53," CRESCENT"," HOLLOW","53 CRESCENT HOLLOW","08080","Sewell",null,null,null,null,null,null,null,"NL",null,"C",null,"C"]
[null,55," CRESCENT"," HOLLOW","55 CRESCENT HOLLOW","08080","Sewell",null,null,null,null,null,null,null,"NL",null,"C",null,"C"]
[null,57," CRESCENT"," HOLLOW","57 CRESCENT HOLLOW","08080","Sewell",null,null,null,null,null,null,null,"NL",null,"C",null,"C"]
[null,59," CRESCENT"," HOLLOW","59 CRESCENT HOLLOW","08080","Sewell",null,null,null,null,null,null,null,"NL",null,"C",null,"C"]
[null,61," CRESCENT"," HOLLOW","61 CRESCENT HOLLOW","08080","Sewell",null,null,null,null,null,null,null,"NL",null,"C",null,"C"]
[null,63," CRESCENT"," HOLLOW","63 CRESCENT HOLLOW","08080","Sewell",null,null,null,null,null,null,null,"NL",null,"C",null,"C"]
[null,65," CRESCENT"," HOLLOW","65 CRESCENT HOLLOW","08080","Sewell",null,null,null,null,null,null,null,"NL",null,"C",null,"C"]
[null,67," CRESCENT"," HOLLOW","67 CRESCENT HOLLOW","08080","Sewell",null,null,null,null,null,null,null,"NL",null,"C",null,"C"]
[null,69," CRESCENT"," HOLLOW","69 CRESCENT HOLLOW","08080","Sewell",null,null,null,null,null,null,null,"NL",null,"C",null,"C"]
[null,7," CRESCENT"," HOLLOW","7 CRESCENT HOLLOW","08080","Sewell",null,null,null,null,null,null,null,"NL",null,"C",null,"C"]
[null,71," CRESCENT"," HOLLOW","71 CRESCENT HOLLOW","08080","Sewell",null,null,null,null,null,null,null,"NL",null,"C",null,"C"]
[null,73," CRESCENT"," HOLLOW","73 CRESCENT HOLLOW","08080","Sewell",null,null,null,null,null,null,null,"NL",null,"C",null,"C"]
[null,75," CRESCENT"," HOLLOW","75 CRESCENT HOLLOW","08080","Sewell",null,null,null,null,null,null,null,"NL",null,"C",null,"C"]
[null,77," CRESCENT"," HOLLOW","77 CRESCENT HOLLOW","08080","Sewell",null,null,null,null,null,null,null,"NL",null,"C",null,"C"]
[null,79," CRESCENT"," HOLLOW","79 CRESCENT HOLLOW","08080","Sewell",null,null,null,null,null,null,null,"NL",null,"C",null,"C"]
[null,81," CRESCENT"," HOLLOW","81 CRESCENT HOLLOW","08080","Sewell",null,null,null,null,null,null,null,"NL",null,"C",null,"C"]
[null,85," CRESCENT"," HOLLOW","85 CRESCENT HOLLOW","08080","Sewell",null,null,null,null,null,null,null,"NL",null,"C",null,"C"]
[null,87," CRESCENT"," HOLLOW","87 CRESCENT HOLLOW","08080","Sewell",null,null,null,null,null,null,null,"NL",null,"C",null,"C"]
[null,89," CRESCENT"," HOLLOW","89 CRESCENT HOLLOW","08080","Sewell",null,null,null,null,null,null,null,"NL",null,"C",null,"C"]
[null,9," CRESCENT"," HOLLOW","9 CRESCENT HOLLOW","08080","Sewell",null,null,null,null,null,null,null,"NL",null,"C",null,"C"]
[null,91," CRESCENT"," HOLLOW","91 CRESCENT HOLLOW","08080","Sewell",null,null,null,null,null,null,null,"NL",null,"C",null,"C"]
[null,93," CRESCENT"," HOLLOW","93 CRESCENT HOLLOW","08080","Sewell",null,null,null,null,null,null,null,"NL",null,"C",null,"C"]
[null,95," CRESCENT"," HOLLOW","95 CRESCENT HOLLOW","08080","Sewell",null,null,null,null,null,null,null,"NL",null,"C",null,"C"]
[null,97," CRESCENT"," HOLLOW","97 CRESCENT HOLLOW","08080","Sewell",null,null,null,null,null,null,null,"NL",null,"C",null,"C"]
[null,99," CRESCENT"," HOLLOW","99 CRESCENT HOLLOW","08080","Sewell",null,null,null,null,null,null,null,"NL",null,"C",null,"C"]
[null,12," CRESCENT"," HOLLOW","12 CRESCENT HOLLOW","08080","Sewell",null,null,null,null,null,null,null,"NL",null,"C",null,"C"]
[null,14," CRESCENT"," HOLLOW","14 CRESCENT HOLLOW","08080","Sewell",null,null,null,null,null,null,null,"NL",null,"C",null,"C"]
[null,16," CRESCENT"," HOLLOW","16 CRESCENT HOLLOW","08080","Sewell",null,null,null,null,null,null,null,"NL",null,"C",null,"C"]
[null,18," CRESCENT"," HOLLOW","18 CRESCENT HOLLOW","08080","Sewell",null,null,null,null,null,null,null,"NL",null,"C",null,"C"]
[null,2," CRESCENT"," HOLLOW","2 CRESCENT HOLLOW","08080","Sewell",null,null,null,null,null,null,null,"NL",null,"C",null,"C"]
[null,20," CRESCENT"," HOLLOW","20 CRESCENT HOLLOW","08080","Sewell",null,null,null,null,null,null,null,"NL",null,"C",null,"C"]
[null,22," CRESCENT"," HOLLOW","22 CRESCENT HOLLOW","08080","Sewell",null,null,null,null,null,null,null,"NL",null,"C",null,"C"]
[null,24," CRESCENT"," HOLLOW","24 CRESCENT HOLLOW","08080","Sewell",null,null,null,null,null,null,null,"NL",null,"C",null,"C"]
[null,28," CRESCENT"," HOLLOW","28 CRESCENT HOLLOW","08080","Sewell",null,null,null,null,null,null,null,"NL",null,"C",null,"C"]
[null,30," CRESCENT"," HOLLOW","30 CRESCENT HOLLOW","08080","Sewell",null,null,null,null,null,null,null,"NL",null,"C",null,"C"]
[null,34," CRESCENT"," HOLLOW","34 CRESCENT HOLLOW","08080","Sewell",null,null,null,null,null,null,null,"NL",null,"C",null,"C"]
[null,36," CRESCENT"," HOLLOW","36 CRESCENT HOLLOW","08080","Sewell",null,null,null,null,null,null,null,"NL",null,"C",null,"C"]
[null,38," CRESCENT"," HOLLOW","38 CRESCENT HOLLOW","08080","Sewell",null,null,null,null,null,null,null,"NL",null,"C",null,"C"]
[null,4," CRESCENT"," HOLLOW","4 CRESCENT HOLLOW","08080","Sewell",null,null,null,null,null,null,null,"NL",null,"C",null,"C"]
[null,40," CRESCENT"," HOLLOW","40 CRESCENT HOLLOW","08080","Sewell",null,null,null,null,null,null,null,"NL",null,"C",null,"C"]
[null,42," CRESCENT"," HOLLOW","42 CRESCENT HOLLOW","08080","Sewell",null,null,null,null,null,null,null,"NL",null,"C",null,"C"]
[null,44," CRESCENT"," HOLLOW","44 CRESCENT HOLLOW","08080","Sewell",null,null,null,null,null,null,null,"NL",null,"C",null,"C"]
[null,46," CRESCENT"," HOLLOW","46 CRESCENT HOLLOW","08080","Sewell",null,null,null,null,null,null,null,"NL",null,"C",null,"C"]
[null,48," CRESCENT"," HOLLOW","48 CRESCENT HOLLOW","08080","Sewell",null,null,null,null,null,null,null,"NL",null,"C",null,"C"]
[null,50," CRESCENT"," HOLLOW","50 CRESCENT HOLLOW","08080","Sewell",null,null,null,null,null,null,null,"NL",null,"C",null,"C"]
[null,52," CRESCENT"," HOLLOW","52 CRESCENT HOLLOW","08080","Sewell",null,null,null,null,null,null,null,"NL",null,"C",null,"C"]
[null,54," CRESCENT"," HOLLOW",{"$f":"_xlfn.CONCAT(B1282, C1282, D1282)","v":"54 CRESCENT HOLLOW"},"08080","Sewell",null,null,null,null,null,null,null,"NL",null,"C",null,"C"]
[null,56," CRESCENT"," HOLLOW","56 CRESCENT HOLLOW","08080","Sewell",null,null,null,null,null,null,null,"NL",null,"C",null,"C"]
[null,6," CRESCENT"," HOLLOW","6 CRESCENT HOLLOW","08080","Sewell",null,null,null,null,null,null,null,"NL",null,"C",null,"C"]
[null,80," CRESCENT"," HOLLOW","80 CRESCENT HOLLOW","08080","Sewell",null,null,null,null,null,null,null,"NL",null,"C",null,"C"]
[null,82," CRESCENT"," HOLLOW","82 CRESCENT HOLLOW","08080","Sewell",null,null,null,null,null,null,null,"NL",null,"C",null,"C"]
[null,84," CRESCENT"," HOLLOW","84 CRESCENT HOLLOW","08080","Sewell",null,null,null,null,null,null,null,"NL",null,"C",null,"C"]
[null,90," CRESCENT"," HOLLOW","90 CRESCENT HOLLOW","08080","Sewell",null,null,null,null,null,null,null,"NL",null,"C",null,"C"]
[null,94," CRESCENT"," HOLLOW","94 CRESCENT HOLLOW","08080","Sewell",null,null,null,null,null,null,null,"NL",null,"C",null,"C"]
[null,100," CRESCENT"," HOLLOW","100 CRESCENT HOLLOW","08080","Sewell",null,null,null,null,null,null,null,"NL",null,"C",null,"C"]
[null,102," CRESCENT"," HOLLOW","102 CRESCENT HOLLOW","08080","Sewell",null,null,null,null,null,null,null,"NL",null,"C",null,"C"]
[null,104," CRESCENT"," HOLLOW","104 CRESCENT HOLLOW","08080","Sewell",null,null,null,null,null,null,null,"NL",null,"C",null,"C"]
[null,106," CRESCENT"," HOLLOW","106 CRESCENT HOLLOW","08080","Sewell",null,null,null,null,null,null,null,"NL",null,"C",null,"C"]
[null,108," CRESCENT"," HOLLOW","108 CRESCENT HOLLOW","08080","Sewell",null,null,null,null,null,null,null,"NL",null,"C",null,"C"]
[null,110," CRESCENT"," HOLLOW","110 CRESCENT HOLLOW","08080","Sewell",null,null,null,null,null,null,null,"NL",null,"C",null,"C"]
[null,112," CRESCENT"," HOLLOW","112 CRESCENT HOLLOW","08080","Sewell",null,null,null,null,null,null,null,"NL",null,"C",null,"C"]
[null,114," CRESCENT"," HOLLOW","114 CRESCENT HOLLOW","08080","Sewell",null,null,null,null,null,null,null,"NL",null,"C",null,"C"]
[null,116," CRESCENT"," HOLLOW","116 CRESCENT HOLLOW","08080","Sewell",null,null,null,null,null,null,null,"NL",null,"C",null,"C"]
[null,118," CRESCENT"," HOLLOW","118 CRESCENT HOLLOW","08080","Sewell",null,null,null,null,null,null,null,"NL",null,"C",null,"C"]
[null,120," CRESCENT"," HOLLOW","120 CRESCENT HOLLOW","08080","Sewell",null,null,null,null,null,null,null,"NL",null,"C",null,"C"]
[null,122," CRESCENT"," HOLLOW","122 CRESCENT HOLLOW","08080","Sewell",null,null,null,null,null,null,null,"NL",null,"C",null,"C"]
[null,124," CRESCENT"," HOLLOW","124 CRESCENT HOLLOW","08080","Sewell",null,null,null,null,null,null,null,"NL",null,"C",null,"C"]
[null,126," CRESCENT"," HOLLOW","126 CRESCENT HOLLOW","08080","Sewell",null,null,null,null,null,null,null,"NL",null,"C",null,"C"]
[null,128," CRESCENT"," HOLLOW","128 CRESCENT HOLLOW","08080","Sewell",null,null,null,null,null,null,null,"NL",null,"C",null,"C"]
[null,130," CRESCENT"," HOLLOW","130 CRESCENT HOLLOW","08080","Sewell",null,null,null,null,null,null,null,"NL",null,"C",null,"C"]
[null,134," CRESCENT"," HOLLOW","134 CRESCENT HOLLOW","08080","Sewell",null,null,null,null,null,null,null,"NL",null,"C",null,"C"]
[null,138," CRESCENT"," HOLLOW","138 CRESCENT HOLLOW","08080","Sewell",null,null,null,null,null,null,null,"NL",null,"C",null,"C"]
[null,140," CRESCENT"," HOLLOW","140 CRESCENT HOLLOW","08080","Sewell",null,null,null,null,null,null,null,"NL",null,"C",null,"C"]
[null,142," CRESCENT"," HOLLOW","142 CRESCENT HOLLOW","08080","Sewell",null,null,null,null,null,null,null,"NL",null,"C",null,"C"]
[null,101," CRESCENT"," HOLLOW","101 CRESCENT HOLLOW","08080","Sewell",null,null,null,null,null,null,null,"NL",null,"C",null,"C"]
[null,103," CRESCENT"," HOLLOW","103 CRESCENT HOLLOW","08080","Sewell",null,null,null,null,null,null,null,"NL",null,"C",null,"C"]
[null,105," CRESCENT"," HOLLOW","105 CRESCENT HOLLOW","08080","Sewell",null,null,null,null,null,null,null,"NL",null,"C",null,"C"]
[null,107," CRESCENT"," HOLLOW","107 CRESCENT HOLLOW","08080","Sewell",null,null,null,null,null,null,null,"NL",null,"C",null,"C"]
[null,109," CRESCENT"," HOLLOW","109 CRESCENT HOLLOW","08080","Sewell",null,null,null,null,null,null,null,"NL",null,"C",null,"C"]
[null,111," CRESCENT"," HOLLOW","111 CRESCENT HOLLOW","08080","Sewell",null,null,null,null,null,null,null,"NL",null,"C",null,"C"]
[null,113," CRESCENT"," HOLLOW","113 CRESCENT HOLLOW","08080","Sewell",null,null,null,null,null,null,null,"NL",null,"C",null,"C"]
[null,115," CRESCENT"," HOLLOW","115 CRESCENT HOLLOW","08080","Sewell",null,null,null,null,null,null,null,"NL",null,"C",null,"C"]
[null,117," CRESCENT"," HOLLOW","117 CRESCENT HOLLOW","08080","Sewell",null,null,null,null,null,null,null,"NL",null,"C",null,"C"]
[null,119," CRESCENT"," HOLLOW","119 CRESCENT HOLLOW","08080","Sewell",null,null,null,null,null,null,null,"NL",null,"C",null,"C"]
[null,121," CRESCENT"," HOLLOW","121 CRESCENT HOLLOW","08080","Sewell",null,null,null,null,null,null,null,"NL",null,"C",null,"C"]
[null,123," CRESCENT"," HOLLOW","123 CRESCENT HOLLOW","08080","Sewell",null,null,null,null,null,null,null,"NL",null,"C",null,"C"]
[null,125," CRESCENT"," HOLLOW","125 CRESCENT HOLLOW","08080","Sewell",null,null,null,null,null,null,null,"NL",null,"C",null,"C"]
[null,127," CRESCENT"," HOLLOW","127 CRESCENT HOLLOW","08080","Sewell",null,null,null,null,null,null,null,"NL",null,"C",null,"C"]
[null,129," CRESCENT"," HOLLOW","129 CRESCENT HOLLOW","08080","Sewell",null,null,null,null,null,null,null,"NL",null,"C",null,"C"]
[null,131," CRESCENT"," HOLLOW","131 CRESCENT HOLLOW","08080","Sewell",null,null,null,null,null,null,null,"NL",null,"C",null,"C"]
[null,133," CRESCENT"," HOLLOW","133 CRESCENT HOLLOW","08080","Sewell",null,null,null,null,null,null,null,"NL",null,"C",null,"C"]
[null,135," CRESCENT"," HOLLOW","135 CRESCENT HOLLOW","08080","Sewell",null,null,null,null,null,null,null,"NL",null,"C",null,"C"]
[null,137," CRESCENT"," HOLLOW","137 CRESCENT HOLLOW","08080","Sewell",null,null,null,null,null,null,null,"NL",null,"C",null,"C"]
[null,139," CRESCENT"," HOLLOW","139 CRESCENT HOLLOW","08080","Sewell",null,null,null,null,null,null,null,"NL",null,"C",null,"C"]
[null,141," CRESCENT"," HOLLOW","141 CRESCENT HOLLOW","08080","Sewell",null,null,null,null,null,null,null,"NL",null,"C",null,"C"]
[null,143," CRESCENT"," HOLLOW","143 CRESCENT HOLLOW","08080","Sewell",null,null,null,null,null,null,null,"NL",null,"C",null,"C"]
[null,1000," CRESTMONT"," IRRIGATION","1000 CRESTMONT IRRIGATION","08051","Mantua",null,null,null,null,null,null,null,"NL",null,"C",null,"NA"]
[null,1001," CRESTMONT"," DR","1001 CRESTMONT DR","08051","Mantua",null,null,null,null,null,null,null,"NL",null,"C",null,"P"]
[null,1002," CRESTMONT"," DR","1002 CRESTMONT DR","08051","Mantua",null,null,null,null,null,null,null,"NL",null,"C",null,"P"]
[null,1005," CRESTMONT"," DR","1005 CRESTMONT DR","08051","Mantua",null,null,null,null,null,null,null,"NL",null,"C",null,"P"]
[null,1006," CRESTMONT"," DR","1006 CRESTMONT DR","08051","Mantua",null,null,null,null,null,null,null,"NL",null,"C",null,"P"]
[null,1007," CRESTMONT"," DR","1007 CRESTMONT DR","08051","Mantua",null,null,null,null,null,null,null,"NL",null,"C",null,"P"]
[null,1009," CRESTMONT"," DR","1009 CRESTMONT DR","08051","Mantua",null,null,null,null,null,null,null,"NL",null,"C",null,"P"]
[null,1010," CRESTMONT"," DR","1010 CRESTMONT DR","08051","Mantua",null,null,null,null,null,null,null,"NL",null,"C",null,"P"]
[null,1011," CRESTMONT"," DR","1011 CRESTMONT DR","08051","Mantua",null,null,null,null,null,null,null,"NL",null,"C",null,"P"]
[null,11," CRESTMONT"," DR","11 CRESTMONT DR","08051","Mantua",null,null,null,null,null,null,null,"NL",null,"C",null,"P"]
[null,1105," CRESTMONT"," DR","1105 CRESTMONT DR","08051","Mantua",null,null,null,null,null,null,null,"NL",null,"C",null,"P"]
[null,1109," CRESTMONT"," DR","1109 CRESTMONT DR","08051","Mantua",null,null,null,null,null,null,null,"NL",null,"C",null,"P"]
[null,1110," CRESTMONT"," DR","1110 CRESTMONT DR","08051","Mantua",null,null,null,null,null,null,null,"NL",null,"C",null,"P"]
[null,1111," CRESTMONT"," DR","1111 CRESTMONT DR","08051","Mantua",null,null,null,null,null,null,null,"NL",null,"C",null,"P"]
[null,1113," CRESTMONT"," DR",{"$f":"_xlfn.CONCAT(B1346, C1346, D1346)","v":"1113 CRESTMONT DR"},"08051","Mantua",null,null,null,null,null,null,null,"NL",null,"C",null,"P"]
[null,1201," CRESTMONT"," DR","1201 CRESTMONT DR","08051","Mantua",null,null,null,null,null,null,null,"NL",null,"C",null,"P"]
[null,1207," CRESTMONT"," DR","1207 CRESTMONT DR","08051","Mantua",null,null,null,null,null,null,null,"NL",null,"C",null,"P"]
[null,1210," CRESTMONT"," DR","1210 CRESTMONT DR","08051","Mantua",null,null,null,null,null,null,null,"NL",null,"C",null,"P"]
[null,1211," CRESTMONT"," DR","1211 CRESTMONT DR","08051","Mantua",null,null,null,null,null,null,null,"NL",null,"C",null,"P"]
[null,1214," CRESTMONT"," DR","1214 CRESTMONT DR","08051","Mantua",null,null,null,null,null,null,null,"NL",null,"C",null,"P"]
[null,1215," CRESTMONT"," DR","1215 CRESTMONT DR","08051","Mantua",null,null,null,null,null,null,null,"NL",null,"C",null,"P"]
[null,14," CRESTMONT"," DR","14 CRESTMONT DR","08051","Mantua",null,null,null,null,null,null,null,"NL",null,"C",null,"P"]
[null,141," CRESTMONT"," DR","141 CRESTMONT DR","08051","Mantua",null,null,null,null,null,null,null,"NL",null,"C",null,"P"]
[null,142," CRESTMONT"," DR","142 CRESTMONT DR","08051","Mantua",null,null,null,null,null,null,null,"NL",null,"C",null,"P"]
[null,144," CRESTMONT"," DR","144 CRESTMONT DR","08051","Mantua",null,null,null,null,null,null,null,"NL",null,"C",null,"P"]
[null,145," CRESTMONT"," DR","145 CRESTMONT DR","08051","Mantua",null,null,null,null,null,null,null,"NL",null,"C",null,"P"]
[null,146," CRESTMONT"," DR","146 CRESTMONT DR","08051","Mantua",null,null,null,null,null,null,null,"NL",null,"C",null,"P"]
[null,148," CRESTMONT"," DR","148 CRESTMONT DR","08051","Mantua",null,null,null,null,null,null,null,"NL",null,"C",null,"P"]
[null,15," CRESTMONT"," DR","15 CRESTMONT DR","08051","Mantua",null,null,null,null,null,null,null,"NL",null,"C",null,"P"]
[null,151," CRESTMONT"," DR","151 CRESTMONT DR","08051","Mantua",null,null,null,null,null,null,null,"NL",null,"C",null,"P"]
[null,157," CRESTMONT"," DR","157 CRESTMONT DR","08051","Mantua",null,null,null,null,null,null,null,"NL",null,"C",null,"P"]
[null,158," CRESTMONT"," DR","158 CRESTMONT DR","08051","Mantua",null,null,null,null,null,null,null,"NL",null,"C",null,"P"]
[null,16," CRESTMONT"," DR","16 CRESTMONT DR","08051","Mantua",null,null,null,null,null,null,null,"NL",null,"C",null,"P"]
[null,163," CRESTMONT"," DR","163 CRESTMONT DR","08051","Mantua",null,null,null,null,null,null,null,"NL",null,"C",null,"P"]
[null,17," CRESTMONT"," DR","17 CRESTMONT DR","08051","Mantua",null,null,null,null,null,null,null,"NL",null,"C",null,"P"]
[null,"21-33"," CRESTMONT"," IRRIGATION","21-33 CRESTMONT IRRIGATION","08051","Mantua",null,null,null,null,null,null,null,"NL",null,"C",null,"P"]
[null,22," CRESTMONT"," DR","22 CRESTMONT DR","08051","Mantua",null,null,null,null,null,null,null,"NL",null,"C",null,"P"]
[null,25," CRESTMONT"," DR","25 CRESTMONT DR","08051","Mantua",null,null,null,null,null,null,null,"NL",null,"C",null,"P"]
[null,26," CRESTMONT"," DR","26 CRESTMONT DR","08051","Mantua",null,null,null,null,null,null,null,"NL",null,"C",null,"P"]
[null,34," CRESTMONT"," DR","34 CRESTMONT DR","08051","Mantua",null,null,null,null,null,null,null,"NL",null,"C",null,"P"]
[null,35," CRESTMONT"," DR","35 CRESTMONT DR","08051","Mantua",null,null,null,null,null,null,null,"NL",null,"C",null,"P"]
[null,41," CRESTMONT"," DR","41 CRESTMONT DR","08051","Mantua",null,null,null,null,null,null,null,"NL",null,"C",null,"P"]
[null,43," CRESTMONT"," DR","43 CRESTMONT DR","08051","Mantua",null,null,null,null,null,null,null,"NL",null,"C",null,"P"]
[null,45," CRESTMONT"," DR","45 CRESTMONT DR","08051","Mantua",null,null,null,null,null,null,null,"NL",null,"C",null,"P"]
[null,46," CRESTMONT"," DR","46 CRESTMONT DR","08051","Mantua",null,null,null,null,null,null,null,"NL",null,"C",null,"P"]
[null,47," CRESTMONT"," DR","47 CRESTMONT DR","08051","Mantua",null,null,null,null,null,null,null,"NL",null,"C",null,"P"]
[null,48," CRESTMONT"," DR","48 CRESTMONT DR","08051","Mantua",null,null,null,null,null,null,null,"NL",null,"C",null,"P"]
[null,52," CRESTMONT"," DR","52 CRESTMONT DR","08051","Mantua",null,null,null,null,null,null,null,"NL",null,"C",null,"P"]
[null,53," CRESTMONT"," DR","53 CRESTMONT DR","08051","Mantua",null,null,null,null,null,null,null,"NL",null,"C",null,"P"]
[null,54," CRESTMONT"," DR","54 CRESTMONT DR","08051","Mantua",null,null,null,null,null,null,null,"NL",null,"C",null,"P"]
[null,55," CRESTMONT"," DR","55 CRESTMONT DR","08051","Mantua",null,null,null,null,null,null,null,"NL",null,"C",null,"P"]
[null,56," CRESTMONT"," DR","56 CRESTMONT DR","08051","Mantua",null,null,null,null,null,null,null,"NL",null,"C",null,"P"]
[null,57," CRESTMONT"," DR","57 CRESTMONT DR","08051","Mantua",null,null,null,null,null,null,null,"NL",null,"C",null,"P"]
[null,58," CRESTMONT"," DR","58 CRESTMONT DR","08051","Mantua",null,null,null,null,null,null,null,"NL",null,"C",null,"P"]
[null,61," CRESTMONT"," DR","61 CRESTMONT DR","08051","Mantua",null,null,null,null,null,null,null,"NL",null,"C",null,"P"]
[null,62," CRESTMONT"," DR","62 CRESTMONT DR","08051","Mantua",null,null,null,null,null,null,null,"NL",null,"C",null,"P"]
[null,63," CRESTMONT"," DR","63 CRESTMONT DR","08051","Mantua",null,null,null,null,null,null,null,"NL",null,"C",null,"P"]
[null,64," CRESTMONT"," DR","64 CRESTMONT DR","08051","Mantua",null,null,null,null,null,null,null,"NL",null,"C",null,"P"]
[null,65," CRESTMONT"," DR","65 CRESTMONT DR","08051","Mantua",null,null,null,null,null,null,null,"NL",null,"C",null,"P"]
[null,66," CRESTMONT"," DR","66 CRESTMONT DR","08051","Mantua",null,null,null,null,null,null,null,"NL",null,"C",null,"P"]
[null,67," CRESTMONT"," DR","67 CRESTMONT DR","08051","Mantua",null,null,null,null,null,null,null,"NL",null,"C",null,"P"]
[null,71," CRESTMONT"," DR","71 CRESTMONT DR","08051","Mantua",null,null,null,null,null,null,null,"NL",null,"C",null,"P"]
[null,72," CRESTMONT"," DR","72 CRESTMONT DR","08051","Mantua",null,null,null,null,null,null,null,"NL",null,"C",null,"P"]
[null,73," CRESTMONT"," DR","73 CRESTMONT DR","08051","Mantua",null,null,null,null,null,null,null,"NL",null,"C",null,"P"]
[null,74," CRESTMONT"," DR","74 CRESTMONT DR","08051","Mantua",null,null,null,null,null,null,null,"NL",null,"C",null,"P"]
[null,76," CRESTMONT"," DR","76 CRESTMONT DR","08051","Mantua",null,null,null,null,null,null,null,"NL",null,"C",null,"P"]
[null,81," CRESTMONT"," DR","81 CRESTMONT DR","08051","Mantua",null,null,null,null,null,null,null,"NL",null,"C",null,"P"]
[null,83," CRESTMONT"," DR","83 CRESTMONT DR","08051","Mantua",null,null,null,null,null,null,null,"NL",null,"C",null,"P"]
[null,85," CRESTMONT"," DR","85 CRESTMONT DR","08051","Mantua",null,null,null,null,null,null,null,"NL",null,"C",null,"P"]
[null,86," CRESTMONT"," DR","86 CRESTMONT DR","08051","Mantua",null,null,null,null,null,null,null,"NL",null,"C",null,"P"]
[null,87," CRESTMONT"," DR","87 CRESTMONT DR","08051","Mantua",null,null,null,null,null,null,null,"NL",null,"C",null,"P"]
[null,92," CRESTMONT"," DR","92 CRESTMONT DR","08051","Mantua",null,null,null,null,null,null,null,"NL",null,"C",null,"P"]
[null,93," CRESTMONT"," DR","93 CRESTMONT DR","08051","Mantua",null,null,null,null,null,null,null,"NL",null,"C",null,"P"]
[null,94," CRESTMONT"," DR","94 CRESTMONT DR","08051","Mantua",null,null,null,null,null,null,null,"NL",null,"C",null,"P"]
[null,95," CRESTMONT"," DR","95 CRESTMONT DR","08051","Mantua",null,null,null,null,null,null,null,"NL",null,"C",null,"P"]
[null,97," CRESTMONT"," DR","97 CRESTMONT DR","08051","Mantua",null,null,null,null,null,null,null,"NL",null,"C",null,"P"]
[null,153," CRESTMONT"," DR","153 CRESTMONT DR","08051","Mantua",null,null,null,null,null,null,null,"NL",null,"C",null,"P"]
[null,12," CRESTMONT"," DR","12 CRESTMONT DR","08051","Mantua",null,null,null,null,null,null,null,"NL",null,"C",null,"P"]
[null,13," CRESTMONT"," DR",{"$f":"_xlfn.CONCAT(B1410, C1410, D1410)","v":"13 CRESTMONT DR"},"08051","Mantua",null,null,null,null,null,null,null,"NL",null,"C",null,"P"]
[null,18," CRESTMONT"," DR","18 CRESTMONT DR","08051","Mantua",null,null,null,null,null,null,null,"NL",null,"C",null,"P"]
[null,21," CRESTMONT"," DR","21 CRESTMONT DR","08051","Mantua",null,null,null,null,null,null,null,"NL",null,"C",null,"P"]
[null,23," CRESTMONT"," DR","23 CRESTMONT DR","08051","Mantua",null,null,null,null,null,null,null,"NL",null,"C",null,"P"]
[null,24," CRESTMONT"," DR","24 CRESTMONT DR","08051","Mantua",null,null,null,null,null,null,null,"NL",null,"C",null,"P"]
[null,27," CRESTMONT"," DR","27 CRESTMONT DR","08051","Mantua",null,null,null,null,null,null,null,"NL",null,"C",null,"P"]
[null,28," CRESTMONT"," DR","28 CRESTMONT DR","08051","Mantua",null,null,null,null,null,null,null,"NL",null,"C",null,"P"]
[null,31," CRESTMONT"," DR","31 CRESTMONT DR","08051","Mantua",null,null,null,null,null,null,null,"NL",null,"C",null,"P"]
[null,32," CRESTMONT"," DR","32 CRESTMONT DR","08051","Mantua",null,null,null,null,null,null,null,"NL",null,"C",null,"P"]
[null,33," CRESTMONT"," DR","33 CRESTMONT DR","08051","Mantua",null,null,null,null,null,null,null,"NL",null,"C",null,"P"]
[null,36," CRESTMONT"," DR","36 CRESTMONT DR","08051","Mantua",null,null,null,null,null,null,null,"NL",null,"C",null,"P"]
[null,37," CRESTMONT"," DR","37 CRESTMONT DR","08051","Mantua",null,null,null,null,null,null,null,"NL",null,"C",null,"P"]
[null,38," CRESTMONT"," DR","38 CRESTMONT DR","08051","Mantua",null,null,null,null,null,null,null,"NL",null,"C",null,"P"]
[null,42," CRESTMONT"," DR","42 CRESTMONT DR","08051","Mantua",null,null,null,null,null,null,null,"NL",null,"C",null,"P"]
[null,44," CRESTMONT"," DR","44 CRESTMONT DR","08051","Mantua",null,null,null,null,null,null,null,"NL",null,"C",null,"P"]
[null,51," CRESTMONT"," DR","51 CRESTMONT DR","08051","Mantua",null,null,null,null,null,null,null,"NL",null,"C",null,"P"]
[null,68," CRESTMONT"," DR","68 CRESTMONT DR","08051","Mantua",null,null,null,null,null,null,null,"NL",null,"C",null,"P"]
[null,75," CRESTMONT"," DR","75 CRESTMONT DR","08051","Mantua",null,null,null,null,null,null,null,"NL",null,"C",null,"P"]
[null,77," CRESTMONT"," DR","77 CRESTMONT DR","08051","Mantua",null,null,null,null,null,null,null,"NL",null,"C",null,"P"]
[null,78," CRESTMONT"," DR","78 CRESTMONT DR","08051","Mantua",null,null,null,null,null,null,null,"NL",null,"C",null,"P"]
[null,82," CRESTMONT"," DR","82 CRESTMONT DR","08051","Mantua",null,null,null,null,null,null,null,"NL",null,"C",null,"P"]
[null,84," CRESTMONT"," DR","84 CRESTMONT DR","08051","Mantua",null,null,null,null,null,null,null,"NL",null,"C",null,"P"]
[null,88," CRESTMONT"," DR","88 CRESTMONT DR","08051","Mantua",null,null,null,null,null,null,null,"NL",null,"C",null,"P"]
[null,91," CRESTMONT"," DR","91 CRESTMONT DR","08051","Mantua",null,null,null,null,null,null,null,"NL",null,"C",null,"P"]
[null,96," CRESTMONT"," DR","96 CRESTMONT DR","08051","Mantua",null,null,null,null,null,null,null,"NL",null,"C",null,"P"]
[null,98," CRESTMONT"," DR","98 CRESTMONT DR","08051","Mantua",null,null,null,null,null,null,null,"NL",null,"C",null,"P"]
[null,1101," CRESTMONT"," DR","1101 CRESTMONT DR","08051","Mantua",null,null,null,null,null,null,null,"NL",null,"C",null,"P"]
[null,1102," CRESTMONT"," DR","1102 CRESTMONT DR","08051","Mantua",null,null,null,null,null,null,null,"NL",null,"C",null,"P"]
[null,1103," CRESTMONT"," DR","1103 CRESTMONT DR","08051","Mantua",null,null,null,null,null,null,null,"NL",null,"C",null,"P"]
[null,1106," CRESTMONT"," DR","1106 CRESTMONT DR","08051","Mantua",null,null,null,null,null,null,null,"NL",null,"C",null,"P"]
[null,1107," CRESTMONT"," DR","1107 CRESTMONT DR","08051","Mantua",null,null,null,null,null,null,null,"NL",null,"C",null,"P"]
[null,1114," CRESTMONT"," DR","1114 CRESTMONT DR","08051","Mantua",null,null,null,null,null,null,null,"NL",null,"C",null,"P"]
[null,1115," CRESTMONT"," DR","1115 CRESTMONT DR","08051","Mantua",null,null,null,null,null,null,null,"NL",null,"C",null,"P"]
[null,1202," CRESTMONT"," DR","1202 CRESTMONT DR","08051","Mantua",null,null,null,null,null,null,null,"NL",null,"C",null,"P"]
[null,1203," CRESTMONT"," DR","1203 CRESTMONT DR","08051","Mantua",null,null,null,null,null,null,null,"NL",null,"C",null,"P"]
[null,1205," CRESTMONT"," DR","1205 CRESTMONT DR","08051","Mantua",null,null,null,null,null,null,null,"NL",null,"C",null,"P"]
[null,1209," CRESTMONT"," DR","1209 CRESTMONT DR","08051","Mantua",null,null,null,null,null,null,null,"NL",null,"C",null,"P"]
[null,1213," CRESTMONT"," DR","1213 CRESTMONT DR","08051","Mantua",null,null,null,null,null,null,null,"NL",null,"C",null,"P"]
[null,143," CRESTMONT"," DR","143 CRESTMONT DR","08051","Mantua",null,null,null,null,null,null,null,"NL",null,"C",null,"P"]
[null,147," CRESTMONT"," DR","147 CRESTMONT DR","08051","Mantua",null,null,null,null,null,null,null,"NL",null,"C",null,"P"]
[null,152," CRESTMONT"," DR","152 CRESTMONT DR","08051","Mantua",null,null,null,null,null,null,null,"NL",null,"C",null,"P"]
[null,154," CRESTMONT"," DR","154 CRESTMONT DR","08051","Mantua",null,null,null,null,null,null,null,"NL",null,"C",null,"P"]
[null,155," CRESTMONT"," DR","155 CRESTMONT DR","08051","Mantua",null,null,null,null,null,null,null,"NL",null,"C",null,"P"]
[null,156," CRESTMONT"," DR","156 CRESTMONT DR","08051","Mantua",null,null,null,null,null,null,null,"NL",null,"C",null,"P"]
[null,161," CRESTMONT"," DR","161 CRESTMONT DR","08051","Mantua",null,null,null,null,null,null,null,"NL",null,"C",null,"P"]
[null,162," CRESTMONT"," DR","162 CRESTMONT DR","08051","Mantua",null,null,null,null,null,null,null,"NL",null,"C",null,"P"]
[null,164," CRESTMONT"," DR","164 CRESTMONT DR","08051","Mantua",null,null,null,null,null,null,null,"NL",null,"C",null,"P"]
[null,165," CRESTMONT"," DR","165 CRESTMONT DR","08051","Mantua",null,null,null,null,null,null,null,"NL",null,"C",null,"P"]
[null,166," CRESTMONT"," DR","166 CRESTMONT DR","08051","Mantua",null,null,null,null,null,null,null,"NL",null,"C",null,"P"]
[null,167," CRESTMONT"," DR","167 CRESTMONT DR","08051","Mantua",null,null,null,null,null,null,null,"NL",null,"C",null,"P"]
[null,168," CRESTMONT"," DR","168 CRESTMONT DR","08051","Mantua",null,null,null,null,null,null,null,"NL",null,"C",null,"P"]
[null,1206," CRESTMONT"," DR","1206 CRESTMONT DR","08051","Mantua",null,null,null,null,null,null,null,"NL",null,"C",null,"P"]
[null,43," CRIMSON"," CT","43 CRIMSON CT","08080","Sewell",null,null,null,null,null,null,null,"NL",null,"C",null,"C"]
[null,45," CRIMSON"," CT","45 CRIMSON CT","08080","Sewell",null,null,null,null,null,null,null,"NL",null,"C",null,"C"]
[null,47," CRIMSON"," CT","47 CRIMSON CT","08080","Sewell",null,null,null,null,null,null,null,"NL",null,"C",null,"C"]
[null,49," CRIMSON"," CT","49 CRIMSON CT","08080","Sewell",null,null,null,null,null,null,null,"NL",null,"C",null,"C"]
[null,51," CRIMSON"," CT","51 CRIMSON CT","08080","Sewell",null,null,null,null,null,null,null,"NL",null,"C",null,"C"]
[null,53," CRIMSON"," CT","53 CRIMSON CT","08080","Sewell",null,null,null,null,null,null,null,"NL",null,"C",null,"C"]
[null,55," CRIMSON"," CT","55 CRIMSON CT","08080","Sewell",null,null,null,null,null,null,null,"NL",null,"C",null,"C"]
[null,57," CRIMSON"," CT","57 CRIMSON CT","08080","Sewell",null,null,null,null,null,null,null,"NL",null,"C",null,"C"]
[null,44," CRIMSON"," CT","44 CRIMSON CT","08080","Sewell",null,null,null,null,null,null,null,"NL",null,"C",null,"C"]
[null,46," CRIMSON"," CT","46 CRIMSON CT","08080","Sewell",null,null,null,null,null,null,null,"NL",null,"C",null,"C"]
[null,48," CRIMSON"," CT","48 CRIMSON CT","08080","Sewell",null,null,null,null,null,null,null,"NL",null,"C",null,"C"]
[null,50," CRIMSON"," CT","50 CRIMSON CT","08080","Sewell",null,null,null,null,null,null,null,"NL",null,"C",null,"C"]
[null,52," CRIMSON"," CT",{"$f":"_xlfn.CONCAT(B1474, C1474, D1474)","v":"52 CRIMSON CT"},"08080","Sewell",null,null,null,null,null,null,null,"NL",null,"C",null,"C"]
[null,54," CRIMSON"," CT","54 CRIMSON CT","08080","Sewell",null,null,null,null,null,null,null,"NL",null,"C",null,"C"]
[null,56," CRIMSON"," CT","56 CRIMSON CT","08080","Sewell",null,null,null,null,null,null,null,"NL",null,"C",null,"C"]
[null,58," CRIMSON"," CT","58 CRIMSON CT","08080","Sewell",null,null,null,null,null,null,null,"NL",null,"C",null,"C"]
[null,29," CRIMSON"," CT","29 CRIMSON CT","08080","Sewell",null,null,null,null,null,null,null,"NL",null,"C",null,"C"]
[null,31," CRIMSON"," CT","31 CRIMSON CT","08080","Sewell",null,null,null,null,null,null,null,"NL",null,"C",null,"C"]
[null,33," CRIMSON"," CT","33 CRIMSON CT","08080","Sewell",null,null,null,null,null,null,null,"NL",null,"C",null,"C"]
[null,35," CRIMSON"," CT","35 CRIMSON CT","08080","Sewell",null,null,null,null,null,null,null,"NL",null,"C",null,"C"]
[null,37," CRIMSON"," CT","37 CRIMSON CT","08080","Sewell",null,null,null,null,null,null,null,"NL",null,"C",null,"C"]
[null,39," CRIMSON"," CT","39 CRIMSON CT","08080","Sewell",null,null,null,null,null,null,null,"NL",null,"C",null,"C"]
[null,30," CRIMSON"," CT","30 CRIMSON CT","08080","Sewell",null,null,null,null,null,null,null,"NL",null,"C",null,"C"]
[null,32," CRIMSON"," CT","32 CRIMSON CT","08080","Sewell",null,null,null,null,null,null,null,"NL",null,"C",null,"C"]
[null,34," CRIMSON"," CT","34 CRIMSON CT","08080","Sewell",null,null,null,null,null,null,null,"NL",null,"C",null,"C"]
[null,36," CRIMSON"," CT","36 CRIMSON CT","08080","Sewell",null,null,null,null,null,null,null,"NL",null,"C",null,"C"]
[null,38," CRIMSON"," CT","38 CRIMSON CT","08080","Sewell",null,null,null,null,null,null,null,"NL",null,"C",null,"C"]
[null,40," CRIMSON"," CT","40 CRIMSON CT","08080","Sewell",null,null,null,null,null,null,null,"NL",null,"C",null,"C"]
[null,42," CRIMSON"," CT","42 CRIMSON CT","08080","Sewell",null,null,null,null,null,null,null,"NL",null,"C",null,"C"]
[null,"FOREST"," CT"," IRRIGATION","FOREST CT IRRIGATION","08051","Mantua",null,null,null,null,null,null,null,"NL",null,"C",null,"NA"]
[null,129," CUMBERLAND"," AVE","129 CUMBERLAND AVE","08080","Sewell",null,null,null,null,null,null,null,"NL",null,"C",null,"C"]
[null,137," CUMBERLAND"," AVE","137 CUMBERLAND AVE","08080","Sewell",null,null,null,null,null,null,null,"NL",null,"C",null,"C"]
[null,150," CUMBERLAND"," AVE","150 CUMBERLAND AVE","08080","Sewell",null,null,null,null,null,null,null,"NL",null,"C",null,"C"]
[null,151," CUMBERLAND"," AVE","151 CUMBERLAND AVE","08080","Sewell",null,null,null,null,null,null,null,"NL",null,"C",null,"C"]
[null,161," CUMBERLAND"," AVE","161 CUMBERLAND AVE","08080","Sewell",null,null,null,null,null,null,null,"NL",null,"C",null,"C"]
[null,171," CUMBERLAND"," AVE","171 CUMBERLAND AVE","08080","Sewell",null,null,null,null,null,null,null,"NL",null,"C",null,"C"]
[null,211," CUMBERLAND"," AVE","211 CUMBERLAND AVE","08080","Sewell",null,null,null,null,null,null,null,"NL",null,"C",null,"C"]
[null,220," CUMBERLAND"," AVE","220 CUMBERLAND AVE","08080","Sewell",null,null,null,null,null,null,null,"NL",null,"C",null,"C"]
[null,221," CUMBERLAND"," AVE","221 CUMBERLAND AVE","08080","Sewell",null,null,null,null,null,null,null,"NL",null,"C",null,"C"]
[null,240," CUMBERLAND"," AVE","240 CUMBERLAND AVE","08080","Sewell",null,null,null,null,null,null,null,"NL",null,"C",null,"C"]
[null,254," CUMBERLAND"," AVE","254 CUMBERLAND AVE","08080","Sewell",null,null,null,null,null,null,null,"NL",null,"C",null,"C"]
[null,121," CUMBERLAND"," AVE","121 CUMBERLAND AVE","08080","Sewell",null,null,null,null,null,null,null,"NL",null,"C",null,"C"]
[null,120," CUMBERLAND"," AVE","120 CUMBERLAND AVE","08080","Sewell",null,null,null,null,null,null,null,"NL",null,"C",null,"C"]
[null,130," CUMBERLAND"," AVE","130 CUMBERLAND AVE","08080","Sewell",null,null,null,null,null,null,null,"NL",null,"C",null,"C"]
[null,140," CUMBERLAND"," AVE","140 CUMBERLAND AVE","08080","Sewell",null,null,null,null,null,null,null,"NL",null,"C",null,"C"]
[null,160," CUMBERLAND"," AVE","160 CUMBERLAND AVE","08080","Sewell",null,null,null,null,null,null,null,"NL",null,"C",null,"C"]
[null,190," CUMBERLAND"," AVE","190 CUMBERLAND AVE","08080","Sewell",null,null,null,null,null,null,null,"NL",null,"C",null,"C"]
[null,210," CUMBERLAND"," AVE","210 CUMBERLAND AVE","08080","Sewell",null,null,null,null,null,null,null,"NL",null,"C",null,"C"]
[null,231," CUMBERLAND"," AVE","231 CUMBERLAND AVE","08080","Sewell",null,null,null,null,null,null,null,"NL",null,"C",null,"C"]
[null,241," CUMBERLAND"," AVE","241 CUMBERLAND AVE","08080","Sewell",null,null,null,null,null,null,null,"NL",null,"C",null,"C"]
[null,251," CUMBERLAND"," AVE","251 CUMBERLAND AVE","08080","Sewell",null,null,null,null,null,null,null,"NL",null,"C",null,"C"]
[null,261," CUMBERLAND"," AVE","261 CUMBERLAND AVE","08080","Sewell",null,null,null,null,null,null,null,"NL",null,"C",null,"C"]
[null,230," CUMBERLAND"," AVE","230 CUMBERLAND AVE","08080","Sewell",null,null,null,null,null,null,null,"NL",null,"C",null,"C"]
[null,250," CUMBERLAND"," AVE","250 CUMBERLAND AVE","08080","Sewell",null,null,null,null,null,null,null,"NL",null,"C",null,"C"]
[null,1," DEERFIELD"," CIRCLE","1 DEERFIELD CIRCLE","08080","Sewell",null,null,null,null,null,null,null,"NL",null,"C",null,"C"]
[null,12," DEERFIELD"," CIRCLE","12 DEERFIELD CIRCLE","08080","Sewell",null,null,null,null,null,null,null,"NL",null,"C",null,"C"]
[null,19," DEERFIELD"," CIRCLE","19 DEERFIELD CIRCLE","08080","Sewell",null,null,null,null,null,null,null,"NL",null,"C",null,"C"]
[null,41," DEERFIELD"," CIRCLE","41 DEERFIELD CIRCLE","08080","Sewell",null,null,null,null,null,null,null,"NL",null,"C",null,"C"]
[null,44," DEERFIELD"," CIRCLE","44 DEERFIELD CIRCLE","08080","Sewell",null,null,null,null,null,null,null,"NL",null,"C",null,"C"]
[null,49," DEERFIELD"," CIRCLE","49 DEERFIELD CIRCLE","08080","Sewell",null,null,null,null,null,null,null,"NL",null,"C",null,"C"]
[null,5," DEERFIELD"," CIRCLE","5 DEERFIELD CIRCLE","08080","Sewell",null,null,null,null,null,null,null,"NL",null,"C",null,"C"]
[null,54," DEERFIELD"," CIRCLE","54 DEERFIELD CIRCLE","08080","Sewell",null,null,null,null,null,null,null,"NL",null,"C",null,"C"]
[null,57," DEERFIELD"," CIRCLE","57 DEERFIELD CIRCLE","08080","Sewell",null,null,null,null,null,null,null,"NL",null,"C",null,"C"]
[null,61," DEERFIELD"," CIRCLE","61 DEERFIELD CIRCLE","08080","Sewell",null,null,null,null,null,null,null,"NL",null,"C",null,"C"]
[null,62," DEERFIELD"," CIRCLE","62 DEERFIELD CIRCLE","08080","Sewell",null,null,null,null,null,null,null,"NL",null,"C",null,"C"]
[null,65," DEERFIELD"," CIRCLE","65 DEERFIELD CIRCLE","08080","Sewell",null,null,null,null,null,null,null,"NL",null,"C",null,"C"]
[null,67," DEERFIELD"," CIRCLE","67 DEERFIELD CIRCLE","08080","Sewell",null,null,null,null,null,null,null,"NL",null,"C",null,"C"]
[null,70," DEERFIELD"," CIRCLE","70 DEERFIELD CIRCLE","08080","Sewell",null,null,null,null,null,null,null,"NL",null,"C",null,"C"]
[null,73," DEERFIELD"," CIRCLE","73 DEERFIELD CIRCLE","08080","Sewell",null,null,null,null,null,null,null,"NL",null,"C",null,"C"]
[null,9," DEERFIELD"," CIRCLE","9 DEERFIELD CIRCLE","08080","Sewell",null,null,null,null,null,null,null,"NL",null,"C",null,"C"]
[null,3," DEERFIELD"," CIRCLE","3 DEERFIELD CIRCLE","08080","Sewell",null,null,null,null,null,null,null,"NL",null,"C",null,"C"]
[null,11," DEERFIELD"," CIRCLE","11 DEERFIELD CIRCLE","08080","Sewell",null,null,null,null,null,null,null,"NL",null,"C",null,"C"]
[null,15," DEERFIELD"," CIRCLE","15 DEERFIELD CIRCLE","08080","Sewell",null,null,null,null,null,null,null,"NL",null,"C",null,"C"]
[null,23," DEERFIELD"," CIRCLE","23 DEERFIELD CIRCLE","08080","Sewell",null,null,null,null,null,null,null,"NL",null,"C",null,"C"]
[null,27," DEERFIELD"," CIRCLE","27 DEERFIELD CIRCLE","08080","Sewell",null,null,null,null,null,null,null,"NL",null,"C",null,"C"]
[null,31," DEERFIELD"," CIRCLE","31 DEERFIELD CIRCLE","08080","Sewell",null,null,null,null,null,null,null,"NL",null,"C",null,"C"]
[null,33," DEERFIELD"," CIRCLE",{"$f":"_xlfn.CONCAT(B1538, C1538, D1538)","v":"33 DEERFIELD CIRCLE"},"08080","Sewell",null,null,null,null,null,null,null,"NL",null,"C",null,"C"]
[null,37," DEERFIELD"," CIRCLE","37 DEERFIELD CIRCLE","08080","Sewell",null,null,null,null,null,null,null,"NL",null,"C",null,"C"]
[null,43," DEERFIELD"," CIRCLE","43 DEERFIELD CIRCLE","08080","Sewell",null,null,null,null,null,null,null,"NL",null,"C",null,"C"]
[null,45," DEERFIELD"," CIRCLE","45 DEERFIELD CIRCLE","08080","Sewell",null,null,null,null,null,null,null,"NL",null,"C",null,"C"]
[null,53," DEERFIELD"," CIRCLE","53 DEERFIELD CIRCLE","08080","Sewell",null,null,null,null,null,null,null,"NL",null,"C",null,"C"]
[null,63," DEERFIELD"," CIRCLE","63 DEERFIELD CIRCLE","08080","Sewell",null,null,null,null,null,null,null,"NL",null,"C",null,"C"]
[null,71," DEERFIELD"," CIRCLE","71 DEERFIELD CIRCLE","08080","Sewell",null,null,null,null,null,null,null,"NL",null,"C",null,"C"]
[null,10," DEERFIELD"," CIRCLE","10 DEERFIELD CIRCLE","08080","Sewell",null,null,null,null,null,null,null,"NL",null,"C",null,"C"]
[null,18," DEERFIELD"," CIRCLE","18 DEERFIELD CIRCLE","08080","Sewell",null,null,null,null,null,null,null,"NL",null,"C",null,"C"]
[null,2," DEERFIELD"," CIRCLE","2 DEERFIELD CIRCLE","08080","Sewell",null,null,null,null,null,null,null,"NL",null,"C",null,"C"]
[null,22," DEERFIELD"," CIRCLE","22 DEERFIELD CIRCLE","08080","Sewell",null,null,null,null,null,null,null,"NL",null,"C",null,"C"]
[null,28," DEERFIELD"," CIRCLE","28 DEERFIELD CIRCLE","08080","Sewell",null,null,null,null,null,null,null,"NL",null,"C",null,"C"]
[null,38," DEERFIELD"," CIRCLE","38 DEERFIELD CIRCLE","08080","Sewell",null,null,null,null,null,null,null,"NL",null,"C",null,"C"]
[null,4," DEERFIELD"," CIRCLE","4 DEERFIELD CIRCLE","08080","Sewell",null,null,null,null,null,null,null,"NL",null,"C",null,"C"]
[null,42," DEERFIELD"," CIRCLE","42 DEERFIELD CIRCLE","08080","Sewell",null,null,null,null,null,null,null,"NL",null,"C",null,"C"]
[null,46," DEERFIELD"," CIRCLE","46 DEERFIELD CIRCLE","08080","Sewell",null,null,null,null,null,null,null,"NL",null,"C",null,"C"]
[null,50," DEERFIELD"," CIRCLE","50 DEERFIELD CIRCLE","08080","Sewell",null,null,null,null,null,null,null,"NL",null,"C",null,"C"]
[null,6," DEERFIELD"," CIRCLE","6 DEERFIELD CIRCLE","08080","Sewell",null,null,null,null,null,null,null,"NL",null,"C",null,"C"]
[null,66," DEERFIELD"," CIRCLE","66 DEERFIELD CIRCLE","08080","Sewell",null,null,null,null,null,null,null,"NL",null,"C",null,"C"]
[null,72," DEERFIELD"," CIRCLE","72 DEERFIELD CIRCLE","08080","Sewell",null,null,null,null,null,null,null,"NL",null,"C",null,"C"]
[null,8," DEERFIELD"," CIRCLE","8 DEERFIELD CIRCLE","08080","Sewell",null,null,null,null,null,null,null,"NL",null,"C",null,"C"]
[null,177," DENVER"," AVE","177 DENVER AVE","08051","Mantua",null,null,null,null,null,null,null,"NL",null,"C",null,"C"]
[null,179," DENVER"," AVE","179 DENVER AVE","08051","Mantua",null,null,null,null,null,null,null,"NL",null,"C",null,"G"]
[null,181," DENVER"," AVE","181 DENVER AVE","08051","Mantua",null,null,null,null,null,null,null,"NL",null,"C",null,"C"]
[null,183," DENVER"," AVE","183 DENVER AVE","08051","Mantua",null,null,null,null,null,null,null,"NL",null,"C",null,"C"]
[null,185," DENVER"," AVE","185 DENVER AVE","08051","Mantua",null,null,null,null,null,null,null,"NL",null,"C",null,"C"]
[null,187," DENVER"," AVE","187 DENVER AVE","08051","Mantua",null,null,null,null,null,null,null,"NL",null,"C",null,"C"]
[null,189," DENVER"," AVE","189 DENVER AVE","08051","Mantua",null,null,null,null,null,null,null,"NL",null,"C",null,"C"]
[null,191," DENVER"," AVE","191 DENVER AVE","08051","Mantua",null,null,null,null,null,null,null,"NL",null,"C",null,"C"]
[null,182," DENVER"," AVE","182 DENVER AVE","08051","Mantua",null,null,null,null,null,null,null,"NL",null,"C",null,"C"]
[null,184," DENVER"," AVE","184 DENVER AVE","08051","Mantua",null,null,null,null,null,null,null,"NL",null,"C",null,"C"]
[null,186," DENVER"," AVE","186 DENVER AVE","08051","Mantua",null,null,null,null,null,null,null,"NL",null,"C",null,"C"]
[null,188," DENVER"," AVE","188 DENVER AVE","08051","Mantua",null,null,null,null,null,null,null,"NL",null,"C",null,"C"]
[null,190," DENVER"," AVE","190 DENVER AVE","08051","Mantua",null,null,null,null,null,null,null,"NL",null,"C",null,"C"]
[null,192," DENVER"," AVE","192 DENVER AVE","08051","Mantua",null,null,null,null,null,null,null,"NL",null,"C",null,"C"]
[null,601," DEVONSHIRE"," DR","601 DEVONSHIRE DR","08080","Sewell",null,null,null,null,null,null,null,"NL",null,"C",null,"C"]
[null,603," DEVONSHIRE"," DR","603 DEVONSHIRE DR","08080","Sewell",null,null,null,null,null,null,null,"NL",null,"C",null,"C"]
[null,605," DEVONSHIRE"," DR","605 DEVONSHIRE DR","08080","Sewell",null,null,null,null,null,null,null,"NL",null,"C",null,"C"]
[null,607," DEVONSHIRE"," DR","607 DEVONSHIRE DR","08080","Sewell",null,null,null,null,null,null,null,"NL",null,"C",null,"C"]
[null,609," DEVONSHIRE"," DR","609 DEVONSHIRE DR","08080","Sewell",null,null,null,null,null,null,null,"NL",null,"C",null,"C"]
[null,611," DEVONSHIRE"," DR","611 DEVONSHIRE DR","08080","Sewell",null,null,null,null,null,null,null,"NL",null,"C",null,"C"]
[null,613," DEVONSHIRE"," DR","613 DEVONSHIRE DR","08080","Sewell",null,null,null,null,null,null,null,"NL",null,"C",null,"C"]
[null,615," DEVONSHIRE"," DR","615 DEVONSHIRE DR","08080","Sewell",null,null,null,null,null,null,null,"NL",null,"C",null,"C"]
[null,600," DEVONSHIRE"," DR","600 DEVONSHIRE DR","08080","Sewell",null,null,null,null,null,null,null,"NL",null,"C",null,"C"]
[null,602," DEVONSHIRE"," DR","602 DEVONSHIRE DR","08080","Sewell",null,null,null,null,null,null,null,"NL",null,"C",null,"C"]
[null,604," DEVONSHIRE"," DR","604 DEVONSHIRE DR","08080","Sewell",null,null,null,null,null,null,null,"NL",null,"C",null,"C"]
[null,606," DEVONSHIRE"," DR","606 DEVONSHIRE DR","08080","Sewell",null,null,null,null,null,null,null,"NL",null,"C",null,"C"]
[null,608," DEVONSHIRE"," DR","608 DEVONSHIRE DR","08080","Sewell",null,null,null,null,null,null,null,"NL",null,"C",null,"C"]
[null,610," DEVONSHIRE"," DR","610 DEVONSHIRE DR","08080","Sewell",null,null,null,null,null,null,null,"NL",null,"C",null,"C"]
[null,612," DEVONSHIRE"," DR","612 DEVONSHIRE DR","08080","Sewell",null,null,null,null,null,null,null,"NL",null,"C",null,"C"]
[null,614," DEVONSHIRE"," DR","614 DEVONSHIRE DR","08080","Sewell",null,null,null,null,null,null,null,"NL",null,"C",null,"C"]
[null,512," DEVONSHIRE"," DR","512 DEVONSHIRE DR","08080","Sewell",null,null,null,null,null,null,null,"NL",null,"C",null,"C"]
[null,500," DEVONSHIRE"," DR","500 DEVONSHIRE DR","08080","Sewell",null,null,null,null,null,null,null,"NL",null,"C",null,"C"]
[null,502," DEVONSHIRE"," DR","502 DEVONSHIRE DR","08080","Sewell",null,null,null,null,null,null,null,"NL",null,"C",null,"C"]
[null,504," DEVONSHIRE"," DR","504 DEVONSHIRE DR","08080","Sewell",null,null,null,null,null,null,null,"NL",null,"C",null,"C"]
[null,506," DEVONSHIRE"," DR","506 DEVONSHIRE DR","08080","Sewell",null,null,null,null,null,null,null,"NL",null,"C",null,"C"]
[null,508," DEVONSHIRE"," DR","508 DEVONSHIRE DR","08080","Sewell",null,null,null,null,null,null,null,"NL",null,"C",null,"C"]
[null,510," DEVONSHIRE"," DR","510 DEVONSHIRE DR","08080","Sewell",null,null,null,null,null,null,null,"NL",null,"C",null,"C"]
[null,501," DEVONSHIRE"," DR","501 DEVONSHIRE DR","08080","Sewell",null,null,null,null,null,null,null,"NL",null,"C",null,"C"]
[null,503," DEVONSHIRE"," DR","503 DEVONSHIRE DR","08080","Sewell",null,null,null,null,null,null,null,"NL",null,"C",null,"C"]
[null,509," DEVONSHIRE"," DR","509 DEVONSHIRE DR","08080","Sewell",null,null,null,null,null,null,null,"NL",null,"C",null,"C"]
[null,511," DEVONSHIRE"," DR","511 DEVONSHIRE DR","08080","Sewell",null,null,null,null,null,null,null,"NL",null,"C",null,"C"]
[null,1," DOVER"," RD","1 DOVER RD","08080","Sewell",null,null,null,null,null,null,null,"NL",null,"C",null,"C"]
[null,3," DOVER"," RD","3 DOVER RD","08080","Sewell",null,null,null,null,null,null,null,"NL",null,"C",null,"C"]
[null,5," DOVER"," RD",{"$f":"_xlfn.CONCAT(B1602, C1602, D1602)","v":"5 DOVER RD"},"08080","Sewell",null,null,null,null,null,null,null,"NL",null,"C",null,"C"]
[null,7," DOVER"," RD","7 DOVER RD","08080","Sewell",null,null,null,null,null,null,null,"NL",null,"C",null,"C"]
[null,9," DOVER"," RD","9 DOVER RD","08080","Sewell",null,null,null,null,null,null,null,"NL",null,"C",null,"C"]
[null,10," DOVER"," RD","10 DOVER RD","08080","Sewell",null,null,null,null,null,null,null,"NL",null,"C",null,"C"]
[null,2," DOVER"," RD","2 DOVER RD","08080","Sewell",null,null,null,null,null,null,null,"NL",null,"C",null,"C"]
[null,4," DOVER"," RD","4 DOVER RD","08080","Sewell",null,null,null,null,null,null,null,"NL",null,"C",null,"C"]
[null,6," DOVER"," RD","6 DOVER RD","08080","Sewell",null,null,null,null,null,null,null,"NL",null,"C",null,"C"]
[null,8," DOVER"," RD","8 DOVER RD","08080","Sewell",null,null,null,null,null,null,null,"NL",null,"C",null,"C"]
[null,"MARATHON"," DR",null,"MARATHON DR","08051","Mantua",null,null,null,null,null,null,null,"NL",null,"C",null,"C"]
[null,11," EAGLE"," RIDGE","11 EAGLE RIDGE","08051","Mantua",null,null,null,null,null,null,null,"NL",null,"C",null,"C"]
[null,13," EAGLE"," RIDGE","13 EAGLE RIDGE","08051","Mantua",null,null,null,null,null,null,null,"NL",null,"C",null,"C"]
[null,17," EAGLE"," RIDGE","17 EAGLE RIDGE","08051","Mantua",null,null,null,null,null,null,null,"NL",null,"C",null,"C"]
[null,19," EAGLE"," RIDGE","19 EAGLE RIDGE","08051","Mantua",null,null,null,null,null,null,null,"NL",null,"C",null,"C"]
[null,21," EAGLE"," RIDGE","21 EAGLE RIDGE","08051","Mantua",null,null,null,null,null,null,null,"NL",null,"C",null,"C"]
[null,23," EAGLE"," RIDGE","23 EAGLE RIDGE","08051","Mantua",null,null,null,null,null,null,null,"NL",null,"C",null,"C"]
[null,12," EAGLE"," RIDGE","12 EAGLE RIDGE","08051","Mantua",null,null,null,null,null,null,null,"NL",null,"C",null,"C"]
[null,14," EAGLE"," RIDGE","14 EAGLE RIDGE","08051","Mantua",null,null,null,null,null,null,null,"NL",null,"C",null,"C"]
[null,15," EAGLE"," RIDGE","15 EAGLE RIDGE","08051","Mantua",null,null,null,null,null,null,null,"NL",null,"C",null,"C"]
[null,16," EAGLE"," RIDGE","16 EAGLE RIDGE","08051","Mantua",null,null,null,null,null,null,null,"NL",null,"C",null,"C"]
[null,18," EAGLE"," RIDGE","18 EAGLE RIDGE","08051","Mantua",null,null,null,null,null,null,null,"NL",null,"C",null,"C"]
[null,20," EAGLE"," RIDGE","20 EAGLE RIDGE","08051","Mantua",null,null,null,null,null,null,null,"NL",null,"C",null,"C"]
[null,22," EAGLE"," RIDGE","22 EAGLE RIDGE","08051","Mantua",null,null,null,null,null,null,null,"NL",null,"C",null,"C"]
[null,10," EAGLE"," RIDGE","10 EAGLE RIDGE","08051","Mantua",null,null,null,null,null,null,null,"NL",null,"C",null,"C"]
[null,208," ELM"," AVE","208 ELM AVE","08051","Mantua",null,null,null,null,null,null,null,"NL",null,"C",null,"C"]
[null,213," ELM"," AVE","213 ELM AVE","08051","Mantua",null,null,null,null,null,null,null,"NL",null,"C",null,"C"]
[null,214," ELM"," AVE","214 ELM AVE","08051","Mantua",null,null,null,null,null,null,null,"NL",null,"C",null,"C"]
[null,223," ELM"," AVE","223 ELM AVE","08051","Mantua",null,null,null,null,null,null,null,"NL",null,"C",null,"C"]
[null,229," ELM"," AVE","229 ELM AVE","08051","Mantua",null,null,null,null,null,null,null,"NL",null,"C",null,"C"]
[null,241," ELM"," AVE","241 ELM AVE","08051","Mantua",null,null,null,null,null,null,null,"NL",null,"C",null,"C"]
[null,249," ELM"," AVE","249 ELM AVE","08051","Mantua",null,null,null,null,null,null,null,"NL",null,"C",null,"C"]
[null,252," ELM"," AVE","252 ELM AVE","08051","Mantua",null,null,null,null,null,null,null,"NL",null,"C",null,"C"]
[null,257," ELM"," AVE","257 ELM AVE","08051","Mantua",null,null,null,null,null,null,null,"NL",null,"C",null,"C"]
[null,261," ELM"," AVE","261 ELM AVE","08051","Mantua",null,null,null,null,null,null,null,"NL",null,"C",null,"C"]
[null,265," ELM"," AVE","265 ELM AVE","08051","Mantua",null,null,null,null,null,null,null,"NL",null,"C",null,"C"]
[null,268," ELM"," AVE","268 ELM AVE","08051","Mantua",null,null,null,null,null,null,null,"NL",null,"C",null,"C"]
[null,272," ELM"," AVE","272 ELM AVE","08051","Mantua",null,null,null,null,null,null,null,"NL",null,"C",null,"C"]
[null,276," ELM"," AVE","276 ELM AVE","08051","Mantua",null,null,null,null,null,null,null,"NL",null,"C",null,"C"]
[null,279," ELM"," AVE","279 ELM AVE","08051","Mantua",null,null,null,null,null,null,null,"NL",null,"C",null,"C"]
[null,282," ELM"," AVE","282 ELM AVE","08051","Mantua",null,null,null,null,null,null,null,"NL",null,"C",null,"C"]
[null,285," ELM"," AVE","285 ELM AVE","08051","Mantua",null,null,null,null,null,null,null,"NL",null,"C",null,"C"]
[null,207," ELM"," AVE","207 ELM AVE","08051","Mantua",null,null,null,null,null,null,null,"NL",null,"C",null,"C"]
[null,219," ELM"," AVE","219 ELM AVE","08051","Mantua",null,null,null,null,null,null,null,"NL",null,"C",null,"C"]
[null,235," ELM"," AVE","235 ELM AVE","08051","Mantua",null,null,null,null,null,null,null,"NL",null,"C",null,"C"]
[null,220," ELM"," AVE","220 ELM AVE","08051","Mantua",null,null,null,null,null,null,null,"NL",null,"C",null,"C"]
[null,226," ELM"," AVE","226 ELM AVE","08051","Mantua",null,null,null,null,null,null,null,"NL",null,"C",null,"C"]
[null,232," ELM"," AVE","232 ELM AVE","08051","Mantua",null,null,null,null,null,null,null,"NL",null,"C",null,"C"]
[null,238," ELM"," AVE","238 ELM AVE","08051","Mantua",null,null,null,null,null,null,null,"NL",null,"C",null,"C"]
[null,269," ELM"," AVE","269 ELM AVE","08051","Mantua",null,null,null,null,null,null,null,"NL",null,"C",null,"C"]
[null,256," ELM"," AVE","256 ELM AVE","08051","Mantua",null,null,null,null,null,null,null,"NL",null,"C",null,"C"]
[null,292," ELM"," AVE","292 ELM AVE","08051","Mantua",null,null,null,null,null,null,null,"NL",null,"C",null,"C"]
[null,275," ELM"," AVE","275 ELM AVE","08051","Mantua",null,null,null,null,null,null,null,"NL",null,"C",null,"C"]
[null,100," ESSEX"," AVE","100 ESSEX AVE","08080","Sewell",null,null,null,null,null,null,null,"NL",null,"C",null,"C"]
[null,110," ESSEX"," AVE","110 ESSEX AVE","08080","Sewell",null,null,null,null,null,null,null,"NL",null,"C",null,"C"]
[null,120," ESSEX"," AVE","120 ESSEX AVE","08080","Sewell",null,null,null,null,null,null,null,"NL",null,"C",null,"C"]
[null,140," ESSEX"," AVE","140 ESSEX AVE","08080","Sewell",null,null,null,null,null,null,null,"NL",null,"C",null,"C"]
[null,160," ESSEX"," AVE","160 ESSEX AVE","08080","Sewell",null,null,null,null,null,null,null,"NL",null,"C",null,"C"]
[null,81," ESSEX"," AVE","81 ESSEX AVE","08080","Sewell",null,null,null,null,null,null,null,"NL",null,"C",null,"C"]
[null,76," ESSEX"," AVE","76 ESSEX AVE","08080","Sewell",null,null,null,null,null,null,null,"NL",null,"C",null,"C"]
[null,80," ESSEX"," AVE","80 ESSEX AVE","08080","Sewell",null,null,null,null,null,null,null,"NL",null,"C",null,"C"]
[null,121," ESSEX"," AVE","121 ESSEX AVE","08080","Sewell",null,null,null,null,null,null,null,"NL",null,"C",null,"C"]
[null,130," ESSEX"," AVE","130 ESSEX AVE","08080","Sewell",null,null,null,null,null,null,null,"NL",null,"C",null,"C"]
[null,150," ESSEX"," AVE","150 ESSEX AVE","08080","Sewell",null,null,null,null,null,null,null,"NL",null,"C",null,"C"]
[null,141," ESSEX"," AVE","141 ESSEX AVE","08080","Sewell",null,null,null,null,null,null,null,"NL",null,"C",null,"C"]
[null,151," ESSEX"," AVE","151 ESSEX AVE","08080","Sewell",null,null,null,null,null,null,null,"NL",null,"C",null,"C"]
[null,161," ESSEX"," AVE",{"$f":"_xlfn.CONCAT(B1666, C1666, D1666)","v":"161 ESSEX AVE"},"08080","Sewell",null,null,null,null,null,null,null,"NL",null,"C",null,"C"]
[null,171," ESSEX"," AVE","171 ESSEX AVE","08080","Sewell",null,null,null,null,null,null,null,"NL",null,"C",null,"C"]
[null,201," ESSEX"," AVE","201 ESSEX AVE","08080","Sewell",null,null,null,null,null,null,null,"NL",null,"C",null,"C"]
[null,205," ESSEX"," AVE","205 ESSEX AVE","08080","Sewell",null,null,null,null,null,null,null,"NL",null,"C",null,"C"]
[null,209," ESSEX"," AVE","209 ESSEX AVE","08080","Sewell",null,null,null,null,null,null,null,"NL",null,"C",null,"C"]
[null,213," ESSEX"," AVE","213 ESSEX AVE","08080","Sewell",null,null,null,null,null,null,null,"NL",null,"C",null,"C"]
[null,215," ESSEX"," AVE","215 ESSEX AVE","08080","Sewell",null,null,null,null,null,null,null,"NL",null,"C",null,"C"]
[null,200," ESSEX"," AVE","200 ESSEX AVE","08080","Sewell",null,null,null,null,null,null,null,"NL",null,"C",null,"C"]
[null,210," ESSEX"," AVE","210 ESSEX AVE","08080","Sewell",null,null,null,null,null,null,null,"NL",null,"C",null,"C"]
[null,212," ESSEX"," AVE","212 ESSEX AVE","08080","Sewell",null,null,null,null,null,null,null,"NL",null,"C",null,"C"]
[null,214," ESSEX"," AVE","214 ESSEX AVE","08080","Sewell",null,null,null,null,null,null,null,"NL",null,"C",null,"C"]
[null,206," EVERGREEN"," AVE","206 EVERGREEN AVE","08051","Mantua",null,null,null,null,null,null,null,"NL",null,"C",null,"C"]
[null,207," EVERGREEN"," AVE","207 EVERGREEN AVE","08051","Mantua",null,null,null,null,null,null,null,"NL",null,"C",null,"C"]
[null,212," EVERGREEN"," AVE","212 EVERGREEN AVE","08051","Mantua",null,null,null,null,null,null,null,"NL",null,"C",null,"C"]
[null,216," EVERGREEN"," AVE","216 EVERGREEN AVE","08051","Mantua",null,null,null,null,null,null,null,"NL",null,"C",null,"C"]
[null,222," EVERGREEN"," AVE","222 EVERGREEN AVE","08051","Mantua",null,null,null,null,null,null,null,"NL",null,"C",null,"C"]
[null,226," EVERGREEN"," AVE","226 EVERGREEN AVE","08051","Mantua",null,null,null,null,null,null,null,"NL",null,"C",null,"C"]
[null,227," EVERGREEN"," AVE","227 EVERGREEN AVE","08051","Mantua",null,null,null,null,null,null,null,"NL",null,"C",null,"C"]
[null,233," EVERGREEN"," AVE","233 EVERGREEN AVE","08051","Mantua",null,null,null,null,null,null,null,"NL",null,"C",null,"C"]
[null,236," EVERGREEN"," AVE","236 EVERGREEN AVE","08051","Mantua",null,null,null,null,null,null,null,"NL",null,"C",null,"C"]
[null,237," EVERGREEN"," AVE","237 EVERGREEN AVE","08051","Mantua",null,null,null,null,null,null,null,"NL",null,"C",null,"C"]
[null,242," EVERGREEN"," AVE","242 EVERGREEN AVE","08051","Mantua",null,null,null,null,null,null,null,"NL",null,"C",null,"C"]
[null,247," EVERGREEN"," AVE","247 EVERGREEN AVE","08051","Mantua",null,null,null,null,null,null,null,"NL",null,"C",null,"C"]
[null,250," EVERGREEN"," AVE","250 EVERGREEN AVE","08051","Mantua",null,null,null,null,null,null,null,"NL",null,"C",null,"C"]
[null,256," EVERGREEN"," AVE","256 EVERGREEN AVE","08051","Mantua",null,null,null,null,null,null,null,"NL",null,"C",null,"C"]
[null,264," EVERGREEN"," AVE","264 EVERGREEN AVE","08051","Mantua",null,null,null,null,null,null,null,"NL",null,"C",null,"C"]
[null,268," EVERGREEN"," AVE","268 EVERGREEN AVE","08051","Mantua",null,null,null,null,null,null,null,"NL",null,"C",null,"C"]
[null,278," EVERGREEN"," AVE","278 EVERGREEN AVE","08051","Mantua",null,null,null,null,null,null,null,"NL",null,"C",null,"C"]
[null,290," EVERGREEN"," AVE","290 EVERGREEN AVE","08051","Mantua",null,null,null,null,null,null,null,"NL",null,"C",null,"C"]
[null,202," EVERGREEN"," AVE","202 EVERGREEN AVE","08051","Mantua",null,null,null,null,null,null,null,"NL",null,"C",null,"C"]
[null,232," EVERGREEN"," AVE","232 EVERGREEN AVE","08051","Mantua",null,null,null,null,null,null,null,"NL",null,"C",null,"C"]
[null,246," EVERGREEN"," AVE","246 EVERGREEN AVE","08051","Mantua",null,null,null,null,null,null,null,"NL",null,"C",null,"C"]
[null,274," EVERGREEN"," AVE","274 EVERGREEN AVE","08051","Mantua",null,null,null,null,null,null,null,"NL",null,"C",null,"C"]
[null,286," EVERGREEN"," AVE","286 EVERGREEN AVE","08051","Mantua",null,null,null,null,null,null,null,"NL",null,"C",null,"C"]
[null,217," EVERGREEN"," AVE","217 EVERGREEN AVE","08051","Mantua",null,null,null,null,null,null,null,"NL",null,"C",null,"C"]
[null,243," EVERGREEN"," AVE","243 EVERGREEN AVE","08051","Mantua",null,null,null,null,null,null,null,"NL",null,"C",null,"C"]
[null,748," FAIRVIEW"," DR","748 FAIRVIEW DR","08080","Sewell",null,null,null,null,null,null,null,"NL",null,"C",null,"C"]
[null,751," FAIRVIEW"," DR","751 FAIRVIEW DR","08080","Sewell",null,null,null,null,null,null,null,"NL",null,"C",null,"C"]
[null,761," FAIRVIEW"," DR","761 FAIRVIEW DR","08080","Sewell",null,null,null,null,null,null,null,"NL",null,"C",null,"C"]
[null,633," FAIRVIEW"," DR","633 FAIRVIEW DR","08080","Sewell",null,null,null,null,null,null,null,"NL",null,"C",null,"C"]
[null,635," FAIRVIEW"," DR","635 FAIRVIEW DR","08080","Sewell",null,null,null,null,null,null,null,"NL",null,"C",null,"C"]
[null,637," FAIRVIEW"," DR","637 FAIRVIEW DR","08080","Sewell",null,null,null,null,null,null,null,"NL",null,"C",null,"C"]
[null,639," FAIRVIEW"," DR","639 FAIRVIEW DR","08080","Sewell",null,null,null,null,null,null,null,"NL",null,"C",null,"C"]
[null,641," FAIRVIEW"," DR","641 FAIRVIEW DR","08080","Sewell",null,null,null,null,null,null,null,"NL",null,"C",null,"C"]
[null,643," FAIRVIEW"," DR","643 FAIRVIEW DR","08080","Sewell",null,null,null,null,null,null,null,"NL",null,"C",null,"C"]
[null,645," FAIRVIEW"," DR","645 FAIRVIEW DR","08080","Sewell",null,null,null,null,null,null,null,"NL",null,"C",null,"C"]
[null,647," FAIRVIEW"," DR","647 FAIRVIEW DR","08080","Sewell",null,null,null,null,null,null,null,"NL",null,"C",null,"C"]
[null,701," FAIRVIEW"," DR","701 FAIRVIEW DR","08080","Sewell",null,null,null,null,null,null,null,"NL",null,"C",null,"C"]
[null,649," FAIRVIEW"," DR","649 FAIRVIEW DR","08080","Sewell",null,null,null,null,null,null,null,"NL",null,"C",null,"C"]
[null,651," FAIRVIEW"," DR","651 FAIRVIEW DR","08080","Sewell",null,null,null,null,null,null,null,"NL",null,"C",null,"C"]
[null,653," FAIRVIEW"," DR","653 FAIRVIEW DR","08080","Sewell",null,null,null,null,null,null,null,"NL",null,"C",null,"C"]
[null,655," FAIRVIEW"," DR","655 FAIRVIEW DR","08080","Sewell",null,null,null,null,null,null,null,"NL",null,"C",null,"C"]
[null,749," FAIRVIEW"," DR","749 FAIRVIEW DR","08080","Sewell",null,null,null,null,null,null,null,"NL",null,"C",null,"C"]
[null,750," FAIRVIEW"," DR","750 FAIRVIEW DR","08080","Sewell",null,null,null,null,null,null,null,"NL",null,"C",null,"C"]
[null,764," FAIRVIEW"," DR","764 FAIRVIEW DR","08080","Sewell",null,null,null,null,null,null,null,"NL",null,"C",null,"C"]
[null,768," FAIRVIEW"," DR","768 FAIRVIEW DR","08080","Sewell",null,null,null,null,null,null,null,"NL",null,"C",null,"C"]
[null,770," FAIRVIEW"," DR","770 FAIRVIEW DR","08080","Sewell",null,null,null,null,null,null,null,"NL",null,"C",null,"C"]
[null,772," FAIRVIEW"," DR","772 FAIRVIEW DR","08080","Sewell",null,null,null,null,null,null,null,"NL",null,"C",null,"C"]
[null,774," FAIRVIEW"," DR","774 FAIRVIEW DR","08080","Sewell",null,null,null,null,null,null,null,"NL",null,"C",null,"C"]
[null,776," FAIRVIEW"," DR","776 FAIRVIEW DR","08080","Sewell",null,null,null,null,null,null,null,"NL",null,"C",null,"C"]
[null,127," FERNDALE"," AVE","127 FERNDALE AVE","08051","Mantua",null,null,null,null,null,null,null,"NL",null,"C",null,"C"]
[null,145," FERNDALE"," AVE","145 FERNDALE AVE","08051","Mantua",null,null,null,null,null,null,null,"NL",null,"C",null,"P"]
[null,147," FERNDALE"," AVE","147 FERNDALE AVE","08051","Mantua",null,null,null,null,null,null,null,"NL",null,"C",null,"C"]
[null,107," FERNDALE"," AVE","107 FERNDALE AVE","08051","Mantua",null,null,null,null,null,null,null,"NL",null,"C",null,"C"]
[null,115," FERNDALE"," AVE",{"$f":"_xlfn.CONCAT(B1730, C1730, D1730)","v":"115 FERNDALE AVE"},"08051","Mantua",null,null,null,null,null,null,null,"NL",null,"C",null,"C"]
[null,131," FERNDALE"," AVE","131 FERNDALE AVE","08051","Mantua",null,null,null,null,null,null,null,"NL",null,"C",null,"C"]
[null,104," FERNDALE"," AVE","104 FERNDALE AVE","08051","Mantua",null,null,null,null,null,null,null,"NL",null,"C",null,"C"]
[null,108," FERNDALE"," AVE","108 FERNDALE AVE","08051","Mantua",null,null,null,null,null,null,null,"NL",null,"C",null,"C"]
[null,116," FERNDALE"," AVE","116 FERNDALE AVE","08051","Mantua",null,null,null,null,null,null,null,"NL",null,"C",null,"C"]
[null,128," FERNDALE"," AVE","128 FERNDALE AVE","08051","Mantua",null,null,null,null,null,null,null,"NL",null,"C",null,"C"]
[null,138," FERNDALE"," AVE","138 FERNDALE AVE","08051","Mantua",null,null,null,null,null,null,null,"NL",null,"C",null,"C"]
[null,148," FERNDALE"," AVE","148 FERNDALE AVE","08051","Mantua",null,null,null,null,null,null,null,"NL",null,"C",null,"C"]
[null,101," FIRTH"," DR","101 FIRTH DR","08051","Mantua",null,null,null,null,null,null,null,"NL",null,"C",null,"C"]
[null,102," FIRTH"," DR","102 FIRTH DR","08051","Mantua",null,null,null,null,null,null,null,"NL",null,"C",null,"C"]
[null,103," FIRTH"," DR","103 FIRTH DR","08051","Mantua",null,null,null,null,null,null,null,"NL",null,"C",null,"C"]
[null,106," FIRTH"," DR","106 FIRTH DR","08051","Mantua",null,null,null,null,null,null,null,"NL",null,"C",null,"C"]
[null,113," FIRTH"," DR","113 FIRTH DR","08051","Mantua",null,null,null,null,null,null,null,"NL",null,"C",null,"C"]
[null,114," FIRTH"," DR","114 FIRTH DR","08051","Mantua",null,null,null,null,null,null,null,"NL",null,"C",null,"C"]
[null,115," FIRTH"," DR","115 FIRTH DR","08051","Mantua",null,null,null,null,null,null,null,"NL",null,"C",null,"C"]
[null,118," FIRTH"," DR","118 FIRTH DR","08051","Mantua",null,null,null,null,null,null,null,"NL",null,"C",null,"C"]
[null,119," FIRTH"," DR","119 FIRTH DR","08051","Mantua",null,null,null,null,null,null,null,"NL",null,"C",null,"C"]
[null,122," FIRTH"," DR","122 FIRTH DR","08051","Mantua",null,null,null,null,null,null,null,"NL",null,"C",null,"C"]
[null,124," FIRTH"," DR","124 FIRTH DR","08051","Mantua",null,null,null,null,null,null,null,"NL",null,"C",null,"C"]
[null,"125-127"," FIRTH"," DR","125-127 FIRTH DR","08051","Mantua",null,null,null,null,null,null,null,"NL",null,"C",null,"C"]
[null,126," FIRTH"," DR","126 FIRTH DR","08051","Mantua",null,null,null,null,null,null,null,"NL",null,"C",null,"C"]
[null,129," FIRTH"," DR","129 FIRTH DR","08051","Mantua",null,null,null,null,null,null,null,"NL",null,"C",null,"C"]
[null,105," FIRTH"," DR","105 FIRTH DR","08051","Mantua",null,null,null,null,null,null,null,"NL",null,"C",null,"C"]
[null,107," FIRTH"," DR","107 FIRTH DR","08051","Mantua",null,null,null,null,null,null,null,"NL",null,"C",null,"C"]
[null,109," FIRTH"," DR","109 FIRTH DR","08051","Mantua",null,null,null,null,null,null,null,"NL",null,"C",null,"C"]
[null,121," FIRTH"," DR","121 FIRTH DR","08051","Mantua",null,null,null,null,null,null,null,"NL",null,"C",null,"C"]
[null,123," FIRTH"," DR","123 FIRTH DR","08051","Mantua",null,null,null,null,null,null,null,"NL",null,"C",null,"C"]
[null,131," FIRTH"," DR","131 FIRTH DR","08051","Mantua",null,null,null,null,null,null,null,"NL",null,"C",null,"C"]
[null,110," FIRTH"," DR","110 FIRTH DR","08051","Mantua",null,null,null,null,null,null,null,"NL",null,"C",null,"C"]
[null,120," FIRTH"," DR","120 FIRTH DR","08051","Mantua",null,null,null,null,null,null,null,"NL",null,"C",null,"C"]
[null,36," FLORIDA"," AVE","36 FLORIDA AVE","08080","Sewell",null,null,null,null,null,null,null,"NL",null,"C",null,"C"]
[null,27," FLORIDA"," AVE","27 FLORIDA AVE","08080","Sewell",null,null,null,null,null,null,null,"NL",null,"C",null,"C"]
[null,31," FLORIDA"," AVE","31 FLORIDA AVE","08080","Sewell",null,null,null,null,null,null,null,"NL",null,"C",null,"C"]
[null,35," FLORIDA"," AVE","35 FLORIDA AVE","08080","Sewell",null,null,null,null,null,null,null,"NL",null,"C",null,"C"]
[null,37," FLORIDA"," AVE","37 FLORIDA AVE","08080","Sewell",null,null,null,null,null,null,null,"NL",null,"C",null,"C"]
[null,18," FLORIDA"," AVE","18 FLORIDA AVE","08080","Sewell",null,null,null,null,null,null,null,"NL",null,"C",null,"C"]
[null,22," FLORIDA"," AVE","22 FLORIDA AVE","08080","Sewell",null,null,null,null,null,null,null,"NL",null,"C",null,"C"]
[null,26," FLORIDA"," AVE","26 FLORIDA AVE","08080","Sewell",null,null,null,null,null,null,null,"NL",null,"C",null,"C"]
[null,30," FLORIDA"," AVE","30 FLORIDA AVE","08080","Sewell",null,null,null,null,null,null,null,"NL",null,"C",null,"C"]
[null,56," FLORIDA"," AVE","56 FLORIDA AVE","08080","Sewell",null,null,null,null,null,null,null,"NL",null,"C",null,"C"]
[null,105," FOREST"," CT","105 FOREST CT","08051","Mantua",null,null,null,null,null,null,null,"NL",null,"C",null,"P"]
[null,107," FOREST"," CT","107 FOREST CT","08051","Mantua",null,null,null,null,null,null,null,"NL",null,"C",null,"P"]
[null,109," FOREST"," CT","109 FOREST CT","08051","Mantua",null,null,null,null,null,null,null,"NL",null,"C",null,"P"]
[null,111," FOREST"," CT","111 FOREST CT","08051","Mantua",null,null,null,null,null,null,null,"NL",null,"C",null,"P"]
[null,46," FOREST"," CT","46 FOREST CT","08051","Mantua",null,null,null,null,null,null,null,"NL",null,"C",null,"P"]
[null,48," FOREST"," CT","48 FOREST CT","08051","Mantua",null,null,null,null,null,null,null,"NL",null,"C",null,"P"]
[null,52," FOREST"," CT","52 FOREST CT","08051","Mantua",null,null,null,null,null,null,null,"NL",null,"C",null,"P"]
[null,54," FOREST"," CT","54 FOREST CT","08051","Mantua",null,null,null,null,null,null,null,"NL",null,"C",null,"P"]
[null,56," FOREST"," CT","56 FOREST CT","08051","Mantua",null,null,null,null,null,null,null,"NL",null,"C",null,"P"]
[null,58," FOREST"," CT","58 FOREST CT","08051","Mantua",null,null,null,null,null,null,null,"NL",null,"C",null,"P"]
[null,60," FOREST"," CT","60 FOREST CT","08051","Mantua",null,null,null,null,null,null,null,"NL",null,"C",null,"P"]
[null,64," FOREST"," CT","64 FOREST CT","08051","Mantua",null,null,null,null,null,null,null,"NL",null,"C",null,"P"]
[null,66," FOREST"," CT","66 FOREST CT","08051","Mantua",null,null,null,null,null,null,null,"NL",null,"C",null,"P"]
[null,68," FOREST"," CT","68 FOREST CT","08051","Mantua",null,null,null,null,null,null,null,"NL",null,"C",null,"P"]
[null,70," FOREST"," CT","70 FOREST CT","08051","Mantua",null,null,null,null,null,null,null,"NL",null,"C",null,"P"]
[null,71," FOREST"," CT","71 FOREST CT","08051","Mantua",null,null,null,null,null,null,null,"NL",null,"C",null,"P"]
[null,72," FOREST"," CT","72 FOREST CT","08051","Mantua",null,null,null,null,null,null,null,"NL",null,"C",null,"P"]
[null,73," FOREST"," CT","73 FOREST CT","08051","Mantua",null,null,null,null,null,null,null,"NL",null,"C",null,"P"]
[null,74," FOREST"," CT","74 FOREST CT","08051","Mantua",null,null,null,null,null,null,null,"NL",null,"C",null,"P"]
[null,75," FOREST"," CT","75 FOREST CT","08051","Mantua",null,null,null,null,null,null,null,"NL",null,"C",null,"P"]
[null,76," FOREST"," CT","76 FOREST CT","08051","Mantua",null,null,null,null,null,null,null,"NL",null,"C",null,"P"]
[null,78," FOREST"," CT","78 FOREST CT","08051","Mantua",null,null,null,null,null,null,null,"NL",null,"C",null,"P"]
[null,82," FOREST"," CT","82 FOREST CT","08051","Mantua",null,null,null,null,null,null,null,"NL",null,"C",null,"P"]
[null,86," FOREST"," CT","86 FOREST CT","08051","Mantua",null,null,null,null,null,null,null,"NL",null,"C",null,"P"]
[null,88," FOREST"," CT",{"$f":"_xlfn.CONCAT(B1794, C1794, D1794)","v":"88 FOREST CT"},"08051","Mantua",null,null,null,null,null,null,null,"NL",null,"C",null,"P"]
[null,90," FOREST"," CT","90 FOREST CT","08051","Mantua",null,null,null,null,null,null,null,"NL",null,"C",null,"P"]
[null,93," FOREST"," CT","93 FOREST CT","08051","Mantua",null,null,null,null,null,null,null,"NL",null,"C",null,"P"]
[null,97," FOREST"," CT","97 FOREST CT","08051","Mantua",null,null,null,null,null,null,null,"NL",null,"C",null,"P"]
[null,99," FOREST"," CT","99 FOREST CT","08051","Mantua",null,null,null,null,null,null,null,"NL",null,"C",null,"P"]
[null,50," FOREST"," CT","50 FOREST CT","08051","Mantua",null,null,null,null,null,null,null,"NL",null,"C",null,"P"]
[null,62," FOREST"," CT","62 FOREST CT","08051","Mantua",null,null,null,null,null,null,null,"NL",null,"C",null,"P"]
[null,95," FOREST"," CT","95 FOREST CT","08051","Mantua",null,null,null,null,null,null,null,"NL",null,"C",null,"P"]
[null,81," FOREST"," CT","81 FOREST CT","08051","Mantua",null,null,null,null,null,null,null,"NL",null,"C",null,"P"]
[null,83," FOREST"," CT","83 FOREST CT","08051","Mantua",null,null,null,null,null,null,null,"NL",null,"C",null,"P"]
[null,85," FOREST"," CT","85 FOREST CT","08051","Mantua",null,null,null,null,null,null,null,"NL",null,"C",null,"P"]
[null,87," FOREST"," CT","87 FOREST CT","08051","Mantua",null,null,null,null,null,null,null,"NL",null,"C",null,"P"]
[null,89," FOREST"," CT","89 FOREST CT","08051","Mantua",null,null,null,null,null,null,null,"NL",null,"C",null,"P"]
[null,91," FOREST"," CT","91 FOREST CT","08051","Mantua",null,null,null,null,null,null,null,"NL",null,"C",null,"P"]
[null,77," FOREST"," CT","77 FOREST CT","08051","Mantua",null,null,null,null,null,null,null,"NL",null,"C",null,"P"]
[null,79," FOREST"," CT","79 FOREST CT","08051","Mantua",null,null,null,null,null,null,null,"NL",null,"C",null,"P"]
[null,101," FOREST"," CT","101 FOREST CT","08051","Mantua",null,null,null,null,null,null,null,"NL",null,"C",null,"P"]
[null,103," FOREST"," CT","103 FOREST CT","08051","Mantua",null,null,null,null,null,null,null,"NL",null,"C",null,"P"]
[null,80," FOREST"," CT","80 FOREST CT","08051","Mantua",null,null,null,null,null,null,null,"NL",null,"C",null,"P"]
[null,84," FOREST"," CT","84 FOREST CT","08051","Mantua",null,null,null,null,null,null,null,"NL",null,"C",null,"P"]
[null,618," FRANKFORT"," ST","618 FRANKFORT ST","08051","Mantua",null,null,null,null,null,null,null,"NL",null,"C",null,"C"]
[null,623," FRANKFORT"," ST","623 FRANKFORT ST","08051","Mantua",null,null,null,null,null,null,null,"NL",null,"C",null,"C"]
[null,626," FRANKFORT"," ST","626 FRANKFORT ST","08051","Mantua",null,null,null,null,null,null,null,"NL",null,"C",null,"C"]
[null,629," FRANKFORT"," ST","629 FRANKFORT ST","08051","Mantua",null,null,null,null,null,null,null,"NL",null,"C",null,"C"]
[null,634," FRANKFORT"," ST","634 FRANKFORT ST","08051","Mantua",null,null,null,null,null,null,null,"NL",null,"C",null,"C"]
[null,635," FRANKFORT"," ST","635 FRANKFORT ST","08051","Mantua",null,null,null,null,null,null,null,"NL",null,"C",null,"C"]
[null,641," FRANKFORT"," ST","641 FRANKFORT ST","08051","Mantua",null,null,null,null,null,null,null,"NL",null,"C",null,"C"]
[null,642," FRANKFORT"," ST","642 FRANKFORT ST","08051","Mantua",null,null,null,null,null,null,null,"NL",null,"C",null,"C"]
[null,647," FRANKFORT"," ST","647 FRANKFORT ST","08051","Mantua",null,null,null,null,null,null,null,"NL",null,"C",null,"C"]
[null,650," FRANKFORT"," ST","650 FRANKFORT ST","08051","Mantua",null,null,null,null,null,null,null,"NL",null,"C",null,"C"]
[null,653," FRANKFORT"," ST","653 FRANKFORT ST","08051","Mantua",null,null,null,null,null,null,null,"NL",null,"C",null,"C"]
[null,659," FRANKFORT"," ST","659 FRANKFORT ST","08051","Mantua",null,null,null,null,null,null,null,"NL",null,"C",null,"C"]
[null,617," FRANKFORT"," ST","617 FRANKFORT ST","08051","Mantua",null,null,null,null,null,null,null,"NL",null,"C",null,"C"]
[null,105," FRANKLIN"," AVE","105 FRANKLIN AVE","08051","Mantua",null,null,null,null,null,null,null,"NL",null,"C",null,"C"]
[null,171," FRANKLIN"," AVE","171 FRANKLIN AVE","08051","Mantua",null,null,null,null,null,null,null,"NL",null,"C",null,"C"]
[null,175," FRANKLIN"," AVE","175 FRANKLIN AVE","08051","Mantua",null,null,null,null,null,null,null,"NL",null,"C",null,"C"]
[null,181," FRANKLIN"," AVE","181 FRANKLIN AVE","08051","Mantua",null,null,null,null,null,null,null,"NL",null,"C",null,"C"]
[null,174," FRANKLIN"," AVE","174 FRANKLIN AVE","08051","Mantua",null,null,null,null,null,null,null,"NL",null,"C",null,"C"]
[null,89," FRANKLIN"," AVE","89 FRANKLIN AVE","08051","Mantua",null,null,null,null,null,null,null,"NL",null,"C",null,"G"]
[null,88," FRANKLIN"," AVE","88 FRANKLIN AVE","08051","Mantua",null,null,null,null,null,null,null,"NL",null,"C",null,"C"]
[null,111," FRANKLIN"," AVE","111 FRANKLIN AVE","08051","Mantua",null,null,null,null,null,null,null,"NL",null,"C",null,"C"]
[null,119," FRANKLIN"," AVE","119 FRANKLIN AVE","08051","Mantua",null,null,null,null,null,null,null,"NL",null,"C",null,"C"]
[null,129," FRANKLIN"," AVE","129 FRANKLIN AVE","08051","Mantua",null,null,null,null,null,null,null,"NL",null,"C",null,"C"]
[null,135," FRANKLIN"," AVE","135 FRANKLIN AVE","08051","Mantua",null,null,null,null,null,null,null,"NL",null,"C",null,"C"]
[null,143," FRANKLIN"," AVE","143 FRANKLIN AVE","08051","Mantua",null,null,null,null,null,null,null,"NL",null,"C",null,"C"]
[null,106," FRANKLIN"," AVE","106 FRANKLIN AVE","08051","Mantua",null,null,null,null,null,null,null,"NL",null,"C",null,"C"]
[null,112," FRANKLIN"," AVE","112 FRANKLIN AVE","08051","Mantua",null,null,null,null,null,null,null,"NL",null,"C",null,"C"]
[null,122," FRANKLIN"," AVE","122 FRANKLIN AVE","08051","Mantua",null,null,null,null,null,null,null,"NL",null,"C",null,"C"]
[null,130," FRANKLIN"," AVE","130 FRANKLIN AVE","08051","Mantua",null,null,null,null,null,null,null,"NL",null,"C",null,"C"]
[null,134," FRANKLIN"," AVE","134 FRANKLIN AVE","08051","Mantua",null,null,null,null,null,null,null,"NL",null,"C",null,"C"]
[null,142," FRANKLIN"," AVE","142 FRANKLIN AVE","08051","Mantua",null,null,null,null,null,null,null,"NL",null,"C",null,"C"]
[null,144," FRANKLIN"," AVE","144 FRANKLIN AVE","08051","Mantua",null,null,null,null,null,null,null,"NL",null,"C",null,"C"]
[null,146," FRANKLIN"," AVE","146 FRANKLIN AVE","08051","Mantua",null,null,null,null,null,null,null,"NL",null,"C",null,"C"]
[null,172," FRANKLIN"," AVE","172 FRANKLIN AVE","08051","Mantua",null,null,null,null,null,null,null,"NL",null,"C",null,"C"]
[null,34," FRIESIAN"," CT","34 FRIESIAN CT","08051","Mantua",null,null,null,null,null,null,null,"NL",null,"C",null,"P"]
[null,36," FRIESIAN"," CT","36 FRIESIAN CT","08051","Mantua",null,null,null,null,null,null,null,"NL",null,"C",null,"P"]
[null,28," FRIESIAN"," CT","28 FRIESIAN CT","08051","Mantua",null,null,null,null,null,null,null,"NL",null,"C",null,"P"]
[null,30," FRIESIAN"," CT","30 FRIESIAN CT","08051","Mantua",null,null,null,null,null,null,null,"NL",null,"C",null,"P"]
[null,32," FRIESIAN"," CT","32 FRIESIAN CT","08051","Mantua",null,null,null,null,null,null,null,"NL",null,"C",null,"P"]
[null,500," GALAHAD"," CT","500 GALAHAD CT","08051","Mantua",null,null,null,null,null,null,null,"NL",null,"C",null,"P"]
[null,502," GALAHAD"," CT","502 GALAHAD CT","08051","Mantua",null,null,null,null,null,null,null,"NL",null,"C",null,"P"]
[null,504," GALAHAD"," CT","504 GALAHAD CT","08051","Mantua",null,null,null,null,null,null,null,"NL",null,"C",null,"P"]
[null,506," GALAHAD"," CT","506 GALAHAD CT","08051","Mantua",null,null,null,null,null,null,null,"NL",null,"C",null,"P"]
[null,508," GALAHAD"," CT","508 GALAHAD CT","08051","Mantua",null,null,null,null,null,null,null,"NL",null,"C",null,"P"]
[null,510," GALAHAD"," CT",{"$f":"_xlfn.CONCAT(B1858, C1858, D1858)","v":"510 GALAHAD CT"},"08051","Mantua",null,null,null,null,null,null,null,"NL",null,"C",null,"P"]
[null,512," GALAHAD"," CT","512 GALAHAD CT","08051","Mantua",null,null,null,null,null,null,null,"NL",null,"C",null,"P"]
[null,514," GALAHAD"," CT","514 GALAHAD CT","08051","Mantua",null,null,null,null,null,null,null,"NL",null,"C",null,"P"]
[null,516," GALAHAD"," CT","516 GALAHAD CT","08051","Mantua",null,null,null,null,null,null,null,"NL",null,"C",null,"P"]
[null,518," GALAHAD"," CT","518 GALAHAD CT","08051","Mantua",null,null,null,null,null,null,null,"NL",null,"C",null,"P"]
[null,520," GALAHAD"," CT","520 GALAHAD CT","08051","Mantua",null,null,null,null,null,null,null,"NL",null,"C",null,"P"]
[null,522," GALAHAD"," CT","522 GALAHAD CT","08051","Mantua",null,null,null,null,null,null,null,"NL",null,"C",null,"P"]
[null,524," GALAHAD"," CT","524 GALAHAD CT","08051","Mantua",null,null,null,null,null,null,null,"NL",null,"C",null,"P"]
[null,526," GALAHAD"," CT","526 GALAHAD CT","08051","Mantua",null,null,null,null,null,null,null,"NL",null,"C",null,"P"]
[null,528," GALAHAD"," CT","528 GALAHAD CT","08051","Mantua",null,null,null,null,null,null,null,"NL",null,"C",null,"P"]
[null,530," GALAHAD"," CT","530 GALAHAD CT","08051","Mantua",null,null,null,null,null,null,null,"NL",null,"C",null,"P"]
[null,"COUNTRY"," GARDENS","IRREGATION","COUNTRY GARDENSIRREGATION","08080","Sewell",null,null,null,null,null,null,null,"NL",null,"C",null,"NA"]
[null,1," GAUDET"," CT","1 GAUDET CT","08051","Mantua",null,null,null,null,null,null,null,"NL",null,"C",null,"C"]
[null,5," GAUDET"," CT","5 GAUDET CT","08051","Mantua",null,null,null,null,null,null,null,"NL",null,"C",null,"C"]
[null,15," GAUDET"," CT","15 GAUDET CT","08051","Mantua",null,null,null,null,null,null,null,"NL",null,"C",null,"C"]
[null,17," GAUDET"," CT","17 GAUDET CT","08051","Mantua",null,null,null,null,null,null,null,"NL",null,"C",null,"C"]
[null,19," GAUDET"," CT","19 GAUDET CT","08051","Mantua",null,null,null,null,null,null,null,"NL",null,"C",null,"C"]
[null,21," GAUDET"," CT","21 GAUDET CT","08051","Mantua",null,null,null,null,null,null,null,"NL",null,"C",null,"C"]
[null,11," GAUDET"," CT","11 GAUDET CT","08051","Mantua",null,null,null,null,null,null,null,"NL",null,"C",null,"C"]
[null,3," GAUDET"," CT","3 GAUDET CT","08051","Mantua",null,null,null,null,null,null,null,"NL",null,"C",null,"C"]
[null,7," GAUDET"," CT","7 GAUDET CT","08051","Mantua",null,null,null,null,null,null,null,"NL",null,"C",null,"C"]
[null,9," GAUDET"," CT","9 GAUDET CT","08051","Mantua",null,null,null,null,null,null,null,"NL",null,"C",null,"C"]
[null,1," GENARD"," CT","1 GENARD CT","08051","Mantua",null,null,null,null,null,null,null,"NL",null,"C",null,"C"]
[null,3," GENARD"," CT","3 GENARD CT","08051","Mantua",null,null,null,null,null,null,null,"NL",null,"C",null,"C"]
[null,5," GENARD"," CT","5 GENARD CT","08051","Mantua",null,null,null,null,null,null,null,"NL",null,"C",null,"C"]
[null,7," GENARD"," CT","7 GENARD CT","08051","Mantua",null,null,null,null,null,null,null,"NL",null,"C",null,"C"]
[null,16," GEORGE'S"," LN","16 GEORGE'S LN","08051","Mantua",null,null,null,null,null,null,null,"NL",null,"C",null,"C"]
[null,20," GEORGE'S"," LN","20 GEORGE'S LN","08051","Mantua",null,null,null,null,null,null,null,"NL",null,"C",null,"C"]
[null,44," GLENWOOD"," AVE","44 GLENWOOD AVE","08051","Mantua",null,null,null,null,null,null,null,"NL",null,"C",null,"C"]
[null,55," GLENWOOD"," AVE","55 GLENWOOD AVE","08051","Mantua",null,null,null,null,null,null,null,"NL",null,"C",null,"C"]
[null,45," GLENWOOD"," AVE","45 GLENWOOD AVE","08051","Mantua",null,null,null,null,null,null,null,"NL",null,"C",null,"C"]
[null,56," GLENWOOD"," AVE","56 GLENWOOD AVE","08051","Mantua",null,null,null,null,null,null,null,"NL",null,"C",null,"C"]
[null,76," GLENWOOD"," AVE","76 GLENWOOD AVE","08051","Mantua",null,null,null,null,null,null,null,"NL",null,"C",null,"C"]
[null,80," GLENWOOD"," AVE","80 GLENWOOD AVE","08051","Mantua",null,null,null,null,null,null,null,"NL",null,"C",null,"C"]
[null,15," GOLD FINCH"," DR","15 GOLD FINCH DR","08051","Mantua",null,null,null,null,null,null,null,"NL",null,"C",null,"P"]
[null,17," GOLD FINCH"," DR","17 GOLD FINCH DR","08051","Mantua",null,null,null,null,null,null,null,"NL",null,"C",null,"P"]
[null,18," GOLD FINCH"," DR","18 GOLD FINCH DR","08051","Mantua",null,null,null,null,null,null,null,"NL",null,"C",null,"P"]
[null,38," GOLD FINCH"," DR","38 GOLD FINCH DR","08051","Mantua",null,null,null,null,null,null,null,"NL",null,"C",null,"P"]
[null,39," GOLD FINCH"," DR","39 GOLD FINCH DR","08051","Mantua",null,null,null,null,null,null,null,"NL",null,"C",null,"P"]
[null,40," GOLD FINCH"," DR","40 GOLD FINCH DR","08051","Mantua",null,null,null,null,null,null,null,"NL",null,"C",null,"P"]
[null,16," GOLD FINCH"," DR","16 GOLD FINCH DR","08051","Mantua",null,null,null,null,null,null,null,"NL",null,"C",null,"P"]
[null,19," GOLD FINCH"," DR","19 GOLD FINCH DR","08051","Mantua",null,null,null,null,null,null,null,"NL",null,"C",null,"P"]
[null,151," GOLF CLUB"," RD","151 GOLF CLUB RD","08080","Sewell",null,null,null,null,null,null,null,"NL",null,"C",null,"C"]
[null,151," GOLF CLUB"," RD","151 GOLF CLUB RD","08080","Sewell",null,null,null,null,null,null,null,"NL",null,"C",null,"C"]
[null,30," GRANDVIEW"," RD","30 GRANDVIEW RD","08080","Sewell",null,null,null,null,null,null,null,"NL",null,"C",null,"C"]
[null,39," GRANDVIEW"," RD","39 GRANDVIEW RD","08080","Sewell",null,null,null,null,null,null,null,"NL",null,"C",null,"C"]
[null,45," GRANDVIEW"," RD","45 GRANDVIEW RD","08080","Sewell",null,null,null,null,null,null,null,"NL",null,"C",null,"C"]
[null,65," GRANDVIEW"," RD","65 GRANDVIEW RD","08080","Sewell",null,null,null,null,null,null,null,"NL",null,"C",null,"C"]
[null,70," GRANDVIEW"," RD","70 GRANDVIEW RD","08080","Sewell",null,null,null,null,null,null,null,"NL",null,"C",null,"C"]
[null,25," GRANDVIEW"," RD","25 GRANDVIEW RD","08080","Sewell",null,null,null,null,null,null,null,"NL",null,"C",null,"C"]
[null,20," GRANDVIEW"," RD","20 GRANDVIEW RD","08080","Sewell",null,null,null,null,null,null,null,"NL",null,"C",null,"C"]
[null,40," GRANDVIEW"," RD","40 GRANDVIEW RD","08080","Sewell",null,null,null,null,null,null,null,"NL",null,"C",null,"C"]
[null,902," GRAY FOX"," CIRCLE","902 GRAY FOX CIRCLE","08080","Sewell",null,null,null,null,null,null,null,"NL",null,"C",null,"C"]
[null,904," GRAY FOX"," CIRCLE","904 GRAY FOX CIRCLE","08080","Sewell",null,null,null,null,null,null,null,"NL",null,"C",null,"C"]
[null,910," GRAY FOX"," CIRCLE","910 GRAY FOX CIRCLE","08080","Sewell",null,null,null,null,null,null,null,"NL",null,"C",null,"C"]
[null,912," GRAY FOX"," CIRCLE","912 GRAY FOX CIRCLE","08080","Sewell",null,null,null,null,null,null,null,"NL",null,"C",null,"C"]
[null,914," GRAY FOX"," CIRCLE","914 GRAY FOX CIRCLE","08080","Sewell",null,null,null,null,null,null,null,"NL",null,"C",null,"C"]
[null,916," GRAY FOX"," CIRCLE","916 GRAY FOX CIRCLE","08080","Sewell",null,null,null,null,null,null,null,"NL",null,"C",null,"C"]
[null,918," GRAY FOX"," CIRCLE","918 GRAY FOX CIRCLE","08080","Sewell",null,null,null,null,null,null,null,"NL",null,"C",null,"C"]
[null,920," GRAY FOX"," CIRCLE","920 GRAY FOX CIRCLE","08080","Sewell",null,null,null,null,null,null,null,"NL",null,"C",null,"C"]
[null,922," GRAY FOX"," CIRCLE","922 GRAY FOX CIRCLE","08080","Sewell",null,null,null,null,null,null,null,"NL",null,"C",null,"C"]
[null,928," GRAY FOX"," CIRCLE","928 GRAY FOX CIRCLE","08080","Sewell",null,null,null,null,null,null,null,"NL",null,"C",null,"C"]
[null,930," GRAY FOX"," CIRCLE","930 GRAY FOX CIRCLE","08080","Sewell",null,null,null,null,null,null,null,"NL",null,"C",null,"C"]
[null,932," GRAY FOX"," CIRCLE","932 GRAY FOX CIRCLE","08080","Sewell",null,null,null,null,null,null,null,"NL",null,"C",null,"C"]
[null,934," GRAY FOX"," CIRCLE",{"$f":"_xlfn.CONCAT(B1922, C1922, D1922)","v":"934 GRAY FOX CIRCLE"},"08080","Sewell",null,null,null,null,null,null,null,"NL",null,"C",null,"C"]
[null,936," GRAY FOX"," CIRCLE","936 GRAY FOX CIRCLE","08080","Sewell",null,null,null,null,null,null,null,"NL",null,"C",null,"C"]
[null,938," GRAY FOX"," CIRCLE","938 GRAY FOX CIRCLE","08080","Sewell",null,null,null,null,null,null,null,"NL",null,"C",null,"C"]
[null,905," GRAY FOX"," CIRCLE","905 GRAY FOX CIRCLE","08080","Sewell",null,null,null,null,null,null,null,"NL",null,"C",null,"C"]
[null,907," GRAY FOX"," CIRCLE","907 GRAY FOX CIRCLE","08080","Sewell",null,null,null,null,null,null,null,"NL",null,"C",null,"C"]
[null,909," GRAY FOX"," CIRCLE","909 GRAY FOX CIRCLE","08080","Sewell",null,null,null,null,null,null,null,"NL",null,"C",null,"C"]
[null,911," GRAY FOX"," CIRCLE","911 GRAY FOX CIRCLE","08080","Sewell",null,null,null,null,null,null,null,"NL",null,"C",null,"C"]
[null,913," GRAY FOX"," CIRCLE","913 GRAY FOX CIRCLE","08080","Sewell",null,null,null,null,null,null,null,"NL",null,"C",null,"C"]
[null,915," GRAY FOX"," CIRCLE","915 GRAY FOX CIRCLE","08080","Sewell",null,null,null,null,null,null,null,"NL",null,"C",null,"C"]
[null,917," GRAY FOX"," CIRCLE","917 GRAY FOX CIRCLE","08080","Sewell",null,null,null,null,null,null,null,"NL",null,"C",null,"C"]
[null,919," GRAY FOX"," CIRCLE","919 GRAY FOX CIRCLE","08080","Sewell",null,null,null,null,null,null,null,"NL",null,"C",null,"C"]
[null,921," GRAY FOX"," CIRCLE","921 GRAY FOX CIRCLE","08080","Sewell",null,null,null,null,null,null,null,"NL",null,"C",null,"C"]
[null,923," GRAY FOX"," CIRCLE","923 GRAY FOX CIRCLE","08080","Sewell",null,null,null,null,null,null,null,"NL",null,"C",null,"C"]
[null,925," GRAY FOX"," CIRCLE","925 GRAY FOX CIRCLE","08080","Sewell",null,null,null,null,null,null,null,"NL",null,"C",null,"C"]
[null,927," GRAY FOX"," CIRCLE","927 GRAY FOX CIRCLE","08080","Sewell",null,null,null,null,null,null,null,"NL",null,"C",null,"C"]
[null,929," GRAY FOX"," CIRCLE","929 GRAY FOX CIRCLE","08080","Sewell",null,null,null,null,null,null,null,"NL",null,"C",null,"C"]
[null,931," GRAY FOX"," CIRCLE","931 GRAY FOX CIRCLE","08080","Sewell",null,null,null,null,null,null,null,"NL",null,"C",null,"C"]
[null,933," GRAY FOX"," CIRCLE","933 GRAY FOX CIRCLE","08080","Sewell",null,null,null,null,null,null,null,"NL",null,"C",null,"C"]
[null,935," GRAY FOX"," CIRCLE","935 GRAY FOX CIRCLE","08080","Sewell",null,null,null,null,null,null,null,"NL",null,"C",null,"C"]
[null,937," GRAY FOX"," CIRCLE","937 GRAY FOX CIRCLE","08080","Sewell",null,null,null,null,null,null,null,"NL",null,"C",null,"C"]
[null,939," GRAY FOX"," CIRCLE","939 GRAY FOX CIRCLE","08080","Sewell",null,null,null,null,null,null,null,"NL",null,"C",null,"C"]
[null,941," GRAY FOX"," CIRCLE","941 GRAY FOX CIRCLE","08080","Sewell",null,null,null,null,null,null,null,"NL",null,"C",null,"C"]
[null,1000," GRAY FOX"," CT","1000 GRAY FOX CT","08080","Sewell",null,null,null,null,null,null,null,"NL",null,"C",null,"C"]
[null,1001," GRAY FOX"," CIRCLE","1001 GRAY FOX CIRCLE","08080","Sewell",null,null,null,null,null,null,null,"NL",null,"C",null,"C"]
[null,1002," GRAY FOX"," CT","1002 GRAY FOX CT","08080","Sewell",null,null,null,null,null,null,null,"NL",null,"C",null,"C"]
[null,1003," GRAY FOX"," CT","1003 GRAY FOX CT","08080","Sewell",null,null,null,null,null,null,null,"NL",null,"C",null,"C"]
[null,1004," GRAY FOX"," CT","1004 GRAY FOX CT","08080","Sewell",null,null,null,null,null,null,null,"NL",null,"C",null,"C"]
[null,703," GREEN"," LN","703 GREEN LN","08080","Sewell",null,null,null,null,null,null,null,"NL",null,"C",null,"C"]
[null,705," GREEN"," LN","705 GREEN LN","08080","Sewell",null,null,null,null,null,null,null,"NL",null,"C",null,"C"]
[null,700," GREEN"," LN","700 GREEN LN","08080","Sewell",null,null,null,null,null,null,null,"NL",null,"C",null,"C"]
[null,701," GREEN"," LN","701 GREEN LN","08080","Sewell",null,null,null,null,null,null,null,"NL",null,"C",null,"C"]
[null,702," GREEN"," LN","702 GREEN LN","08080","Sewell",null,null,null,null,null,null,null,"NL",null,"C",null,"C"]
[null,20," GREENWOOD"," DR","20 GREENWOOD DR","08080","Sewell",null,null,null,null,null,null,null,"NL",null,"C",null,"C"]
[null,21," GREENWOOD"," DR","21 GREENWOOD DR","08080","Sewell",null,null,null,null,null,null,null,"NL",null,"C",null,"C"]
[null,27," GREENWOOD"," DR","27 GREENWOOD DR","08080","Sewell",null,null,null,null,null,null,null,"NL",null,"C",null,"C"]
[null,30," GREENWOOD"," DR","30 GREENWOOD DR","08080","Sewell",null,null,null,null,null,null,null,"NL",null,"C",null,"C"]
[null,32," GREENWOOD"," DR","32 GREENWOOD DR","08080","Sewell",null,null,null,null,null,null,null,"NL",null,"C",null,"C"]
[null,5," GREENWOOD"," DR","5 GREENWOOD DR","08080","Sewell",null,null,null,null,null,null,null,"NL",null,"C",null,"C"]
[null,10," GREENWOOD"," DR","10 GREENWOOD DR","08080","Sewell",null,null,null,null,null,null,null,"NL",null,"C",null,"C"]
[null,12," GREENWOOD"," DR","12 GREENWOOD DR","08080","Sewell",null,null,null,null,null,null,null,"NL",null,"C",null,"C"]
[null,16," GREENWOOD"," DR","16 GREENWOOD DR","08080","Sewell",null,null,null,null,null,null,null,"NL",null,"C",null,"C"]
[null,2," GREENWOOD"," DR","2 GREENWOOD DR","08080","Sewell",null,null,null,null,null,null,null,"NL",null,"C",null,"C"]
[null,22," GREENWOOD"," DR","22 GREENWOOD DR","08080","Sewell",null,null,null,null,null,null,null,"NL",null,"C",null,"C"]
[null,24," GREENWOOD"," DR","24 GREENWOOD DR","08080","Sewell",null,null,null,null,null,null,null,"NL",null,"C",null,"C"]
[null,26," GREENWOOD"," DR","26 GREENWOOD DR","08080","Sewell",null,null,null,null,null,null,null,"NL",null,"C",null,"C"]
[null,28," GREENWOOD"," DR","28 GREENWOOD DR","08080","Sewell",null,null,null,null,null,null,null,"NL",null,"C",null,"C"]
[null,34," GREENWOOD"," DR","34 GREENWOOD DR","08080","Sewell",null,null,null,null,null,null,null,"NL",null,"C",null,"C"]
[null,4," GREENWOOD"," DR","4 GREENWOOD DR","08080","Sewell",null,null,null,null,null,null,null,"NL",null,"C",null,"C"]
[null,6," GREENWOOD"," DR","6 GREENWOOD DR","08080","Sewell",null,null,null,null,null,null,null,"NL",null,"C",null,"C"]
[null,8," GREENWOOD"," DR","8 GREENWOOD DR","08080","Sewell",null,null,null,null,null,null,null,"NL",null,"C",null,"C"]
[null,1," GREENWOOD"," DR","1 GREENWOOD DR","08080","Sewell",null,null,null,null,null,null,null,"NL",null,"C",null,"C"]
[null,11," GREENWOOD"," DR","11 GREENWOOD DR","08080","Sewell",null,null,null,null,null,null,null,"NL",null,"C",null,"C"]
[null,15," GREENWOOD"," DR","15 GREENWOOD DR","08080","Sewell",null,null,null,null,null,null,null,"NL",null,"C",null,"C"]
[null,25," GREENWOOD"," DR","25 GREENWOOD DR","08080","Sewell",null,null,null,null,null,null,null,"NL",null,"C",null,"C"]
[null,29," GREENWOOD"," DR","29 GREENWOOD DR","08080","Sewell",null,null,null,null,null,null,null,"NL",null,"C",null,"C"]
[null,31," GREENWOOD"," DR","31 GREENWOOD DR","08080","Sewell",null,null,null,null,null,null,null,"NL",null,"C",null,"C"]
[null,7," GREENWOOD"," DR","7 GREENWOOD DR","08080","Sewell",null,null,null,null,null,null,null,"NL",null,"C",null,"C"]
[null,9," GREENWOOD"," DR","9 GREENWOOD DR","08080","Sewell",null,null,null,null,null,null,null,"NL",null,"C",null,"C"]
[null,209," HAMPTON"," AVE","209 HAMPTON AVE","08051","Mantua",null,null,null,null,null,null,null,"NL",null,"C",null,"C"]
[null,210," HAMPTON"," AVE","210 HAMPTON AVE","08051","Mantua",null,null,null,null,null,null,null,"NL",null,"C",null,"C"]
[null,212," HAMPTON"," AVE","212 HAMPTON AVE","08051","Mantua",null,null,null,null,null,null,null,"NL",null,"C",null,"C"]
[null,217," HAMPTON"," AVE","217 HAMPTON AVE","08051","Mantua",null,null,null,null,null,null,null,"NL",null,"C",null,"C"]
[null,211," HAMPTON"," AVE","211 HAMPTON AVE","08051","Mantua",null,null,null,null,null,null,null,"NL",null,"C",null,"C"]
[null,119," HAMPTON"," AVE","119 HAMPTON AVE","08051","Mantua",null,null,null,null,null,null,null,"NL",null,"C",null,"C"]
[null,330," HARRISON"," AVE",{"$f":"_xlfn.CONCAT(B1986, C1986, D1986)","v":"330 HARRISON AVE"},"08051","Mantua",null,null,null,null,null,null,null,"NL",null,"C",null,"C"]
[null,450," HARRISON"," AVE","450 HARRISON AVE","08051","Mantua",null,null,null,null,null,null,null,"NL",null,"C",null,"C"]
[null,460," HARRISON"," AVE","460 HARRISON AVE","08051","Mantua",null,null,null,null,null,null,null,"NL",null,"C",null,"C"]
[null,462," HARRISON"," AVE","462 HARRISON AVE","08051","Mantua",null,null,null,null,null,null,null,"NL",null,"C",null,"C"]
[null,470," HARRISON"," AVE","470 HARRISON AVE","08051","Mantua",null,null,null,null,null,null,null,"NL",null,"C",null,"C"]
[null,472," HARRISON"," AVE","472 HARRISON AVE","08051","Mantua",null,null,null,null,null,null,null,"NL",null,"C",null,"C"]
[null,475," HARRISON"," AVE","475 HARRISON AVE","08051","Mantua",null,null,null,null,null,null,null,"NL",null,"C",null,"C"]
[null,480," HARRISON"," AVE","480 HARRISON AVE","08051","Mantua",null,null,null,null,null,null,null,"NL",null,"C",null,"C"]
[null,490," HARRISON"," AVE","490 HARRISON AVE","08051","Mantua",null,null,null,null,null,null,null,"NL",null,"C",null,"C"]
[null,491," HARRISON"," AVE","491 HARRISON AVE","08051","Mantua",null,null,null,null,null,null,null,"NL",null,"C",null,"C"]
[null,496," HARRISON"," AVE","496 HARRISON AVE","08051","Mantua",null,null,null,null,null,null,null,"NL",null,"C",null,"C"]
[null,390," HARRISON"," AVE","390 HARRISON AVE","08051","Mantua",null,null,null,null,null,null,null,"NL",null,"C",null,"C"]
[null,485," HARRISON"," AVE","485 HARRISON AVE","08051","Mantua",null,null,null,null,null,null,null,"NL",null,"C",null,"C"]
[null,400," HARRISON"," AVE","400 HARRISON AVE","08051","Mantua",null,null,null,null,null,null,null,"NL",null,"C",null,"C"]
[null,464," HARRISON"," AVE","464 HARRISON AVE","08051","Mantua",null,null,null,null,null,null,null,"NL",null,"C",null,"C"]
[null,474," HARRISON"," AVE","474 HARRISON AVE","08051","Mantua",null,null,null,null,null,null,null,"NL",null,"C",null,"C"]
[null,370," HARRISON"," AVE","370 HARRISON AVE","08051","Mantua",null,null,null,null,null,null,null,"NL",null,"C",null,"C"]
[null,633," HELENA"," AVE","633 HELENA AVE","08051","Mantua",null,null,null,null,null,null,null,"NL",null,"C",null,"C"]
[null,635," HELENA"," AVE","635 HELENA AVE","08051","Mantua",null,null,null,null,null,null,null,"NL",null,"C",null,"C"]
[null,645," HELENA"," AVE","645 HELENA AVE","08051","Mantua",null,null,null,null,null,null,null,"NL",null,"C",null,"C"]
[null,655," HELENA"," AVE","655 HELENA AVE","08051","Mantua",null,null,null,null,null,null,null,"NL",null,"C",null,"C"]
[null,638," HELENA"," AVE","638 HELENA AVE","08051","Mantua",null,null,null,null,null,null,null,"NL",null,"C",null,"C"]
[null,640," HELENA"," AVE","640 HELENA AVE","08051","Mantua",null,null,null,null,null,null,null,"NL",null,"C",null,"C"]
[null,650," HELENA"," AVE","650 HELENA AVE","08051","Mantua",null,null,null,null,null,null,null,"NL",null,"C",null,"C"]
[null,150," HERITAGE"," RD","150 HERITAGE RD","08080","Sewell",null,null,null,null,null,null,null,"NL",null,"C",null,"C"]
[null,306," HERITAGE"," RD","306 HERITAGE RD","08080","Sewell",null,null,null,null,null,null,null,"NL",null,"C",null,"C"]
[null,221," HERITAGE"," RD","221 HERITAGE RD","08080","Sewell",null,null,null,null,null,null,null,"NL",null,"C",null,"C"]
[null,230," HERITAGE"," RD",{"$f":"_xlfn.CONCAT(B2050, C2050, D2050)","v":"230 HERITAGE RD"},"08080","Sewell",null,null,null,null,null,null,null,"NL",null,"C",null,"C"]
[null,1," HIALEAH"," AVE","1 HIALEAH AVE","08051","Mantua",null,null,null,null,null,null,null,"NL",null,"C",null,"C"]
[null,64," HIALEAH"," AVE","64 HIALEAH AVE","08051","Mantua",null,null,null,null,null,null,null,"NL",null,"C",null,"C"]
[null,13," HIBISCUS"," CT","13 HIBISCUS CT","08080","Sewell",null,null,null,null,null,null,null,"NL",null,"C",null,"P"]
[null,25," HIBISCUS"," CT","25 HIBISCUS CT","08080","Sewell",null,null,null,null,null,null,null,"NL",null,"C",null,"P"]
[null,37," HIBISCUS"," CT","37 HIBISCUS CT","08080","Sewell",null,null,null,null,null,null,null,"NL",null,"C",null,"P"]
[null,6," HIBISCUS"," CT","6 HIBISCUS CT","08080","Sewell",null,null,null,null,null,null,null,"NL",null,"C",null,"P"]
[null,9," HIBISCUS"," CT","9 HIBISCUS CT","08080","Sewell",null,null,null,null,null,null,null,"NL",null,"C",null,"P"]
[null,73," HICKORY"," AVE","73 HICKORY AVE","08051","Mantua",null,null,null,null,null,null,null,"NL",null,"C",null,"C"]
[null,85," HICKORY"," AVE","85 HICKORY AVE","08051","Mantua",null,null,null,null,null,null,null,"NL",null,"C",null,"C"]
[null,18," HIDDEN SPRINGS"," DR","18 HIDDEN SPRINGS DR","08051","Mantua",null,null,null,null,null,null,null,"NL",null,"C",null,"P"]
[null,17," HIDDEN SPRINGS"," DR","17 HIDDEN SPRINGS DR","08051","Mantua",null,null,null,null,null,null,null,"NL",null,"C",null,"P"]
[null,35," HIGH"," ST","35 HIGH ST","08051","Mantua",null,null,null,null,null,null,null,"NL",null,"C",null,"C"]
[null,41," HIGH"," ST","41 HIGH ST","08051","Mantua",null,null,null,null,null,null,null,"NL",null,"C",null,"C"]
[null,102," HILL"," ST","102 HILL ST","08051","Mantua",null,null,null,null,null,null,null,"NL",null,"C",null,"C"]
[null,106," HILL"," ST","106 HILL ST","08051","Mantua",null,null,null,null,null,null,null,"NL",null,"C",null,"C"]
[null,36," HILL"," ST","36 HILL ST","08051","Mantua",null,null,null,null,null,null,null,"NL",null,"C",null,"C"]
[null,121," HILL"," ST","121 HILL ST","08051","Mantua",null,null,null,null,null,null,null,"NL",null,"C",null,"C"]
[null,28," HILL"," ST","28 HILL ST","08051","Mantua",null,null,null,null,null,null,null,"NL",null,"C",null,"C"]
[null,61," HIRST"," AVE","61 HIRST AVE","08051","Mantua",null,null,null,null,null,null,null,"NL",null,"C",null,"UX"]
[null,25," HOLLYBROOK"," DR","25 HOLLYBROOK DR","08080","Sewell",null,null,null,null,null,null,null,"NL",null,"C",null,"P"]
[null,47," HOLLYBROOK"," DR","47 HOLLYBROOK DR","08080","Sewell",null,null,null,null,null,null,null,"NL",null,"C",null,"P"]
[null,19," HOLLYBROOK"," DR","19 HOLLYBROOK DR","08080","Sewell",null,null,null,null,null,null,null,"NL",null,"C",null,"P"]
[null,21," HOLLYBROOK"," DR","21 HOLLYBROOK DR","08080","Sewell",null,null,null,null,null,null,null,"NL",null,"C",null,"P"]
[null,43," HOLLYBROOK"," DR","43 HOLLYBROOK DR","08080","Sewell",null,null,null,null,null,null,null,"NL",null,"C",null,"P"]
[null,24," HOLLYBROOK"," DR","24 HOLLYBROOK DR","08080","Sewell",null,null,null,null,null,null,null,"NL",null,"C",null,"P"]
[null,42," HOLLYBROOK"," DR","42 HOLLYBROOK DR","08080","Sewell",null,null,null,null,null,null,null,"NL",null,"C",null,"P"]
[null,48," HOLLYBROOK"," DR","48 HOLLYBROOK DR","08080","Sewell",null,null,null,null,null,null,null,"NL",null,"C",null,"P"]
[null,124," HORSESHOE"," DR","124 HORSESHOE DR","08051","Mantua",null,null,null,null,null,null,null,"NL",null,"C",null,"P"]
[null,113," HORSESHOE"," DR","113 HORSESHOE DR","08051","Mantua",null,null,null,null,null,null,null,"NL",null,"C",null,"P"]
[null,123," HORSESHOE"," DR","123 HORSESHOE DR","08051","Mantua",null,null,null,null,null,null,null,"NL",null,"C",null,"P"]
[null,125," HORSESHOE"," DR","125 HORSESHOE DR","08051","Mantua",null,null,null,null,null,null,null,"NL",null,"C",null,"P"]
[null,101," HUMMINGBIRD"," WAY","101 HUMMINGBIRD WAY","08080","Sewell",null,null,null,null,null,null,null,"NL",null,"C",null,"P"]
[null,82," HUMMINGBIRD"," WAY","82 HUMMINGBIRD WAY","08080","Sewell",null,null,null,null,null,null,null,"NL",null,"C",null,"P"]
[null,89," HUMMINGBIRD"," WAY","89 HUMMINGBIRD WAY","08080","Sewell",null,null,null,null,null,null,null,"NL",null,"C",null,"P"]
[null,92," HUMMINGBIRD"," WAY","92 HUMMINGBIRD WAY","08080","Sewell",null,null,null,null,null,null,null,"NL",null,"C",null,"P"]
[null,98," HUMMINGBIRD"," WAY","98 HUMMINGBIRD WAY","08080","Sewell",null,null,null,null,null,null,null,"NL",null,"C",null,"P"]
[null,100," HUMMINGBIRD"," WAY","100 HUMMINGBIRD WAY","08080","Sewell",null,null,null,null,null,null,null,"NL",null,"C",null,"P"]
[null,131," HUNTERDON"," AVE","131 HUNTERDON AVE","08080","Sewell",null,null,null,null,null,null,null,"NL",null,"C",null,"C"]
[null,151," HUNTERDON"," AVE","151 HUNTERDON AVE","08080","Sewell",null,null,null,null,null,null,null,"NL",null,"C",null,"C"]
[null,203," HUNTERDON"," AVE","203 HUNTERDON AVE","08080","Sewell",null,null,null,null,null,null,null,"NL",null,"C",null,"C"]
[null,213," HUNTERDON"," AVE","213 HUNTERDON AVE","08080","Sewell",null,null,null,null,null,null,null,"NL",null,"C",null,"C"]
[null,206," HUNTERDON"," AVE","206 HUNTERDON AVE","08080","Sewell",null,null,null,null,null,null,null,"NL",null,"C",null,"C"]
[null,208," HUNTERDON"," AVE","208 HUNTERDON AVE","08080","Sewell",null,null,null,null,null,null,null,"NL",null,"C",null,"C"]
[null,221," HUNTERDON"," AVE","221 HUNTERDON AVE","08080","Sewell",null,null,null,null,null,null,null,"NL",null,"C",null,"C"]
[null,"ANNUAL"," IRRIGATION",null,"ANNUAL IRRIGATION","08051","Mantua",null,null,null,null,null,null,null,"NL",null,"C",null,"NA"]
[null,301," JACKSON"," RD","301 JACKSON RD","08051","Mantua",null,null,null,null,null,null,null,"NL",null,"C",null,"C"]
[null,309," JACKSON"," RD","309 JACKSON RD","08051","Mantua",null,null,null,null,null,null,null,"NL",null,"C",null,"C"]
[null,357," JACKSON"," RD","357 JACKSON RD","08051","Mantua",null,null,null,null,null,null,null,"NL",null,"C",null,"C"]
[null,377," JACKSON"," RD","377 JACKSON RD","08051","Mantua",null,null,null,null,null,null,null,"NL",null,"C",null,"C"]
[null,393," JACKSON"," RD","393 JACKSON RD","08051","Mantua",null,null,null,null,null,null,null,"NL",null,"C",null,"C"]
[null,325," JACKSON"," RD","325 JACKSON RD","08051","Mantua",null,null,null,null,null,null,null,"NL",null,"C",null,"C"]
[null,391," JACKSON"," RD","391 JACKSON RD","08051","Mantua",null,null,null,null,null,null,null,"NL",null,"C",null,"C"]
[null,247," JACKSON"," RD","247 JACKSON RD","08051","Mantua",null,null,null,null,null,null,null,"NL",null,"C",null,"C"]
[null,267," JACKSON"," RD","267 JACKSON RD","08051","Mantua",null,null,null,null,null,null,null,"NL",null,"C",null,"C"]
[null,271," JACKSON"," RD","271 JACKSON RD","08051","Mantua",null,null,null,null,null,null,null,"NL",null,"C",null,"C"]
[null,291," JACKSON"," RD","291 JACKSON RD","08051","Mantua",null,null,null,null,null,null,null,"NL",null,"C",null,"C"]
[null,187," JACKSON"," RD","187 JACKSON RD","08051","Mantua",null,null,null,null,null,null,null,"NL",null,"C",null,"C"]
[null,115," JEFFERSON"," RD","115 JEFFERSON RD","08080","Sewell",null,null,null,null,null,null,null,"NL",null,"C",null,"C"]
[null,161," JEFFERSON"," RD","161 JEFFERSON RD","08080","Sewell",null,null,null,null,null,null,null,"NL",null,"C",null,"C"]
[null,"336B"," JESSUP MILL"," RD","336B JESSUP MILL RD","08020","Clarksboro",null,null,null,null,null,null,null,"NL",null,"C",null,"P"]
[null,435," JESSUP MILL"," RD","435 JESSUP MILL RD","08051","Mantua",null,null,null,null,null,null,null,"NL",null,"C",null,"C"]
[null,405," JESSUP MILL"," RD","405 JESSUP MILL RD","08051","Mantua",null,null,null,null,null,null,null,"NL",null,"C",null,"C"]
[null,445," JESSUP MILL"," RD","445 JESSUP MILL RD","08051","Mantua",null,null,null,null,null,null,null,"NL",null,"C",null,"C"]
[null,2," KETTLEWOOD"," CT","2 KETTLEWOOD CT","08051","Mantua",null,null,null,null,null,null,null,"NL",null,"C",null,"P"]
[null,8," KETTLEWOOD"," CT","8 KETTLEWOOD CT","08051","Mantua",null,null,null,null,null,null,null,"NL",null,"C",null,"P"]
[null,16," KINGSLEY"," RD","16 KINGSLEY RD","08080","Sewell",null,null,null,null,null,null,null,"NL",null,"C",null,"C"]
[null,18," KINGSLEY"," RD","18 KINGSLEY RD","08080","Sewell",null,null,null,null,null,null,null,"NL",null,"C",null,"C"]
[null,15," KINGSLEY"," RD","15 KINGSLEY RD","08080","Sewell",null,null,null,null,null,null,null,"NL",null,"C",null,"C"]
[null,17," KRISTEN"," LN","17 KRISTEN LN","08051","Mantua",null,null,null,null,null,null,null,"NL",null,"C",null,"P"]
[null,27," KRISTEN"," LN","27 KRISTEN LN","08051","Mantua",null,null,null,null,null,null,null,"NL",null,"C",null,"P"]
[null,3," KRISTEN"," LN","3 KRISTEN LN","08051","Mantua",null,null,null,null,null,null,null,"NL",null,"C",null,"P"]
[null,39," KRISTEN"," LN","39 KRISTEN LN","08051","Mantua",null,null,null,null,null,null,null,"NL",null,"C",null,"P"]
[null,10," KRISTEN"," LN","10 KRISTEN LN","08051","Mantua",null,null,null,null,null,null,null,"NL",null,"C",null,"P"]
[null,20," KRISTEN"," LN","20 KRISTEN LN","08051","Mantua",null,null,null,null,null,null,null,"NL",null,"C",null,"P"]
[null,24," KRISTEN"," LN","24 KRISTEN LN","08051","Mantua",null,null,null,null,null,null,null,"NL",null,"C",null,"P"]
[null,34," KRISTEN"," LN","34 KRISTEN LN","08051","Mantua",null,null,null,null,null,null,null,"NL",null,"C",null,"P"]
[null,334," LAMBS"," RD","334 LAMBS RD","08080","Sewell",null,null,null,null,null,null,null,"NL",null,"C",null,"C"]
[null,536," LAMBS"," RD","536 LAMBS RD","08071","Pitman",null,null,null,null,null,null,null,"NL",null,"C",null,"C"]
[null,464," LAMBS"," RD",{"$f":"_xlfn.CONCAT(B2370, C2370, D2370)","v":"464 LAMBS RD"},"08071","Pitman",null,null,null,null,null,null,null,"NL",null,"C",null,"C"]
[null,498," LAMBS"," RD","498 LAMBS RD","08071","Pitman",null,null,null,null,null,null,null,"NL",null,"C",null,"C"]
[null,310," LANSING"," DR","310 LANSING DR","08051","Mantua",null,null,null,null,null,null,null,"NL",null,"C",null,"C"]
[null,378," LANSING"," DR","378 LANSING DR","08051","Mantua",null,null,null,null,null,null,null,"NL",null,"C",null,"C"]
[null,380," LANSING"," DR","380 LANSING DR","08051","Mantua",null,null,null,null,null,null,null,"NL",null,"C",null,"C"]
[null,387," LANSING"," DR","387 LANSING DR","08051","Mantua",null,null,null,null,null,null,null,"NL",null,"C",null,"C"]
[null,394," LANSING"," DR","394 LANSING DR","08051","Mantua",null,null,null,null,null,null,null,"NL",null,"C",null,"C"]
[null,334," LANSING"," DR","334 LANSING DR","08051","Mantua",null,null,null,null,null,null,null,"NL",null,"C",null,"C"]
[null,366," LANSING"," DR","366 LANSING DR","08051","Mantua",null,null,null,null,null,null,null,"NL",null,"C",null,"C"]
[null,299," LANSING"," DR","299 LANSING DR","08051","Mantua",null,null,null,null,null,null,null,"NL",null,"C",null,"C"]
[null,259," LANSING"," DR","259 LANSING DR","08051","Mantua",null,null,null,null,null,null,null,"NL",null,"C",null,"C"]
[null,262," LANSING"," DR","262 LANSING DR","08051","Mantua",null,null,null,null,null,null,null,"NL",null,"C",null,"C"]
[null,266," LANSING"," DR","266 LANSING DR","08051","Mantua",null,null,null,null,null,null,null,"NL",null,"C",null,"C"]
[null,286," LANSING"," DR","286 LANSING DR","08051","Mantua",null,null,null,null,null,null,null,"NL",null,"C",null,"C"]
[null,267," LANSING"," DR","267 LANSING DR","08051","Mantua",null,null,null,null,null,null,null,"NL",null,"C",null,"C"]
[null,393," LANSING"," DR",{"$f":"_xlfn.CONCAT(B2434, C2434, D2434)","v":"393 LANSING DR"},"08051","Mantua",null,null,null,null,null,null,null,"NL",null,"C",null,"C"]
[null,397," LANSING"," DR","397 LANSING DR","08051","Mantua",null,null,null,null,null,null,null,"NL",null,"C",null,"C"]
[null,24," LAVENDER"," CT","24 LAVENDER CT","08080","Sewell",null,null,null,null,null,null,null,"NL",null,"C",null,"P"]
[null,31," LAVENDER"," CT","31 LAVENDER CT","08080","Sewell",null,null,null,null,null,null,null,"NL",null,"C",null,"P"]
[null,38," LAVENDER"," CT","38 LAVENDER CT","08080","Sewell",null,null,null,null,null,null,null,"NL",null,"C",null,"P"]
[null,39," LAVENDER"," CT","39 LAVENDER CT","08080","Sewell",null,null,null,null,null,null,null,"NL",null,"C",null,"P"]
[null,44," LAVENDER"," CT","44 LAVENDER CT","08080","Sewell",null,null,null,null,null,null,null,"NL",null,"C",null,"P"]
[null,3," LEGENDS"," LN","3 LEGENDS LN","08051","Mantua",null,null,null,null,null,null,null,"NL",null,"C",null,"P"]
[null,504," LESTERSHIRE"," DR","504 LESTERSHIRE DR","08080","Sewell",null,null,null,null,null,null,null,"NL",null,"C",null,"UX"]
[null,506," LESTERSHIRE"," DR","506 LESTERSHIRE DR","08080","Sewell",null,null,null,null,null,null,null,"NL",null,"C",null,"UX"]
[null,516," LESTERSHIRE"," DR","516 LESTERSHIRE DR","08080","Sewell",null,null,null,null,null,null,null,"NL",null,"C",null,"UX"]
[null,604," LESTERSHIRE"," DR","604 LESTERSHIRE DR","08080","Sewell",null,null,null,null,null,null,null,"NL",null,"C",null,"UX"]
[null,614," LESTERSHIRE"," DR","614 LESTERSHIRE DR","08080","Sewell",null,null,null,null,null,null,null,"NL",null,"C",null,"UX"]
[null,616," LESTERSHIRE"," DR","616 LESTERSHIRE DR","08080","Sewell",null,null,null,null,null,null,null,"NL",null,"C",null,"UX"]
[null,513," LESTERSHIRE"," DR","513 LESTERSHIRE DR","08080","Sewell",null,null,null,null,null,null,null,"NL",null,"C",null,"UX"]
[null,607," LESTERSHIRE"," DR","607 LESTERSHIRE DR","08080","Sewell",null,null,null,null,null,null,null,"NL",null,"C",null,"UX"]
[null,617," LESTERSHIRE"," DR","617 LESTERSHIRE DR","08080","Sewell",null,null,null,null,null,null,null,"NL",null,"C",null,"UX"]
[null,10," LILAC"," CT","10 LILAC CT","08080","Sewell",null,null,null,null,null,null,null,"NL",null,"C",null,"P"]
[null,7," LILAC"," CT","7 LILAC CT","08080","Sewell",null,null,null,null,null,null,null,"NL",null,"C",null,"P"]
[null,116," LINCOLN"," AVE","116 LINCOLN AVE","08051","Mantua",null,null,null,null,null,null,null,"NL",null,"C",null,"C"]
[null,115," LINCOLN"," AVE","115 LINCOLN AVE","08051","Mantua",null,null,null,null,null,null,null,"NL",null,"C",null,"C"]
[null,117," LINCOLN"," AVE","117 LINCOLN AVE","08051","Mantua",null,null,null,null,null,null,null,"NL",null,"C",null,"C"]
[null,205," LINCOLN"," AVE","205 LINCOLN AVE","08051","Mantua",null,null,null,null,null,null,null,"NL",null,"C",null,"C"]
[null,118," LINDEN"," AVE","118 LINDEN AVE","08051","Mantua",null,null,null,null,null,null,null,"NL",null,"C",null,"C"]
[null,115," LINDEN"," AVE","115 LINDEN AVE","08051","Mantua",null,null,null,null,null,null,null,"NL",null,"C",null,"C"]
[null,119," LINDEN"," AVE","119 LINDEN AVE","08051","Mantua",null,null,null,null,null,null,null,"NL",null,"C",null,"C"]
[null,"49-53"," LINDEN"," AVE","49-53 LINDEN AVE","08051","Mantua",null,null,null,null,null,null,null,"NL",null,"C",null,"C"]
[null,168," LINDEN"," AVE","168 LINDEN AVE","08051","Mantua",null,null,null,null,null,null,null,"NL",null,"C",null,"C"]
[null,40," LINDEN"," AVE","40 LINDEN AVE","08051","Mantua",null,null,null,null,null,null,null,"NL",null,"C",null,"C"]
[null,44," LINDEN"," AVE","44 LINDEN AVE","08051","Mantua",null,null,null,null,null,null,null,"NL",null,"C",null,"C"]
[null,157," LINDEN"," AVE","157 LINDEN AVE","08051","Mantua",null,null,null,null,null,null,null,"NL",null,"C",null,"C"]
[null,11," LITTLE MILL"," CT","11 LITTLE MILL CT","08051","Mantua",null,null,null,null,null,null,null,"NL",null,"C",null,"C"]
[null,3," LITTLE MILL"," CT","3 LITTLE MILL CT","08051","Mantua",null,null,null,null,null,null,null,"NL",null,"C",null,"C"]
[null,13," LIVINGSTONE"," RD","13 LIVINGSTONE RD","08080","Sewell",null,null,null,null,null,null,null,"NL",null,"C",null,"UX"]
[null,17," LIVINGSTONE"," RD","17 LIVINGSTONE RD","08080","Sewell",null,null,null,null,null,null,null,"NL",null,"C",null,"UX"]
[null,9," LIVINGSTONE"," RD","9 LIVINGSTONE RD","08080","Sewell",null,null,null,null,null,null,null,"NL",null,"C",null,"UX"]
[null,18," LIVINGSTONE"," RD","18 LIVINGSTONE RD","08080","Sewell",null,null,null,null,null,null,null,"NL",null,"C",null,"UX"]
[null,2," LIVINGSTONE"," RD","2 LIVINGSTONE RD","08080","Sewell",null,null,null,null,null,null,null,"NL",null,"C",null,"UX"]
[null,6," LIVINGSTONE"," RD","6 LIVINGSTONE RD","08080","Sewell",null,null,null,null,null,null,null,"NL",null,"C",null,"UX"]
[null,300," MADISON"," RD","300 MADISON RD","08051","Mantua",null,null,null,null,null,null,null,"NL",null,"C",null,"C"]
[null,331," MADISON"," RD","331 MADISON RD","08051","Mantua",null,null,null,null,null,null,null,"NL",null,"C",null,"C"]
[null,337," MADISON"," RD","337 MADISON RD","08051","Mantua",null,null,null,null,null,null,null,"NL",null,"C",null,"C"]
[null,366," MADISON"," RD","366 MADISON RD","08051","Mantua",null,null,null,null,null,null,null,"NL",null,"C",null,"C"]
[null,259," MADISON"," RD","259 MADISON RD","08051","Mantua",null,null,null,null,null,null,null,"NL",null,"C",null,"C"]
[null,279," MADISON"," RD","279 MADISON RD","08051","Mantua",null,null,null,null,null,null,null,"NL",null,"C",null,"C"]
[null,283," MADISON"," RD","283 MADISON RD","08051","Mantua",null,null,null,null,null,null,null,"NL",null,"C",null,"C"]
[null,268," MADISON"," RD","268 MADISON RD","08051","Mantua",null,null,null,null,null,null,null,"NL",null,"C",null,"C"]
[null,313," MADISON"," RD","313 MADISON RD","08051","Mantua",null,null,null,null,null,null,null,"NL",null,"C",null,"C"]
[null,252," MADISON"," RD","252 MADISON RD","08051","Mantua",null,null,null,null,null,null,null,"NL",null,"C",null,"C"]
[null,256," MADISON"," RD","256 MADISON RD","08051","Mantua",null,null,null,null,null,null,null,"NL",null,"C",null,"C"]
[null,137," MAIN"," ST","137 MAIN ST","08051","Mantua",null,null,null,null,null,null,null,"NL",null,"C",null,"C"]
[null,233," MAIN"," ST","233 MAIN ST","08051","Mantua",null,null,null,null,null,null,null,"NL",null,"C",null,"C"]
[null,338," MAIN"," ST","338 MAIN ST","08051","Mantua",null,null,null,null,null,null,null,"NL",null,"C",null,"C"]
[null,339," MAIN"," ST","339 MAIN ST","08051","Mantua",null,null,null,null,null,null,null,"NL",null,"C",null,"C"]
[null,397," MAIN"," ST","397 MAIN ST","08051","Mantua",null,null,null,null,null,null,null,"NL",null,"C",null,"C"]
[null,411," MAIN"," ST","411 MAIN ST","08051","Mantua",null,null,null,null,null,null,null,"NL",null,"C",null,"C"]
[null,247," MAIN"," ST","247 MAIN ST","08051","Mantua",null,null,null,null,null,null,null,"NL",null,"C",null,"C"]
[null,240," MAIN"," ST","240 MAIN ST","08051","Mantua",null,null,null,null,null,null,null,"NL",null,"C",null,"C"]
[null,118," MAIN"," ST","118 MAIN ST","08051","Mantua",null,null,null,null,null,null,null,"NL",null,"C",null,"C"]
[null,209," MAIN"," ST","209 MAIN ST","08051","Mantua",null,null,null,null,null,null,null,"NL",null,"C",null,"C"]
[null,138," MAIN"," ST","138 MAIN ST","08051","Mantua",null,null,null,null,null,null,null,"NL",null,"C",null,"C"]
[null,146," MAIN"," ST","146 MAIN ST","08051","Mantua",null,null,null,null,null,null,null,"NL",null,"C",null,"C"]
[null,202," MAIN"," ST","202 MAIN ST","08051","Mantua",null,null,null,null,null,null,null,"NL",null,"C",null,"C"]
[null,216," MAIN"," ST","216 MAIN ST","08051","Mantua",null,null,null,null,null,null,null,"NL",null,"C",null,"C"]
[null,354," MAIN"," ST","354 MAIN ST","08051","Mantua",null,null,null,null,null,null,null,"NL",null,"C",null,"C"]
[null,47," MAIN"," ST","47 MAIN ST","08051","Mantua",null,null,null,null,null,null,null,"NL",null,"C",null,"C"]
[null,1019," MAIN"," ST","1019 MAIN ST","08080","Sewell",null,null,null,null,null,null,null,"NL",null,"C",null,"C"]
[null,460," MAIN"," ST","460 MAIN ST","08080","Sewell",null,null,null,null,null,null,null,"NL",null,"C",null,"C"]
[null,608," MAIN"," ST","608 MAIN ST","08080","Sewell",null,null,null,null,null,null,null,"NL",null,"C",null,"C"]
[null,610," MAIN"," ST","610 MAIN ST","08080","Sewell",null,null,null,null,null,null,null,"NL",null,"C",null,"C"]
[null,648," MAIN"," ST","648 MAIN ST","08080","Sewell",null,null,null,null,null,null,null,"NL",null,"C",null,"C"]
[null,671," MAIN"," ST","671 MAIN ST","08080","Sewell",null,null,null,null,null,null,null,"NL",null,"C",null,"C"]
[null,688," MAIN"," ST","688 MAIN ST","08080","Sewell",null,null,null,null,null,null,null,"NL",null,"C",null,"C"]
[null,690," MAIN"," ST","690 MAIN ST","08080","Sewell",null,null,null,null,null,null,null,"NL",null,"C",null,"C"]
[null,710," MAIN"," ST","710 MAIN ST","08080","Sewell",null,null,null,null,null,null,null,"NL",null,"C",null,"C"]
[null,732," MAIN"," ST","732 MAIN ST","08080","Sewell",null,null,null,null,null,null,null,"NL",null,"C",null,"C"]
[null,758," MAIN"," ST","758 MAIN ST","08080","Sewell",null,null,null,null,null,null,null,"NL",null,"C",null,"C"]
[null,759," MAIN"," ST","759 MAIN ST","08080","Sewell",null,null,null,null,null,null,null,"NL",null,"C",null,"C"]
[null,781," MAIN"," ST","781 MAIN ST","08080","Sewell",null,null,null,null,null,null,null,"NL",null,"C",null,"C"]
[null,828," MAIN"," ST",{"$f":"_xlfn.CONCAT(B2754, C2754, D2754)","v":"828 MAIN ST"},"08080","Sewell",null,null,null,null,null,null,null,"NL",null,"C",null,"C"]
[null,845," MAIN"," ST","845 MAIN ST","08080","Sewell",null,null,null,null,null,null,null,"NL",null,"C",null,"C"]
[null,912," MAIN"," ST","912 MAIN ST","08080","Sewell",null,null,null,null,null,null,null,"NL",null,"C",null,"C"]
[null,929," MAIN"," ST","929 MAIN ST","08080","Sewell",null,null,null,null,null,null,null,"NL",null,"C",null,"C"]
[null,949," MAIN"," ST","949 MAIN ST","08080","Sewell",null,null,null,null,null,null,null,"NL",null,"C",null,"C"]
[null,"642-644"," MAIN"," ST","642-644 MAIN ST","08080","Sewell",null,null,null,null,null,null,null,"NL",null,"C",null,"C"]
[null,695," MAIN"," ST","695 MAIN ST","08080","Sewell",null,null,null,null,null,null,null,"NL",null,"C",null,"C"]
[null,"569-571"," MAIN"," ST","569-571 MAIN ST","08080","Sewell",null,null,null,null,null,null,null,"NL",null,"C",null,"C"]
[null,601," MAIN"," ST","601 MAIN ST","08080","Sewell",null,null,null,null,null,null,null,"NL",null,"C",null,"C"]
[null,681," MAIN"," ST","681 MAIN ST","08080","Sewell",null,null,null,null,null,null,null,"NL",null,"C",null,"C"]
[null,684," MAIN"," ST","684 MAIN ST","08080","Sewell",null,null,null,null,null,null,null,"NL",null,"C",null,"C"]
[null,645," MAIN"," ST","645 MAIN ST","08080","Sewell",null,null,null,null,null,null,null,"NL",null,"C",null,"C"]
[null,760," MAIN"," ST","760 MAIN ST","08080","Sewell",null,null,null,null,null,null,null,"NL",null,"C",null,"C"]
[null,825," MAIN"," ST","825 MAIN ST","08080","Sewell",null,null,null,null,null,null,null,"NL",null,"C",null,"C"]
[null,856," MAIN"," ST","856 MAIN ST","08080","Sewell",null,null,null,null,null,null,null,"NL",null,"C",null,"C"]
[null,957," MAIN"," ST","957 MAIN ST","08080","Sewell",null,null,null,null,null,null,null,"NL",null,"C",null,"C"]
[null,985," MAIN"," ST","985 MAIN ST","08080","Sewell",null,null,null,null,null,null,null,"NL",null,"C",null,"C"]
[null,909," MAIN"," ST","909 MAIN ST","08080","Sewell",null,null,null,null,null,null,null,"NL",null,"C",null,"C"]
[null,959," MAIN"," ST","959 MAIN ST","08080","Sewell",null,null,null,null,null,null,null,"NL",null,"C",null,"C"]
[null,1096," MAIN"," ST","1096 MAIN ST","08080","Sewell",null,null,null,null,null,null,null,"NL",null,"C",null,"C"]
[null,739," MAIN"," ST","739 MAIN ST","08080","Sewell",null,null,null,null,null,null,null,"NL",null,"C",null,"C"]
[null,101," MANTUA"," BLVD","101 MANTUA BLVD","08051","Mantua",null,null,null,null,null,null,null,"UL","N","C",null,"UX"]
[null,102," MANTUA"," BLVD","102 MANTUA BLVD","08051","Mantua",null,null,null,null,null,null,null,"UL","N","C",null,"UX"]
[null,122," MANTUA"," BLVD","122 MANTUA BLVD","08051","Mantua",null,null,null,null,null,null,null,"UL","N","C",null,"UX"]
[null,244," MANTUA"," BLVD","244 MANTUA BLVD","08051","Mantua",null,null,null,null,null,null,null,"UL","N","C",null,"UX"]
[null,315," MANTUA"," BLVD","315 MANTUA BLVD","08051","Mantua",null,null,null,null,null,null,null,"UL","N","C",null,"UX"]
[null,327," MANTUA"," BLVD","327 MANTUA BLVD","08051","Mantua",null,null,null,null,null,null,null,"UL","N","C",null,"UX"]
[null,85," MANTUA"," BLVD","85 MANTUA BLVD","08051","Mantua",null,null,null,null,null,null,null,"UL","N","C",null,"UX"]
[null,145," MANTUA"," BLVD","145 MANTUA BLVD","08051","Mantua",null,null,null,null,null,null,null,"UL","N","C",null,"UX"]
[null,237," MANTUA"," BLVD","237 MANTUA BLVD","08051","Mantua",null,null,null,null,null,null,null,"UL","N","C",null,"UX"]
[null,236," MANTUA"," BLVD","236 MANTUA BLVD","08051","Mantua",null,null,null,null,null,null,null,"UL","N","C",null,"UX"]
[null,271," MANTUA"," BLVD","271 MANTUA BLVD","08051","Mantua",null,null,null,null,null,null,null,"UL","N","C",null,"UX"]
[null,75," MANTUA"," BLVD","75 MANTUA BLVD","08051","Mantua",null,null,null,null,null,null,null,"UL","N","C",null,"UX"]
[null,489," MANTUA"," BLVD","489 MANTUA BLVD","08080","Sewell",null,null,null,null,null,null,null,"NL",null,"C",null,"C"]
[null,509," MANTUA"," BLVD","509 MANTUA BLVD","08080","Sewell",null,null,null,null,null,null,null,"NL",null,"C",null,"C"]
[null,570," MANTUA"," BLVD","570 MANTUA BLVD","08080","Sewell",null,null,null,null,null,null,null,"NL",null,"C",null,"C"]
[null,938," MANTUA"," BLVD","938 MANTUA BLVD","08080","Sewell",null,null,null,null,null,null,null,"NL",null,"C",null,"C"]
[null,470," MANTUA"," BLVD","470 MANTUA BLVD","08080","Sewell",null,null,null,null,null,null,null,"NL",null,"C",null,"C"]
[null,472," MANTUA"," BLVD","472 MANTUA BLVD","08080","Sewell",null,null,null,null,null,null,null,"NL",null,"C",null,"C"]
[null,587," MANTUA"," BLVD","587 MANTUA BLVD","08080","Sewell",null,null,null,null,null,null,null,"NL",null,"C",null,"C"]
[null,570," MANTUA"," BLVD","570 MANTUA BLVD","08080","Sewell",null,null,null,null,null,null,null,"NL",null,"C",null,"C"]
[null,641," MANTUA"," BLVD","641 MANTUA BLVD","08080","Sewell",null,null,null,null,null,null,null,"NL",null,"C",null,"C"]
[null,651," MANTUA"," BLVD","651 MANTUA BLVD","08080","Sewell",null,null,null,null,null,null,null,"NL",null,"C",null,"C"]
[null,711," MANTUA"," BLVD","711 MANTUA BLVD","08080","Sewell",null,null,null,null,null,null,null,"NL",null,"C",null,"C"]
[null,780," MANTUA"," BLVD","780 MANTUA BLVD","08080","Sewell",null,null,null,null,null,null,null,"NL",null,"C",null,"C"]
[null,730," MANTUA"," BLVD","730 MANTUA BLVD","08080","Sewell",null,null,null,null,null,null,null,"NL",null,"C",null,"C"]
[null,841," MANTUA"," BLVD","841 MANTUA BLVD","08080","Sewell",null,null,null,null,null,null,null,"NL",null,"C",null,"C"]
[null,836," MANTUA"," BLVD","836 MANTUA BLVD","08080","Sewell",null,null,null,null,null,null,null,"NL",null,"C",null,"C"]
[null,850," MANTUA"," BLVD","850 MANTUA BLVD","08080","Sewell",null,null,null,null,null,null,null,"NL",null,"C",null,"C"]
[null,886," MANTUA"," BLVD","886 MANTUA BLVD","08080","Sewell",null,null,null,null,null,null,null,"NL",null,"C",null,"C"]
[null,896," MANTUA"," BLVD","896 MANTUA BLVD","08080","Sewell",null,null,null,null,null,null,null,"NL",null,"C",null,"C"]
[null,905," MANTUA"," BLVD","905 MANTUA BLVD","08080","Sewell",null,null,null,null,null,null,null,"NL",null,"C",null,"C"]
[null,915," MANTUA"," BLVD","915 MANTUA BLVD","08080","Sewell",null,null,null,null,null,null,null,"NL",null,"C",null,"C"]
[null,925," MANTUA"," BLVD","925 MANTUA BLVD","08080","Sewell",null,null,null,null,null,null,null,"NL",null,"C",null,"C"]
[null,927," MANTUA"," BLVD","927 MANTUA BLVD","08080","Sewell",null,null,null,null,null,null,null,"NL",null,"C",null,"C"]
[null,939," MANTUA"," BLVD","939 MANTUA BLVD","08080","Sewell",null,null,null,null,null,null,null,"NL",null,"C",null,"C"]
[null,949," MANTUA"," BLVD","949 MANTUA BLVD","08080","Sewell",null,null,null,null,null,null,null,"NL",null,"C",null,"C"]
[null,959," MANTUA"," BLVD","959 MANTUA BLVD","08080","Sewell",null,null,null,null,null,null,null,"NL",null,"C",null,"C"]
[null,961," MANTUA"," BLVD","961 MANTUA BLVD","08080","Sewell",null,null,null,null,null,null,null,"NL",null,"C",null,"C"]
[null,971," MANTUA"," BLVD","971 MANTUA BLVD","08080","Sewell",null,null,null,null,null,null,null,"NL",null,"C",null,"C"]
[null,956," MANTUA"," BLVD","956 MANTUA BLVD","08080","Sewell",null,null,null,null,null,null,null,"NL",null,"C",null,"C"]
[null,970," MANTUA"," BLVD","970 MANTUA BLVD","08080","Sewell",null,null,null,null,null,null,null,"NL",null,"C",null,"C"]
[null,972," MANTUA"," BLVD","972 MANTUA BLVD","08080","Sewell",null,null,null,null,null,null,null,"NL",null,"C",null,"C"]
[null,950," MANTUA"," BLVD","950 MANTUA BLVD","08080","Sewell",null,null,null,null,null,null,null,"NL",null,"C",null,"C"]
[null,225," MAPLE"," AVE","225 MAPLE AVE","08051","Mantua",null,null,null,null,null,null,null,"NL",null,"C",null,"C"]
[null,17," MAPLEWOOD"," LN","17 MAPLEWOOD LN","08051","Mantua",null,null,null,null,null,null,null,"NL",null,"C",null,"P"]
[null,19," MAPLEWOOD"," LN","19 MAPLEWOOD LN","08051","Mantua",null,null,null,null,null,null,null,"NL",null,"C",null,"P"]
[null,6," MAPLEWOOD"," LN","6 MAPLEWOOD LN","08051","Mantua",null,null,null,null,null,null,null,"NL",null,"C",null,"P"]
[null,9," MAPLEWOOD"," LN","9 MAPLEWOOD LN","08051","Mantua",null,null,null,null,null,null,null,"NL",null,"C",null,"P"]
[null,13," MARATHON"," DR","13 MARATHON DR","08051","Mantua",null,null,null,null,null,null,null,"NL",null,"C",null,"P"]
[null,15," MARATHON"," DR","15 MARATHON DR","08051","Mantua",null,null,null,null,null,null,null,"NL",null,"C",null,"P"]
[null,"22A"," MARATHON"," DR","22A MARATHON DR","08051","Mantua",null,null,null,null,null,null,null,"NL",null,"C",null,"P"]
[null,27," MARATHON"," DR","27 MARATHON DR","08051","Mantua",null,null,null,null,null,null,null,"NL",null,"C",null,"P"]
[null,45," MARATHON"," DR","45 MARATHON DR","08051","Mantua",null,null,null,null,null,null,null,"NL",null,"C",null,"P"]
[null,47," MARATHON"," DR","47 MARATHON DR","08051","Mantua",null,null,null,null,null,null,null,"NL",null,"C",null,"P"]
[null,2," MARATHON"," DR","2 MARATHON DR","08051","Mantua",null,null,null,null,null,null,null,"NL",null,"C",null,"P"]
[null,4," MARATHON"," DR","4 MARATHON DR","08051","Mantua",null,null,null,null,null,null,null,"NL",null,"C",null,"P"]
[null,7," MARATHON"," DR","7 MARATHON DR","08051","Mantua",null,null,null,null,null,null,null,"NL",null,"C",null,"P"]
[null,9," MARATHON"," DR","9 MARATHON DR","08051","Mantua",null,null,null,null,null,null,null,"NL",null,"C",null,"P"]
[null,19," MARTEL"," ST","19 MARTEL ST","08051","Mantua",null,null,null,null,null,null,null,"UL","N","C",null,"UX"]
[null,34," MARTEL"," ST","34 MARTEL ST","08051","Mantua",null,null,null,null,null,null,null,"UL","N","C",null,"UX"]
[null,52," MARYLAND"," AVE","52 MARYLAND AVE","08080","Sewell",null,null,null,null,null,null,null,"NL",null,"C",null,"C"]
[null,31," MARYLAND"," AVE","31 MARYLAND AVE","08080","Sewell",null,null,null,null,null,null,null,"NL",null,"C",null,"C"]
[null,48," MARYLAND"," AVE","48 MARYLAND AVE","08080","Sewell",null,null,null,null,null,null,null,"NL",null,"C",null,"C"]
[null,140," MC CARTHY"," AVE","140 MC CARTHY AVE","08051","Mantua",null,null,null,null,null,null,null,"NL",null,"C",null,"C"]
[null,40," MCANALLY"," DR","40 MCANALLY DR","08080","Sewell",null,null,null,null,null,null,null,"NL",null,"C",null,"C"]
[null,42," MEADOW LARK"," AVE","42 MEADOW LARK AVE","08051","Mantua",null,null,null,null,null,null,null,"NL",null,"C",null,"P"]
[null,53," MEADOW LARK"," AVE","53 MEADOW LARK AVE","08051","Mantua",null,null,null,null,null,null,null,"NL",null,"C",null,"P"]
[null,63," MEADOW LARK"," AVE","63 MEADOW LARK AVE","08051","Mantua",null,null,null,null,null,null,null,"NL",null,"C",null,"P"]
[null,48," MEADOW LARK"," AVE","48 MEADOW LARK AVE","08051","Mantua",null,null,null,null,null,null,null,"NL",null,"C",null,"P"]
[null,49," MEADOW LARK"," AVE","49 MEADOW LARK AVE","08051","Mantua",null,null,null,null,null,null,null,"NL",null,"C",null,"P"]
[null,58," MEADOW LARK"," AVE","58 MEADOW LARK AVE","08051","Mantua",null,null,null,null,null,null,null,"NL",null,"C",null,"P"]
[null,6," MEADOW"," CT","6 MEADOW CT","08080","Sewell",null,null,null,null,null,null,null,"NL",null,"C",null,"C"]
[null,35," MEADOW"," CT","35 MEADOW CT","08080","Sewell",null,null,null,null,null,null,null,"NL",null,"C",null,"C"]
[null,10," MEADOW"," CT","10 MEADOW CT","08080","Sewell",null,null,null,null,null,null,null,"NL",null,"C",null,"C"]
[null,8," MEADOW"," CT","8 MEADOW CT","08080","Sewell",null,null,null,null,null,null,null,"NL",null,"C",null,"C"]
[null,18," MEADOW"," CT","18 MEADOW CT","08080","Sewell",null,null,null,null,null,null,null,"NL",null,"C",null,"C"]
[null,26," MEADOW"," CT","26 MEADOW CT","08080","Sewell",null,null,null,null,null,null,null,"NL",null,"C",null,"C"]
[null,28," MEADOW"," CT","28 MEADOW CT","08080","Sewell",null,null,null,null,null,null,null,"NL",null,"C",null,"C"]
[null,30," MEADOW"," CT","30 MEADOW CT","08080","Sewell",null,null,null,null,null,null,null,"NL",null,"C",null,"C"]
[null,40," MEADOW"," CT","40 MEADOW CT","08080","Sewell",null,null,null,null,null,null,null,"NL",null,"C",null,"C"]
[null,62," MEADOW"," CT","62 MEADOW CT","08080","Sewell",null,null,null,null,null,null,null,"NL",null,"C",null,"C"]
[null,64," MEADOW"," CT","64 MEADOW CT","08080","Sewell",null,null,null,null,null,null,null,"NL",null,"C",null,"C"]
[null,54," MEADOW"," CT","54 MEADOW CT","08080","Sewell",null,null,null,null,null,null,null,"NL",null,"C",null,"C"]
[null,149," MERCER"," AVE","149 MERCER AVE","08080","Sewell",null,null,null,null,null,null,null,"NL",null,"C",null,"C"]
[null,247," MERCER"," AVE","247 MERCER AVE","08080","Sewell",null,null,null,null,null,null,null,"NL",null,"C",null,"C"]
[null,249," MERCER"," AVE","249 MERCER AVE","08080","Sewell",null,null,null,null,null,null,null,"NL",null,"C",null,"C"]
[null,110," MERCER"," AVE","110 MERCER AVE","08080","Sewell",null,null,null,null,null,null,null,"NL",null,"C",null,"C"]
[null,170," MERCER"," AVE","170 MERCER AVE","08080","Sewell",null,null,null,null,null,null,null,"NL",null,"C",null,"C"]
[null,118," MOCKINGBIRD"," LN","118 MOCKINGBIRD LN","08051","Mantua",null,null,null,null,null,null,null,"NL",null,"C",null,"P"]
[null,122," MOCKINGBIRD"," LN","122 MOCKINGBIRD LN","08051","Mantua",null,null,null,null,null,null,null,"NL",null,"C",null,"P"]
[null,128," MOCKINGBIRD"," LN","128 MOCKINGBIRD LN","08051","Mantua",null,null,null,null,null,null,null,"NL",null,"C",null,"P"]
[null,137," MOCKINGBIRD"," LN","137 MOCKINGBIRD LN","08051","Mantua",null,null,null,null,null,null,null,"NL",null,"C",null,"P"]
[null,145," MOCKINGBIRD"," LN","145 MOCKINGBIRD LN","08051","Mantua",null,null,null,null,null,null,null,"NL",null,"C",null,"P"]
[null,146," MOCKINGBIRD"," LN","146 MOCKINGBIRD LN","08051","Mantua",null,null,null,null,null,null,null,"NL",null,"C",null,"P"]
[null,161," MOCKINGBIRD"," LN","161 MOCKINGBIRD LN","08051","Mantua",null,null,null,null,null,null,null,"NL",null,"C",null,"P"]
[null,191," MOCKINGBIRD"," LN","191 MOCKINGBIRD LN","08051","Mantua",null,null,null,null,null,null,null,"NL",null,"C",null,"P"]
[null,119," MOCKINGBIRD"," LN","119 MOCKINGBIRD LN","08051","Mantua",null,null,null,null,null,null,null,"NL",null,"C",null,"P"]
[null,121," MOCKINGBIRD"," LN","121 MOCKINGBIRD LN","08051","Mantua",null,null,null,null,null,null,null,"NL",null,"C",null,"P"]
[null,136," MOCKINGBIRD"," LN","136 MOCKINGBIRD LN","08051","Mantua",null,null,null,null,null,null,null,"NL",null,"C",null,"P"]
[null,193," MOCKINGBIRD"," LN","193 MOCKINGBIRD LN","08051","Mantua",null,null,null,null,null,null,null,"NL",null,"C",null,"P"]
[null,77," MONARCH"," CT","77 MONARCH CT","08080","Sewell",null,null,null,null,null,null,null,"NL",null,"C",null,"P"]
[null,78," MONARCH"," CT","78 MONARCH CT","08080","Sewell",null,null,null,null,null,null,null,"NL",null,"C",null,"P"]
[null,84," MONARCH"," CT","84 MONARCH CT","08080","Sewell",null,null,null,null,null,null,null,"NL",null,"C",null,"P"]
[null,131," MONMOUTH","  AVE","131 MONMOUTH  AVE","08080","Sewell",null,null,null,null,null,null,null,"NL",null,"C",null,"C"]
[null,150," MONMOUTH","  AVE","150 MONMOUTH  AVE","08080","Sewell",null,null,null,null,null,null,null,"NL",null,"C",null,"C"]
[null,160," MONMOUTH","  AVE","160 MONMOUTH  AVE","08080","Sewell",null,null,null,null,null,null,null,"NL",null,"C",null,"C"]
[null,209," MONMOUTH","  AVE","209 MONMOUTH  AVE","08080","Sewell",null,null,null,null,null,null,null,"NL",null,"C",null,"C"]
[null,204," MONMOUTH","  AVE","204 MONMOUTH  AVE","08080","Sewell",null,null,null,null,null,null,null,"NL",null,"C",null,"C"]
[null,220," MONMOUTH","  AVE","220 MONMOUTH  AVE","08080","Sewell",null,null,null,null,null,null,null,"NL",null,"C",null,"C"]
[null,101," MONROE","  AVE","101 MONROE  AVE","08051","Mantua",null,null,null,null,null,null,null,"NL",null,"C",null,"C"]
[null,206," MONROE","  AVE","206 MONROE  AVE","08051","Mantua",null,null,null,null,null,null,null,"NL",null,"C",null,"C"]
[null,104," MONROE","  AVE","104 MONROE  AVE","08051","Mantua",null,null,null,null,null,null,null,"NL",null,"C",null,"C"]
[null,324," MONTGOMERY"," DR","324 MONTGOMERY DR","08051","Mantua",null,null,null,null,null,null,null,"NL",null,"C",null,"C"]
[null,330," MONTGOMERY"," DR","330 MONTGOMERY DR","08051","Mantua",null,null,null,null,null,null,null,"NL",null,"C",null,"C"]
[null,355," MONTGOMERY"," DR","355 MONTGOMERY DR","08051","Mantua",null,null,null,null,null,null,null,"NL",null,"C",null,"C"]
[null,367," MONTGOMERY"," DR","367 MONTGOMERY DR","08051","Mantua",null,null,null,null,null,null,null,"NL",null,"C",null,"C"]
[null,386," MONTGOMERY"," DR","386 MONTGOMERY DR","08051","Mantua",null,null,null,null,null,null,null,"NL",null,"C",null,"C"]
[null,387," MONTGOMERY"," DR","387 MONTGOMERY DR","08051","Mantua",null,null,null,null,null,null,null,"NL",null,"C",null,"C"]
[null,247," MONTGOMERY"," DR","247 MONTGOMERY DR","08051","Mantua",null,null,null,null,null,null,null,"NL",null,"C",null,"C"]
[null,259," MONTGOMERY"," DR","259 MONTGOMERY DR","08051","Mantua",null,null,null,null,null,null,null,"NL",null,"C",null,"C"]
[null,291," MONTGOMERY"," DR","291 MONTGOMERY DR","08051","Mantua",null,null,null,null,null,null,null,"NL",null,"C",null,"C"]
[null,295," MONTGOMERY"," DR",{"$f":"_xlfn.CONCAT(B3330, C3330, D3330)","v":"295 MONTGOMERY DR"},"08051","Mantua",null,null,null,null,null,null,null,"NL",null,"C",null,"C"]
[null,258," MONTGOMERY"," DR","258 MONTGOMERY DR","08051","Mantua",null,null,null,null,null,null,null,"NL",null,"C",null,"C"]
[null,278," MONTGOMERY"," DR","278 MONTGOMERY DR","08051","Mantua",null,null,null,null,null,null,null,"NL",null,"C",null,"C"]
[null,298," MONTGOMERY"," DR","298 MONTGOMERY DR","08051","Mantua",null,null,null,null,null,null,null,"NL",null,"C",null,"C"]
[null,303," MONTGOMERY"," DR","303 MONTGOMERY DR","08051","Mantua",null,null,null,null,null,null,null,"NL",null,"C",null,"C"]
[null,323," MONTGOMERY"," DR","323 MONTGOMERY DR","08051","Mantua",null,null,null,null,null,null,null,"NL",null,"C",null,"C"]
[null,397," MONTGOMERY"," DR","397 MONTGOMERY DR","08051","Mantua",null,null,null,null,null,null,null,"NL",null,"C",null,"C"]
[null,404," MORNING DOVE"," CIRCLE","404 MORNING DOVE CIRCLE","08080","Sewell",null,null,null,null,null,null,null,"NL",null,"C",null,"P"]
[null,406," MORNING DOVE"," CIRCLE","406 MORNING DOVE CIRCLE","08080","Sewell",null,null,null,null,null,null,null,"NL",null,"C",null,"P"]
[null,420," MORNING DOVE"," CIRCLE","420 MORNING DOVE CIRCLE","08080","Sewell",null,null,null,null,null,null,null,"NL",null,"C",null,"P"]
[null,407," MORNING DOVE"," CIRCLE","407 MORNING DOVE CIRCLE","08080","Sewell",null,null,null,null,null,null,null,"NL",null,"C",null,"P"]
[null,419," MORNING DOVE"," CIRCLE","419 MORNING DOVE CIRCLE","08080","Sewell",null,null,null,null,null,null,null,"NL",null,"C",null,"P"]
[null,423," MORNING DOVE"," CIRCLE","423 MORNING DOVE CIRCLE","08080","Sewell",null,null,null,null,null,null,null,"NL",null,"C",null,"P"]
[null,141," MORRIS"," AVE","141 MORRIS AVE","08080","Sewell",null,null,null,null,null,null,null,"NL",null,"C",null,"C"]
[null,171," MORRIS"," AVE","171 MORRIS AVE","08080","Sewell",null,null,null,null,null,null,null,"NL",null,"C",null,"C"]
[null,201," MORRIS"," AVE",{"$f":"_xlfn.CONCAT(B3394, C3394, D3394)","v":"201 MORRIS AVE"},"08080","Sewell",null,null,null,null,null,null,null,"NL",null,"C",null,"C"]
[null,209," MORRIS"," AVE","209 MORRIS AVE","08080","Sewell",null,null,null,null,null,null,null,"NL",null,"C",null,"C"]
[null,220," MORRIS"," AVE","220 MORRIS AVE","08080","Sewell",null,null,null,null,null,null,null,"NL",null,"C",null,"C"]
[null,176," MORRIS"," AVE","176 MORRIS AVE","08080","Sewell",null,null,null,null,null,null,null,"NL",null,"C",null,"C"]
[null,6," MORTON"," LN","6 MORTON LN","08051","Mantua",null,null,null,null,null,null,null,"NL",null,"C",null,"C"]
[null,9," MORTON"," LN","9 MORTON LN","08051","Mantua",null,null,null,null,null,null,null,"NL",null,"C",null,"C"]
[null,195," MT ROYAL"," RD","195 MT ROYAL RD","08080","Sewell",null,null,null,null,null,null,null,"NL",null,"C",null,"C"]
[null,485," MT ROYAL"," RD","485 MT ROYAL RD","08080","Sewell",null,null,null,null,null,null,null,"NL",null,"C",null,"C"]
[null,370," MT ROYAL"," RD","370 MT ROYAL RD","08080","Sewell",null,null,null,null,null,null,null,"NL",null,"C",null,"C"]
[null,155," MT ROYAL"," RD","155 MT ROYAL RD","08080","Sewell",null,null,null,null,null,null,null,"NL",null,"C",null,"C"]
[null,550," MT ROYAL"," RD","550 MT ROYAL RD","08080","Sewell",null,null,null,null,null,null,null,"NL",null,"C",null,"C"]
[null,361," MT ROYAL"," RD","361 MT ROYAL RD","08080","Sewell",null,null,null,null,null,null,null,"NL",null,"C",null,"C"]
[null,461," MT ROYAL"," RD","461 MT ROYAL RD","08080","Sewell",null,null,null,null,null,null,null,"NL",null,"C",null,"C"]
[null,515," MT ROYAL"," RD","515 MT ROYAL RD","08080","Sewell",null,null,null,null,null,null,null,"NL",null,"C",null,"C"]
[null,8," NEW YORK"," AVE","8 NEW YORK AVE","08051","Mantua",null,null,null,null,null,null,null,"NL",null,"C",null,"C"]
[null,47," NEW JERSEY"," AVE","47 NEW JERSEY AVE","08080","Sewell",null,null,null,null,null,null,null,"NL",null,"C",null,"C"]
[null,40," NEW JERSEY"," AVE","40 NEW JERSEY AVE","08080","Sewell",null,null,null,null,null,null,null,"NL",null,"C",null,"C"]
[null,48," NEW JERSEY"," AVE","48 NEW JERSEY AVE","08080","Sewell",null,null,null,null,null,null,null,"NL",null,"C",null,"C"]
[null,424," NEW"," ST","424 NEW ST","08080","Sewell",null,null,null,null,null,null,null,"NL",null,"C",null,"C"]
[null,456," NEW"," ST","456 NEW ST","08080","Sewell",null,null,null,null,null,null,null,"NL",null,"C",null,"C"]
[null,102," NORRIS"," ST","102 NORRIS ST","08051","Mantua",null,null,null,null,null,null,null,"NL",null,"C",null,"C"]
[null,104," NORRIS"," ST","104 NORRIS ST","08051","Mantua",null,null,null,null,null,null,null,"NL",null,"C",null,"C"]
[null,122," NORRIS"," ST","122 NORRIS ST","08051","Mantua",null,null,null,null,null,null,null,"NL",null,"C",null,"C"]
[null,235," NORRIS"," ST","235 NORRIS ST","08051","Mantua",null,null,null,null,null,null,null,"NL",null,"C",null,"C"]
[null,136," NORRIS"," ST","136 NORRIS ST","08051","Mantua",null,null,null,null,null,null,null,"NL",null,"C",null,"C"]
[null,170," NORWOOD"," AVE","170 NORWOOD AVE","08051","Mantua",null,null,null,null,null,null,null,"NL",null,"C",null,"C"]
[null,18," OAKTON"," DR","18 OAKTON DR","08051","Mantua",null,null,null,null,null,null,null,"NL",null,"C",null,"C"]
[null,4," OAKTON"," DR","4 OAKTON DR","08051","Mantua",null,null,null,null,null,null,null,"NL",null,"C",null,"C"]
[null,11," OAKTON"," DR","11 OAKTON DR","08051","Mantua",null,null,null,null,null,null,null,"NL",null,"C",null,"C"]
[null,13," OAKTON"," DR","13 OAKTON DR","08051","Mantua",null,null,null,null,null,null,null,"NL",null,"C",null,"C"]
[null,5," OAKTON"," DR","5 OAKTON DR","08051","Mantua",null,null,null,null,null,null,null,"NL",null,"C",null,"C"]
[null,29," OAKTON"," DR","29 OAKTON DR","08051","Mantua",null,null,null,null,null,null,null,"NL",null,"C",null,"C"]
[null,30," OAKTON"," DR","30 OAKTON DR","08051","Mantua",null,null,null,null,null,null,null,"NL",null,"C",null,"C"]
[null,32," OAKTON"," DR","32 OAKTON DR","08051","Mantua",null,null,null,null,null,null,null,"NL",null,"C",null,"C"]
[null,2," OLD LANDING"," RD","2 OLD LANDING RD","08051","Mantua",null,null,null,null,null,null,null,"NL",null,"C",null,"C"]
[null,628," OLYMPIA"," ST","628 OLYMPIA ST","08051","Mantua",null,null,null,null,null,null,null,"NL",null,"C",null,"C"]
[null,640," OLYMPIA"," ST","640 OLYMPIA ST","08051","Mantua",null,null,null,null,null,null,null,"NL",null,"C",null,"C"]
[null,123," OLYMPIA"," CT","123 OLYMPIA CT","08051","Mantua",null,null,null,null,null,null,null,"NL",null,"C",null,"C"]
[null,642," OLYMPIA"," ST","642 OLYMPIA ST","08051","Mantua",null,null,null,null,null,null,null,"NL",null,"C",null,"C"]
[null,11," OVERBROOK"," AVE","11 OVERBROOK AVE","08080","Sewell",null,null,null,null,null,null,null,"NL",null,"C",null,"C"]
[null,90," OWENS"," LN","90 OWENS LN","08080","Sewell",null,null,null,null,null,null,null,"NL",null,"C",null,"C"]
[null,90," OWENS"," LN/SHOP","90 OWENS LN/SHOP","08080","Sewell",null,null,null,null,null,null,null,"NL",null,"C",null,"C"]
[null,39," PALOMINO"," CIRCLE","39 PALOMINO CIRCLE","08051","Mantua",null,null,null,null,null,null,null,"NL",null,"C",null,"P"]
[null,20," PALOMINO"," CIRCLE","20 PALOMINO CIRCLE","08051","Mantua",null,null,null,null,null,null,null,"NL",null,"C",null,"P"]
[null,4," PALOMINO"," CIRCLE","4 PALOMINO CIRCLE","08051","Mantua",null,null,null,null,null,null,null,"NL",null,"C",null,"P"]
[null,13," PALOMINO"," CIRCLE","13 PALOMINO CIRCLE","08051","Mantua",null,null,null,null,null,null,null,"NL",null,"C",null,"P"]
[null,21," PALOMINO"," CIRCLE","21 PALOMINO CIRCLE","08051","Mantua",null,null,null,null,null,null,null,"NL",null,"C",null,"P"]
[null,7," PALOMINO"," CIRCLE","7 PALOMINO CIRCLE","08051","Mantua",null,null,null,null,null,null,null,"NL",null,"C",null,"P"]
[null,304," PELLINORE"," CT","304 PELLINORE CT","08051","Mantua",null,null,null,null,null,null,null,"NL",null,"C",null,"P"]
[null,306," PELLINORE"," CT","306 PELLINORE CT","08051","Mantua",null,null,null,null,null,null,null,"NL",null,"C",null,"P"]
[null,316," PELLINORE"," CT","316 PELLINORE CT","08051","Mantua",null,null,null,null,null,null,null,"NL",null,"C",null,"P"]
[null,326," PELLINORE"," CT","326 PELLINORE CT","08051","Mantua",null,null,null,null,null,null,null,"NL",null,"C",null,"P"]
[null,105," PENDRAGON"," WAY","105 PENDRAGON WAY","08051","Mantua",null,null,null,null,null,null,null,"NL",null,"C",null,"P"]
[null,132," PENDRAGON"," WAY","132 PENDRAGON WAY","08051","Mantua",null,null,null,null,null,null,null,"NL",null,"C",null,"P"]
[null,142," PENDRAGON"," WAY","142 PENDRAGON WAY","08051","Mantua",null,null,null,null,null,null,null,"NL",null,"C",null,"P"]
[null,108," PENDRAGON"," WAY","108 PENDRAGON WAY","08051","Mantua",null,null,null,null,null,null,null,"NL",null,"C",null,"P"]
[null,118," PENDRAGON"," WAY","118 PENDRAGON WAY","08051","Mantua",null,null,null,null,null,null,null,"NL",null,"C",null,"P"]
[null,120," PENDRAGON"," WAY","120 PENDRAGON WAY","08051","Mantua",null,null,null,null,null,null,null,"NL",null,"C",null,"P"]
[null,113," PENDRAGON"," WAY","113 PENDRAGON WAY","08051","Mantua",null,null,null,null,null,null,null,"NL",null,"C",null,"P"]
[null,123," PENDRAGON"," WAY","123 PENDRAGON WAY","08051","Mantua",null,null,null,null,null,null,null,"NL",null,"C",null,"P"]
[null,125," PENDRAGON"," WAY","125 PENDRAGON WAY","08051","Mantua",null,null,null,null,null,null,null,"NL",null,"C",null,"P"]
[null,135," PENDRAGON"," WAY","135 PENDRAGON WAY","08051","Mantua",null,null,null,null,null,null,null,"NL",null,"C",null,"P"]
[null,146," PENDRAGON"," WAY","146 PENDRAGON WAY","08051","Mantua",null,null,null,null,null,null,null,"NL",null,"C",null,"P"]
[null,141," PENDRAGON"," WAY","141 PENDRAGON WAY","08051","Mantua",null,null,null,null,null,null,null,"NL",null,"C",null,"P"]
[null,151," PENDRAGON"," WAY","151 PENDRAGON WAY","08051","Mantua",null,null,null,null,null,null,null,"NL",null,"C",null,"P"]
[null,155," PENDRAGON"," WAY","155 PENDRAGON WAY","08051","Mantua",null,null,null,null,null,null,null,"NL",null,"C",null,"P"]
[null,168," PENDRAGON"," WAY","168 PENDRAGON WAY","08051","Mantua",null,null,null,null,null,null,null,"NL",null,"C",null,"P"]
[null,153," PENDRAGON"," WAY","153 PENDRAGON WAY","08051","Mantua",null,null,null,null,null,null,null,"NL",null,"C",null,"P"]
[null,187," PHOENIX"," AVE","187 PHOENIX AVE","08051","Mantua",null,null,null,null,null,null,null,"NL",null,"C",null,"C"]
[null,189," PHOENIX"," AVE","189 PHOENIX AVE","08051","Mantua",null,null,null,null,null,null,null,"NL",null,"C",null,"C"]
[null,186," PHOENIX"," AVE","186 PHOENIX AVE","08051","Mantua",null,null,null,null,null,null,null,"NL",null,"C",null,"C"]
[null,197," PHOENIX"," AVE","197 PHOENIX AVE","08051","Mantua",null,null,null,null,null,null,null,"NL",null,"C",null,"C"]
[null,617," PIERRE"," AVE","617 PIERRE AVE","08051","Mantua",null,null,null,null,null,null,null,"NL",null,"C",null,"C"]
[null,619," PIERRE"," AVE","619 PIERRE AVE","08051","Mantua",null,null,null,null,null,null,null,"NL",null,"C",null,"C"]
[null,620," PIERRE"," AVE","620 PIERRE AVE","08051","Mantua",null,null,null,null,null,null,null,"NL",null,"C",null,"C"]
[null,640," PIERRE"," AVE","640 PIERRE AVE","08051","Mantua",null,null,null,null,null,null,null,"NL",null,"C",null,"C"]
[null,644," PIERRE"," AVE","644 PIERRE AVE","08051","Mantua",null,null,null,null,null,null,null,"NL",null,"C",null,"C"]
[null,654," PIERRE"," AVE","654 PIERRE AVE","08051","Mantua",null,null,null,null,null,null,null,"NL",null,"C",null,"C"]
[null,635," PIERRE"," AVE","635 PIERRE AVE","08051","Mantua",null,null,null,null,null,null,null,"NL",null,"C",null,"C"]
[null,645," PIERRE"," AVE",{"$f":"_xlfn.CONCAT(B3714, C3714, D3714)","v":"645 PIERRE AVE"},"08051","Mantua",null,null,null,null,null,null,null,"NL",null,"C",null,"C"]
[null,655," PIERRE"," AVE","655 PIERRE AVE","08051","Mantua",null,null,null,null,null,null,null,"NL",null,"C",null,"C"]
[null,657," PIERRE"," AVE","657 PIERRE AVE","08051","Mantua",null,null,null,null,null,null,null,"NL",null,"C",null,"C"]
[null,101," PINE BROOK"," DR","101 PINE BROOK DR","08051","Mantua",null,null,null,null,null,null,null,"NL",null,"C",null,"P"]
[null,106," PINE BROOK"," DR","106 PINE BROOK DR","08051","Mantua",null,null,null,null,null,null,null,"NL",null,"C",null,"P"]
[null,111," PINE BROOK"," DR","111 PINE BROOK DR","08051","Mantua",null,null,null,null,null,null,null,"NL",null,"C",null,"P"]
[null,114," PINE BROOK"," DR","114 PINE BROOK DR","08051","Mantua",null,null,null,null,null,null,null,"NL",null,"C",null,"P"]
[null,119," PINE BROOK"," DR","119 PINE BROOK DR","08051","Mantua",null,null,null,null,null,null,null,"NL",null,"C",null,"P"]
[null,124," PINE BROOK"," DR","124 PINE BROOK DR","08051","Mantua",null,null,null,null,null,null,null,"NL",null,"C",null,"P"]
[null,129," PINE BROOK"," DR","129 PINE BROOK DR","08051","Mantua",null,null,null,null,null,null,null,"NL",null,"C",null,"P"]
[null,130," PINE BROOK"," DR","130 PINE BROOK DR","08051","Mantua",null,null,null,null,null,null,null,"NL",null,"C",null,"P"]
[null,135," PINE BROOK"," DR","135 PINE BROOK DR","08051","Mantua",null,null,null,null,null,null,null,"NL",null,"C",null,"P"]
[null,140," PINE BROOK"," DR","140 PINE BROOK DR","08051","Mantua",null,null,null,null,null,null,null,"NL",null,"C",null,"P"]
[null,144," PINE BROOK"," DR","144 PINE BROOK DR","08051","Mantua",null,null,null,null,null,null,null,"NL",null,"C",null,"P"]
[null,"201-208"," PINE BROOK"," DR","201-208 PINE BROOK DR","08051","Mantua",null,null,null,null,null,null,null,"NL",null,"C",null,"P"]
[null,259," PINE BROOK"," DR","259 PINE BROOK DR","08051","Mantua",null,null,null,null,null,null,null,"NL",null,"C",null,"P"]
[null,90," PINE"," ST","90 PINE ST","08080","Sewell",null,null,null,null,null,null,null,"NL",null,"C",null,"C"]
[null,507," QUAIL"," CT","507 QUAIL CT","08080","Sewell",null,null,null,null,null,null,null,"NL",null,"C",null,"P"]
[null,508," QUAIL"," CT","508 QUAIL CT","08080","Sewell",null,null,null,null,null,null,null,"NL",null,"C",null,"P"]
[null,708," QUEST"," CT","708 QUEST CT","08051","Mantua",null,null,null,null,null,null,null,"NL",null,"C",null,"P"]
[null,709," QUEST"," CT","709 QUEST CT","08051","Mantua",null,null,null,null,null,null,null,"NL",null,"C",null,"P"]
[null,719," QUEST"," CT","719 QUEST CT","08051","Mantua",null,null,null,null,null,null,null,"NL",null,"C",null,"P"]
[null,721," QUEST"," CT","721 QUEST CT","08051","Mantua",null,null,null,null,null,null,null,"NL",null,"C",null,"P"]
[null,716," QUEST"," CT","716 QUEST CT","08051","Mantua",null,null,null,null,null,null,null,"NL",null,"C",null,"P"]
[null,726," QUEST"," CT","726 QUEST CT","08051","Mantua",null,null,null,null,null,null,null,"NL",null,"C",null,"P"]
[null,736," QUEST"," CT","736 QUEST CT","08051","Mantua",null,null,null,null,null,null,null,"NL",null,"C",null,"P"]
[null,738," QUEST"," CT","738 QUEST CT","08051","Mantua",null,null,null,null,null,null,null,"NL",null,"C",null,"P"]
[null,108," RABBIT RUN"," RD","108 RABBIT RUN RD","08080","Sewell",null,null,null,null,null,null,null,"NL",null,"C",null,"C"]
[null,124," RABBIT RUN"," RD","124 RABBIT RUN RD","08080","Sewell",null,null,null,null,null,null,null,"NL",null,"C",null,"C"]
[null,101," RABBIT RUN"," RD","101 RABBIT RUN RD","08080","Sewell",null,null,null,null,null,null,null,"NL",null,"C",null,"C"]
[null,103," RABBIT RUN"," RD","103 RABBIT RUN RD","08080","Sewell",null,null,null,null,null,null,null,"NL",null,"C",null,"C"]
[null,113," RABBIT RUN"," RD","113 RABBIT RUN RD","08080","Sewell",null,null,null,null,null,null,null,"NL",null,"C",null,"C"]
[null,123," RABBIT RUN"," RD","123 RABBIT RUN RD","08080","Sewell",null,null,null,null,null,null,null,"NL",null,"C",null,"C"]
[null,133," RABBIT RUN"," RD","133 RABBIT RUN RD","08080","Sewell",null,null,null,null,null,null,null,"NL",null,"C",null,"C"]
[null,135," RABBIT RUN"," RD","135 RABBIT RUN RD","08080","Sewell",null,null,null,null,null,null,null,"NL",null,"C",null,"C"]
[null,145," RABBIT RUN"," RD","145 RABBIT RUN RD","08080","Sewell",null,null,null,null,null,null,null,"NL",null,"C",null,"C"]
[null,28," RAVENSWOOD"," WAY","28 RAVENSWOOD WAY","08080","Sewell",null,null,null,null,null,null,null,"NL",null,"C",null,"C"]
[null,38," RAVENSWOOD"," WAY","38 RAVENSWOOD WAY","08080","Sewell",null,null,null,null,null,null,null,"NL",null,"C",null,"C"]
[null,42," RAVENSWOOD"," WAY","42 RAVENSWOOD WAY","08080","Sewell",null,null,null,null,null,null,null,"NL",null,"C",null,"C"]
[null,10," RAVENSWOOD"," WAY","10 RAVENSWOOD WAY","08080","Sewell",null,null,null,null,null,null,null,"NL",null,"C",null,"C"]
[null,20," RAVENSWOOD"," WAY","20 RAVENSWOOD WAY","08080","Sewell",null,null,null,null,null,null,null,"NL",null,"C",null,"C"]
[null,11," RAVENSWOOD"," WAY","11 RAVENSWOOD WAY","08080","Sewell",null,null,null,null,null,null,null,"NL",null,"C",null,"C"]
[null,13," RAVENSWOOD"," WAY","13 RAVENSWOOD WAY","08080","Sewell",null,null,null,null,null,null,null,"NL",null,"C",null,"C"]
[null,7," RAVENSWOOD"," WAY","7 RAVENSWOOD WAY","08080","Sewell",null,null,null,null,null,null,null,"NL",null,"C",null,"C"]
[null,27," RAVENSWOOD"," WAY","27 RAVENSWOOD WAY","08080","Sewell",null,null,null,null,null,null,null,"NL",null,"C",null,"C"]
[null,39," RAVENSWOOD"," WAY","39 RAVENSWOOD WAY","08080","Sewell",null,null,null,null,null,null,null,"NL",null,"C",null,"C"]
[null,41," RAVENSWOOD"," WAY","41 RAVENSWOOD WAY","08080","Sewell",null,null,null,null,null,null,null,"NL",null,"C",null,"C"]
[null,59," RAVENSWOOD"," WAY","59 RAVENSWOOD WAY","08080","Sewell",null,null,null,null,null,null,null,"NL",null,"C",null,"C"]
[null,207," REDBUD"," LN","207 REDBUD LN","08051","Mantua",null,null,null,null,null,null,null,"NL",null,"C",null,"P"]
[null,410," REDBUD"," LN","410 REDBUD LN","08051","Mantua",null,null,null,null,null,null,null,"NL",null,"C",null,"P"]
[null,412," REDBUD"," LN","412 REDBUD LN","08051","Mantua",null,null,null,null,null,null,null,"NL",null,"C",null,"P"]
[null,110," REDBUD"," LN","110 REDBUD LN","08051","Mantua",null,null,null,null,null,null,null,"NL",null,"C",null,"P"]
[null,107," REDBUD"," LN","107 REDBUD LN","08051","Mantua",null,null,null,null,null,null,null,"NL",null,"C",null,"P"]
[null,206," REDBUD"," LN","206 REDBUD LN","08051","Mantua",null,null,null,null,null,null,null,"NL",null,"C",null,"P"]
[null,208," REDBUD"," LN","208 REDBUD LN","08051","Mantua",null,null,null,null,null,null,null,"NL",null,"C",null,"P"]
[null,302," REDBUD"," LN","302 REDBUD LN","08051","Mantua",null,null,null,null,null,null,null,"NL",null,"C",null,"P"]
[null,403," REDBUD"," LN","403 REDBUD LN","08051","Mantua",null,null,null,null,null,null,null,"NL",null,"C",null,"P"]
[null,"CHAPEL"," RIDGE"," IRRIGATION","CHAPEL RIDGE IRRIGATION","08080","Sewell",null,null,null,null,null,null,null,"NL",null,"C",null,"P"]
[null,10," RIDGEVIEW"," CT","10 RIDGEVIEW CT","08080","Sewell",null,null,null,null,null,null,null,"NL",null,"C",null,"P"]
[null,162," ROBINS"," WAY","162 ROBINS WAY","08051","Mantua",null,null,null,null,null,null,null,"NL",null,"C",null,"P"]
[null,169," ROBINS"," WAY","169 ROBINS WAY","08051","Mantua",null,null,null,null,null,null,null,"NL",null,"C",null,"P"]
[null,166," ROBINS"," WAY","166 ROBINS WAY","08051","Mantua",null,null,null,null,null,null,null,"NL",null,"C",null,"P"]
[null,170," ROBINS"," WAY","170 ROBINS WAY","08051","Mantua",null,null,null,null,null,null,null,"NL",null,"C",null,"P"]
[null,8," ROSEWOOD"," LN","8 ROSEWOOD LN","08080","Sewell",null,null,null,null,null,null,null,"NL",null,"C",null,"C"]
[null,11," ROSEWOOD"," LN","11 ROSEWOOD LN","08080","Sewell",null,null,null,null,null,null,null,"NL",null,"C",null,"C"]
[null,7," ROSEWOOD"," LN","7 ROSEWOOD LN","08080","Sewell",null,null,null,null,null,null,null,"NL",null,"C",null,"C"]
[null,9," ROSEWOOD"," LN","9 ROSEWOOD LN","08080","Sewell",null,null,null,null,null,null,null,"NL",null,"C",null,"C"]
[null,24," ROSEWOOD"," CT","24 ROSEWOOD CT","08080","Sewell",null,null,null,null,null,null,null,"NL",null,"C",null,"C"]
[null,21," ROSEWOOD"," CT","21 ROSEWOOD CT","08080","Sewell",null,null,null,null,null,null,null,"NL",null,"C",null,"C"]
[null,209," S MC CARTHY"," AVE","209 S MC CARTHY AVE","08051","Mantua",null,null,null,null,null,null,null,"NL",null,"C",null,"C"]
[null,212," S MC CARTHY"," AVE","212 S MC CARTHY AVE","08051","Mantua",null,null,null,null,null,null,null,"NL",null,"C",null,"C"]
[null,232," S MC CARTHY"," AVE","232 S MC CARTHY AVE","08051","Mantua",null,null,null,null,null,null,null,"NL",null,"C",null,"C"]
[null,254," S MC CARTHY"," AVE","254 S MC CARTHY AVE","08051","Mantua",null,null,null,null,null,null,null,"NL",null,"C",null,"C"]
[null,227," S MC CARTHY"," AVE","227 S MC CARTHY AVE","08051","Mantua",null,null,null,null,null,null,null,"NL",null,"C",null,"C"]
[null,203," S MC CARTHY"," AVE","203 S MC CARTHY AVE","08051","Mantua",null,null,null,null,null,null,null,"NL",null,"C",null,"G"]
[null,175," SACRAMENTO"," DR","175 SACRAMENTO DR","08051","Mantua",null,null,null,null,null,null,null,"NL",null,"C",null,"C"]
[null,189," SACRAMENTO"," DR","189 SACRAMENTO DR","08051","Mantua",null,null,null,null,null,null,null,"NL",null,"C",null,"C"]
[null,649," SACRAMENTO"," DR","649 SACRAMENTO DR","08051","Mantua",null,null,null,null,null,null,null,"NL",null,"C",null,"C"]
[null,651," SACRAMENTO"," DR","651 SACRAMENTO DR","08051","Mantua",null,null,null,null,null,null,null,"NL",null,"C",null,"C"]
[null,654," SACRAMENTO"," DR",{"$f":"_xlfn.CONCAT(B4034, C4034, D4034)","v":"654 SACRAMENTO DR"},"08051","Mantua",null,null,null,null,null,null,null,"NL",null,"C",null,"C"]
[null,666," SACRAMENTO"," DR","666 SACRAMENTO DR","08051","Mantua",null,null,null,null,null,null,null,"NL",null,"C",null,"C"]
[null,674," SACRAMENTO"," DR","674 SACRAMENTO DR","08051","Mantua",null,null,null,null,null,null,null,"NL",null,"C",null,"C"]
[null,676," SACRAMENTO"," DR","676 SACRAMENTO DR","08051","Mantua",null,null,null,null,null,null,null,"NL",null,"C",null,"C"]
[null,190," SACRAMENTO"," DR","190 SACRAMENTO DR","08051","Mantua",null,null,null,null,null,null,null,"NL",null,"C",null,"C"]
[null,182," SACRAMENTO"," CT","182 SACRAMENTO CT","08051","Mantua",null,null,null,null,null,null,null,"NL",null,"C",null,"C"]
[null,198," SALEM"," AVE","198 SALEM AVE","08080","Sewell",null,null,null,null,null,null,null,"NL",null,"C",null,"C"]
[null,201," SALEM"," AVE","201 SALEM AVE","08080","Sewell",null,null,null,null,null,null,null,"NL",null,"C",null,"C"]
[null,161," SALEM"," AVE","161 SALEM AVE","08080","Sewell",null,null,null,null,null,null,null,"NL",null,"C",null,"C"]
[null,120," SALEM"," AVE","120 SALEM AVE","08080","Sewell",null,null,null,null,null,null,null,"NL",null,"C",null,"C"]
[null,160," SALEM"," AVE","160 SALEM AVE","08080","Sewell",null,null,null,null,null,null,null,"NL",null,"C",null,"C"]
[null,180," SALEM"," AVE","180 SALEM AVE","08080","Sewell",null,null,null,null,null,null,null,"NL",null,"C",null,"C"]
[null,204," SALEM"," AVE","204 SALEM AVE","08080","Sewell",null,null,null,null,null,null,null,"NL",null,"C",null,"C"]
[null,230," SALEM"," AVE","230 SALEM AVE","08080","Sewell",null,null,null,null,null,null,null,"NL",null,"C",null,"C"]
[null,608," SANGREAL"," CT","608 SANGREAL CT","08051","Mantua",null,null,null,null,null,null,null,"NL",null,"C",null,"P"]
[null,610," SANGREAL"," CT","610 SANGREAL CT","08051","Mantua",null,null,null,null,null,null,null,"NL",null,"C",null,"P"]
[null,609," SANGREAL"," CT","609 SANGREAL CT","08051","Mantua",null,null,null,null,null,null,null,"NL",null,"C",null,"P"]
[null,624," SANGREAL"," CT","624 SANGREAL CT","08051","Mantua",null,null,null,null,null,null,null,"NL",null,"C",null,"P"]
[null,621," SANGREAL"," CT","621 SANGREAL CT","08051","Mantua",null,null,null,null,null,null,null,"NL",null,"C",null,"P"]
[null,623," SANGREAL"," CT","623 SANGREAL CT","08051","Mantua",null,null,null,null,null,null,null,"NL",null,"C",null,"P"]
[null,638," SANGREAL"," CT","638 SANGREAL CT","08051","Mantua",null,null,null,null,null,null,null,"NL",null,"C",null,"P"]
[null,612," SANGREAL"," CT","612 SANGREAL CT","08051","Mantua",null,null,null,null,null,null,null,"NL",null,"C",null,"P"]
[null,644," SANTA FE"," DR","644 SANTA FE DR","08051","Mantua",null,null,null,null,null,null,null,"NL",null,"C",null,"C"]
[null,646," SANTA FE"," DR","646 SANTA FE DR","08051","Mantua",null,null,null,null,null,null,null,"NL",null,"C",null,"C"]
[null,658," SANTA FE"," DR","658 SANTA FE DR","08051","Mantua",null,null,null,null,null,null,null,"NL",null,"C",null,"C"]
[null,672," SANTA FE"," DR","672 SANTA FE DR","08051","Mantua",null,null,null,null,null,null,null,"NL",null,"C",null,"C"]
[null,641," SANTA FE"," DR","641 SANTA FE DR","08051","Mantua",null,null,null,null,null,null,null,"NL",null,"C",null,"C"]
[null,647," SANTA FE"," DR","647 SANTA FE DR","08051","Mantua",null,null,null,null,null,null,null,"NL",null,"C",null,"C"]
[null,655," SANTA FE"," DR","655 SANTA FE DR","08051","Mantua",null,null,null,null,null,null,null,"NL",null,"C",null,"C"]
[null,665," SANTA FE"," DR","665 SANTA FE DR","08051","Mantua",null,null,null,null,null,null,null,"NL",null,"C",null,"C"]
[null,679," SANTA FE"," DR","679 SANTA FE DR","08051","Mantua",null,null,null,null,null,null,null,"NL",null,"C",null,"C"]
[null,681," SANTA FE"," DR","681 SANTA FE DR","08051","Mantua",null,null,null,null,null,null,null,"NL",null,"C",null,"C"]
[null,244," SHADOW"," PLACE","244 SHADOW PLACE","08051","Mantua",null,null,null,null,null,null,null,"NL",null,"C",null,"C"]
[null,613," SHEFFIELD"," RD","613 SHEFFIELD RD","08080","Sewell",null,null,null,null,null,null,null,"NL",null,"C",null,"C"]
[null,10," SILVER CREEK"," DR","10 SILVER CREEK DR","08051","Mantua",null,null,null,null,null,null,null,"NL",null,"C",null,"P"]
[null,11," SILVER CREEK"," DR","11 SILVER CREEK DR","08051","Mantua",null,null,null,null,null,null,null,"NL",null,"C",null,"P"]
[null,17," SILVER CREEK"," DR","17 SILVER CREEK DR","08051","Mantua",null,null,null,null,null,null,null,"NL",null,"C",null,"P"]
[null,29," SILVER CREEK"," DR","29 SILVER CREEK DR","08051","Mantua",null,null,null,null,null,null,null,"NL",null,"C",null,"P"]
[null,37," SILVER CREEK"," DR","37 SILVER CREEK DR","08051","Mantua",null,null,null,null,null,null,null,"NL",null,"C",null,"P"]
[null,39," SILVER CREEK"," DR","39 SILVER CREEK DR","08051","Mantua",null,null,null,null,null,null,null,"NL",null,"C",null,"P"]
[null,18," SILVER CREEK"," DR","18 SILVER CREEK DR","08051","Mantua",null,null,null,null,null,null,null,"NL",null,"C",null,"P"]
[null,28," SILVER CREEK"," DR","28 SILVER CREEK DR","08051","Mantua",null,null,null,null,null,null,null,"NL",null,"C",null,"P"]
[null,38," SILVER CREEK"," DR","38 SILVER CREEK DR","08051","Mantua",null,null,null,null,null,null,null,"NL",null,"C",null,"P"]
[null,12," SKYLINE"," CIRCLE","12 SKYLINE CIRCLE","08080","Sewell",null,null,null,null,null,null,null,"NL",null,"C",null,"C"]
[null,20," SKYLINE"," CIRCLE","20 SKYLINE CIRCLE","08080","Sewell",null,null,null,null,null,null,null,"NL",null,"C",null,"C"]
[null,32," SKYLINE"," CIRCLE","32 SKYLINE CIRCLE","08080","Sewell",null,null,null,null,null,null,null,"NL",null,"C",null,"C"]
[null,40," SKYLINE"," CIRCLE","40 SKYLINE CIRCLE","08080","Sewell",null,null,null,null,null,null,null,"NL",null,"C",null,"C"]
[null,42," SKYLINE"," CIRCLE","42 SKYLINE CIRCLE","08080","Sewell",null,null,null,null,null,null,null,"NL",null,"C",null,"C"]
[null,52," SKYLINE"," CIRCLE","52 SKYLINE CIRCLE","08080","Sewell",null,null,null,null,null,null,null,"NL",null,"C",null,"C"]
[null,60," SKYLINE"," CIRCLE","60 SKYLINE CIRCLE","08080","Sewell",null,null,null,null,null,null,null,"NL",null,"C",null,"C"]
[null,15," SKYLINE"," CIRCLE","15 SKYLINE CIRCLE","08080","Sewell",null,null,null,null,null,null,null,"NL",null,"C",null,"C"]
[null,17," SKYLINE"," CIRCLE","17 SKYLINE CIRCLE","08080","Sewell",null,null,null,null,null,null,null,"NL",null,"C",null,"C"]
[null,27," SKYLINE"," CIRCLE","27 SKYLINE CIRCLE","08080","Sewell",null,null,null,null,null,null,null,"NL",null,"C",null,"C"]
[null,55," SKYLINE"," CIRCLE","55 SKYLINE CIRCLE","08080","Sewell",null,null,null,null,null,null,null,"NL",null,"C",null,"C"]
[null,7," SKYLINE"," CIRCLE","7 SKYLINE CIRCLE","08080","Sewell",null,null,null,null,null,null,null,"NL",null,"C",null,"C"]
[null,77," SNAPDRAGON"," CT","77 SNAPDRAGON CT","08080","Sewell",null,null,null,null,null,null,null,"NL",null,"C",null,"P"]
[null,89," SNAPDRAGON"," CT","89 SNAPDRAGON CT","08080","Sewell",null,null,null,null,null,null,null,"NL",null,"C",null,"P"]
[null,84," SNAPDRAGON"," CT","84 SNAPDRAGON CT","08080","Sewell",null,null,null,null,null,null,null,"NL",null,"C",null,"P"]
[null,95," SNAPDRAGON"," CT","95 SNAPDRAGON CT","08080","Sewell",null,null,null,null,null,null,null,"NL",null,"C",null,"P"]
[null,301," SNOWY OWL"," CT","301 SNOWY OWL CT","08080","Sewell",null,null,null,null,null,null,null,"NL",null,"C",null,"C"]
[null,39," SOMERSET"," AVE","39 SOMERSET AVE","08080","Sewell",null,null,null,null,null,null,null,"NL",null,"C",null,"G"]
[null,62," SOMERSET"," AVE","62 SOMERSET AVE","08080","Sewell",null,null,null,null,null,null,null,"NL",null,"C",null,"G"]
[null,15," SOMERSET"," AVE","15 SOMERSET AVE","08080","Sewell",null,null,null,null,null,null,null,"NL",null,"C",null,"G"]
[null,49," SOMERSET"," AVE","49 SOMERSET AVE","08080","Sewell",null,null,null,null,null,null,null,"NL",null,"C",null,"G"]
[null,"65-71"," SPRING HILL"," RD","65-71 SPRING HILL RD","08051","Mantua",null,null,null,null,null,null,null,"NL",null,"C",null,"C"]
[null,9," SPRUCE"," ST","9 SPRUCE ST","08080","Sewell",null,null,null,null,null,null,null,"NL",null,"C",null,"C"]
[null,50," SPRUCE"," ST","50 SPRUCE ST","08080","Sewell",null,null,null,null,null,null,null,"NL",null,"C",null,"C"]
[null,60," SPRUCE"," ST","60 SPRUCE ST","08080","Sewell",null,null,null,null,null,null,null,"NL",null,"C",null,"C"]
[null,151," STANHOPE"," AVE","151 STANHOPE AVE","08051","Mantua",null,null,null,null,null,null,null,"NL",null,"C",null,"C"]
[null,163," STANHOPE"," AVE","163 STANHOPE AVE","08051","Mantua",null,null,null,null,null,null,null,"NL",null,"C",null,"C"]
[null,162," STANHOPE"," AVE","162 STANHOPE AVE","08051","Mantua",null,null,null,null,null,null,null,"NL",null,"C",null,"C"]
[null,164," STANHOPE"," AVE","164 STANHOPE AVE","08051","Mantua",null,null,null,null,null,null,null,"NL",null,"C",null,"C"]
[null,"23B"," STARLING"," CT","23B STARLING CT","08051","Mantua",null,null,null,null,null,null,null,"NL",null,"C",null,"P"]
[null,20," STARLING"," CT","20 STARLING CT","08051","Mantua",null,null,null,null,null,null,null,"NL",null,"C",null,"P"]
[null,610," STATE"," RD","610 STATE RD","08051","Mantua",null,null,null,null,null,null,null,"NL",null,"C",null,"C"]
[null,612," STATE"," RD","612 STATE RD","08051","Mantua",null,null,null,null,null,null,null,"NL",null,"C",null,"C"]
[null,613," STATE"," RD","613 STATE RD","08051","Mantua",null,null,null,null,null,null,null,"NL",null,"C",null,"C"]
[null,"PUMP"," STATION/RT","45","PUMP STATION/RT45","08051","Mantua",null,null,null,null,null,null,null,"NL",null,"C",null,"NA"]
[null,22," STEPPING STONE"," LN","22 STEPPING STONE LN","08080","Sewell",null,null,null,null,null,null,null,"NL",null,"C",null,"P"]
[null,26," STEPPING STONE"," LN",{"$f":"_xlfn.CONCAT(B4354, C4354, D4354)","v":"26 STEPPING STONE LN"},"08080","Sewell",null,null,null,null,null,null,null,"NL",null,"C",null,"P"]
[null,37," STEPPING STONE"," LN","37 STEPPING STONE LN","08080","Sewell",null,null,null,null,null,null,null,"NL",null,"C",null,"P"]
[null,49," STEPPING STONE"," LN","49 STEPPING STONE LN","08080","Sewell",null,null,null,null,null,null,null,"NL",null,"C",null,"P"]
[null,6," STEPPING STONE"," LN","6 STEPPING STONE LN","08080","Sewell",null,null,null,null,null,null,null,"NL",null,"C",null,"P"]
[null,61," STEPPING STONE"," LN","61 STEPPING STONE LN","08080","Sewell",null,null,null,null,null,null,null,"NL",null,"C",null,"P"]
[null,70," STEPPING STONE"," LN","70 STEPPING STONE LN","08080","Sewell",null,null,null,null,null,null,null,"NL",null,"C",null,"P"]
[null,82," STEPPING STONE"," LN","82 STEPPING STONE LN","08080","Sewell",null,null,null,null,null,null,null,"NL",null,"C",null,"P"]
[null,213," SUMMIT"," AVE","213 SUMMIT AVE","08051","Mantua",null,null,null,null,null,null,null,"NL",null,"C",null,"C"]
[null,220," SUMMIT"," AVE","220 SUMMIT AVE","08051","Mantua",null,null,null,null,null,null,null,"NL",null,"C",null,"C"]
[null,243," SUMMIT"," AVE","243 SUMMIT AVE","08051","Mantua",null,null,null,null,null,null,null,"NL",null,"C",null,"C"]
[null,250," SUMMIT"," AVE","250 SUMMIT AVE","08051","Mantua",null,null,null,null,null,null,null,"NL",null,"C",null,"C"]
[null,804," SUNFLOWER"," WAY","804 SUNFLOWER WAY","08051","Mantua",null,null,null,null,null,null,null,"NL",null,"C",null,"P"]
[null,806," SUNFLOWER"," WAY","806 SUNFLOWER WAY","08051","Mantua",null,null,null,null,null,null,null,"NL",null,"C",null,"P"]
[null,702," SUNFLOWER"," WAY","702 SUNFLOWER WAY","08051","Mantua",null,null,null,null,null,null,null,"NL",null,"C",null,"P"]
[null,712," SUNFLOWER"," WAY","712 SUNFLOWER WAY","08051","Mantua",null,null,null,null,null,null,null,"NL",null,"C",null,"P"]
[null,811," SUNFLOWER"," WAY",{"$f":"_xlfn.CONCAT(B4418, C4418, D4418)","v":"811 SUNFLOWER WAY"},"08051","Mantua",null,null,null,null,null,null,null,"NL",null,"C",null,"P"]
[null,701," SUNFLOWER"," WAY","701 SUNFLOWER WAY","08051","Mantua",null,null,null,null,null,null,null,"NL",null,"C",null,"P"]
[null,711," SUNFLOWER"," WAY","711 SUNFLOWER WAY","08051","Mantua",null,null,null,null,null,null,null,"NL",null,"C",null,"P"]
[null,509," SUNFLOWER"," WAY","509 SUNFLOWER WAY","08051","Mantua",null,null,null,null,null,null,null,"NL",null,"C",null,"P"]
[null,510," SUNFLOWER"," WAY","510 SUNFLOWER WAY","08051","Mantua",null,null,null,null,null,null,null,"NL",null,"C",null,"P"]
[null,512," SUNFLOWER"," WAY","512 SUNFLOWER WAY","08051","Mantua",null,null,null,null,null,null,null,"NL",null,"C",null,"P"]
[null,607," SUNFLOWER"," WAY","607 SUNFLOWER WAY","08051","Mantua",null,null,null,null,null,null,null,"NL",null,"C",null,"P"]
[null,606," SUNFLOWER"," WAY","606 SUNFLOWER WAY","08051","Mantua",null,null,null,null,null,null,null,"NL",null,"C",null,"P"]
[null,639," SURREY"," RD","639 SURREY RD","08080","Sewell",null,null,null,null,null,null,null,"NL",null,"C",null,"C"]
[null,645," SURREY"," RD","645 SURREY RD","08080","Sewell",null,null,null,null,null,null,null,"NL",null,"C",null,"C"]
[null,636," SURREY"," RD","636 SURREY RD","08080","Sewell",null,null,null,null,null,null,null,"NL",null,"C",null,"C"]
[null,648," SURREY"," RD","648 SURREY RD","08080","Sewell",null,null,null,null,null,null,null,"NL",null,"C",null,"C"]
[null,658," SURREY"," RD","658 SURREY RD","08080","Sewell",null,null,null,null,null,null,null,"NL",null,"C",null,"C"]
[null,660," SURREY"," RD","660 SURREY RD","08080","Sewell",null,null,null,null,null,null,null,"NL",null,"C",null,"C"]
[null,12," SUSIE'S"," HOLLOW","12 SUSIE'S HOLLOW","08080","Sewell",null,null,null,null,null,null,null,"NL",null,"C",null,"C"]
[null,26," SUSIE'S"," HOLLOW","26 SUSIE'S HOLLOW","08080","Sewell",null,null,null,null,null,null,null,"NL",null,"C",null,"C"]
[null,15," SUSIE'S"," HOLLOW","15 SUSIE'S HOLLOW","08080","Sewell",null,null,null,null,null,null,null,"NL",null,"C",null,"C"]
[null,19," SUSIE'S"," HOLLOW","19 SUSIE'S HOLLOW","08080","Sewell",null,null,null,null,null,null,null,"NL",null,"C",null,"C"]
[null,121," SUSSEX"," AVE","121 SUSSEX AVE","08080","Sewell",null,null,null,null,null,null,null,"NL",null,"C",null,"C"]
[null,151," SUSSEX"," AVE","151 SUSSEX AVE","08080","Sewell",null,null,null,null,null,null,null,"NL",null,"C",null,"C"]
[null,190," SUSSEX"," AVE","190 SUSSEX AVE","08080","Sewell",null,null,null,null,null,null,null,"NL",null,"C",null,"C"]
[null,191," SUSSEX"," AVE","191 SUSSEX AVE","08080","Sewell",null,null,null,null,null,null,null,"NL",null,"C",null,"C"]
[null,47," SUSSEX"," AVE","47 SUSSEX AVE","08080","Sewell",null,null,null,null,null,null,null,"NL",null,"C",null,"C"]
[null,65," SUSSEX"," AVE","65 SUSSEX AVE","08080","Sewell",null,null,null,null,null,null,null,"NL",null,"C",null,"C"]
[null,40," SUSSEX"," AVE","40 SUSSEX AVE","08080","Sewell",null,null,null,null,null,null,null,"NL",null,"C",null,"C"]
[null,42," SUSSEX"," AVE","42 SUSSEX AVE","08080","Sewell",null,null,null,null,null,null,null,"NL",null,"C",null,"C"]
[null,170," SUSSEX"," AVE","170 SUSSEX AVE","08080","Sewell",null,null,null,null,null,null,null,"NL",null,"C",null,"C"]
[null,285," SUSSEX"," AVE","285 SUSSEX AVE","08080","Sewell",null,null,null,null,null,null,null,"NL",null,"C",null,"C"]
[null,270," SUSSEX"," AVE","270 SUSSEX AVE","08080","Sewell",null,null,null,null,null,null,null,"NL",null,"C",null,"C"]
[null,280," SUSSEX"," AVE","280 SUSSEX AVE","08080","Sewell",null,null,null,null,null,null,null,"NL",null,"C",null,"C"]
[null,18," TALLOWOOD"," CT","18 TALLOWOOD CT","08051","Mantua",null,null,null,null,null,null,null,"NL",null,"C",null,"P"]
[null,4," TALLOWOOD"," CT","4 TALLOWOOD CT","08051","Mantua",null,null,null,null,null,null,null,"NL",null,"C",null,"P"]
[null,47," TATUM"," ST","47 TATUM ST","08051","Mantua",null,null,null,null,null,null,null,"NL",null,"C",null,"G"]
[null,"100-102"," TAYLOR"," AVE","100-102 TAYLOR AVE","08051","Mantua",null,null,null,null,null,null,null,"NL",null,"C",null,"C"]
[null,121," TAYLOR"," AVE","121 TAYLOR AVE","08051","Mantua",null,null,null,null,null,null,null,"NL",null,"C",null,"C"]
[null,225," TAYLOR"," AVE","225 TAYLOR AVE","08051","Mantua",null,null,null,null,null,null,null,"NL",null,"C",null,"C"]
[null,110," TAYLOR"," AVE","110 TAYLOR AVE","08051","Mantua",null,null,null,null,null,null,null,"NL",null,"C",null,"C"]
[null,116," TAYLOR"," AVE","116 TAYLOR AVE","08051","Mantua",null,null,null,null,null,null,null,"NL",null,"C",null,"C"]
[null,49," THACKERY"," CT","49 THACKERY CT","08080","Sewell",null,null,null,null,null,null,null,"NL",null,"C",null,"C"]
[null,54," THACKERY"," CT","54 THACKERY CT","08080","Sewell",null,null,null,null,null,null,null,"NL",null,"C",null,"C"]
[null,69," THORNWOOD"," LN","69 THORNWOOD LN","08080","Sewell",null,null,null,null,null,null,null,"NL",null,"C",null,"C"]
[null,70," THORNWOOD"," LN","70 THORNWOOD LN","08080","Sewell",null,null,null,null,null,null,null,"NL",null,"C",null,"C"]
[null,27," TIMBERCREST"," DR","27 TIMBERCREST DR","08080","Sewell",null,null,null,null,null,null,null,"NL",null,"C",null,"C"]
[null,30," TIMBERCREST"," DR","30 TIMBERCREST DR","08080","Sewell",null,null,null,null,null,null,null,"NL",null,"C",null,"C"]
[null,39," TIMBERCREST"," DR","39 TIMBERCREST DR","08080","Sewell",null,null,null,null,null,null,null,"NL",null,"C",null,"C"]
[null,10," TIMBERCREST"," DR","10 TIMBERCREST DR","08080","Sewell",null,null,null,null,null,null,null,"NL",null,"C",null,"C"]
[null,8," TIMBERCREST"," DR","8 TIMBERCREST DR","08080","Sewell",null,null,null,null,null,null,null,"NL",null,"C",null,"C"]
[null,63," TIMBERCREST"," DR","63 TIMBERCREST DR","08080","Sewell",null,null,null,null,null,null,null,"NL",null,"C",null,"C"]
[null,18," TIMBERCREST"," DR","18 TIMBERCREST DR","08080","Sewell",null,null,null,null,null,null,null,"NL",null,"C",null,"C"]
[null,20," TIMBERCREST"," DR","20 TIMBERCREST DR","08080","Sewell",null,null,null,null,null,null,null,"NL",null,"C",null,"C"]
[null,75," TIMBERCREST"," DR","75 TIMBERCREST DR","08080","Sewell",null,null,null,null,null,null,null,"NL",null,"C",null,"C"]
[null,85," TIMBERCREST"," DR","85 TIMBERCREST DR","08080","Sewell",null,null,null,null,null,null,null,"NL",null,"C",null,"C"]
[null,40," TIMBERCREST"," DR","40 TIMBERCREST DR","08080","Sewell",null,null,null,null,null,null,null,"NL",null,"C",null,"C"]
[null,42," TIMBERCREST"," DR","42 TIMBERCREST DR","08080","Sewell",null,null,null,null,null,null,null,"NL",null,"C",null,"C"]
[null,70," TIMBERCREST"," DR","70 TIMBERCREST DR","08080","Sewell",null,null,null,null,null,null,null,"NL",null,"C",null,"C"]
[null,82," TIMBERCREST"," DR","82 TIMBERCREST DR","08080","Sewell",null,null,null,null,null,null,null,"NL",null,"C",null,"C"]
[null,10," TIMBERLINE"," PLAZA","10 TIMBERLINE PLAZA","08080","Sewell",null,null,null,null,null,null,null,"NL",null,"C",null,"C"]
[null,4," TIMBERLINE"," PLAZA","4 TIMBERLINE PLAZA","08080","Sewell",null,null,null,null,null,null,null,"NL",null,"C",null,"C"]
[null,29," TIMBERLINE"," PLAZA","29 TIMBERLINE PLAZA","08080","Sewell",null,null,null,null,null,null,null,"NL",null,"C",null,"C"]
[null,26," TIMBERLINE"," PLAZA","26 TIMBERLINE PLAZA","08080","Sewell",null,null,null,null,null,null,null,"NL",null,"C",null,"C"]
[null,14," TONKIN"," ST","14 TONKIN ST","08051","Mantua",null,null,null,null,null,null,null,"NL",null,"C",null,"C"]
[null,20," TONKIN"," ST","20 TONKIN ST","08051","Mantua",null,null,null,null,null,null,null,"NL",null,"C",null,"C"]
[null,204," TONY"," CIRCLE","204 TONY CIRCLE","08051","Mantua",null,null,null,null,null,null,null,"NL",null,"C",null,"P"]
[null,211," TONY"," CIRCLE","211 TONY CIRCLE","08051","Mantua",null,null,null,null,null,null,null,"NL",null,"C",null,"P"]
[null,218," TONY"," CIRCLE","218 TONY CIRCLE","08051","Mantua",null,null,null,null,null,null,null,"NL",null,"C",null,"P"]
[null,219," TONY"," CIRCLE","219 TONY CIRCLE","08051","Mantua",null,null,null,null,null,null,null,"NL",null,"C",null,"P"]
[null,235," TONY"," CIRCLE","235 TONY CIRCLE","08051","Mantua",null,null,null,null,null,null,null,"NL",null,"C",null,"P"]
[null,241," TONY"," CIRCLE","241 TONY CIRCLE","08051","Mantua",null,null,null,null,null,null,null,"NL",null,"C",null,"P"]
[null,220," TONY"," CIRCLE","220 TONY CIRCLE","08051","Mantua",null,null,null,null,null,null,null,"NL",null,"C",null,"P"]
[null,221," TONY"," CIRCLE","221 TONY CIRCLE","08051","Mantua",null,null,null,null,null,null,null,"NL",null,"C",null,"P"]
[null,226," TONY"," CIRCLE","226 TONY CIRCLE","08051","Mantua",null,null,null,null,null,null,null,"NL",null,"C",null,"P"]
[null,256," TONY"," CIRCLE","256 TONY CIRCLE","08051","Mantua",null,null,null,null,null,null,null,"NL",null,"C",null,"P"]
[null,259," TONY"," CIRCLE","259 TONY CIRCLE","08051","Mantua",null,null,null,null,null,null,null,"NL",null,"C",null,"P"]
[null,264," TONY"," CIRCLE","264 TONY CIRCLE","08051","Mantua",null,null,null,null,null,null,null,"NL",null,"C",null,"P"]
[null,269," TONY"," CIRCLE","269 TONY CIRCLE","08051","Mantua",null,null,null,null,null,null,null,"NL",null,"C",null,"P"]
[null,255," TONY"," CIRCLE","255 TONY CIRCLE","08051","Mantua",null,null,null,null,null,null,null,"NL",null,"C",null,"P"]
[null,206," TONY"," CIRCLE","206 TONY CIRCLE","08051","Mantua",null,null,null,null,null,null,null,"NL",null,"C",null,"P"]
[null,210," TONY"," CIRCLE","210 TONY CIRCLE","08051","Mantua",null,null,null,null,null,null,null,"NL",null,"C",null,"P"]
[null,642," TOPEKA"," AVE","642 TOPEKA AVE","08051","Mantua",null,null,null,null,null,null,null,"NL",null,"C",null,"C"]
[null,652," TOPEKA"," AVE",{"$f":"_xlfn.CONCAT(B4738, C4738, D4738)","v":"652 TOPEKA AVE"},"08051","Mantua",null,null,null,null,null,null,null,"NL",null,"C",null,"C"]
[null,647," TOPEKA"," AVE","647 TOPEKA AVE","08051","Mantua",null,null,null,null,null,null,null,"NL",null,"C",null,"C"]
[null,649," TOPEKA"," AVE","649 TOPEKA AVE","08051","Mantua",null,null,null,null,null,null,null,"NL",null,"C",null,"C"]
[null,648," TOPEKA"," AVE","648 TOPEKA AVE","08051","Mantua",null,null,null,null,null,null,null,"NL",null,"C",null,"C"]
[null,861," TRENTON"," AVE","861 TRENTON AVE","08080","Sewell",null,null,null,null,null,null,null,"NL",null,"C",null,"C"]
[null,1011," TRISTRAM"," CIRCLE","1011 TRISTRAM CIRCLE","08051","Mantua",null,null,null,null,null,null,null,"NL",null,"C",null,"P"]
[null,1012," TRISTRAM"," CIRCLE","1012 TRISTRAM CIRCLE","08051","Mantua",null,null,null,null,null,null,null,"NL",null,"C",null,"P"]
[null,1020," TRISTRAM"," CIRCLE","1020 TRISTRAM CIRCLE","08051","Mantua",null,null,null,null,null,null,null,"NL",null,"C",null,"P"]
[null,1025," TRISTRAM"," CIRCLE","1025 TRISTRAM CIRCLE","08051","Mantua",null,null,null,null,null,null,null,"NL",null,"C",null,"P"]
[null,1040," TRISTRAM"," CIRCLE","1040 TRISTRAM CIRCLE","08051","Mantua",null,null,null,null,null,null,null,"NL",null,"C",null,"P"]
[null,1044," TRISTRAM"," CIRCLE","1044 TRISTRAM CIRCLE","08051","Mantua",null,null,null,null,null,null,null,"NL",null,"C",null,"P"]
[null,1031," TRISTRAM"," CIRCLE","1031 TRISTRAM CIRCLE","08051","Mantua",null,null,null,null,null,null,null,"NL",null,"C",null,"P"]
[null,1036," TRISTRAM"," CIRCLE","1036 TRISTRAM CIRCLE","08051","Mantua",null,null,null,null,null,null,null,"NL",null,"C",null,"P"]
[null,1053," TRISTRAM"," CIRCLE","1053 TRISTRAM CIRCLE","08051","Mantua",null,null,null,null,null,null,null,"NL",null,"C",null,"P"]
[null,1054," TRISTRAM"," CIRCLE","1054 TRISTRAM CIRCLE","08051","Mantua",null,null,null,null,null,null,null,"NL",null,"C",null,"P"]
[null,1059," TRISTRAM"," CIRCLE","1059 TRISTRAM CIRCLE","08051","Mantua",null,null,null,null,null,null,null,"NL",null,"C",null,"P"]
[null,1174," TRISTRAM"," CIRCLE","1174 TRISTRAM CIRCLE","08051","Mantua",null,null,null,null,null,null,null,"NL",null,"C",null,"P"]
[null,1179," TRISTRAM"," CIRCLE","1179 TRISTRAM CIRCLE","08051","Mantua",null,null,null,null,null,null,null,"NL",null,"C",null,"P"]
[null,1060," TRISTRAM"," CIRCLE","1060 TRISTRAM CIRCLE","08051","Mantua",null,null,null,null,null,null,null,"NL",null,"C",null,"P"]
[null,1065," TRISTRAM"," CIRCLE","1065 TRISTRAM CIRCLE","08051","Mantua",null,null,null,null,null,null,null,"NL",null,"C",null,"P"]
[null,1181," TRISTRAM"," CIRCLE","1181 TRISTRAM CIRCLE","08051","Mantua",null,null,null,null,null,null,null,"NL",null,"C",null,"P"]
[null,1186," TRISTRAM"," CIRCLE","1186 TRISTRAM CIRCLE","08051","Mantua",null,null,null,null,null,null,null,"NL",null,"C",null,"P"]
[null,1187," TRISTRAM"," CIRCLE","1187 TRISTRAM CIRCLE","08051","Mantua",null,null,null,null,null,null,null,"NL",null,"C",null,"P"]
[null,1094," TRISTRAM"," CIRCLE","1094 TRISTRAM CIRCLE","08051","Mantua",null,null,null,null,null,null,null,"NL",null,"C",null,"P"]
[null,1101," TRISTRAM"," CIRCLE","1101 TRISTRAM CIRCLE","08051","Mantua",null,null,null,null,null,null,null,"NL",null,"C",null,"P"]
[null,1107," TRISTRAM"," CIRCLE","1107 TRISTRAM CIRCLE","08051","Mantua",null,null,null,null,null,null,null,"NL",null,"C",null,"P"]
[null,1108," TRISTRAM"," CIRCLE","1108 TRISTRAM CIRCLE","08051","Mantua",null,null,null,null,null,null,null,"NL",null,"C",null,"P"]
[null,1193," TRISTRAM"," CIRCLE","1193 TRISTRAM CIRCLE","08051","Mantua",null,null,null,null,null,null,null,"NL",null,"C",null,"P"]
[null,1120," TRISTRAM"," CIRCLE","1120 TRISTRAM CIRCLE","08051","Mantua",null,null,null,null,null,null,null,"NL",null,"C",null,"P"]
[null,1126," TRISTRAM"," CIRCLE","1126 TRISTRAM CIRCLE","08051","Mantua",null,null,null,null,null,null,null,"NL",null,"C",null,"P"]
[null,1127," TRISTRAM"," CIRCLE","1127 TRISTRAM CIRCLE","08051","Mantua",null,null,null,null,null,null,null,"NL",null,"C",null,"P"]
[null,1134," TRISTRAM"," CIRCLE","1134 TRISTRAM CIRCLE","08051","Mantua",null,null,null,null,null,null,null,"NL",null,"C",null,"P"]
[null,1351," TRISTRAM"," CIRCLE","1351 TRISTRAM CIRCLE","08051","Mantua",null,null,null,null,null,null,null,"NL",null,"C",null,"P"]
[null,1356," TRISTRAM"," CIRCLE","1356 TRISTRAM CIRCLE","08051","Mantua",null,null,null,null,null,null,null,"NL",null,"C",null,"P"]
[null,1357," TRISTRAM"," CIRCLE","1357 TRISTRAM CIRCLE","08051","Mantua",null,null,null,null,null,null,null,"NL",null,"C",null,"P"]
[null,1404," TRISTRAM"," CIRCLE","1404 TRISTRAM CIRCLE","08051","Mantua",null,null,null,null,null,null,null,"NL",null,"C",null,"P"]
[null,1113," TRISTRAM"," CIRCLE","1113 TRISTRAM CIRCLE","08051","Mantua",null,null,null,null,null,null,null,"NL",null,"C",null,"P"]
[null,1150," TRISTRAM"," CIRCLE","1150 TRISTRAM CIRCLE","08051","Mantua",null,null,null,null,null,null,null,"NL",null,"C",null,"P"]
[null,1151," TRISTRAM"," CIRCLE","1151 TRISTRAM CIRCLE","08051","Mantua",null,null,null,null,null,null,null,"NL",null,"C",null,"P"]
[null,1156," TRISTRAM"," CIRCLE","1156 TRISTRAM CIRCLE","08051","Mantua",null,null,null,null,null,null,null,"NL",null,"C",null,"P"]
[null,1164," TRISTRAM"," CIRCLE","1164 TRISTRAM CIRCLE","08051","Mantua",null,null,null,null,null,null,null,"NL",null,"C",null,"P"]
[null,1072," TRISTRAM"," CIRCLE","1072 TRISTRAM CIRCLE","08051","Mantua",null,null,null,null,null,null,null,"NL",null,"C",null,"P"]
[null,1073," TRISTRAM"," CIRCLE","1073 TRISTRAM CIRCLE","08051","Mantua",null,null,null,null,null,null,null,"NL",null,"C",null,"P"]
[null,1080," TRISTRAM"," CIRCLE","1080 TRISTRAM CIRCLE","08051","Mantua",null,null,null,null,null,null,null,"NL",null,"C",null,"P"]
[null,1085," TRISTRAM"," CIRCLE","1085 TRISTRAM CIRCLE","08051","Mantua",null,null,null,null,null,null,null,"NL",null,"C",null,"P"]
[null,1140," TRISTRAM"," CIRCLE","1140 TRISTRAM CIRCLE","08051","Mantua",null,null,null,null,null,null,null,"NL",null,"C",null,"P"]
[null,1141," TRISTRAM"," CIRCLE","1141 TRISTRAM CIRCLE","08051","Mantua",null,null,null,null,null,null,null,"NL",null,"C",null,"P"]
[null,1146," TRISTRAM"," CIRCLE","1146 TRISTRAM CIRCLE","08051","Mantua",null,null,null,null,null,null,null,"NL",null,"C",null,"P"]
[null,1203," TRISTRAM"," CIRCLE","1203 TRISTRAM CIRCLE","08051","Mantua",null,null,null,null,null,null,null,"NL",null,"C",null,"P"]
[null,1210," TRISTRAM"," CIRCLE","1210 TRISTRAM CIRCLE","08051","Mantua",null,null,null,null,null,null,null,"NL",null,"C",null,"P"]
[null,1212," TRISTRAM"," CIRCLE","1212 TRISTRAM CIRCLE","08051","Mantua",null,null,null,null,null,null,null,"NL",null,"C",null,"P"]
[null,1217," TRISTRAM"," CIRCLE","1217 TRISTRAM CIRCLE","08051","Mantua",null,null,null,null,null,null,null,"NL",null,"C",null,"P"]
[null,1224," TRISTRAM"," CIRCLE","1224 TRISTRAM CIRCLE","08051","Mantua",null,null,null,null,null,null,null,"NL",null,"C",null,"P"]
[null,1231," TRISTRAM"," CIRCLE","1231 TRISTRAM CIRCLE","08051","Mantua",null,null,null,null,null,null,null,"NL",null,"C",null,"P"]
[null,1232," TRISTRAM"," CIRCLE","1232 TRISTRAM CIRCLE","08051","Mantua",null,null,null,null,null,null,null,"NL",null,"C",null,"P"]
[null,1242," TRISTRAM"," CIRCLE","1242 TRISTRAM CIRCLE","08051","Mantua",null,null,null,null,null,null,null,"NL",null,"C",null,"P"]
[null,1245," TRISTRAM"," CIRCLE","1245 TRISTRAM CIRCLE","08051","Mantua",null,null,null,null,null,null,null,"NL",null,"C",null,"P"]
[null,1252," TRISTRAM"," CIRCLE","1252 TRISTRAM CIRCLE","08051","Mantua",null,null,null,null,null,null,null,"NL",null,"C",null,"P"]
[null,1253," TRISTRAM"," CIRCLE","1253 TRISTRAM CIRCLE","08051","Mantua",null,null,null,null,null,null,null,"NL",null,"C",null,"P"]
[null,1123," TRISTRAM"," CIRCLE","1123 TRISTRAM CIRCLE","08051","Mantua",null,null,null,null,null,null,null,"NL",null,"C",null,"P"]
[null,1264," TRISTRAM"," CIRCLE","1264 TRISTRAM CIRCLE","08051","Mantua",null,null,null,null,null,null,null,"NL",null,"C",null,"P"]
[null,1271," TRISTRAM"," CIRCLE","1271 TRISTRAM CIRCLE","08051","Mantua",null,null,null,null,null,null,null,"NL",null,"C",null,"P"]
[null,1272," TRISTRAM"," CIRCLE","1272 TRISTRAM CIRCLE","08051","Mantua",null,null,null,null,null,null,null,"NL",null,"C",null,"P"]
[null,1277," TRISTRAM"," CIRCLE","1277 TRISTRAM CIRCLE","08051","Mantua",null,null,null,null,null,null,null,"NL",null,"C",null,"P"]
[null,1284," TRISTRAM"," CIRCLE","1284 TRISTRAM CIRCLE","08051","Mantua",null,null,null,null,null,null,null,"NL",null,"C",null,"P"]
[null,1291," TRISTRAM"," CIRCLE","1291 TRISTRAM CIRCLE","08051","Mantua",null,null,null,null,null,null,null,"NL",null,"C",null,"P"]
[null,1292," TRISTRAM"," CIRCLE","1292 TRISTRAM CIRCLE","08051","Mantua",null,null,null,null,null,null,null,"NL",null,"C",null,"P"]
[null,1297," TRISTRAM"," CIRCLE","1297 TRISTRAM CIRCLE","08051","Mantua",null,null,null,null,null,null,null,"NL",null,"C",null,"P"]
[null,1303," TRISTRAM"," CIRCLE","1303 TRISTRAM CIRCLE","08051","Mantua",null,null,null,null,null,null,null,"NL",null,"C",null,"P"]
[null,1311," TRISTRAM"," CIRCLE","1311 TRISTRAM CIRCLE","08051","Mantua",null,null,null,null,null,null,null,"NL",null,"C",null,"P"]
[null,1312," TRISTRAM"," CIRCLE","1312 TRISTRAM CIRCLE","08051","Mantua",null,null,null,null,null,null,null,"NL",null,"C",null,"P"]
[null,1316," TRISTRAM"," CIRCLE","1316 TRISTRAM CIRCLE","08051","Mantua",null,null,null,null,null,null,null,"NL",null,"C",null,"P"]
[null,1325," TRISTRAM"," CIRCLE","1325 TRISTRAM CIRCLE","08051","Mantua",null,null,null,null,null,null,null,"NL",null,"C",null,"P"]
[null,1332," TRISTRAM"," CIRCLE","1332 TRISTRAM CIRCLE","08051","Mantua",null,null,null,null,null,null,null,"NL",null,"C",null,"P"]
[null,1333," TRISTRAM"," CIRCLE","1333 TRISTRAM CIRCLE","08051","Mantua",null,null,null,null,null,null,null,"NL",null,"C",null,"P"]
[null,1340," TRISTRAM"," CIRCLE","1340 TRISTRAM CIRCLE","08051","Mantua",null,null,null,null,null,null,null,"NL",null,"C",null,"P"]
[null,1345," TRISTRAM"," CIRCLE","1345 TRISTRAM CIRCLE","08051","Mantua",null,null,null,null,null,null,null,"NL",null,"C",null,"P"]
[null,1362," TRISTRAM"," CIRCLE","1362 TRISTRAM CIRCLE","08051","Mantua",null,null,null,null,null,null,null,"NL",null,"C",null,"P"]
[null,1363," TRISTRAM"," CIRCLE","1363 TRISTRAM CIRCLE","08051","Mantua",null,null,null,null,null,null,null,"NL",null,"C",null,"P"]
[null,1370," TRISTRAM"," CIRCLE",{"$f":"_xlfn.CONCAT(B5058, C5058, D5058)","v":"1370 TRISTRAM CIRCLE"},"08051","Mantua",null,null,null,null,null,null,null,"NL",null,"C",null,"P"]
[null,1375," TRISTRAM"," CIRCLE","1375 TRISTRAM CIRCLE","08051","Mantua",null,null,null,null,null,null,null,"NL",null,"C",null,"P"]
[null,1381," TRISTRAM"," CIRCLE","1381 TRISTRAM CIRCLE","08051","Mantua",null,null,null,null,null,null,null,"NL",null,"C",null,"P"]
[null,1382," TRISTRAM"," CIRCLE","1382 TRISTRAM CIRCLE","08051","Mantua",null,null,null,null,null,null,null,"NL",null,"C",null,"P"]
[null,1387," TRISTRAM"," CIRCLE","1387 TRISTRAM CIRCLE","08051","Mantua",null,null,null,null,null,null,null,"NL",null,"C",null,"P"]
[null,1414," TRISTRAM"," CIRCLE","1414 TRISTRAM CIRCLE","08051","Mantua",null,null,null,null,null,null,null,"NL",null,"C",null,"P"]
[null,1391," TRISTRAM"," CIRCLE","1391 TRISTRAM CIRCLE","08051","Mantua",null,null,null,null,null,null,null,"NL",null,"C",null,"P"]
[null,1392," TRISTRAM"," CIRCLE","1392 TRISTRAM CIRCLE","08051","Mantua",null,null,null,null,null,null,null,"NL",null,"C",null,"P"]
[null,1420," TRISTRAM"," CIRCLE","1420 TRISTRAM CIRCLE","08051","Mantua",null,null,null,null,null,null,null,"NL",null,"C",null,"P"]
[null,1425," TRISTRAM"," CIRCLE","1425 TRISTRAM CIRCLE","08051","Mantua",null,null,null,null,null,null,null,"NL",null,"C",null,"P"]
[null,1432," TRISTRAM"," CIRCLE","1432 TRISTRAM CIRCLE","08051","Mantua",null,null,null,null,null,null,null,"NL",null,"C",null,"P"]
[null,1433," TRISTRAM"," CIRCLE","1433 TRISTRAM CIRCLE","08051","Mantua",null,null,null,null,null,null,null,"NL",null,"C",null,"P"]
[null,23," TROTTERS"," CT","23 TROTTERS CT","08051","Mantua",null,null,null,null,null,null,null,"NL",null,"C",null,"P"]
[null,105," TURNER"," ST","105 TURNER ST","08051","Mantua",null,null,null,null,null,null,null,"NL",null,"C",null,"C"]
[null,124," TURNER"," ST","124 TURNER ST","08051","Mantua",null,null,null,null,null,null,null,"NL",null,"C",null,"C"]
[null,128," TURNER"," ST","128 TURNER ST","08051","Mantua",null,null,null,null,null,null,null,"NL",null,"C",null,"C"]
[null,26," TURNER"," ST","26 TURNER ST","08051","Mantua",null,null,null,null,null,null,null,"NL",null,"C",null,"C"]
[null,61," TURNER"," ST","61 TURNER ST","08051","Mantua",null,null,null,null,null,null,null,"NL",null,"C",null,"C"]
[null,428," TYLERS MILL"," RD","428 TYLERS MILL RD","08080","Sewell",null,null,null,null,null,null,null,"NL",null,"C",null,"C"]
[null,430," TYLERS MILL"," RD","430 TYLERS MILL RD","08080","Sewell",null,null,null,null,null,null,null,"NL",null,"C",null,"C"]
[null,440," TYLERS MILL"," RD","440 TYLERS MILL RD","08080","Sewell",null,null,null,null,null,null,null,"NL",null,"C",null,"C"]
[null,494," TYLERS MILL"," RD","494 TYLERS MILL RD","08080","Sewell",null,null,null,null,null,null,null,"NL",null,"C",null,"C"]
[null,499," TYLERS MILL"," RD","499 TYLERS MILL RD","08080","Sewell",null,null,null,null,null,null,null,"NL",null,"C",null,"C"]
[null,191," UNION"," AVE","191 UNION AVE","08080","Sewell",null,null,null,null,null,null,null,"NL",null,"C",null,"C"]
[null,203," UNION"," AVE","203 UNION AVE","08080","Sewell",null,null,null,null,null,null,null,"NL",null,"C",null,"C"]
[null,214," UNION"," AVE","214 UNION AVE","08080","Sewell",null,null,null,null,null,null,null,"NL",null,"C",null,"C"]
[null,106," VERMONT"," AVE","106 VERMONT AVE","08051","Mantua",null,null,null,null,null,null,null,"NL",null,"C",null,"C"]
[null,198," VERMONT"," AVE","198 VERMONT AVE","08051","Mantua",null,null,null,null,null,null,null,"NL",null,"C",null,"C"]
[null,171," VICTORIA"," AVE","171 VICTORIA AVE","08051","Mantua",null,null,null,null,null,null,null,"NL",null,"C",null,"C"]
[null,170," VICTORIA"," AVE","170 VICTORIA AVE","08051","Mantua",null,null,null,null,null,null,null,"NL",null,"C",null,"C"]
[null,111," WARREN"," AVE","111 WARREN AVE","08080","Sewell",null,null,null,null,null,null,null,"NL",null,"C",null,"C"]
[null,121," WARREN"," AVE","121 WARREN AVE","08080","Sewell",null,null,null,null,null,null,null,"NL",null,"C",null,"C"]
[null,201," WARREN"," AVE","201 WARREN AVE","08080","Sewell",null,null,null,null,null,null,null,"NL",null,"C",null,"C"]
[null,210," WARREN"," AVE","210 WARREN AVE","08080","Sewell",null,null,null,null,null,null,null,"NL",null,"C",null,"C"]
[null,161," WARREN"," AVE","161 WARREN AVE","08080","Sewell",null,null,null,null,null,null,null,"NL",null,"C",null,"C"]
[null,165," WARREN"," AVE","165 WARREN AVE","08080","Sewell",null,null,null,null,null,null,null,"NL",null,"C",null,"C"]
[null,152," WARREN"," AVE","152 WARREN AVE","08080","Sewell",null,null,null,null,null,null,null,"NL",null,"C",null,"C"]
[null,128," WARWICK"," CT","128 WARWICK CT","08080","Sewell",null,null,null,null,null,null,null,"NL",null,"C",null,"C"]
[null,114," WASHINGTON"," AVE","114 WASHINGTON AVE","08051","Mantua",null,null,null,null,null,null,null,"NL",null,"C",null,"C"]
[null,118," WASHINGTON"," AVE","118 WASHINGTON AVE","08051","Mantua",null,null,null,null,null,null,null,"NL",null,"C",null,"C"]
[null,113," WASHINGTON"," AVE","113 WASHINGTON AVE","08051","Mantua",null,null,null,null,null,null,null,"NL",null,"C",null,"C"]
[null,137," WASHINGTON"," AVE","137 WASHINGTON AVE","08051","Mantua",null,null,null,null,null,null,null,"NL",null,"C",null,"C"]
[null,205," WENONAH"," AVE","205 WENONAH AVE","08051","Mantua",null,null,null,null,null,null,null,"NL",null,"C",null,"C"]
[null,211," WENONAH"," AVE","211 WENONAH AVE","08051","Mantua",null,null,null,null,null,null,null,"NL",null,"C",null,"C"]
[null,230," WENONAH"," AVE","230 WENONAH AVE","08051","Mantua",null,null,null,null,null,null,null,"NL",null,"C",null,"C"]
[null,258," WENONAH"," AVE","258 WENONAH AVE","08051","Mantua",null,null,null,null,null,null,null,"NL",null,"C",null,"C"]
[null,275," WENONAH"," AVE","275 WENONAH AVE","08051","Mantua",null,null,null,null,null,null,null,"NL",null,"C",null,"C"]
[null,315," WENONAH"," AVE","315 WENONAH AVE","08051","Mantua",null,null,null,null,null,null,null,"NL",null,"C",null,"C"]
[null,330," WENONAH"," AVE","330 WENONAH AVE","08051","Mantua",null,null,null,null,null,null,null,"NL",null,"C",null,"C"]
[null,249," WENONAH"," AVE","249 WENONAH AVE","08051","Mantua",null,null,null,null,null,null,null,"NL",null,"C",null,"C"]
[null,252," WENONAH"," AVE","252 WENONAH AVE","08051","Mantua",null,null,null,null,null,null,null,"NL",null,"C",null,"C"]
[null,268," WENONAH"," AVE","268 WENONAH AVE","08051","Mantua",null,null,null,null,null,null,null,"NL",null,"C",null,"C"]
[null,114," WEST ELM"," AVE","114 WEST ELM AVE","08051","Mantua",null,null,null,null,null,null,null,"NL",null,"C",null,"C"]
[null,113," WEST ELM"," AVE","113 WEST ELM AVE","08051","Mantua",null,null,null,null,null,null,null,"NL",null,"C",null,"C"]
[null,153," WEST ELM"," AVE","153 WEST ELM AVE","08051","Mantua",null,null,null,null,null,null,null,"NL",null,"C",null,"C"]
[null,154," WEST ELM"," AVE","154 WEST ELM AVE","08051","Mantua",null,null,null,null,null,null,null,"NL",null,"C",null,"C"]
[null,51," WEST ELM"," AVE","51 WEST ELM AVE","08051","Mantua",null,null,null,null,null,null,null,"NL",null,"C",null,"C"]
[null,10," WESTWOOD"," DR","10 WESTWOOD DR","08051","Mantua",null,null,null,null,null,null,null,"NL",null,"C",null,"C"]
[null,15," WESTWOOD"," DR","15 WESTWOOD DR","08051","Mantua",null,null,null,null,null,null,null,"NL",null,"C",null,"C"]
[null,16," WESTWOOD"," DR","16 WESTWOOD DR","08051","Mantua",null,null,null,null,null,null,null,"NL",null,"C",null,"C"]
[null,26," WESTWOOD"," DR","26 WESTWOOD DR","08051","Mantua",null,null,null,null,null,null,null,"NL",null,"C",null,"C"]
[null,7," WESTWOOD"," DR","7 WESTWOOD DR","08051","Mantua",null,null,null,null,null,null,null,"NL",null,"C",null,"C"]
[null,8," WESTWOOD"," DR","8 WESTWOOD DR","08051","Mantua",null,null,null,null,null,null,null,"NL",null,"C",null,"C"]
[null,1," WESTWOOD"," DR","1 WESTWOOD DR","08051","Mantua",null,null,null,null,null,null,null,"NL",null,"C",null,"C"]
[null,103," WHIPPOORWILL"," WAY","103 WHIPPOORWILL WAY","08051","Mantua",null,null,null,null,null,null,null,"NL",null,"C",null,"P"]
[null,152," WHIPPOORWILL"," WAY","152 WHIPPOORWILL WAY","08051","Mantua",null,null,null,null,null,null,null,"NL",null,"C",null,"P"]
[null,"1A"," WHIPPOORWILL"," WAY","1A WHIPPOORWILL WAY","08051","Mantua",null,null,null,null,null,null,null,"NL",null,"C",null,"P"]
[null,104," WHIPPOORWILL"," WAY","104 WHIPPOORWILL WAY","08051","Mantua",null,null,null,null,null,null,null,"NL",null,"C",null,"P"]
[null,"1001-1006"," WHITE OAK"," LN","1001-1006 WHITE OAK LN","08080","Sewell",null,null,null,null,null,null,null,"NL",null,"C",null,"P"]
[null,"501-506"," WHITE OAK"," LN","501-506 WHITE OAK LN","08080","Sewell",null,null,null,null,null,null,null,"NL",null,"C",null,"P"]
[null,"901-906"," WHITE OAK"," LN","901-906 WHITE OAK LN","08080","Sewell",null,null,null,null,null,null,null,"NL",null,"C",null,"P"]
[null,"1001-1006"," WHITE OAK"," LN","1001-1006 WHITE OAK LN","08080","Sewell",null,null,null,null,null,null,null,"NL",null,"C",null,"P"]
[null,"1501-1506"," WHITE OAK"," LN","1501-1506 WHITE OAK LN","08080","Sewell",null,null,null,null,null,null,null,"NL",null,"C",null,"P"]
[null,"701-706"," WHITE OAK"," LN","701-706 WHITE OAK LN","08080","Sewell",null,null,null,null,null,null,null,"NL",null,"C",null,"P"]
[null,605," WHITETAIL"," CT","605 WHITETAIL CT","08080","Sewell",null,null,null,null,null,null,null,"NL",null,"C",null,"P"]
[null,606," WHITETAIL"," CT","606 WHITETAIL CT","08080","Sewell",null,null,null,null,null,null,null,"NL",null,"C",null,"P"]
[null,13," WILLINGBORO"," RD","13 WILLINGBORO RD","08080","Sewell",null,null,null,null,null,null,null,"NL",null,"C",null,"C"]
[null,23," WILLINGBORO"," RD","23 WILLINGBORO RD","08080","Sewell",null,null,null,null,null,null,null,"NL",null,"C",null,"C"]
[null,10," WILLINGBORO"," RD","10 WILLINGBORO RD","08080","Sewell",null,null,null,null,null,null,null,"NL",null,"C",null,"C"]
[null,6," WILLINGBORO"," RD",{"$f":"_xlfn.CONCAT(B5378, C5378, D5378)","v":"6 WILLINGBORO RD"},"08080","Sewell",null,null,null,null,null,null,null,"NL",null,"C",null,"C"]
[null,11," WILLOW BEND"," DR","11 WILLOW BEND DR","08051","Mantua",null,null,null,null,null,null,null,"NL",null,"C",null,"P"]
[null,21," WILLOW BEND"," DR","21 WILLOW BEND DR","08051","Mantua",null,null,null,null,null,null,null,"NL",null,"C",null,"P"]
[null,7," WILLOW BEND"," DR","7 WILLOW BEND DR","08051","Mantua",null,null,null,null,null,null,null,"NL",null,"C",null,"P"]
[null,9," WILLOW BEND"," DR","9 WILLOW BEND DR","08051","Mantua",null,null,null,null,null,null,null,"NL",null,"C",null,"P"]
[null,16," WILLOW BEND"," DR","16 WILLOW BEND DR","08051","Mantua",null,null,null,null,null,null,null,"NL",null,"C",null,"P"]
[null,6," WILLOW BEND"," DR","6 WILLOW BEND DR","08051","Mantua",null,null,null,null,null,null,null,"NL",null,"C",null,"P"]
[null,132," WILSON"," AVE","132 WILSON AVE","08080","Sewell",null,null,null,null,null,null,null,"NL",null,"C",null,"C"]
[null,140," WILSON"," AVE","140 WILSON AVE","08080","Sewell",null,null,null,null,null,null,null,"NL",null,"C",null,"C"]
[null,125," WILSON"," AVE","125 WILSON AVE","08080","Sewell",null,null,null,null,null,null,null,"NL",null,"C",null,"C"]
[null,15," WINSLOW"," RD","15 WINSLOW RD","08080","Sewell",null,null,null,null,null,null,null,"NL",null,"C",null,"C"]
[null,16," WINSLOW"," RD","16 WINSLOW RD","08080","Sewell",null,null,null,null,null,null,null,"NL",null,"C",null,"C"]
[null,76," WISHING WELL"," LN","76 WISHING WELL LN","08080","Sewell",null,null,null,null,null,null,null,"NL",null,"C",null,"P"]
[null,83," WISHING WELL"," LN","83 WISHING WELL LN","08080","Sewell",null,null,null,null,null,null,null,"NL",null,"C",null,"P"]
[null,90," WISHING WELL"," LN","90 WISHING WELL LN","08080","Sewell",null,null,null,null,null,null,null,"NL",null,"C",null,"P"]
[null,96," WISHING WELL"," LN",{"$f":"_xlfn.CONCAT(B5442, C5442, D5442)","v":"96 WISHING WELL LN"},"08080","Sewell",null,null,null,null,null,null,null,"NL",null,"C",null,"P"]
[null,97," WISHING WELL"," LN","97 WISHING WELL LN","08080","Sewell",null,null,null,null,null,null,null,"NL",null,"C",null,"P"]
[null,17," WOODBROOK"," DR","17 WOODBROOK DR","08051","Mantua",null,null,null,null,null,null,null,"NL",null,"C",null,"C"]
[null,30," WOODBROOK"," DR","30 WOODBROOK DR","08051","Mantua",null,null,null,null,null,null,null,"NL",null,"C",null,"C"]
[null,35," WOODBROOK"," DR","35 WOODBROOK DR","08051","Mantua",null,null,null,null,null,null,null,"NL",null,"C",null,"C"]
[null,38," WOODBROOK"," DR","38 WOODBROOK DR","08051","Mantua",null,null,null,null,null,null,null,"NL",null,"C",null,"C"]
[null,55," WOODBROOK"," DR","55 WOODBROOK DR","08051","Mantua",null,null,null,null,null,null,null,"NL",null,"C",null,"C"]
[null,49," WOODBROOK"," DR","49 WOODBROOK DR","08051","Mantua",null,null,null,null,null,null,null,"NL",null,"C",null,"C"]
[null,11," WOODBROOK"," DR","11 WOODBROOK DR","08051","Mantua",null,null,null,null,null,null,null,"NL",null,"C",null,"C"]
[null,12," WOODBROOK"," DR","12 WOODBROOK DR","08051","Mantua",null,null,null,null,null,null,null,"NL",null,"C",null,"C"]
[null,7," WOODBROOK"," DR","7 WOODBROOK DR","08051","Mantua",null,null,null,null,null,null,null,"NL",null,"C",null,"C"]
[null,6," WOODBROOK"," DR","6 WOODBROOK DR","08051","Mantua",null,null,null,null,null,null,null,"NL",null,"C",null,"C"]
[null,23," WOODBROOK"," DR","23 WOODBROOK DR","08051","Mantua",null,null,null,null,null,null,null,"NL",null,"C",null,"C"]
[null,14," WOODBROOK"," DR","14 WOODBROOK DR","08051","Mantua",null,null,null,null,null,null,null,"NL",null,"C",null,"C"]
[null,28," WOODBROOK"," DR","28 WOODBROOK DR","08051","Mantua",null,null,null,null,null,null,null,"NL",null,"C",null,"C"]
[null,47," WOODBROOK"," DR","47 WOODBROOK DR","08051","Mantua",null,null,null,null,null,null,null,"NL",null,"C",null,"C"]
[null,550," WOODBURY-GLASSBORO"," RD","550 WOODBURY-GLASSBORO RD","08080","Sewell",null,null,null,null,null,null,null,"NL",null,"C",null,"G"]
[null,611," WOODBURY-GLASSBORO"," RD","611 WOODBURY-GLASSBORO RD","08080","Sewell",null,null,null,null,null,null,null,"NL",null,"C",null,"C"]
[null,635," WOODBURY-GLASSBORO"," RD","635 WOODBURY-GLASSBORO RD","08080","Sewell",null,null,null,null,null,null,null,"NL",null,"C",null,"C"]
[null,670," WOODBURY-GLASSBORO"," RD","670 WOODBURY-GLASSBORO RD","08080","Sewell",null,null,null,null,null,null,null,"NL",null,"C",null,"C"]
[null,703," WOODBURY-GLASSBORO"," RD","703 WOODBURY-GLASSBORO RD","08080","Sewell",null,null,null,null,null,null,null,"NL",null,"C",null,"C"]
[null,745," WOODBURY-GLASSBORO"," RD","745 WOODBURY-GLASSBORO RD","08080","Sewell",null,null,null,null,null,null,null,"NL",null,"C",null,"C"]
[null,515," WOODBURY-GLASSBORO"," RD","515 WOODBURY-GLASSBORO RD","08080","Sewell",null,null,null,null,null,null,null,"NL",null,"C",null,"C"]
[null,730," WOODBURY-GLASSBORO"," RD","730 WOODBURY-GLASSBORO RD","08080","Sewell",null,null,null,null,null,null,null,"NL",null,"C",null,"C"]
[null,206," WOODCHUCK"," WAY","206 WOODCHUCK WAY","08080","Sewell",null,null,null,null,null,null,null,"NL",null,"C",null,"C"]
[null,208," WOODCHUCK"," WAY","208 WOODCHUCK WAY","08080","Sewell",null,null,null,null,null,null,null,"NL",null,"C",null,"C"]
[null,201," WOODCHUCK"," WAY","201 WOODCHUCK WAY","08080","Sewell",null,null,null,null,null,null,null,"NL",null,"C",null,"C"]
[null,211," WOODCHUCK"," WAY","211 WOODCHUCK WAY","08080","Sewell",null,null,null,null,null,null,null,"NL",null,"C",null,"C"]
[null,11," WOODCREST"," CT","11 WOODCREST CT","08051","Mantua",null,null,null,null,null,null,null,"NL",null,"C",null,"C"]
[null,13," WOODCREST"," CT","13 WOODCREST CT","08051","Mantua",null,null,null,null,null,null,null,"NL",null,"C",null,"C"]
[null,3," WOODCREST"," CT","3 WOODCREST CT","08051","Mantua",null,null,null,null,null,null,null,"NL",null,"C",null,"C"]
[null,164," WOODLAWN"," AVE","164 WOODLAWN AVE","08051","Mantua",null,null,null,null,null,null,null,"NL",null,"C",null,"C"]
[null,127," WOODLAWN"," AVE","127 WOODLAWN AVE","08051","Mantua",null,null,null,null,null,null,null,"NL",null,"C",null,"C"]
[null,129," WOODLAWN"," AVE","129 WOODLAWN AVE","08051","Mantua",null,null,null,null,null,null,null,"NL",null,"C",null,"C"]
[null,163," WOODLAWN"," AVE","163 WOODLAWN AVE","08051","Mantua",null,null,null,null,null,null,null,"NL",null,"C",null,"C"]
[null,3," WOODLEIGH"," CT","3 WOODLEIGH CT","08051","Mantua",null,null,null,null,null,null,null,"NL",null,"C",null,"C"]
[null,9," WOODLEIGH"," CT","9 WOODLEIGH CT","08051","Mantua",null,null,null,null,null,null,null,"NL",null,"C",null,"C"]
[null,15," WOODMONT"," CT","15 WOODMONT CT","08051","Mantua",null,null,null,null,null,null,null,"NL",null,"C",null,"C"]
[null,7," WOODMONT"," CT","7 WOODMONT CT","08051","Mantua",null,null,null,null,null,null,null,"NL",null,"C",null,"C"]
[null,19," WOODSTREAM"," CT","19 WOODSTREAM CT","08051","Mantua",null,null,null,null,null,null,null,"NL",null,"C",null,"C"]
[null,46," WOODSTREAM"," CT","46 WOODSTREAM CT","08051","Mantua",null,null,null,null,null,null,null,"NL",null,"C",null,"C"]
[null,48," WOODSTREAM"," CT","48 WOODSTREAM CT","08051","Mantua",null,null,null,null,null,null,null,"NL",null,"C",null,"C"]
[null,10," WOODSTREAM"," CT","10 WOODSTREAM CT","08051","Mantua",null,null,null,null,null,null,null,"NL",null,"C",null,"C"]
[null,2," WOODSTREAM"," CT","2 WOODSTREAM CT","08051","Mantua",null,null,null,null,null,null,null,"NL",null,"C",null,"C"]
[null,28," WOODSTREAM"," CT","28 WOODSTREAM CT","08051","Mantua",null,null,null,null,null,null,null,"NL",null,"C",null,"C"]
[null,30," WOODSTREAM"," CT","30 WOODSTREAM CT","08051","Mantua",null,null,null,null,null,null,null,"NL",null,"C",null,"C"]
[null,40," WOODSTREAM"," CT","40 WOODSTREAM CT","08051","Mantua",null,null,null,null,null,null,null,"NL",null,"C",null,"C"]
[null,6," WOODSTREAM"," CT","6 WOODSTREAM CT","08051","Mantua",null,null,null,null,null,null,null,"NL",null,"C",null,"C"]
[null,25," WOODSTREAM"," CT","25 WOODSTREAM CT","08051","Mantua",null,null,null,null,null,null,null,"NL",null,"C",null,"C"]
[null,33," WOODSTREAM"," CT","33 WOODSTREAM CT","08051","Mantua",null,null,null,null,null,null,null,"NL",null,"C",null,"C"]
[null,27," WOODSTREAM"," CT","27 WOODSTREAM CT","08051","Mantua",null,null,null,null,null,null,null,"NL",null,"C",null,"C"]
[null,null,null,null,""]
[null,null,null,null,""]
[null,null,null,null,""]
[null,null,null,null,""]
[null,null,null,null,""]
[null,null,null,null,""]
[null,null,null,null,""]
[null,null,null,null,""]
[null,null,null,null,""]
[null,null,null,null,""]
[null,null,null,null,""]
[null,null,null,null,""]
[null,null,null,null,""]
[null,null,null,null,""]
[null,null,null,null,""]
[null,null,null,null,""]
[null,null,null,null,""]
[null,null,null,null,""]
[null,null,null,null,""]
[null,null,null,null,""]
[null,null,null,null,""]
[null,null,null,null,""]
[null,null,null,null,""]
[null,null,null,null,""]
[null,null,null,null,""]
[null,null,null,null,""]
[null,null,null,null,""]
[null,null,null,null,""]
[null,null,null,null,{"$f":"_xlfn.CONCAT(B5762, C5762, D5762)","v":""}]
[null,null,null,null,""]
[null,null,null,null,""]
[null,null,null,null,""]
[null,null,null,null,""]
[null,null,null,null,""]
[null,null,null,null,""]
[null,null,null,null,""]
[null,null,null,null,""]
[null,null,null,null,""]
[null,null,null,null,""]
[null,null,null,null,""]
[null,null,null,null,""]
[null,null,null,null,""]
[null,null,null,null,""]
[null,null,null,null,""]
[null,null,null,null,""]
[null,null,null,null,""]
[null,null,null,null,""]
[null,null,null,null,""]
[null,null,null,null,""]
[null,null,null,null,""]
[null,null,null,null,""]
[null,null,null,null,""]
[null,null,null,null,""]
[null,null,null,null,""]
[null,null,null,null,""]
[null,null,null,null,""]
[null,null,null,null,""]
[null,null,null,null,""]
[null,null,null,null,""]
[null,null,null,null,""]
[null,null,null,null,""]
[null,null,null,null,""]
[null,null,null,null,""]
[null,null,null,null,""]
[null,null,null,null,""]
[null,null,null,null,""]
[null,null,null,null,""]
[null,null,null,null,""]
[null,null,null,null,""]
[null,null,null,null,""]
[null,null,null,null,""]
[null,null,null,null,""]
[null,null,null,null,""]
[null,null,null,null,""]
[null,null,null,null,""]
[null,null,null,null,""]
[null,null,null,null,""]
[null,null,null,null,""]
[null,null,null,null,""]
[null,null,null,null,""]
[null,null,null,null,""]
[null,null,null,null,""]
[null,null,null,null,""]
[null,null,null,null,""]
[null,null,null,null,""]
[null,null,null,null,""]
[null,null,null,null,""]
[null,null,null,null,""]
[null,null,null,null,""]
[null,null,null,null,""]
[null,null,null,null,""]
[null,null,null,null,""]
[null,null,null,null,""]
[null,null,null,null,""]
[null,null,null,null,""]
[null,null,null,null,""]
[null,null,null,null,""]
[null,null,null,null,""]
[null,null,null,null,""]
[null,null,null,null,""]
[null,null,null,null,""]
[null,null,null,null,""]
[null,null,null,null,""]
[null,null,null,null,""]
[null,null,null,null,""]
[null,null,null,null,""]
[null,null,null,null,""]
[null,null,null,null,{"$f":"_xlfn.CONCAT(B6082, C6082, D6082)","v":""}]
[null,null,null,null,""]
[null,null,null,null,""]
[null,null,null,null,""]
[null,null,null,null,""]
[null,null,null,null,""]
[null,null,null,null,""]
[null,null,null,null,""]
[null,null,null,null,""]
[null,null,null,null,""]
[null,null,null,null,""]
[null,null,null,null,""]
[null,null,null,null,""]
[null,null,null,null,""]
[null,null,null,null,""]
[null,null,null,null,""]
[null,null,null,null,""]
[null,null,null,null,""]
[null,null,null,null,""]
[null,null,null,null,""]
[null,null,null,null,""]
[null,null,null,null,""]
[null,null,null,null,""]
[null,null,null,null,""]
[null,null,null,null,""]
[null,null,null,null,""]
[null,null,null,null,""]
[null,null,null,null,""]
[null,null,null,null,""]
[null,null,null,null,""]
[null,null,null,null,""]
[null,null,null,null,""]
[null,null,null,null,""]
[null,null,null,null,""]
[null,null,null,null,""]
[null,null,null,null,""]
[null,null,null,null,""]
[null,null,null,null,""]
[null,null,null,null,""]
[null,null,null,null,""]
[null,null,null,null,""]
[null,null,null,null,""]
[null,null,null,null,""]
[null,null,null,null,""]
[null,null,null,null,""]
[null,null,null,null,""]
[null,null,null,null,""]
[null,null,null,null,""]
[null,null,null,null,""]
[null,null,null,null,""]
[null,null,null,null,""]
[null,null,null,null,""]
[null,null,null,null,""]
[null,null,null,null,""]
[null,null,null,null,""]
[null,null,null,null,""]
[null,null,null,null,""]
[null,null,null,null,""]
[null,null,null,null,""]
[null,null,null,null,""]
[null,null,null,null,""]
[null,null,null,null,""]
[null,null,null,null,""]
[null,null,null,null,""]
[null,null,null,null,""]
[null,null,null,null,""]
[null,null,null,null,""]
[null,null,null,null,""]
[null,null,null,null,""]
[null,null,null,null,""]
[null,null,null,null,""]
[null,null,null,null,""]
[null,null,null,null,""]
[null,null,null,null,""]
[null,null,null,null,""]
[null,null,null,null,""]
[null,null,null,null,""]
[null,null,null,null,""]
[null,null,null,null,""]
[null,null,null,null,{"$f":"_xlfn.CONCAT(B6402, C6402, D6402)","v":""}]
[null,null,null,null,""]
[null,null,null,null,""]
[null,null,null,null,""]
[null,null,null,null,""]
[null,null,null,null,""]
[null,null,null,null,""]
[null,null,null,null,""]
[null,null,null,null,""]
[null,null,null,null,""]
[null,null,null,null,""]
[null,null,null,null,""]
[null,null,null,null,""]
[null,null,null,null,""]
[null,null,null,null,""]
[null,null,null,null,{"$f":"_xlfn.CONCAT(B6466, C6466, D6466)","v":""}]
[null,null,null,null,""]
[null,null,null,null,""]
[null,null,null,null,""]
[null,null,null,null,""]
[null,null,null,null,""]
[null,null,null,null,""]
[null,null,null,null,""]
[null,null,null,null,""]
[null,null,null,null,""]
[null,null,null,null,""]
[null,null,null,null,""]
[null,null,null,null,""]
[null,null,null,null,""]
[null,null,null,null,""]
[null,null,null,null,""]
[null,null,null,null,""]
[null,null,null,null,""]
[null,null,null,null,""]
[null,null,null,null,""]
[null,null,null,null,""]
[null,null,null,null,""]
[null,null,null,null,""]
[null,null,null,null,""]
[null,null,null,null,""]
[null,null,null,null,""]
[null,null,null,null,""]
[null,null,null,null,""]
[null,null,null,null,""]
[null,null,null,null,""]
[null,null,null,null,""]
[null,null,null,null,""]
[null,null,null,null,""]
[null,null,null,null,""]
[null,null,null,null,""]
[null,null,null,null,""]
[null,null,null,null,""]
[null,null,null,null,""]
[null,null,null,null,""]
[null,null,null,null,""]
[null,null,null,null,""]
[null,null,null,null,""]
[null,null,null,null,""]
[null,null,null,null,""]
[null,null,null,null,""]
[null,null,null,null,""]
[null,null,null,null,""]
[null,null,null,null,""]
[null,null,null,null,""]
[null,null,null,null,""]
[null,null,null,null,""]
[null,null,null,null,""]
[null,null,null,null,""]
[null,null,null,null,""]
[null,null,null,null,""]
[null,null,null,null,""]
[null,null,null,null,""]
[null,null,null,null,""]
[null,null,null,null,""]
[null,null,null,null,""]
[null,null,null,null,""]
[null,null,null,null,""]
[null,null,null,null,""]
[null,null,null,null,""]
[null,null,null,null,""]
[null,null,null,null,""]
[null,null,null,null,""]
[null,null,null,null,""]
[null,null,null,null,""]
[null,null,null,null,""]
[null,null,null,null,""]
[null,null,null,null,""]
[null,null,null,null,""]
[null,null,null,null,""]
[null,null,null,null,""]
[null,null,null,null,""]
[null,null,null,null,""]
[null,null,null,null,""]
[null,null,null,null,""]
[null,null,null,null,{"$f":"_xlfn.CONCAT(B6786, C6786, D6786)","v":""}]
[null,null,null,null,""]
[null,null,null,null,""]
[null,null,null,null,""]
[null,null,null,null,""]
[null,null,null,null,""]
[null,null,null,null,""]
[null,null,null,null,""]
[null,null,null,null,""]
[null,null,null,null,""]
[null,null,null,null,""]
[null,null,null,null,""]
[null,null,null,null,""]
[null,null,null,null,""]
[null,null,null,null,""]
[null,null,null,null,""]
[null,null,null,null,{"$f":"_xlfn.CONCAT(B6850, C6850, D6850)","v":""}]
[null,null,null,null,""]
[null,null,null,null,""]
[null,null,null,null,""]
[null,null,null,null,""]
[null,null,null,null,""]
[null,null,null,null,""]
[null,null,null,null,""]
[null,null,null,null,""]
[null,null,null,null,""]
[null,null,null,null,""]
[null,null,null,null,""]
[null,null,null,null,""]
[null,null,null,null,""]
[null,null,null,null,""]
[null,null,null,null,""]
[null,null,null,null,""]
[null,null,null,null,""]
[null,null,null,null,""]
[null,null,null,null,""]
[null,null,null,null,""]
[null,null,null,null,""]
[null,null,null,null,""]
[null,null,null,null,""]
[null,null,null,null,""]
[null,null,null,null,""]
[null,null,null,null,""]
[null,null,null,null,""]
[null,null,null,null,""]
[null,null,null,null,""]
[null,null,null,null,""]
[null,null,null,null,{"$f":"_xlfn.CONCAT(B6978, C6978, D6978)","v":""}]
[null,null,null,null,""]
[null,null,null,null,""]
[null,null,null,null,""]
[null,null,null,null,""]
[null,null,null,null,""]
[null,null,null,null,""]
[null,null,null,null,""]
[null,null,null,null,""]
[null,null,null,null,""]
[null,null,null,null,""]
[null,null,null,null,""]
[null,null,null,null,""]
[null,null,null,null,""]
[null,null,null,null,""]
[null,null,null,null,""]
[null,null,null,null,""]
[null,null,null,null,""]
[null,null,null,null,""]
[null,null,null,null,""]
[null,null,null,null,""]
[null,null,null,null,""]
[null,null,null,null,""]
[null,null,null,null,""]
[null,null,null,null,""]
[null,null,null,null,""]
[null,null,null,null,""]
[null,null,null,null,""]
[null,null,null,null,""]
[null,null,null,null,""]
[null,null,null,null,""]
[null,null,null,null,""]
[null,null,null,null,""]
[null,null,null,null,""]
[null,null,null,null,""]
[null,null,null,null,""]
[null,null,null,null,""]
[null,null,null,null,""]
[null,null,null,null,""]
[null,null,null,null,""]
[null,null,null,null,""]
[null,null,null,null,""]
[null,null,null,null,""]
[null,null,null,null,""]
[null,null,null,null,""]
[null,null,null,null,""]
[null,null,null,null,""]
[null,null,null,null,""]
[null,null,null,null,""]
[null,null,null,null,""]
[null,null,null,null,""]
[null,null,null,null,""]
[null,null,null,null,""]
[null,null,null,null,""]
[null,null,null,null,""]
[null,null,null,null,""]
[null,null,null,null,""]
[null,null,null,null,""]
[null,null,null,null,""]
[null,null,null,null,""]
[null,null,null,null,""]
[null,null,null,null,""]
[null,null,null,null,""]
[null,null,null,null,""]
[null,null,null,null,""]
[null,null,null,null,""]
[null,null,null,null,""]
[null,null,null,null,""]
[null,null,null,null,""]
[null,null,null,null,""]
[null,null,null,null,""]
[null,null,null,null,""]
[null,null,null,null,""]
[null,null,null,null,""]
[null,null,null,null,""]
[null,null,null,null,""]
[null,null,null,null,""]
[null,null,null,null,""]
[null,null,null,null,""]
[null,null,null,null,""]
[null,null,null,null,""]
[null,null,null,null,""]
[null,null,null,null,""]
[null,null,null,null,""]
[null,null,null,null,""]
[null,null,null,null,""]
[null,null,null,null,""]
[null,null,null,null,""]
[null,null,null,null,""]
[null,null,null,null,""]
[null,null,null,null,""]
[null,null,null,null,""]
[null,null,null,null,""]
[null,null,null,null,""]
[null,null,null,null,""]
[null,null,null,null,{"$f":"_xlfn.CONCAT(B7362, C7362, D7362)","v":""}]
[null,null,null,null,""]
[null,null,null,null,""]
[null,null,null,null,""]
[null,null,null,null,""]
[null,null,null,null,""]
[null,null,null,null,""]
[null,null,null,null,""]
[null,null,null,null,""]
[null,null,null,null,""]
[null,null,null,null,""]
[null,null,null,null,""]
[null,null,null,null,""]
[null,null,null,null,""]
[null,null,null,null,""]
[null,null,null,null,{"$f":"_xlfn.CONCAT(B7426, C7426, D7426)","v":""}]
[null,null,null,null,""]
[null,null,null,null,""]
[null,null,null,null,""]
[null,null,null,null,""]
[null,null,null,null,""]
[null,null,null,null,""]
[null,null,null,null,""]
[null,null,null,null,""]
[null,null,null,null,""]
[null,null,null,null,""]
[null,null,null,null,""]
[null,null,null,null,""]
[null,null,null,null,""]
[null,null,null,null,""]
[null,null,null,null,""]
[null,null,null,null,""]
[null,null,null,null,""]
[null,null,null,null,""]
[null,null,null,null,""]
[null,null,null,null,""]
[null,null,null,null,""]
[null,null,null,null,""]
[null,null,null,null,""]
[null,null,null,null,""]
[null,null,null,null,""]
[null,null,null,null,""]
[null,null,null,null,""]
[null,null,null,null,""]
[null,null,null,null,""]
[null,null,null,null,""]
[null,null,null,null,""]
[null,null,null,null,""]
[null,null,null,null,""]
[null,null,null,null,""]
[null,null,null,null,""]
[null,null,null,null,""]
[null,null,null,null,""]
[null,null,null,null,""]
[null,null,null,null,""]
[null,null,null,null,""]
[null,null,null,null,""]
[null,null,null,null,""]
[null,null,null,null,""]
[null,null,null,null,""]
[null,null,null,null,""]
[null,null,null,null,""]
[null,null,null,null,""]
[null,null,null,null,""]
[null,null,null,null,""]
[null,null,null,null,""]
[null,null,null,null,""]
[null,null,null,null,""]
[null,null,null,null,""]
[null,null,null,null,""]
[null,null,null,null,""]
[null,null,null,null,""]
[null,null,null,null,""]
[null,null,null,null,""]
[null,null,null,null,""]
[null,null,null,null,""]
[null,null,null,null,""]
[null,null,null,null,""]
[null,null,null,null,""]
[null,null,null,null,""]
[null,null,null,null,""]
[null,null,null,null,""]
[null,null,null,null,""]
[null,null,null,null,""]
[null,null,null,null,""]
[null,null,null,null,""]
[null,null,null,null,""]
[null,null,null,null,""]
[null,null,null,null,""]
[null,null,null,null,""]
[null,null,null,null,""]
[null,null,null,null,""]
[null,null,null,null,""]
[null,null,null,null,""]
[null,null,null,null,{"$f":"_xlfn.CONCAT(B7746, C7746, D7746)","v":""}]
[null,null,null,null,""]
[null,null,null,null,""]
[null,null,null,null,""]
[null,null,null,null,""]
[null,null,null,null,""]
[null,null,null,null,""]
[null,null,null,null,""]
[null,null,null,null,""]
[null,null,null,null,""]
[null,null,null,null,""]
[null,null,null,null,""]
[null,null,null,null,""]
[null,null,null,null,""]
[null,null,null,null,""]
[null,null,null,null,""]
[null,null,null,null,""]
[null,null,null,null,""]
[null,null,null,null,""]
[null,null,null,null,""]
[null,null,null,null,""]
[null,null,null,null,""]
[null,null,null,null,""]
[null,null,null,null,""]
[null,null,null,null,""]
[null,null,null,null,""]
[null,null,null,null,""]
[null,null,null,null,""]
[null,null,null,null,""]
[null,null,null,null,""]
[null,null,null,null,""]
[null,null,null,null,""]
[null,null,null,null,""]
[null,null,null,null,""]
[null,null,null,null,""]
[null,null,null,null,""]
[null,null,null,null,""]
[null,null,null,null,""]
[null,null,null,null,""]
[null,null,null,null,""]
[null,null,null,null,""]
[null,null,null,null,""]
[null,null,null,null,""]
[null,null,null,null,""]
[null,null,null,null,""]
[null,null,null,null,""]
[null,null,null,null,""]
[null,null,null,null,""]
[null,null,null,null,""]
[null,null,null,null,""]
[null,null,null,null,""]
[null,null,null,null,""]
[null,null,null,null,""]
[null,null,null,null,""]
[null,null,null,null,""]
[null,null,null,null,""]
[null,null,null,null,""]
[null,null,null,null,""]
[null,null,null,null,""]
[null,null,null,null,""]
[null,null,null,null,""]
[null,null,null,null,""]
[null,null,null,null,""]
[null,null,null,null,""]
[null,null,null,null,""]
[null,null,null,null,""]
[null,null,null,null,""]
[null,null,null,null,""]
[null,null,null,null,""]
[null,null,null,null,""]
[null,null,null,null,""]
[null,null,null,null,""]
[null,null,null,null,""]
[null,null,null,null,""]
[null,null,null,null,""]
[null,null,null,null,""]
[null,null,null,null,""]
[null,null,null,null,""]
[null,null,null,null,""]
[null,null,null,null,{"$f":"_xlfn.CONCAT(B8066, C8066, D8066)","v":""}]
[null,null,null,null,""]
[null,null,null,null,""]
[null,null,null,null,""]
[null,null,null,null,""]
[null,null,null,null,""]
[null,null,null,null,""]
[null,null,null,null,""]
[null,null,null,null,""]
[null,null,null,null,""]
[null,null,null,null,""]
[null,null,null,null,""]
[null,null,null,null,""]
[null,null,null,null,""]
[null,null,null,null,""]
[null,null,null,null,""]
[null,null,null,null,""]
[null,null,null,null,""]
[null,null,null,null,""]
[null,null,null,null,""]
[null,null,null,null,""]
[null,null,null,null,""]
[null,null,null,null,""]
[null,null,null,null,""]
[null,null,null,null,""]
[null,null,null,null,""]
[null,null,null,null,""]
[null,null,null,null,""]
[null,null,null,null,""]
[null,null,null,null,""]
[null,null,null,null,""]
[null,null,null,null,""]
[null,null,null,null,""]
[null,null,null,null,""]
[null,null,null,null,""]
[null,null,null,null,""]
[null,null,null,null,""]
[null,null,null,null,""]
[null,null,null,null,""]
[null,null,null,null,""]
[null,null,null,null,""]
[null,null,null,null,""]
[null,null,null,null,""]
[null,null,null,null,""]
[null,null,null,null,""]
[null,null,null,null,""]
[null,null,null,null,""]
[null,null,null,null,""]
[null,null,null,null,""]
[null,null,null,null,""]
[null,null,null,null,""]
[null,null,null,null,""]
[null,null,null,null,""]
[null,null,null,null,""]
[null,null,null,null,""]
[null,null,null,null,""]
[null,null,null,null,""]
[null,null,null,null,""]
[null,null,null,null,""]
[null,null,null,null,""]
[null,null,null,null,""]
[null,null,null,null,""]
[null,null,null,null,""]
[null,null,null,null,""]
[null,null,null,null,""]
[null,null,null,null,""]
[null,null,null,null,""]
[null,null,null,null,""]
[null,null,null,null,""]
[null,null,null,null,""]
[null,null,null,null,""]
[null,null,null,null,""]
[null,null,null,null,""]
[null,null,null,null,""]
[null,null,null,null,""]
[null,null,null,null,""]
[null,null,null,null,""]
[null,null,null,null,""]
[null,null,null,null,""]
[null,null,null,null,{"$f":"_xlfn.CONCAT(B8386, C8386, D8386)","v":""}]
[null,null,null,null,""]
[null,null,null,null,""]
[null,null,null,null,""]
[null,null,null,null,""]
[null,null,null,null,""]
[null,null,null,null,""]
[null,null,null,null,""]
[null,null,null,null,""]
[null,null,null,null,""]
[null,null,null,null,""]
[null,null,null,null,""]
[null,null,null,null,""]
[null,null,null,null,""]
[null,null,null,null,""]
[null,null,null,null,{"$f":"_xlfn.CONCAT(B8450, C8450, D8450)","v":""}]
[null,null,null,null,""]
[null,null,null,null,""]
[null,null,null,null,""]
[null,null,null,null,""]
[null,null,null,null,""]
[null,null,null,null,""]
[null,null,null,null,""]
[null,null,null,null,""]
[null,null,null,null,""]
[null,null,null,null,""]
[null,null,null,null,""]
[null,null,null,null,""]
[null,null,null,null,""]
[null,null,null,null,""]
[null,null,null,null,""]
[null,null,null,null,""]
[null,null,null,null,""]
[null,null,null,null,""]
[null,null,null,null,""]
[null,null,null,null,""]
[null,null,null,null,""]
[null,null,null,null,""]
[null,null,null,null,""]
[null,null,null,null,""]
[null,null,null,null,""]
[null,null,null,null,""]
[null,null,null,null,""]
[null,null,null,null,""]
[null,null,null,null,""]
[null,null,null,null,""]
[null,null,null,null,""]
[null,null,null,null,""]
[null,null,null,null,""]
[null,null,null,null,""]
[null,null,null,null,""]
[null,null,null,null,""]
[null,null,null,null,""]
[null,null,null,null,""]
[null,null,null,null,""]
[null,null,null,null,""]
[null,null,null,null,""]
[null,null,null,null,""]
[null,null,null,null,""]
[null,null,null,null,""]
[null,null,null,null,""]
[null,null,null,null,""]
[null,null,null,null,""]
[null,null,null,null,""]
[null,null,null,null,""]
[null,null,null,null,""]
[null,null,null,null,""]
[null,null,null,null,""]
[null,null,null,null,""]
[null,null,null,null,""]
[null,null,null,null,""]
[null,null,null,null,""]
[null,null,null,null,""]
[null,null,null,null,""]
[null,null,null,null,""]
[null,null,null,null,""]
[null,null,null,null,""]
[null,null,null,null,""]
[null,null,null,null,""]
[null,null,null,null,""]
[null,null,null,null,""]
[null,null,null,null,""]
[null,null,null,null,""]
[null,null,null,null,""]
[null,null,null,null,""]
[null,null,null,null,""]
[null,null,null,null,""]
[null,null,null,null,""]
[null,null,null,null,""]
[null,null,null,null,""]
[null,null,null,null,""]
[null,null,null,null,""]
[null,null,null,null,""]
[null,null,null,null,""]
[null,null,null,null,{"$f":"_xlfn.CONCAT(B8770, C8770, D8770)","v":""}]
[null,null,null,null,""]
[null,null,null,null,""]
[null,null,null,null,""]
[null,null,null,null,""]
[null,null,null,null,""]
[null,null,null,null,""]
[null,null,null,null,""]
[null,null,null,null,""]
[null,null,null,null,""]
[null,null,null,null,""]
[null,null,null,null,""]
[null,null,null,null,""]
[null,null,null,null,""]
[null,null,null,null,""]
[null,null,null,null,""]
[null,null,null,null,""]
[null,null,null,null,""]
[null,null,null,null,""]
[null,null,null,null,""]
[null,null,null,null,""]
[null,null,null,null,""]
[null,null,null,null,""]
[null,null,null,null,""]
[null,null,null,null,""]
[null,null,null,null,""]
[null,null,null,null,""]
[null,null,null,null,""]
[null,null,null,null,""]
[null,null,null,null,""]
[null,null,null,null,""]
[null,null,null,null,""]
[null,null,null,null,""]
[null,null,null,null,""]
[null,null,null,null,""]
[null,null,null,null,""]
[null,null,null,null,""]
[null,null,null,null,""]
[null,null,null,null,""]
[null,null,null,null,""]
[null,null,null,null,""]
[null,null,null,null,""]
[null,null,null,null,""]
[null,null,null,null,""]
[null,null,null,null,""]
[null,null,null,null,""]
[null,null,null,null,""]
[null,null,null,null,""]
[null,null,null,null,""]
[null,null,null,null,""]
[null,null,null,null,""]
[null,null,null,null,""]
[null,null,null,null,""]
[null,null,null,null,""]
[null,null,null,null,""]
[null,null,null,null,""]
[null,null,null,null,""]
[null,null,null,null,""]
[null,null,null,null,""]
[null,null,null,null,""]
[null,null,null,null,""]
[null,null,null,null,""]
[null,null,null,null,""]
[null,null,null,null,""]
[null,null,null,null,""]
[null,null,null,null,""]
[null,null,null,null,""]
[null,null,null,null,""]
[null,null,null,null,""]
[null,null,null,null,""]
[null,null,null,null,""]
[null,null,null,null,""]
[null,null,null,null,""]
[null,null,null,null,""]
[null,null,null,null,""]
[null,null,null,null,""]
[null,null,null,null,""]
[null,null,null,null,""]
[null,null,null,null,""]
[null,null,null,null,{"$f":"_xlfn.CONCAT(B9090, C9090, D9090)","v":""}]
[null,null,null,null,""]
[null,null,null,null,""]
[null,null,null,null,""]
[null,null,null,null,""]
[null,null,null,null,""]
[null,null,null,null,""]
[null,null,null,null,""]
[null,null,null,null,""]
[null,null,null,null,""]
[null,null,null,null,""]
[null,null,null,null,""]
[null,null,null,null,""]
[null,null,null,null,""]
[null,null,null,null,""]
[null,null,null,null,""]
[null,null,null,null,""]
[null,null,null,null,""]
[null,null,null,null,""]
[null,null,null,null,""]
[null,null,null,null,""]
[null,null,null,null,""]
[null,null,null,null,""]
[null,null,null,null,""]
[null,null,null,null,""]
[null,null,null,null,""]
[null,null,null,null,""]
[null,null,null,null,""]
[null,null,null,null,""]
[null,null,null,null,""]
[null,null,null,null,""]
[null,null,null,null,""]
[null,null,null,null,""]
[null,null,null,null,""]
[null,null,null,null,""]
[null,null,null,null,""]
[null,null,null,null,""]
[null,null,null,null,""]
[null,null,null,null,""]
[null,null,null,null,""]
[null,null,null,null,""]
[null,null,null,null,""]
[null,null,null,null,""]
[null,null,null,null,""]
[null,null,null,null,""]
[null,null,null,null,""]
[null,null,null,null,""]
[null,null,null,null,""]
[null,null,null,null,""]
[null,null,null,null,""]
[null,null,null,null,""]
[null,null,null,null,""]
[null,null,null,null,""]
[null,null,null,null,""]
[null,null,null,null,""]
[null,null,null,null,""]
[null,null,null,null,""]
[null,null,null,null,""]
[null,null,null,null,""]
[null,null,null,null,""]
[null,null,null,null,""]
[null,null,null,null,""]
[null,null,null,null,""]
[null,null,null,null,""]
[null,null,null,null,""]
[null,null,null,null,""]
[null,null,null,null,""]
[null,null,null,null,""]
[null,null,null,null,""]
[null,null,null,null,""]
[null,null,null,null,""]
[null,null,null,null,""]
[null,null,null,null,""]
[null,null,null,null,""]
[null,null,null,null,""]
[null,null,null,null,""]
[null,null,null,null,""]
[null,null,null,null,""]
[null,null,null,null,""]
[null,null,null,null,{"$f":"_xlfn.CONCAT(B9410, C9410, D9410)","v":""}]
[null,null,null,null,""]
[null,null,null,null,""]
[null,null,null,null,""]
[null,null,null,null,""]
[null,null,null,null,""]
[null,null,null,null,""]
[null,null,null,null,""]
[null,null,null,null,""]
[null,null,null,null,""]
[null,null,null,null,""]
[null,null,null,null,""]
[null,null,null,null,""]
[null,null,null,null,""]
[null,null,null,null,""]
[null,null,null,null,{"$f":"_xlfn.CONCAT(B9474, C9474, D9474)","v":""}]
[null,null,null,null,""]
[null,null,null,null,""]
[null,null,null,null,""]
[null,null,null,null,""]
[null,null,null,null,""]
[null,null,null,null,""]
[null,null,null,null,""]
[null,null,null,null,""]
[null,null,null,null,""]
[null,null,null,null,""]
[null,null,null,null,""]
[null,null,null,null,""]
[null,null,null,null,""]
[null,null,null,null,""]
[null,null,null,null,""]
[null,null,null,null,""]
[null,null,null,null,""]
[null,null,null,null,""]
[null,null,null,null,""]
[null,null,null,null,""]
[null,null,null,null,""]
[null,null,null,null,""]
[null,null,null,null,""]
[null,null,null,null,""]
[null,null,null,null,""]
[null,null,null,null,""]
[null,null,null,null,""]
[null,null,null,null,""]
[null,null,null,null,""]
[null,null,null,null,""]
[null,null,null,null,""]
[null,null,null,null,""]
[null,null,null,null,""]
[null,null,null,null,""]
[null,null,null,null,""]
[null,null,null,null,""]
[null,null,null,null,""]
[null,null,null,null,""]
[null,null,null,null,""]
[null,null,null,null,""]
[null,null,null,null,""]
[null,null,null,null,""]
[null,null,null,null,""]
[null,null,null,null,""]
[null,null,null,null,""]
[null,null,null,null,""]
[null,null,null,null,""]
[null,null,null,null,""]
[null,null,null,null,""]
[null,null,null,null,""]
[null,null,null,null,""]
[null,null,null,null,""]
[null,null,null,null,""]
[null,null,null,null,""]
[null,null,null,null,""]
[null,null,null,null,""]
[null,null,null,null,""]
[null,null,null,null,""]
[null,null,null,null,""]
[null,null,null,null,""]
[null,null,null,null,""]
[null,null,null,null,""]
[null,null,null,null,""]
[null,null,null,null,""]
[null,null,null,null,""]
[null,null,null,null,""]
[null,null,null,null,""]
[null,null,null,null,""]
[null,null,null,null,""]
[null,null,null,null,""]
[null,null,null,null,""]
[null,null,null,null,""]
[null,null,null,null,""]
[null,null,null,null,""]
[null,null,null,null,""]
[null,null,null,null,""]
[null,null,null,null,""]
[null,null,null,null,""]
[null,null,null,null,{"$f":"_xlfn.CONCAT(B9794, C9794, D9794)","v":""}]
[null,null,null,null,""]
[null,null,null,null,""]
[null,null,null,null,""]
[null,null,null,null,""]
[null,null,null,null,""]
[null,null,null,null,""]
[null,null,null,null,""]
[null,null,null,null,""]
[null,null,null,null,""]
[null,null,null,null,""]
[null,null,null,null,""]
[null,null,null,null,""]
[null,null,null,null,""]
[null,null,null,null,""]
[null,null,null,null,""]
[null,null,null,null,""]
[null,null,null,null,""]
[null,null,null,null,""]
[null,null,null,null,""]
[null,null,null,null,""]
[null,null,null,null,""]
[null,null,null,null,""]
[null,null,null,null,""]
[null,null,null,null,""]
[null,null,null,null,""]
[null,null,null,null,""]
[null,null,null,null,""]
[null,null,null,null,""]
[null,null,null,null,""]
[null,null,null,null,""]
[null,null,null,null,""]
[null,null,null,null,""]
[null,null,null,null,""]
[null,null,null,null,""]
[null,null,null,null,""]
[null,null,null,null,""]
[null,null,null,null,""]
[null,null,null,null,""]
[null,null,null,null,""]
[null,null,null,null,""]
[null,null,null,null,""]
[null,null,null,null,""]
[null,null,null,null,""]
[null,null,null,null,""]
[null,null,null,null,""]
[null,null,null,null,""]
[null,null,null,null,""]
[null,null,null,null,""]
[null,null,null,null,""]
[null,null,null,null,""]
[null,null,null,null,""]
[null,null,null,null,""]
[null,null,null,null,""]
[null,null,null,null,""]
[null,null,null,null,""]
[null,null,null,null,""]
[null,null,null,null,""]
[null,null,null,null,""]
[null,null,null,null,""]
[null,null,null,null,""]
[null,null,null,null,""]
[null,null,null,null,""]
[null,null,null,null,""]
[null,null,null,null,""]
[null,null,null,null,""]
[null,null,null,null,""]
[null,null,null,null,""]
[null,null,null,null,""]
[null,null,null,null,""]
[null,null,null,null,""]
[null,null,null,null,""]
[null,null,null,null,""]
[null,null,null,null,""]
[null,null,null,null,""]
[null,null,null,null,""]
[null,null,null,null,""]
[null,null,null,null,""]
[null,null,null,null,""]
[null,null,null,null,{"$f":"_xlfn.CONCAT(B10114, C10114, D10114)","v":""}]
[null,null,null,null,""]
[null,null,null,null,""]
[null,null,null,null,""]
[null,null,null,null,""]
[null,null,null,null,""]
[null,null,null,null,""]
[null,null,null,null,""]
[null,null,null,null,""]
[null,null,null,null,""]
[null,null,null,null,""]
[null,null,null,null,""]
[null,null,null,null,""]
[null,null,null,null,""]
[null,null,null,null,""]
[null,null,null,null,""]
[null,null,null,null,""]
[null,null,null,null,""]
[null,null,null,null,""]
[null,null,null,null,""]
[null,null,null,null,""]
[null,null,null,null,""]
[null,null,null,null,""]
[null,null,null,null,""]
[null,null,null,null,""]
[null,null,null,null,""]
[null,null,null,null,""]
[null,null,null,null,""]
[null,null,null,null,""]
[null,null,null,null,""]
[null,null,null,null,""]
[null,null,null,null,""]
[null,null,null,null,""]
[null,null,null,null,""]
[null,null,null,null,""]
[null,null,null,null,""]
[null,null,null,null,""]
[null,null,null,null,""]
[null,null,null,null,""]
[null,null,null,null,""]
[null,null,null,null,""]
[null,null,null,null,""]
[null,null,null,null,""]
[null,null,null,null,""]
[null,null,null,null,""]
[null,null,null,null,""]
[null,null,null,null,""]
[null,null,null,null,""]
[null,null,null,null,""]
[null,null,null,null,""]
[null,null,null,null,""]
[null,null,null,null,""]
[null,null,null,null,{"$f":"_xlfn.CONCAT(B10178, C10178, D10178)","v":""}]
[null,null,null,null,""]
[null,null,null,null,""]
[null,null,null,null,""]
[null,null,null,null,""]
[null,null,null,null,""]
[null,null,null,null,""]
[null,null,null,null,""]
[null,null,null,null,""]
[null,null,null,null,""]
[null,null,null,null,""]
[null,null,null,null,""]
[null,null,null,null,""]
[null,null,null,null,""]
[null,null,null,null,""]
[null,null,null,null,""]
[null,null,null,null,""]
[null,null,null,null,""]
[null,null,null,null,""]
[null,null,null,null,""]
[null,null,null,null,""]
[null,null,null,null,""]
[null,null,null,null,""]
[null,null,null,null,""]
[null,null,null,null,""]
[null,null,null,null,""]
[null,null,null,null,""]
[null,null,null,null,""]
[null,null,null,null,""]
[null,null,null,null,""]
[null,null,null,null,""]
[null,null,null,null,""]
[null,null,null,null,""]
[null,null,null,null,""]
[null,null,null,null,""]
[null,null,null,null,""]
[null,null,null,null,""]
[null,null,null,null,""]
[null,null,null,null,""]
[null,null,null,null,""]
[null,null,null,null,""]
[null,null,null,null,""]
[null,null,null,null,""]
[null,null,null,null,""]
[null,null,null,null,""]
[null,null,null,null,""]
[null,null,null,null,""]
[null,null,null,null,""]
[null,null,null,null,""]
[null,null,null,null,""]
[null,null,null,null,""]
[null,null,null,null,""]
[null,null,null,null,""]
[null,null,null,null,""]
[null,null,null,null,""]
[null,null,null,null,""]
[null,null,null,null,""]
[null,null,null,null,""]
[null,null,null,null,""]
[null,null,null,null,""]
[null,null,null,null,""]
[null,null,null,null,""]
[null,null,null,null,""]
[null,null,null,null,""]
[null,null,null,null,{"$f":"_xlfn.CONCAT(B10242, C10242, D10242)","v":""}]
[null,null,null,null,""]
[null,null,null,null,""]
[null,null,null,null,""]
[null,null,null,null,""]
[null,null,null,null,""]
[null,null,null,null,""]
[null,null,null,null,""]
[null,null,null,null,""]
[null,null,null,null,""]
[null,null,null,null,""]
[null,null,null,null,""]
[null,null,null,null,""]
[null,null,null,null,""]
[null,null,null,null,""]
[null,null,null,null,""]
[null,null,null,null,""]
[null,null,null,null,""]
[null,null,null,null,""]
[null,null,null,null,""]
[null,null,null,null,""]
[null,null,null,null,""]
[null,null,null,null,""]
[null,null,null,null,""]
[null,null,null,null,""]
[null,null,null,null,""]
[null,null,null,null,""]
[null,null,null,null,""]
[null,null,null,null,""]
[null,null,null,null,""]
[null,null,null,null,""]
[null,null,null,null,""]
[null,null,null,null,""]
[null,null,null,null,""]
[null,null,null,null,""]
[null,null,null,null,""]
[null,null,null,null,""]
[null,null,null,null,""]
[null,null,null,null,""]
[null,null,null,null,""]
[null,null,null,null,""]
[null,null,null,null,""]
[null,null,null,null,""]
[null,null,null,null,""]
[null,null,null,null,""]
[null,null,null,null,""]
[null,null,null,null,""]
[null,null,null,null,""]
[null,null,null,null,""]
[null,null,null,null,""]
[null,null,null,null,""]
[null,null,null,null,""]
[null,null,null,null,""]
[null,null,null,null,""]
[null,null,null,null,""]
[null,null,null,null,""]
[null,null,null,null,""]
[null,null,null,null,""]
[null,null,null,null,""]
[null,null,null,null,""]
[null,null,null,null,""]
[null,null,null,null,""]
[null,null,null,null,""]
[null,null,null,null,""]
[null,null,null,null,{"$f":"_xlfn.CONCAT(B10306, C10306, D10306)","v":""}]
[null,null,null,null,""]
[null,null,null,null,""]
[null,null,null,null,""]
[null,null,null,null,""]
[null,null,null,null,""]
[null,null,null,null,""]
[null,null,null,null,""]
[null,null,null,null,""]
[null,null,null,null,""]
[null,null,null,null,""]
[null,null,null,null,""]
[null,null,null,null,""]
[null,null,null,null,""]
[null,null,null,null,""]
[null,null,null,null,""]
[null,null,null,null,""]
[null,null,null,null,""]
[null,null,null,null,""]
[null,null,null,null,""]
[null,null,null,null,""]
[null,null,null,null,""]
[null,null,null,null,""]
[null,null,null,null,""]
[null,null,null,null,""]
[null,null,null,null,""]
[null,null,null,null,""]
[null,null,null,null,""]
[null,null,null,null,""]
[null,null,null,null,""]
[null,null,null,null,""]
[null,null,null,null,""]
[null,null,null,null,""]
[null,null,null,null,""]
[null,null,null,null,""]
[null,null,null,null,""]
[null,null,null,null,""]
[null,null,null,null,""]
[null,null,null,null,""]
[null,null,null,null,""]
[null,null,null,null,""]
[null,null,null,null,""]
[null,null,null,null,""]
[null,null,null,null,""]
[null,null,null,null,""]
[null,null,null,null,""]
[null,null,null,null,""]
[null,null,null,null,""]
[null,null,null,null,""]
[null,null,null,null,""]
[null,null,null,null,""]
[null,null,null,null,""]
[null,null,null,null,""]
[null,null,null,null,""]
[null,null,null,null,""]
[null,null,null,null,""]
[null,null,null,null,""]
[null,null,null,null,""]
[null,null,null,null,""]
[null,null,null,null,""]
[null,null,null,null,""]
[null,null,null,null,""]
[null,null,null,null,""]
[null,null,null,null,""]
[null,null,null,null,{"$f":"_xlfn.CONCAT(B10370, C10370, D10370)","v":""}]
[null,null,null,null,""]
[null,null,null,null,""]
[null,null,null,null,""]
[null,null,null,null,""]
[null,null,null,null,""]
[null,null,null,null,""]
[null,null,null,null,""]
[null,null,null,null,""]
[null,null,null,null,""]
[null,null,null,null,""]
[null,null,null,null,""]
[null,null,null,null,""]
[null,null,null,null,""]
[null,null,null,null,""]
[null,null,null,null,""]
[null,null,null,null,""]
[null,null,null,null,""]
[null,null,null,null,""]
[null,null,null,null,""]
[null,null,null,null,""]
[null,null,null,null,""]
[null,null,null,null,""]
[null,null,null,null,""]
[null,null,null,null,""]
[null,null,null,null,""]
[null,null,null,null,""]
[null,null,null,null,""]
[null,null,null,null,""]
[null,null,null,null,""]
[null,null,null,null,""]
[null,null,null,null,""]
[null,null,null,null,""]
[null,null,null,null,""]
[null,null,null,null,""]
[null,null,null,null,""]
[null,null,null,null,""]
[null,null,null,null,""]
[null,null,null,null,""]
[null,null,null,null,""]
[null,null,null,null,""]
[null,null,null,null,""]
[null,null,null,null,""]
[null,null,null,null,""]
[null,null,null,null,""]
[null,null,null,null,""]
[null,null,null,null,""]
[null,null,null,null,""]
[null,null,null,null,""]
[null,null,null,null,""]
[null,null,null,null,""]
[null,null,null,null,""]
[null,null,null,null,""]
[null,null,null,null,""]
[null,null,null,null,""]
[null,null,null,null,""]
[null,null,null,null,""]
[null,null,null,null,""]
[null,null,null,null,""]
[null,null,null,null,""]
[null,null,null,null,""]
[null,null,null,null,""]
[null,null,null,null,""]
[null,null,null,null,""]
[null,null,null,null,{"$f":"_xlfn.CONCAT(B10434, C10434, D10434)","v":""}]
[null,null,null,null,""]
[null,null,null,null,""]
[null,null,null,null,""]
[null,null,null,null,""]
[null,null,null,null,""]
[null,null,null,null,""]
[null,null,null,null,""]
[null,null,null,null,""]
[null,null,null,null,""]
[null,null,null,null,""]
[null,null,null,null,""]
[null,null,null,null,""]
[null,null,null,null,""]
[null,null,null,null,""]
[null,null,null,null,""]
[null,null,null,null,""]
[null,null,null,null,""]
[null,null,null,null,""]
[null,null,null,null,""]
[null,null,null,null,""]
[null,null,null,null,""]
[null,null,null,null,""]
[null,null,null,null,""]
[null,null,null,null,""]
[null,null,null,null,""]
[null,null,null,null,""]
[null,null,null,null,""]
[null,null,null,null,""]
[null,null,null,null,""]
[null,null,null,null,""]
[null,null,null,null,""]
[null,null,null,null,""]
[null,null,null,null,""]
[null,null,null,null,""]
[null,null,null,null,""]
[null,null,null,null,""]
[null,null,null,null,""]
[null,null,null,null,""]
[null,null,null,null,""]
[null,null,null,null,""]
[null,null,null,null,""]
[null,null,null,null,""]
[null,null,null,null,""]
[null,null,null,null,""]
[null,null,null,null,""]
[null,null,null,null,""]
[null,null,null,null,""]
[null,null,null,null,""]
[null,null,null,null,""]
[null,null,null,null,""]
[null,null,null,null,""]
[null,null,null,null,""]
[null,null,null,null,""]
[null,null,null,null,""]
[null,null,null,null,""]
[null,null,null,null,""]
[null,null,null,null,""]
[null,null,null,null,""]
[null,null,null,null,""]
[null,null,null,null,""]
[null,null,null,null,""]
[null,null,null,null,""]
[null,null,null,null,""]
[null,null,null,null,{"$f":"_xlfn.CONCAT(B10498, C10498, D10498)","v":""}]
[null,null,null,null,""]
[null,null,null,null,""]
[null,null,null,null,""]
[null,null,null,null,""]
[null,null,null,null,""]
[null,null,null,null,""]
[null,null,null,null,""]
[null,null,null,null,""]
[null,null,null,null,""]
[null,null,null,null,""]
[null,null,null,null,""]
[null,null,null,null,""]
[null,null,null,null,""]
[null,null,null,null,""]
[null,null,null,null,""]
[null,null,null,null,""]
[null,null,null,null,""]
[null,null,null,null,""]
[null,null,null,null,""]
[null,null,null,null,""]
[null,null,null,null,""]
[null,null,null,null,""]
[null,null,null,null,""]
[null,null,null,null,""]
[null,null,null,null,""]
[null,null,null,null,""]
[null,null,null,null,""]
[null,null,null,null,""]
[null,null,null,null,""]
[null,null,null,null,""]
[null,null,null,null,""]
[null,null,null,null,""]
[null,null,null,null,""]
[null,null,null,null,""]
[null,null,null,null,""]
[null,null,null,null,""]
[null,null,null,null,""]
[null,null,null,null,""]
[null,null,null,null,""]
[null,null,null,null,""]
[null,null,null,null,""]
[null,null,null,null,""]
[null,null,null,null,""]
[null,null,null,null,""]
[null,null,null,null,""]
[null,null,null,null,""]
[null,null,null,null,""]
[null,null,null,null,""]
[null,null,null,null,""]
[null,null,null,null,""]
[null,null,null,null,""]
[null,null,null,null,""]
[null,null,null,null,""]
[null,null,null,null,""]
[null,null,null,null,""]
[null,null,null,null,""]
[null,null,null,null,""]
[null,null,null,null,""]
[null,null,null,null,""]
[null,null,null,null,""]
[null,null,null,null,""]
[null,null,null,null,""]
[null,null,null,null,""]
[null,null,null,null,{"$f":"_xlfn.CONCAT(B10562, C10562, D10562)","v":""}]
[null,null,null,null,""]
[null,null,null,null,""]
[null,null,null,null,""]
[null,null,null,null,""]
[null,null,null,null,""]
[null,null,null,null,""]
[null,null,null,null,""]
[null,null,null,null,""]
[null,null,null,null,""]
[null,null,null,null,""]
[null,null,null,null,""]
[null,null,null,null,""]
[null,null,null,null,""]
[null,null,null,null,""]
[null,null,null,null,""]
[null,null,null,null,""]
[null,null,null,null,""]
[null,null,null,null,""]
[null,null,null,null,""]
[null,null,null,null,""]
[null,null,null,null,""]
[null,null,null,null,""]
[null,null,null,null,""]
[null,null,null,null,""]
[null,null,null,null,""]
[null,null,null,null,""]
[null,null,null,null,""]
[null,null,null,null,""]
[null,null,null,null,""]
[null,null,null,null,""]
[null,null,null,null,""]
[null,null,null,null,""]
[null,null,null,null,""]
[null,null,null,null,""]
[null,null,null,null,""]
[null,null,null,null,""]
[null,null,null,null,""]
[null,null,null,null,""]
[null,null,null,null,""]
[null,null,null,null,""]
[null,null,null,null,""]
[null,null,null,null,""]
[null,null,null,null,""]
[null,null,null,null,""]
[null,null,null,null,""]
[null,null,null,null,""]
[null,null,null,null,""]
[null,null,null,null,""]
[null,null,null,null,""]
[null,null,null,null,""]
[null,null,null,null,""]
[null,null,null,null,""]
[null,null,null,null,""]
[null,null,null,null,""]
[null,null,null,null,""]
[null,null,null,null,""]
[null,null,null,null,""]
[null,null,null,null,""]
[null,null,null,null,""]
[null,null,null,null,""]
[null,null,null,null,""]
[null,null,null,null,""]
[null,null,null,null,""]
[null,null,null,null,{"$f":"_xlfn.CONCAT(B10626, C10626, D10626)","v":""}]
[null,null,null,null,""]
[null,null,null,null,""]
[null,null,null,null,""]